Workbook

Sheet 入力用
A1: 給与所得者異動届出書(入力シート)
A3: 作成方法
A4: ① 共通項目に必要事項を入力のうえ、各従業員等の項目に入力番号ごとに必要事項を入力してください。
A5: ② 必要事項を入力後、「異動届出書(印刷用)」シートの入力番号欄に「入力用」シートの「入力番号」を入力いただくと該当者が表示されます。
A6: 記載内容に誤りがないかご確認のうえ、異動（退職、転勤等）があった者1人につき1枚印刷して、提出してください。
A8: 提 出 年 月 日 令和 | H8: 年 | J8: 月 | L8: 日
A9: 共通項目 (すべてに印刷) | B9: 給与支払者情報 （特別徴収義務者） | C9: 給与支払者番号 （特別徴収指定番号）
C10: 郵便番号 | J10: -
C11: 名 称 （氏 名）
C12: 所 在 地 （住 所）
C13: 個人番号又は法人番号 | T13: （右詰めで入力してください。）
C14: 連 絡 先 | G14: 所属課・係 | M14: 氏 名 | S14: 電話番号 | AA14: 内 線
U15: － | X15: －
A17: 各従業員等の項目 （入力番号ごとの内容がそれぞれ異動届出書に印刷） | B17: 入 力 番 号 | G17: 1 | M17: 2 | S17: 3 | Y17: 4 | AE17: 5 | AK17: 6 | AQ17: 7 | AW17: 8 | BC17: 9 | BI17: 10 | BO17: 11 | BU17: 12 | CA17: 13 | CG17: 14 | CM17: 15 | CS17: 16 | CY17: 17 | DE17: 18 | DK17: 19 | DQ17: 20 | DW17: 21 | EC17: 22 | EI17: 23 | EO17: 24 | EU17: 25 | FA17: 26 | FG17: 27 | FM17: 28 | FS17: 29 | FY17: 30 | GE17: 31 | GK17: 32 | GQ17: 33 | GW17: 34 | HC17: 35 | HI17: 36 | HO17: 37 | HU17: 38 | IA17: 39 | IG17: 40
B18: サブ番号 | G18: =TEXT(G17&1,"#,##0")*1 -> 11 | H18: =+G18+1 -> 12 | I18: =+H18+1 -> 13 | J18: =+I18+1 -> 14 | K18: =+J18+1 -> 15 | L18: =+K18+1 -> 16 | M18: =TEXT(M17&1,"#,##0")*1 -> 21 | N18: =+M18+1 -> 22 | O18: =+N18+1 -> 23 | P18: =+O18+1 -> 24 | Q18: =+P18+1 -> 25 | R18: =+Q18+1 -> 26 | S18: =TEXT(S17&1,"#,##0")*1 -> 31 | T18: =+S18+1 -> 32 | U18: =+T18+1 -> 33 | V18: =+U18+1 -> 34 | W18: =+V18+1 -> 35 | X18: =+W18+1 -> 36 | Y18: =TEXT(Y17&1,"#,##0")*1 -> 41 | Z18: =+Y18+1 -> 42 | AA18: =+Z18+1 -> 43 | AB18: =+AA18+1 -> 44 | AC18: =+AB18+1 -> 45 | AD18: =+AC18+1 -> 46 | AE18: =TEXT(AE17&1,"#,##0")*1 -> 51 | AF18: =+AE18+1 -> 52 | AG18: =+AF18+1 -> 53 | AH18: =+AG18+1 -> 54 | AI18: =+AH18+1 -> 55 | AJ18: =+AI18+1 -> 56 | AK18: =TEXT(AK17&1,"#,##0")*1 -> 61 | AL18: =+AK18+1 -> 62 | AM18: =+AL18+1 -> 63 | AN18: =+AM18+1 -> 64 | AO18: =+AN18+1 -> 65 | AP18: =+AO18+1 -> 66 | AQ18: =TEXT(AQ17&1,"#,##0")*1 -> 71 | AR18: =+AQ18+1 -> 72 | AS18: =+AR18+1 -> 73 | AT18: =+AS18+1 -> 74 | AU18: =+AT18+1 -> 75 | AV18: =+AU18+1 -> 76 | AW18: =TEXT(AW17&1,"#,##0")*1 -> 81 | AX18: =+AW18+1 -> 82 | AY18: =+AX18+1 -> 83 | AZ18: =+AY18+1 -> 84 | BA18: =+AZ18+1 -> 85 | BB18: =+BA18+1 -> 86 | BC18: =TEXT(BC17&1,"#,##0")*1 -> 91 | BD18: =+BC18+1 -> 92 | BE18: =+BD18+1 -> 93 | BF18: =+BE18+1 -> 94 | BG18: =+BF18+1 -> 95 | BH18: =+BG18+1 -> 96 | BI18: =TEXT(BI17&1,"#,##0")*1 -> 101 | BJ18: =+BI18+1 -> 102 | BK18: =+BJ18+1 -> 103 | BL18: =+BK18+1 -> 104 | BM18: =+BL18+1 -> 105 | BN18: =+BM18+1 -> 106 | BO18: =TEXT(BO17&1,"#,##0")*1 -> 111 | BP18: =+BO18+1 -> 112 | BQ18: =+BP18+1 -> 113 | BR18: =+BQ18+1 -> 114 | BS18: =+BR18+1 -> 115 | BT18: =+BS18+1 -> 116 | BU18: =TEXT(BU17&1,"#,##0")*1 -> 121 | BV18: =+BU18+1 -> 122 | BW18: =+BV18+1 -> 123 | BX18: =+BW18+1 -> 124 | BY18: =+BX18+1 -> 125 | BZ18: =+BY18+1 -> 126 | CA18: =TEXT(CA17&1,"#,##0")*1 -> 131 | CB18: =+CA18+1 -> 132 | CC18: =+CB18+1 -> 133 | CD18: =+CC18+1 -> 134 | CE18: =+CD18+1 -> 135 | CF18: =+CE18+1 -> 136 | CG18: =TEXT(CG17&1,"#,##0")*1 -> 141 | CH18: =+CG18+1 -> 142 | CI18: =+CH18+1 -> 143 | CJ18: =+CI18+1 -> 144 | CK18: =+CJ18+1 -> 145 | CL18: =+CK18+1 -> 146 | CM18: =TEXT(CM17&1,"#,##0")*1 -> 151 | CN18: =+CM18+1 -> 152 | CO18: =+CN18+1 -> 153 | CP18: =+CO18+1 -> 154 | CQ18: =+CP18+1 -> 155 | CR18: =+CQ18+1 -> 156 | CS18: =TEXT(CS17&1,"#,##0")*1 -> 161 | CT18: =+CS18+1 -> 162 | CU18: =+CT18+1 -> 163 | CV18: =+CU18+1 -> 164 | CW18: =+CV18+1 -> 165 | CX18: =+CW18+1 -> 166 | CY18: =TEXT(CY17&1,"#,##0")*1 -> 171 | CZ18: =+CY18+1 -> 172 | DA18: =+CZ18+1 -> 173 | DB18: =+DA18+1 -> 174 | DC18: =+DB18+1 -> 175 | DD18: =+DC18+1 -> 176 | DE18: =TEXT(DE17&1,"#,##0")*1 -> 181 | DF18: =+DE18+1 -> 182 | DG18: =+DF18+1 -> 183 | DH18: =+DG18+1 -> 184 | DI18: =+DH18+1 -> 185 | DJ18: =+DI18+1 -> 186 | DK18: =TEXT(DK17&1,"#,##0")*1 -> 191 | DL18: =+DK18+1 -> 192 | DM18: =+DL18+1 -> 193 | DN18: =+DM18+1 -> 194 | DO18: =+DN18+1 -> 195 | DP18: =+DO18+1 -> 196 | DQ18: =TEXT(DQ17&1,"#,##0")*1 -> 201 | DR18: =+DQ18+1 -> 202 | DS18: =+DR18+1 -> 203 | DT18: =+DS18+1 -> 204 | DU18: =+DT18+1 -> 205 | DV18: =+DU18+1 -> 206 | DW18: =TEXT(DW17&1,"#,##0")*1 -> 211 | DX18: =+DW18+1 -> 212 | DY18: =+DX18+1 -> 213 | DZ18: =+DY18+1 -> 214 | EA18: =+DZ18+1 -> 215 | EB18: =+EA18+1 -> 216 | EC18: =TEXT(EC17&1,"#,##0")*1 -> 221 | ED18: =+EC18+1 -> 222 | EE18: =+ED18+1 -> 223 | EF18: =+EE18+1 -> 224 | EG18: =+EF18+1 -> 225 | EH18: =+EG18+1 -> 226 | EI18: =TEXT(EI17&1,"#,##0")*1 -> 231 | EJ18: =+EI18+1 -> 232 | EK18: =+EJ18+1 -> 233 | EL18: =+EK18+1 -> 234 | EM18: =+EL18+1 -> 235 | EN18: =+EM18+1 -> 236 | EO18: =TEXT(EO17&1,"#,##0")*1 -> 241 | EP18: =+EO18+1 -> 242 | EQ18: =+EP18+1 -> 243 | ER18: =+EQ18+1 -> 244 | ES18: =+ER18+1 -> 245 | ET18: =+ES18+1 -> 246 | EU18: =TEXT(EU17&1,"#,##0")*1 -> 251 | EV18: =+EU18+1 -> 252 | EW18: =+EV18+1 -> 253 | EX18: =+EW18+1 -> 254 | EY18: =+EX18+1 -> 255 | EZ18: =+EY18+1 -> 256 | FA18: =TEXT(FA17&1,"#,##0")*1 -> 261 | FB18: =+FA18+1 -> 262 | FC18: =+FB18+1 -> 263 | FD18: =+FC18+1 -> 264 | FE18: =+FD18+1 -> 265 | FF18: =+FE18+1 -> 266 | FG18: =TEXT(FG17&1,"#,##0")*1 -> 271 | FH18: =+FG18+1 -> 272 | FI18: =+FH18+1 -> 273 | FJ18: =+FI18+1 -> 274 | FK18: =+FJ18+1 -> 275 | FL18: =+FK18+1 -> 276 | FM18: =TEXT(FM17&1,"#,##0")*1 -> 281 | FN18: =+FM18+1 -> 282 | FO18: =+FN18+1 -> 283 | FP18: =+FO18+1 -> 284 | FQ18: =+FP18+1 -> 285 | FR18: =+FQ18+1 -> 286 | FS18: =TEXT(FS17&1,"#,##0")*1 -> 291 | FT18: =+FS18+1 -> 292 | FU18: =+FT18+1 -> 293 | FV18: =+FU18+1 -> 294 | FW18: =+FV18+1 -> 295 | FX18: =+FW18+1 -> 296 | FY18: =TEXT(FY17&1,"#,##0")*1 -> 301 | FZ18: =+FY18+1 -> 302 | GA18: =+FZ18+1 -> 303 | GB18: =+GA18+1 -> 304 | GC18: =+GB18+1 -> 305 | GD18: =+GC18+1 -> 306 | GE18: =TEXT(GE17&1,"#,##0")*1 -> 311 | GF18: =+GE18+1 -> 312 | GG18: =+GF18+1 -> 313 | GH18: =+GG18+1 -> 314 | GI18: =+GH18+1 -> 315 | GJ18: =+GI18+1 -> 316 | GK18: =TEXT(GK17&1,"#,##0")*1 -> 321 | GL18: =+GK18+1 -> 322 | GM18: =+GL18+1 -> 323 | GN18: =+GM18+1 -> 324 | GO18: =+GN18+1 -> 325 | GP18: =+GO18+1 -> 326 | GQ18: =TEXT(GQ17&1,"#,##0")*1 -> 331 | GR18: =+GQ18+1 -> 332 | GS18: =+GR18+1 -> 333 | GT18: =+GS18+1 -> 334 | GU18: =+GT18+1 -> 335 | GV18: =+GU18+1 -> 336 | GW18: =TEXT(GW17&1,"#,##0")*1 -> 341 | GX18: =+GW18+1 -> 342 | GY18: =+GX18+1 -> 343 | GZ18: =+GY18+1 -> 344 | HA18: =+GZ18+1 -> 345 | HB18: =+HA18+1 -> 346 | HC18: =TEXT(HC17&1,"#,##0")*1 -> 351 | HD18: =+HC18+1 -> 352 | HE18: =+HD18+1 -> 353 | HF18: =+HE18+1 -> 354 | HG18: =+HF18+1 -> 355 | HH18: =+HG18+1 -> 356 | HI18: =TEXT(HI17&1,"#,##0")*1 -> 361 | HJ18: =+HI18+1 -> 362 | HK18: =+HJ18+1 -> 363 | HL18: =+HK18+1 -> 364 | HM18: =+HL18+1 -> 365 | HN18: =+HM18+1 -> 366 | HO18: =TEXT(HO17&1,"#,##0")*1 -> 371 | HP18: =+HO18+1 -> 372 | HQ18: =+HP18+1 -> 373 | HR18: =+HQ18+1 -> 374 | HS18: =+HR18+1 -> 375 | HT18: =+HS18+1 -> 376 | HU18: =TEXT(HU17&1,"#,##0")*1 -> 381 | HV18: =+HU18+1 -> 382 | HW18: =+HV18+1 -> 383 | HX18: =+HW18+1 -> 384 | HY18: =+HX18+1 -> 385 | HZ18: =+HY18+1 -> 386 | IA18: =TEXT(IA17&1,"#,##0")*1 -> 391 | IB18: =+IA18+1 -> 392 | IC18: =+IB18+1 -> 393 | ID18: =+IC18+1 -> 394 | IE18: =+ID18+1 -> 395 | IF18: =+IE18+1 -> 396 | IG18: =TEXT(IG17&1,"#,##0")*1 -> 401 | IH18: =+IG18+1 -> 402 | II18: =+IH18+1 -> 403 | IJ18: =+II18+1 -> 404 | IK18: =+IJ18+1 -> 405 | IL18: =+IK18+1 -> 406
B19: 宛名番号（通知書記載の番号）
B20: フリガナ
B21: 氏 名
C22: フリガナ
C23: 新 姓
B24: 生 年 月 日 | F24: 元号
F25: 年 月 日 | H25: 年 | J25: 月 | L25: 日 | N25: 年 | P25: 月 | R25: 日 | T25: 年 | V25: 月 | X25: 日 | Z25: 年 | AB25: 月 | AD25: 日 | AF25: 年 | AH25: 月 | AJ25: 日 | AL25: 年 | AN25: 月 | AP25: 日 | AR25: 年 | AT25: 月 | AV25: 日 | AX25: 年 | AZ25: 月 | BB25: 日 | BD25: 年 | BF25: 月 | BH25: 日 | BJ25: 年 | BL25: 月 | BN25: 日 | BP25: 年 | BR25: 月 | BT25: 日 | BV25: 年 | BX25: 月 | BZ25: 日 | CB25: 年 | CD25: 月 | CF25: 日 | CH25: 年 | CJ25: 月 | CL25: 日 | CN25: 年 | CP25: 月 | CR25: 日 | CT25: 年 | CV25: 月 | CX25: 日 | CZ25: 年 | DB25: 月 | DD25: 日 | DF25: 年 | DH25: 月 | DJ25: 日 | DL25: 年 | DN25: 月 | DP25: 日 | DR25: 年 | DT25: 月 | DV25: 日 | DX25: 年 | DZ25: 月 | EB25: 日 | ED25: 年 | EF25: 月 | EH25: 日 | EJ25: 年 | EL25: 月 | EN25: 日 | EP25: 年 | ER25: 月 | ET25: 日 | EV25: 年 | EX25: 月 | EZ25: 日 | FB25: 年 | FD25: 月 | FF25: 日 | FH25: 年 | FJ25: 月 | FL25: 日 | FN25: 年 | FP25: 月 | FR25: 日 | FT25: 年 | FV25: 月 | FX25: 日 | FZ25: 年 | GB25: 月 | GD25: 日 | GF25: 年 | GH25: 月 | GJ25: 日 | GL25: 年 | GN25: 月 | GP25: 日 | GR25: 年 | GT25: 月 | GV25: 日 | GX25: 年 | GZ25: 月 | HB25: 日 | HD25: 年 | HF25: 月 | HH25: 日 | HJ25: 年 | HL25: 月 | HN25: 日 | HP25: 年 | HR25: 月 | HT25: 日 | HV25: 年 | HX25: 月 | HZ25: 日 | IB25: 年 | ID25: 月 | IF25: 日 | IH25: 年 | IJ25: 月 | IL25: 日
B26: 個人番号（マイナンバー）
B27: 従業員等の住所 | C27: 1月1日 現在 住所 | D27: 市町村・区名 | G27: 大阪市 | J27: 区 | M27: 大阪市 | P27: 区 | S27: 大阪市 | V27: 区 | Y27: 大阪市 | AB27: 区 | AE27: 大阪市 | AH27: 区 | AK27: 大阪市 | AN27: 区 | AQ27: 大阪市 | AT27: 区 | AW27: 大阪市 | AZ27: 区 | BC27: 大阪市 | BF27: 区 | BI27: 大阪市 | BL27: 区 | BO27: 大阪市 | BR27: 区 | BU27: 大阪市 | BX27: 区 | CA27: 大阪市 | CD27: 区 | CG27: 大阪市 | CJ27: 区 | CM27: 大阪市 | CP27: 区 | CS27: 大阪市 | CV27: 区 | CY27: 大阪市 | DB27: 区 | DE27: 大阪市 | DH27: 区 | DK27: 大阪市 | DN27: 区 | DQ27: 大阪市 | DT27: 区 | DW27: 大阪市 | DZ27: 区 | EC27: 大阪市 | EF27: 区 | EI27: 大阪市 | EL27: 区 | EO27: 大阪市 | ER27: 区 | EU27: 大阪市 | EX27: 区 | FA27: 大阪市 | FD27: 区 | FG27: 大阪市 | FJ27: 区 | FM27: 大阪市 | FP27: 区 | FS27: 大阪市 | FV27: 区 | FY27: 大阪市 | GB27: 区 | GE27: 大阪市 | GH27: 区 | GK27: 大阪市 | GN27: 区 | GQ27: 大阪市 | GT27: 区 | GW27: 大阪市 | GZ27: 区 | HC27: 大阪市 | HF27: 区 | HI27: 大阪市 | HL27: 区 | HO27: 大阪市 | HR27: 区 | HU27: 大阪市 | HX27: 区 | IA27: 大阪市 | ID27: 区 | IG27: 大阪市 | IJ27: 区
D28: 町 名
D29: 番 地
D30: 建物名等
C31: 現住所 (異動後) 上記と異なる場合のみ | D31: 都道府県名
D32: 市区町村名
D33: 町 名
D34: 番 地
D35: 建物名等
B36: 異動年月日 令和 | H36: 年 | J36: 月 | L36: 日 | N36: 年 | P36: 月 | R36: 日 | T36: 年 | V36: 月 | X36: 日 | Z36: 年 | AB36: 月 | AD36: 日 | AF36: 年 | AH36: 月 | AJ36: 日 | AL36: 年 | AN36: 月 | AP36: 日 | AR36: 年 | AT36: 月 | AV36: 日 | AX36: 年 | AZ36: 月 | BB36: 日 | BD36: 年 | BF36: 月 | BH36: 日 | BJ36: 年 | BL36: 月 | BN36: 日 | BP36: 年 | BR36: 月 | BT36: 日 | BV36: 年 | BX36: 月 | BZ36: 日 | CB36: 年 | CD36: 月 | CF36: 日 | CH36: 年 | CJ36: 月 | CL36: 日 | CN36: 年 | CP36: 月 | CR36: 日 | CT36: 年 | CV36: 月 | CX36: 日 | CZ36: 年 | DB36: 月 | DD36: 日 | DF36: 年 | DH36: 月 | DJ36: 日 | DL36: 年 | DN36: 月 | DP36: 日 | DR36: 年 | DT36: 月 | DV36: 日 | DX36: 年 | DZ36: 月 | EB36: 日 | ED36: 年 | EF36: 月 | EH36: 日 | EJ36: 年 | EL36: 月 | EN36: 日 | EP36: 年 | ER36: 月 | ET36: 日 | EV36: 年 | EX36: 月 | EZ36: 日 | FB36: 年 | FD36: 月 | FF36: 日 | FH36: 年 | FJ36: 月 | FL36: 日 | FN36: 年 | FP36: 月 | FR36: 日 | FT36: 年 | FV36: 月 | FX36: 日 | FZ36: 年 | GB36: 月 | GD36: 日 | GF36: 年 | GH36: 月 | GJ36: 日 | GL36: 年 | GN36: 月 | GP36: 日 | GR36: 年 | GT36: 月 | GV36: 日 | GX36: 年 | GZ36: 月 | HB36: 日 | HD36: 年 | HF36: 月 | HH36: 日 | HJ36: 年 | HL36: 月 | HN36: 日 | HP36: 年 | HR36: 月 | HT36: 日 | HV36: 年 | HX36: 月 | HZ36: 日 | IB36: 年 | ID36: 月 | IF36: 日 | IH36: 年 | IJ36: 月 | IL36: 日
B37: 異動の事由
C38: 8 その他
B39: 特別徴収税額（年税額） | L39: 円 | R39: 円 | X39: 円 | AD39: 円 | AJ39: 円 | AP39: 円 | AV39: 円 | BB39: 円 | BH39: 円 | BN39: 円 | BT39: 円 | BZ39: 円 | CF39: 円 | CL39: 円 | CR39: 円 | CX39: 円 | DD39: 円 | DJ39: 円 | DP39: 円 | DV39: 円 | EB39: 円 | EH39: 円 | EN39: 円 | ET39: 円 | EZ39: 円 | FF39: 円 | FL39: 円 | FR39: 円 | FX39: 円 | GD39: 円 | GJ39: 円 | GP39: 円 | GV39: 円 | HB39: 円 | HH39: 円 | HN39: 円 | HT39: 円 | HZ39: 円 | IF39: 円 | IL39: 円
C40: 徴収済の税額 | L40: 円 | R40: 円 | X40: 円 | AD40: 円 | AJ40: 円 | AP40: 円 | AV40: 円 | BB40: 円 | BH40: 円 | BN40: 円 | BT40: 円 | BZ40: 円 | CF40: 円 | CL40: 円 | CR40: 円 | CX40: 円 | DD40: 円 | DJ40: 円 | DP40: 円 | DV40: 円 | EB40: 円 | EH40: 円 | EN40: 円 | ET40: 円 | EZ40: 円 | FF40: 円 | FL40: 円 | FR40: 円 | FX40: 円 | GD40: 円 | GJ40: 円 | GP40: 円 | GV40: 円 | HB40: 円 | HH40: 円 | HN40: 円 | HT40: 円 | HZ40: 円 | IF40: 円 | IL40: 円
C41: 徴収済の月分 | H41: 月分～ | K41: 月分 | N41: 月分～ | Q41: 月分 | T41: 月分～ | W41: 月分 | Z41: 月分～ | AC41: 月分 | AF41: 月分～ | AI41: 月分 | AL41: 月分～ | AO41: 月分 | AR41: 月分～ | AU41: 月分 | AX41: 月分～ | BA41: 月分 | BD41: 月分～ | BG41: 月分 | BJ41: 月分～ | BM41: 月分 | BP41: 月分～ | BS41: 月分 | BV41: 月分～ | BY41: 月分 | CB41: 月分～ | CE41: 月分 | CH41: 月分～ | CK41: 月分 | CN41: 月分～ | CQ41: 月分 | CT41: 月分～ | CW41: 月分 | CZ41: 月分～ | DC41: 月分 | DF41: 月分～ | DI41: 月分 | DL41: 月分～ | DO41: 月分 | DR41: 月分～ | DU41: 月分 | DX41: 月分～ | EA41: 月分 | ED41: 月分～ | EG41: 月分 | EJ41: 月分～ | EM41: 月分 | EP41: 月分～ | ES41: 月分 | EV41: 月分～ | EY41: 月分 | FB41: 月分～ | FE41: 月分 | FH41: 月分～ | FK41: 月分 | FN41: 月分～ | FQ41: 月分 | FT41: 月分～ | FW41: 月分 | FZ41: 月分～ | GC41: 月分 | GF41: 月分～ | GI41: 月分 | GL41: 月分～ | GO41: 月分 | GR41: 月分～ | GU41: 月分 | GX41: 月分～ | HA41: 月分 | HD41: 月分～ | HG41: 月分 | HJ41: 月分～ | HM41: 月分 | HP41: 月分～ | HS41: 月分 | HV41: 月分～ | HY41: 月分 | IB41: 月分～ | IE41: 月分 | IH41: 月分～ | IK41: 月分
C42: 未徴収税額 | G42: =+G39-G40 -> 0 | L42: 円 | M42: =+M39-M40 -> 0 | R42: 円 | S42: =+S39-S40 -> 0 | X42: 円 | Y42: =+Y39-Y40 -> 0 | AD42: 円 | AE42: =+AE39-AE40 -> 0 | AJ42: 円 | AK42: =+AK39-AK40 -> 0 | AP42: 円 | AQ42: =+AQ39-AQ40 -> 0 | AV42: 円 | AW42: =+AW39-AW40 -> 0 | BB42: 円 | BC42: =+BC39-BC40 -> 0 | BH42: 円 | BI42: =+BI39-BI40 -> 0 | BN42: 円 | BO42: =+BO39-BO40 -> 0 | BT42: 円 | BU42: =+BU39-BU40 -> 0 | BZ42: 円 | CA42: =+CA39-CA40 -> 0 | CF42: 円 | CG42: =+CG39-CG40 -> 0 | CL42: 円 | CM42: =+CM39-CM40 -> 0 | CR42: 円 | CS42: =+CS39-CS40 -> 0 | CX42: 円 | CY42: =+CY39-CY40 -> 0 | DD42: 円 | DE42: =+DE39-DE40 -> 0 | DJ42: 円 | DK42: =+DK39-DK40 -> 0 | DP42: 円 | DQ42: =+DQ39-DQ40 -> 0 | DV42: 円 | DW42: =+DW39-DW40 -> 0 | EB42: 円 | EC42: =+EC39-EC40 -> 0 | EH42: 円 | EI42: =+EI39-EI40 -> 0 | EN42: 円 | EO42: =+EO39-EO40 -> 0 | ET42: 円 | EU42: =+EU39-EU40 -> 0 | EZ42: 円 | FA42: =+FA39-FA40 -> 0 | FF42: 円 | FG42: =+FG39-FG40 -> 0 | FL42: 円 | FM42: =+FM39-FM40 -> 0 | FR42: 円 | FS42: =+FS39-FS40 -> 0 | FX42: 円 | FY42: =+FY39-FY40 -> 0 | GD42: 円 | GE42: =+GE39-GE40 -> 0 | GJ42: 円 | GK42: =+GK39-GK40 -> 0 | GP42: 円 | GQ42: =+GQ39-GQ40 -> 0 | GV42: 円 | GW42: =+GW39-GW40 -> 0 | HB42: 円 | HC42: =+HC39-HC40 -> 0 | HH42: 円 | HI42: =+HI39-HI40 -> 0 | HN42: 円 | HO42: =+HO39-HO40 -> 0 | HT42: 円 | HU42: =+HU39-HU40 -> 0 | HZ42: 円 | IA42: =+IA39-IA40 -> 0 | IF42: 円 | IG42: =+IG39-IG40 -> 0 | IL42: 円
B43: 1月1日以降退職時までの 給与支払額(退職手当等を除く) | L43: 円 | R43: 円 | X43: 円 | AD43: 円 | AJ43: 円 | AP43: 円 | AV43: 円 | BB43: 円 | BH43: 円 | BN43: 円 | BT43: 円 | BZ43: 円 | CF43: 円 | CL43: 円 | CR43: 円 | CX43: 円 | DD43: 円 | DJ43: 円 | DP43: 円 | DV43: 円 | EB43: 円 | EH43: 円 | EN43: 円 | ET43: 円 | EZ43: 円 | FF43: 円 | FL43: 円 | FR43: 円 | FX43: 円 | GD43: 円 | GJ43: 円 | GP43: 円 | GV43: 円 | HB43: 円 | HH43: 円 | HN43: 円 | HT43: 円 | HZ43: 円 | IF43: 円 | IL43: 円
B44: 社会保険料控除額 | L44: 円 | R44: 円 | X44: 円 | AD44: 円 | AJ44: 円 | AP44: 円 | AV44: 円 | BB44: 円 | BH44: 円 | BN44: 円 | BT44: 円 | BZ44: 円 | CF44: 円 | CL44: 円 | CR44: 円 | CX44: 円 | DD44: 円 | DJ44: 円 | DP44: 円 | DV44: 円 | EB44: 円 | EH44: 円 | EN44: 円 | ET44: 円 | EZ44: 円 | FF44: 円 | FL44: 円 | FR44: 円 | FX44: 円 | GD44: 円 | GJ44: 円 | GP44: 円 | GV44: 円 | HB44: 円 | HH44: 円 | HN44: 円 | HT44: 円 | HZ44: 円 | IF44: 円 | IL44: 円
B45: 未徴収税額の徴収方法
C46: 普通徴収の理由
C47: 一括徴収 | D47: 徴 収 額 （未徴収の税額と同額） | G47: =IF(G42=0,"",IF(COUNTIF(G45,"*一括徴収*"),G42,"")) ->  | L47: 円 | M47: =IF(M42=0,"",IF(COUNTIF(M45,"*一括徴収*"),M42,"")) ->  | R47: 円 | S47: =IF(S42=0,"",IF(COUNTIF(S45,"*一括徴収*"),S42,"")) ->  | X47: 円 | Y47: =IF(Y42=0,"",IF(COUNTIF(Y45,"*一括徴収*"),Y42,"")) ->  | AD47: 円 | AE47: =IF(AE42=0,"",IF(COUNTIF(AE45,"*一括徴収*"),AE42,"")) ->  | AJ47: 円 | AK47: =IF(AK42=0,"",IF(COUNTIF(AK45,"*一括徴収*"),AK42,"")) ->  | AP47: 円 | AQ47: =IF(AQ42=0,"",IF(COUNTIF(AQ45,"*一括徴収*"),AQ42,"")) ->  | AV47: 円 | AW47: =IF(AW42=0,"",IF(COUNTIF(AW45,"*一括徴収*"),AW42,"")) ->  | BB47: 円 | BC47: =IF(BC42=0,"",IF(COUNTIF(BC45,"*一括徴収*"),BC42,"")) ->  | BH47: 円 | BI47: =IF(BI42=0,"",IF(COUNTIF(BI45,"*一括徴収*"),BI42,"")) ->  | BN47: 円 | BO47: =IF(BO42=0,"",IF(COUNTIF(BO45,"*一括徴収*"),BO42,"")) ->  | BT47: 円 | BU47: =IF(BU42=0,"",IF(COUNTIF(BU45,"*一括徴収*"),BU42,"")) ->  | BZ47: 円 | CA47: =IF(CA42=0,"",IF(COUNTIF(CA45,"*一括徴収*"),CA42,"")) ->  | CF47: 円 | CG47: =IF(CG42=0,"",IF(COUNTIF(CG45,"*一括徴収*"),CG42,"")) ->  | CL47: 円 | CM47: =IF(CM42=0,"",IF(COUNTIF(CM45,"*一括徴収*"),CM42,"")) ->  | CR47: 円 | CS47: =IF(CS42=0,"",IF(COUNTIF(CS45,"*一括徴収*"),CS42,"")) ->  | CX47: 円 | CY47: =IF(CY42=0,"",IF(COUNTIF(CY45,"*一括徴収*"),CY42,"")) ->  | DD47: 円 | DE47: =IF(DE42=0,"",IF(COUNTIF(DE45,"*一括徴収*"),DE42,"")) ->  | DJ47: 円 | DK47: =IF(DK42=0,"",IF(COUNTIF(DK45,"*一括徴収*"),DK42,"")) ->  | DP47: 円 | DQ47: =IF(DQ42=0,"",IF(COUNTIF(DQ45,"*一括徴収*"),DQ42,"")) ->  | DV47: 円 | DW47: =IF(DW42=0,"",IF(COUNTIF(DW45,"*一括徴収*"),DW42,"")) ->  | EB47: 円 | EC47: =IF(EC42=0,"",IF(COUNTIF(EC45,"*一括徴収*"),EC42,"")) ->  | EH47: 円 | EI47: =IF(EI42=0,"",IF(COUNTIF(EI45,"*一括徴収*"),EI42,"")) ->  | EN47: 円 | EO47: =IF(EO42=0,"",IF(COUNTIF(EO45,"*一括徴収*"),EO42,"")) ->  | ET47: 円 | EU47: =IF(EU42=0,"",IF(COUNTIF(EU45,"*一括徴収*"),EU42,"")) ->  | EZ47: 円 | FA47: =IF(FA42=0,"",IF(COUNTIF(FA45,"*一括徴収*"),FA42,"")) ->  | FF47: 円 | FG47: =IF(FG42=0,"",IF(COUNTIF(FG45,"*一括徴収*"),FG42,"")) ->  | FL47: 円 | FM47: =IF(FM42=0,"",IF(COUNTIF(FM45,"*一括徴収*"),FM42,"")) ->  | FR47: 円 | FS47: =IF(FS42=0,"",IF(COUNTIF(FS45,"*一括徴収*"),FS42,"")) ->  | FX47: 円 | FY47: =IF(FY42=0,"",IF(COUNTIF(FY45,"*一括徴収*"),FY42,"")) ->  | GD47: 円 | GE47: =IF(GE42=0,"",IF(COUNTIF(GE45,"*一括徴収*"),GE42,"")) ->  | GJ47: 円 | GK47: =IF(GK42=0,"",IF(COUNTIF(GK45,"*一括徴収*"),GK42,"")) ->  | GP47: 円 | GQ47: =IF(GQ42=0,"",IF(COUNTIF(GQ45,"*一括徴収*"),GQ42,"")) ->  | GV47: 円 | GW47: =IF(GW42=0,"",IF(COUNTIF(GW45,"*一括徴収*"),GW42,"")) ->  | HB47: 円 | HC47: =IF(HC42=0,"",IF(COUNTIF(HC45,"*一括徴収*"),HC42,"")) ->  | HH47: 円 | HI47: =IF(HI42=0,"",IF(COUNTIF(HI45,"*一括徴収*"),HI42,"")) ->  | HN47: 円 | HO47: =IF(HO42=0,"",IF(COUNTIF(HO45,"*一括徴収*"),HO42,"")) ->  | HT47: 円 | HU47: =IF(HU42=0,"",IF(COUNTIF(HU45,"*一括徴収*"),HU42,"")) ->  | HZ47: 円 | IA47: =IF(IA42=0,"",IF(COUNTIF(IA45,"*一括徴収*"),IA42,"")) ->  | IF47: 円 | IG47: =IF(IG42=0,"",IF(COUNTIF(IG45,"*一括徴収*"),IG42,"")) ->  | IL47: 円
D48: 納 入 月 | J48: 月分 (翌月10日期限) | P48: 月分 (翌月10日期限) | V48: 月分 (翌月10日期限) | AB48: 月分 (翌月10日期限) | AH48: 月分 (翌月10日期限) | AN48: 月分 (翌月10日期限) | AT48: 月分 (翌月10日期限) | AZ48: 月分 (翌月10日期限) | BF48: 月分 (翌月10日期限) | BL48: 月分 (翌月10日期限) | BR48: 月分 (翌月10日期限) | BX48: 月分 (翌月10日期限) | CD48: 月分 (翌月10日期限) | CJ48: 月分 (翌月10日期限) | CP48: 月分 (翌月10日期限) | CV48: 月分 (翌月10日期限) | DB48: 月分 (翌月10日期限) | DH48: 月分 (翌月10日期限) | DN48: 月分 (翌月10日期限) | DT48: 月分 (翌月10日期限) | DZ48: 月分 (翌月10日期限) | EF48: 月分 (翌月10日期限) | EL48: 月分 (翌月10日期限) | ER48: 月分 (翌月10日期限) | EX48: 月分 (翌月10日期限) | FD48: 月分 (翌月10日期限) | FJ48: 月分 (翌月10日期限) | FP48: 月分 (翌月10日期限) | FV48: 月分 (翌月10日期限) | GB48: 月分 (翌月10日期限) | GH48: 月分 (翌月10日期限) | GN48: 月分 (翌月10日期限) | GT48: 月分 (翌月10日期限) | GZ48: 月分 (翌月10日期限) | HF48: 月分 (翌月10日期限) | HL48: 月分 (翌月10日期限) | HR48: 月分 (翌月10日期限) | HX48: 月分 (翌月10日期限) | ID48: 月分 (翌月10日期限) | IJ48: 月分 (翌月10日期限)
C49: 特 別 徴 収 継 続 (継続先給与支払者情報) | D49: 給与支払者番号 (特別徴収指定番号)
F50: フリガナ
D51: 給与支払者名称
D52: 法人番号
D53: 所在地 | E53: 郵便番号 | I53: － | O53: － | U53: － | AA53: － | AG53: － | AM53: － | AS53: － | AY53: － | BE53: － | BK53: － | BQ53: － | BW53: － | CC53: － | CI53: － | CO53: － | CU53: － | DA53: － | DG53: － | DM53: － | DS53: － | DY53: － | EE53: － | EK53: － | EQ53: － | EW53: － | FC53: － | FI53: － | FO53: － | FU53: － | GA53: － | GG53: － | GM53: － | GS53: － | GY53: － | HE53: － | HK53: － | HQ53: － | HW53: － | IC53: － | II53: －
E54: 都道府県名
E55: 市区町村名
E56: 町 名
E57: 番 地
E58: 建物名等
D59: 連絡先 | E59: 所属課・係
E60: 氏 名
E61: 電話番号
E62: 内 線
D63: 依頼済 | E63: 徴収月割額 | L63: 円 | R63: 円 | X63: 円 | AD63: 円 | AJ63: 円 | AP63: 円 | AV63: 円 | BB63: 円 | BH63: 円 | BN63: 円 | BT63: 円 | BZ63: 円 | CF63: 円 | CL63: 円 | CR63: 円 | CX63: 円 | DD63: 円 | DJ63: 円 | DP63: 円 | DV63: 円 | EB63: 円 | EH63: 円 | EN63: 円 | ET63: 円 | EZ63: 円 | FF63: 円 | FL63: 円 | FR63: 円 | FX63: 円 | GD63: 円 | GJ63: 円 | GP63: 円 | GV63: 円 | HB63: 円 | HH63: 円 | HN63: 円 | HT63: 円 | HZ63: 円 | IF63: 円 | IL63: 円
E64: 徴収開始月 | J64: 月分 (翌月10日期限) | P64: 月分 (翌月10日期限) | V64: 月分 (翌月10日期限) | AB64: 月分 (翌月10日期限) | AH64: 月分 (翌月10日期限) | AN64: 月分 (翌月10日期限) | AT64: 月分 (翌月10日期限) | AZ64: 月分 (翌月10日期限) | BF64: 月分 (翌月10日期限) | BL64: 月分 (翌月10日期限) | BR64: 月分 (翌月10日期限) | BX64: 月分 (翌月10日期限) | CD64: 月分 (翌月10日期限) | CJ64: 月分 (翌月10日期限) | CP64: 月分 (翌月10日期限) | CV64: 月分 (翌月10日期限) | DB64: 月分 (翌月10日期限) | DH64: 月分 (翌月10日期限) | DN64: 月分 (翌月10日期限) | DT64: 月分 (翌月10日期限) | DZ64: 月分 (翌月10日期限) | EF64: 月分 (翌月10日期限) | EL64: 月分 (翌月10日期限) | ER64: 月分 (翌月10日期限) | EX64: 月分 (翌月10日期限) | FD64: 月分 (翌月10日期限) | FJ64: 月分 (翌月10日期限) | FP64: 月分 (翌月10日期限) | FV64: 月分 (翌月10日期限) | GB64: 月分 (翌月10日期限) | GH64: 月分 (翌月10日期限) | GN64: 月分 (翌月10日期限) | GT64: 月分 (翌月10日期限) | GZ64: 月分 (翌月10日期限) | HF64: 月分 (翌月10日期限) | HL64: 月分 (翌月10日期限) | HR64: 月分 (翌月10日期限) | HX64: 月分 (翌月10日期限) | ID64: 月分 (翌月10日期限) | IJ64: 月分 (翌月10日期限)
E65: 受給者番号
E66: 納入書の要否 （新規の場合のみ記載）
F72: 異動事由 | G72: 徴収方法 | M72: 徴収方法 | S72: 徴収方法 | Y72: 徴収方法 | AE72: 徴収方法 | AK72: 徴収方法 | AQ72: 徴収方法 | AW72: 徴収方法 | BC72: 徴収方法 | BI72: 徴収方法 | BO72: 徴収方法 | BU72: 徴収方法 | CA72: 徴収方法 | CG72: 徴収方法 | CM72: 徴収方法 | CS72: 徴収方法 | CY72: 徴収方法 | DE72: 徴収方法 | DK72: 徴収方法 | DQ72: 徴収方法 | DW72: 徴収方法 | EC72: 徴収方法 | EI72: 徴収方法 | EO72: 徴収方法 | EU72: 徴収方法 | FA72: 徴収方法 | FG72: 徴収方法 | FM72: 徴収方法 | FS72: 徴収方法 | FY72: 徴収方法 | GE72: 徴収方法 | GK72: 徴収方法 | GQ72: 徴収方法 | GW72: 徴収方法 | HC72: 徴収方法 | HI72: 徴収方法 | HO72: 徴収方法 | HU72: 徴収方法 | IA72: 徴収方法 | IG72: 徴収方法
B73: =IF(AND(G21<>"",G25<>"",I25<>"",K25<>""),G17,"") ->  | C73: 年齢テーブル | F73: 1 転勤・転籍 | G73: =IF(AND(I36>=1,I36<=5),"一括徴収","") ->  | M73: =IF(AND(O36>=1,O36<=5),"一括徴収","") ->  | S73: =IF(AND(U36>=1,U36<=5),"一括徴収","") ->  | Y73: =IF(AND(AA36>=1,AA36<=5),"一括徴収","") ->  | AE73: =IF(AND(AG36>=1,AG36<=5),"一括徴収","") ->  | AK73: =IF(AND(AM36>=1,AM36<=5),"一括徴収","") ->  | AQ73: =IF(AND(AS36>=1,AS36<=5),"一括徴収","") ->  | AW73: =IF(AND(AY36>=1,AY36<=5),"一括徴収","") ->  | BC73: =IF(AND(BE36>=1,BE36<=5),"一括徴収","") ->  | BI73: =IF(AND(BK36>=1,BK36<=5),"一括徴収","") ->  | BO73: =IF(AND(BQ36>=1,BQ36<=5),"一括徴収","") ->  | BU73: =IF(AND(BW36>=1,BW36<=5),"一括徴収","") ->  | CA73: =IF(AND(CC36>=1,CC36<=5),"一括徴収","") ->  | CG73: =IF(AND(CI36>=1,CI36<=5),"一括徴収","") ->  | CM73: =IF(AND(CO36>=1,CO36<=5),"一括徴収","") ->  | CS73: =IF(AND(CU36>=1,CU36<=5),"一括徴収","") ->  | CY73: =IF(AND(DA36>=1,DA36<=5),"一括徴収","") ->  | DE73: =IF(AND(DG36>=1,DG36<=5),"一括徴収","") ->  | DK73: =IF(AND(DM36>=1,DM36<=5),"一括徴収","") ->  | DQ73: =IF(AND(DS36>=1,DS36<=5),"一括徴収","") ->  | DW73: =IF(AND(DY36>=1,DY36<=5),"一括徴収","") ->  | EC73: =IF(AND(EE36>=1,EE36<=5),"一括徴収","") ->  | EI73: =IF(AND(EK36>=1,EK36<=5),"一括徴収","") ->  | EO73: =IF(AND(EQ36>=1,EQ36<=5),"一括徴収","") ->  | EU73: =IF(AND(EW36>=1,EW36<=5),"一括徴収","") ->  | FA73: =IF(AND(FC36>=1,FC36<=5),"一括徴収","") ->  | FG73: =IF(AND(FI36>=1,FI36<=5),"一括徴収","") ->  | FM73: =IF(AND(FO36>=1,FO36<=5),"一括徴収","") ->  | FS73: =IF(AND(FU36>=1,FU36<=5),"一括徴収","") ->  | FY73: =IF(AND(GA36>=1,GA36<=5),"一括徴収","") ->  | GE73: =IF(AND(GG36>=1,GG36<=5),"一括徴収","") ->  | GK73: =IF(AND(GM36>=1,GM36<=5),"一括徴収","") ->  | GQ73: =IF(AND(GS36>=1,GS36<=5),"一括徴収","") ->  | GW73: =IF(AND(GY36>=1,GY36<=5),"一括徴収","") ->  | HC73: =IF(AND(HE36>=1,HE36<=5),"一括徴収","") ->  | HI73: =IF(AND(HK36>=1,HK36<=5),"一括徴収","") ->  | HO73: =IF(AND(HQ36>=1,HQ36<=5),"一括徴収","") ->  | HU73: =IF(AND(HW36>=1,HW36<=5),"一括徴収","") ->  | IA73: =IF(AND(IC36>=1,IC36<=5),"一括徴収","") ->  | IG73: =IF(AND(II36>=1,II36<=5),"一括徴収","") -> 
B74: =IF(AND(M21<>"",M25<>"",O25<>"",Q25<>""),M17,"") ->  | C74: 年号 | D74: today | E74: 生年 | F74: 2 退職 | G74: =IF(AND(I36>=6,I36<=12),"一括徴収(本人希望)","") ->  | M74: =IF(AND(O36>=6,O36<=12),"一括徴収(本人希望)","") ->  | S74: =IF(AND(U36>=6,U36<=12),"一括徴収(本人希望)","") ->  | Y74: =IF(AND(AA36>=6,AA36<=12),"一括徴収(本人希望)","") ->  | AE74: =IF(AND(AG36>=6,AG36<=12),"一括徴収(本人希望)","") ->  | AK74: =IF(AND(AM36>=6,AM36<=12),"一括徴収(本人希望)","") ->  | AQ74: =IF(AND(AS36>=6,AS36<=12),"一括徴収(本人希望)","") ->  | AW74: =IF(AND(AY36>=6,AY36<=12),"一括徴収(本人希望)","") ->  | BC74: =IF(AND(BE36>=6,BE36<=12),"一括徴収(本人希望)","") ->  | BI74: =IF(AND(BK36>=6,BK36<=12),"一括徴収(本人希望)","") ->  | BO74: =IF(AND(BQ36>=6,BQ36<=12),"一括徴収(本人希望)","") ->  | BU74: =IF(AND(BW36>=6,BW36<=12),"一括徴収(本人希望)","") ->  | CA74: =IF(AND(CC36>=6,CC36<=12),"一括徴収(本人希望)","") ->  | CG74: =IF(AND(CI36>=6,CI36<=12),"一括徴収(本人希望)","") ->  | CM74: =IF(AND(CO36>=6,CO36<=12),"一括徴収(本人希望)","") ->  | CS74: =IF(AND(CU36>=6,CU36<=12),"一括徴収(本人希望)","") ->  | CY74: =IF(AND(DA36>=6,DA36<=12),"一括徴収(本人希望)","") ->  | DE74: =IF(AND(DG36>=6,DG36<=12),"一括徴収(本人希望)","") ->  | DK74: =IF(AND(DM36>=6,DM36<=12),"一括徴収(本人希望)","") ->  | DQ74: =IF(AND(DS36>=6,DS36<=12),"一括徴収(本人希望)","") ->  | DW74: =IF(AND(DY36>=6,DY36<=12),"一括徴収(本人希望)","") ->  | EC74: =IF(AND(EE36>=6,EE36<=12),"一括徴収(本人希望)","") ->  | EI74: =IF(AND(EK36>=6,EK36<=12),"一括徴収(本人希望)","") ->  | EO74: =IF(AND(EQ36>=6,EQ36<=12),"一括徴収(本人希望)","") ->  | EU74: =IF(AND(EW36>=6,EW36<=12),"一括徴収(本人希望)","") ->  | FA74: =IF(AND(FC36>=6,FC36<=12),"一括徴収(本人希望)","") ->  | FG74: =IF(AND(FI36>=6,FI36<=12),"一括徴収(本人希望)","") ->  | FM74: =IF(AND(FO36>=6,FO36<=12),"一括徴収(本人希望)","") ->  | FS74: =IF(AND(FU36>=6,FU36<=12),"一括徴収(本人希望)","") ->  | FY74: =IF(AND(GA36>=6,GA36<=12),"一括徴収(本人希望)","") ->  | GE74: =IF(AND(GG36>=6,GG36<=12),"一括徴収(本人希望)","") ->  | GK74: =IF(AND(GM36>=6,GM36<=12),"一括徴収(本人希望)","") ->  | GQ74: =IF(AND(GS36>=6,GS36<=12),"一括徴収(本人希望)","") ->  | GW74: =IF(AND(GY36>=6,GY36<=12),"一括徴収(本人希望)","") ->  | HC74: =IF(AND(HE36>=6,HE36<=12),"一括徴収(本人希望)","") ->  | HI74: =IF(AND(HK36>=6,HK36<=12),"一括徴収(本人希望)","") ->  | HO74: =IF(AND(HQ36>=6,HQ36<=12),"一括徴収(本人希望)","") ->  | HU74: =IF(AND(HW36>=6,HW36<=12),"一括徴収(本人希望)","") ->  | IA74: =IF(AND(IC36>=6,IC36<=12),"一括徴収(本人希望)","") ->  | IG74: =IF(AND(II36>=6,II36<=12),"一括徴収(本人希望)","") -> 
B75: =IF(AND(S21<>"",S25<>"",U25<>"",W25<>""),S17,"") ->  | D75: =TEXT(TODAY(),"yyyy") -> 2024 | F75: 3 死亡 | G75: =IF(G37=$F$73,"特別徴収継続(転勤・転籍)","") ->  | M75: =IF(M37=$F$73,"特別徴収継続(転勤・転籍)","") ->  | S75: =IF(S37=$F$73,"特別徴収継続(転勤・転籍)","") ->  | Y75: =IF(Y37=$F$73,"特別徴収継続(転勤・転籍)","") ->  | AE75: =IF(AE37=$F$73,"特別徴収継続(転勤・転籍)","") ->  | AK75: =IF(AK37=$F$73,"特別徴収継続(転勤・転籍)","") ->  | AQ75: =IF(AQ37=$F$73,"特別徴収継続(転勤・転籍)","") ->  | AW75: =IF(AW37=$F$73,"特別徴収継続(転勤・転籍)","") ->  | BC75: =IF(BC37=$F$73,"特別徴収継続(転勤・転籍)","") ->  | BI75: =IF(BI37=$F$73,"特別徴収継続(転勤・転籍)","") ->  | BO75: =IF(BO37=$F$73,"特別徴収継続(転勤・転籍)","") ->  | BU75: =IF(BU37=$F$73,"特別徴収継続(転勤・転籍)","") ->  | CA75: =IF(CA37=$F$73,"特別徴収継続(転勤・転籍)","") ->  | CG75: =IF(CG37=$F$73,"特別徴収継続(転勤・転籍)","") ->  | CM75: =IF(CM37=$F$73,"特別徴収継続(転勤・転籍)","") ->  | CS75: =IF(CS37=$F$73,"特別徴収継続(転勤・転籍)","") ->  | CY75: =IF(CY37=$F$73,"特別徴収継続(転勤・転籍)","") ->  | DE75: =IF(DE37=$F$73,"特別徴収継続(転勤・転籍)","") ->  | DK75: =IF(DK37=$F$73,"特別徴収継続(転勤・転籍)","") ->  | DQ75: =IF(DQ37=$F$73,"特別徴収継続(転勤・転籍)","") ->  | DW75: =IF(DW37=$F$73,"特別徴収継続(転勤・転籍)","") ->  | EC75: =IF(EC37=$F$73,"特別徴収継続(転勤・転籍)","") ->  | EI75: =IF(EI37=$F$73,"特別徴収継続(転勤・転籍)","") ->  | EO75: =IF(EO37=$F$73,"特別徴収継続(転勤・転籍)","") ->  | EU75: =IF(EU37=$F$73,"特別徴収継続(転勤・転籍)","") ->  | FA75: =IF(FA37=$F$73,"特別徴収継続(転勤・転籍)","") ->  | FG75: =IF(FG37=$F$73,"特別徴収継続(転勤・転籍)","") ->  | FM75: =IF(FM37=$F$73,"特別徴収継続(転勤・転籍)","") ->  | FS75: =IF(FS37=$F$73,"特別徴収継続(転勤・転籍)","") ->  | FY75: =IF(FY37=$F$73,"特別徴収継続(転勤・転籍)","") ->  | GE75: =IF(GE37=$F$73,"特別徴収継続(転勤・転籍)","") ->  | GK75: =IF(GK37=$F$73,"特別徴収継続(転勤・転籍)","") ->  | GQ75: =IF(GQ37=$F$73,"特別徴収継続(転勤・転籍)","") ->  | GW75: =IF(GW37=$F$73,"特別徴収継続(転勤・転籍)","") ->  | HC75: =IF(HC37=$F$73,"特別徴収継続(転勤・転籍)","") ->  | HI75: =IF(HI37=$F$73,"特別徴収継続(転勤・転籍)","") ->  | HO75: =IF(HO37=$F$73,"特別徴収継続(転勤・転籍)","") ->  | HU75: =IF(HU37=$F$73,"特別徴収継続(転勤・転籍)","") ->  | IA75: =IF(IA37=$F$73,"特別徴収継続(転勤・転籍)","") ->  | IG75: =IF(IG37=$F$73,"特別徴収継続(転勤・転籍)","") -> 
B76: =IF(AND(Y21<>"",Y25<>"",AA25<>"",AC25<>""),Y17,"") ->  | C76: 平 | D76: =IF(D75-2004>0,D75-2004,64) -> 20 | E76: =C76&D76 -> 平20 | F76: 4 休職 | G76: =IF(OR(AND(I36>=6,I36<=12),G37=$F$75),"普通徴収(本人が納付)",IF(AND(I36>=1,I36<=5),"普通徴収(本人が納付)","")) ->  | M76: =IF(OR(AND(O36>=6,O36<=12),M37=$F$75),"普通徴収(本人が納付)",IF(AND(O36>=1,O36<=5),"普通徴収(本人が納付)","")) ->  | S76: =IF(OR(AND(U36>=6,U36<=12),S37=$F$75),"普通徴収(本人が納付)",IF(AND(U36>=1,U36<=5),"普通徴収(本人が納付)","")) ->  | Y76: =IF(OR(AND(AA36>=6,AA36<=12),Y37=$F$75),"普通徴収(本人が納付)",IF(AND(AA36>=1,AA36<=5),"普通徴収(本人が納付)","")) ->  | AE76: =IF(OR(AND(AG36>=6,AG36<=12),AE37=$F$75),"普通徴収(本人が納付)",IF(AND(AG36>=1,AG36<=5),"普通徴収(本人が納付)","")) ->  | AK76: =IF(OR(AND(AM36>=6,AM36<=12),AK37=$F$75),"普通徴収(本人が納付)",IF(AND(AM36>=1,AM36<=5),"普通徴収(本人が納付)","")) ->  | AQ76: =IF(OR(AND(AS36>=6,AS36<=12),AQ37=$F$75),"普通徴収(本人が納付)",IF(AND(AS36>=1,AS36<=5),"普通徴収(本人が納付)","")) ->  | AW76: =IF(OR(AND(AY36>=6,AY36<=12),AW37=$F$75),"普通徴収(本人が納付)",IF(AND(AY36>=1,AY36<=5),"普通徴収(本人が納付)","")) ->  | BC76: =IF(OR(AND(BE36>=6,BE36<=12),BC37=$F$75),"普通徴収(本人が納付)",IF(AND(BE36>=1,BE36<=5),"普通徴収(本人が納付)","")) ->  | BI76: =IF(OR(AND(BK36>=6,BK36<=12),BI37=$F$75),"普通徴収(本人が納付)",IF(AND(BK36>=1,BK36<=5),"普通徴収(本人が納付)","")) ->  | BO76: =IF(OR(AND(BQ36>=6,BQ36<=12),BO37=$F$75),"普通徴収(本人が納付)",IF(AND(BQ36>=1,BQ36<=5),"普通徴収(本人が納付)","")) ->  | BU76: =IF(OR(AND(BW36>=6,BW36<=12),BU37=$F$75),"普通徴収(本人が納付)",IF(AND(BW36>=1,BW36<=5),"普通徴収(本人が納付)","")) ->  | CA76: =IF(OR(AND(CC36>=6,CC36<=12),CA37=$F$75),"普通徴収(本人が納付)",IF(AND(CC36>=1,CC36<=5),"普通徴収(本人が納付)","")) ->  | CG76: =IF(OR(AND(CI36>=6,CI36<=12),CG37=$F$75),"普通徴収(本人が納付)",IF(AND(CI36>=1,CI36<=5),"普通徴収(本人が納付)","")) ->  | CM76: =IF(OR(AND(CO36>=6,CO36<=12),CM37=$F$75),"普通徴収(本人が納付)",IF(AND(CO36>=1,CO36<=5),"普通徴収(本人が納付)","")) ->  | CS76: =IF(OR(AND(CU36>=6,CU36<=12),CS37=$F$75),"普通徴収(本人が納付)",IF(AND(CU36>=1,CU36<=5),"普通徴収(本人が納付)","")) ->  | CY76: =IF(OR(AND(DA36>=6,DA36<=12),CY37=$F$75),"普通徴収(本人が納付)",IF(AND(DA36>=1,DA36<=5),"普通徴収(本人が納付)","")) ->  | DE76: =IF(OR(AND(DG36>=6,DG36<=12),DE37=$F$75),"普通徴収(本人が納付)",IF(AND(DG36>=1,DG36<=5),"普通徴収(本人が納付)","")) ->  | DK76: =IF(OR(AND(DM36>=6,DM36<=12),DK37=$F$75),"普通徴収(本人が納付)",IF(AND(DM36>=1,DM36<=5),"普通徴収(本人が納付)","")) ->  | DQ76: =IF(OR(AND(DS36>=6,DS36<=12),DQ37=$F$75),"普通徴収(本人が納付)",IF(AND(DS36>=1,DS36<=5),"普通徴収(本人が納付)","")) ->  | DW76: =IF(OR(AND(DY36>=6,DY36<=12),DW37=$F$75),"普通徴収(本人が納付)",IF(AND(DY36>=1,DY36<=5),"普通徴収(本人が納付)","")) ->  | EC76: =IF(OR(AND(EE36>=6,EE36<=12),EC37=$F$75),"普通徴収(本人が納付)",IF(AND(EE36>=1,EE36<=5),"普通徴収(本人が納付)","")) ->  | EI76: =IF(OR(AND(EK36>=6,EK36<=12),EI37=$F$75),"普通徴収(本人が納付)",IF(AND(EK36>=1,EK36<=5),"普通徴収(本人が納付)","")) ->  | EO76: =IF(OR(AND(EQ36>=6,EQ36<=12),EO37=$F$75),"普通徴収(本人が納付)",IF(AND(EQ36>=1,EQ36<=5),"普通徴収(本人が納付)","")) ->  | EU76: =IF(OR(AND(EW36>=6,EW36<=12),EU37=$F$75),"普通徴収(本人が納付)",IF(AND(EW36>=1,EW36<=5),"普通徴収(本人が納付)","")) ->  | FA76: =IF(OR(AND(FC36>=6,FC36<=12),FA37=$F$75),"普通徴収(本人が納付)",IF(AND(FC36>=1,FC36<=5),"普通徴収(本人が納付)","")) ->  | FG76: =IF(OR(AND(FI36>=6,FI36<=12),FG37=$F$75),"普通徴収(本人が納付)",IF(AND(FI36>=1,FI36<=5),"普通徴収(本人が納付)","")) ->  | FM76: =IF(OR(AND(FO36>=6,FO36<=12),FM37=$F$75),"普通徴収(本人が納付)",IF(AND(FO36>=1,FO36<=5),"普通徴収(本人が納付)","")) ->  | FS76: =IF(OR(AND(FU36>=6,FU36<=12),FS37=$F$75),"普通徴収(本人が納付)",IF(AND(FU36>=1,FU36<=5),"普通徴収(本人が納付)","")) ->  | FY76: =IF(OR(AND(GA36>=6,GA36<=12),FY37=$F$75),"普通徴収(本人が納付)",IF(AND(GA36>=1,GA36<=5),"普通徴収(本人が納付)","")) ->  | GE76: =IF(OR(AND(GG36>=6,GG36<=12),GE37=$F$75),"普通徴収(本人が納付)",IF(AND(GG36>=1,GG36<=5),"普通徴収(本人が納付)","")) ->  | GK76: =IF(OR(AND(GM36>=6,GM36<=12),GK37=$F$75),"普通徴収(本人が納付)",IF(AND(GM36>=1,GM36<=5),"普通徴収(本人が納付)","")) ->  | GQ76: =IF(OR(AND(GS36>=6,GS36<=12),GQ37=$F$75),"普通徴収(本人が納付)",IF(AND(GS36>=1,GS36<=5),"普通徴収(本人が納付)","")) ->  | GW76: =IF(OR(AND(GY36>=6,GY36<=12),GW37=$F$75),"普通徴収(本人が納付)",IF(AND(GY36>=1,GY36<=5),"普通徴収(本人が納付)","")) ->  | HC76: =IF(OR(AND(HE36>=6,HE36<=12),HC37=$F$75),"普通徴収(本人が納付)",IF(AND(HE36>=1,HE36<=5),"普通徴収(本人が納付)","")) ->  | HI76: =IF(OR(AND(HK36>=6,HK36<=12),HI37=$F$75),"普通徴収(本人が納付)",IF(AND(HK36>=1,HK36<=5),"普通徴収(本人が納付)","")) ->  | HO76: =IF(OR(AND(HQ36>=6,HQ36<=12),HO37=$F$75),"普通徴収(本人が納付)",IF(AND(HQ36>=1,HQ36<=5),"普通徴収(本人が納付)","")) ->  | HU76: =IF(OR(AND(HW36>=6,HW36<=12),HU37=$F$75),"普通徴収(本人が納付)",IF(AND(HW36>=1,HW36<=5),"普通徴収(本人が納付)","")) ->  | IA76: =IF(OR(AND(IC36>=6,IC36<=12),IA37=$F$75),"普通徴収(本人が納付)",IF(AND(IC36>=1,IC36<=5),"普通徴収(本人が納付)","")) ->  | IG76: =IF(OR(AND(II36>=6,II36<=12),IG37=$F$75),"普通徴収(本人が納付)",IF(AND(II36>=1,II36<=5),"普通徴収(本人が納付)","")) -> 
B77: =IF(AND(AE21<>"",AE25<>"",AG25<>"",AI25<>""),AE17,"") ->  | C77: =IF(D77=64,"昭",IF(C76="昭","昭","平")) -> 平 | D77: =IF(D76-1>0,D76-1,64) -> 19 | E77: =C77&D77 -> 平19 | F77: 5 長欠 | G77: 普徴理由 | M77: 普徴理由 | S77: 普徴理由 | Y77: 普徴理由 | AE77: 普徴理由 | AK77: 普徴理由 | AQ77: 普徴理由 | AW77: 普徴理由 | BC77: 普徴理由 | BI77: 普徴理由 | BO77: 普徴理由 | BU77: 普徴理由 | CA77: 普徴理由 | CG77: 普徴理由 | CM77: 普徴理由 | CS77: 普徴理由 | CY77: 普徴理由 | DE77: 普徴理由 | DK77: 普徴理由 | DQ77: 普徴理由 | DW77: 普徴理由 | EC77: 普徴理由 | EI77: 普徴理由 | EO77: 普徴理由 | EU77: 普徴理由 | FA77: 普徴理由 | FG77: 普徴理由 | FM77: 普徴理由 | FS77: 普徴理由 | FY77: 普徴理由 | GE77: 普徴理由 | GK77: 普徴理由 | GQ77: 普徴理由 | GW77: 普徴理由 | HC77: 普徴理由 | HI77: 普徴理由 | HO77: 普徴理由 | HU77: 普徴理由 | IA77: 普徴理由 | IG77: 普徴理由
B78: =IF(AND(AK21<>"",AK25<>"",AM25<>"",AO25<>""),AK17,"") ->  | C78: =IF(D78=64,"昭",IF(C77="昭","昭","平")) -> 平 | D78: =IF(D77-1>0,D77-1,64) -> 18 | E78: 平18 | F78: 6 支払少額 | G78: =IF(AND(I36>=6,I36<=12,G45=G76),"一括徴収の本人申出がないため","") ->  | M78: =IF(AND(O36>=6,O36<=12,M45=M76),"一括徴収の本人申出がないため","") ->  | S78: =IF(AND(U36>=6,U36<=12,S45=S76),"一括徴収の本人申出がないため","") ->  | Y78: =IF(AND(AA36>=6,AA36<=12,Y45=Y76),"一括徴収の本人申出がないため","") ->  | AE78: =IF(AND(AG36>=6,AG36<=12,AE45=AE76),"一括徴収の本人申出がないため","") ->  | AK78: =IF(AND(AM36>=6,AM36<=12,AK45=AK76),"一括徴収の本人申出がないため","") ->  | AQ78: =IF(AND(AS36>=6,AS36<=12,AQ45=AQ76),"一括徴収の本人申出がないため","") ->  | AW78: =IF(AND(AY36>=6,AY36<=12,AW45=AW76),"一括徴収の本人申出がないため","") ->  | BC78: =IF(AND(BE36>=6,BE36<=12,BC45=BC76),"一括徴収の本人申出がないため","") ->  | BI78: =IF(AND(BK36>=6,BK36<=12,BI45=BI76),"一括徴収の本人申出がないため","") ->  | BO78: =IF(AND(BQ36>=6,BQ36<=12,BO45=BO76),"一括徴収の本人申出がないため","") ->  | BU78: =IF(AND(BW36>=6,BW36<=12,BU45=BU76),"一括徴収の本人申出がないため","") ->  | CA78: =IF(AND(CC36>=6,CC36<=12,CA45=CA76),"一括徴収の本人申出がないため","") ->  | CG78: =IF(AND(CI36>=6,CI36<=12,CG45=CG76),"一括徴収の本人申出がないため","") ->  | CM78: =IF(AND(CO36>=6,CO36<=12,CM45=CM76),"一括徴収の本人申出がないため","") ->  | CS78: =IF(AND(CU36>=6,CU36<=12,CS45=CS76),"一括徴収の本人申出がないため","") ->  | CY78: =IF(AND(DA36>=6,DA36<=12,CY45=CY76),"一括徴収の本人申出がないため","") ->  | DE78: =IF(AND(DG36>=6,DG36<=12,DE45=DE76),"一括徴収の本人申出がないため","") ->  | DK78: =IF(AND(DM36>=6,DM36<=12,DK45=DK76),"一括徴収の本人申出がないため","") ->  | DQ78: =IF(AND(DS36>=6,DS36<=12,DQ45=DQ76),"一括徴収の本人申出がないため","") ->  | DW78: =IF(AND(DY36>=6,DY36<=12,DW45=DW76),"一括徴収の本人申出がないため","") ->  | EC78: =IF(AND(EE36>=6,EE36<=12,EC45=EC76),"一括徴収の本人申出がないため","") ->  | EI78: =IF(AND(EK36>=6,EK36<=12,EI45=EI76),"一括徴収の本人申出がないため","") ->  | EO78: =IF(AND(EQ36>=6,EQ36<=12,EO45=EO76),"一括徴収の本人申出がないため","") ->  | EU78: =IF(AND(EW36>=6,EW36<=12,EU45=EU76),"一括徴収の本人申出がないため","") ->  | FA78: =IF(AND(FC36>=6,FC36<=12,FA45=FA76),"一括徴収の本人申出がないため","") ->  | FG78: =IF(AND(FI36>=6,FI36<=12,FG45=FG76),"一括徴収の本人申出がないため","") ->  | FM78: =IF(AND(FO36>=6,FO36<=12,FM45=FM76),"一括徴収の本人申出がないため","") ->  | FS78: =IF(AND(FU36>=6,FU36<=12,FS45=FS76),"一括徴収の本人申出がないため","") ->  | FY78: =IF(AND(GA36>=6,GA36<=12,FY45=FY76),"一括徴収の本人申出がないため","") ->  | GE78: =IF(AND(GG36>=6,GG36<=12,GE45=GE76),"一括徴収の本人申出がないため","") ->  | GK78: =IF(AND(GM36>=6,GM36<=12,GK45=GK76),"一括徴収の本人申出がないため","") ->  | GQ78: =IF(AND(GS36>=6,GS36<=12,GQ45=GQ76),"一括徴収の本人申出がないため","") ->  | GW78: =IF(AND(GY36>=6,GY36<=12,GW45=GW76),"一括徴収の本人申出がないため","") ->  | HC78: =IF(AND(HE36>=6,HE36<=12,HC45=HC76),"一括徴収の本人申出がないため","") ->  | HI78: =IF(AND(HK36>=6,HK36<=12,HI45=HI76),"一括徴収の本人申出がないため","") ->  | HO78: =IF(AND(HQ36>=6,HQ36<=12,HO45=HO76),"一括徴収の本人申出がないため","") ->  | HU78: =IF(AND(HW36>=6,HW36<=12,HU45=HU76),"一括徴収の本人申出がないため","") ->  | IA78: =IF(AND(IC36>=6,IC36<=12,IA45=IA76),"一括徴収の本人申出がないため","") ->  | IG78: =IF(AND(II36>=6,II36<=12,IG45=IG76),"一括徴収の本人申出がないため","") -> 
B79: =IF(AND(AQ21<>"",AQ25<>"",AS25<>"",AU25<>""),AQ17,"") ->  | C79: 平 | D79: =IF(D78-1>0,D78-1,64) -> 17 | E79: 平17 | F79: 7 支払不定期 | G79: =IF(G45=G76,"給与及び退職手当等から未徴収税額を一括徴収できないため","") -> 給与及び退職手当等から未徴収税額を一括徴収できないため | M79: =IF(M45=M76,"給与及び退職手当等から未徴収税額を一括徴収できないため","") -> 給与及び退職手当等から未徴収税額を一括徴収できないため | S79: =IF(S45=S76,"給与及び退職手当等から未徴収税額を一括徴収できないため","") -> 給与及び退職手当等から未徴収税額を一括徴収できないため | Y79: =IF(Y45=Y76,"給与及び退職手当等から未徴収税額を一括徴収できないため","") -> 給与及び退職手当等から未徴収税額を一括徴収できないため | AE79: =IF(AE45=AE76,"給与及び退職手当等から未徴収税額を一括徴収できないため","") -> 給与及び退職手当等から未徴収税額を一括徴収できないため | AK79: =IF(AK45=AK76,"給与及び退職手当等から未徴収税額を一括徴収できないため","") -> 給与及び退職手当等から未徴収税額を一括徴収できないため | AQ79: =IF(AQ45=AQ76,"給与及び退職手当等から未徴収税額を一括徴収できないため","") -> 給与及び退職手当等から未徴収税額を一括徴収できないため | AW79: =IF(AW45=AW76,"給与及び退職手当等から未徴収税額を一括徴収できないため","") -> 給与及び退職手当等から未徴収税額を一括徴収できないため | BC79: =IF(BC45=BC76,"給与及び退職手当等から未徴収税額を一括徴収できないため","") -> 給与及び退職手当等から未徴収税額を一括徴収できないため | BI79: =IF(BI45=BI76,"給与及び退職手当等から未徴収税額を一括徴収できないため","") -> 給与及び退職手当等から未徴収税額を一括徴収できないため | BO79: =IF(BO45=BO76,"給与及び退職手当等から未徴収税額を一括徴収できないため","") -> 給与及び退職手当等から未徴収税額を一括徴収できないため | BU79: =IF(BU45=BU76,"給与及び退職手当等から未徴収税額を一括徴収できないため","") -> 給与及び退職手当等から未徴収税額を一括徴収できないため | CA79: =IF(CA45=CA76,"給与及び退職手当等から未徴収税額を一括徴収できないため","") -> 給与及び退職手当等から未徴収税額を一括徴収できないため | CG79: =IF(CG45=CG76,"給与及び退職手当等から未徴収税額を一括徴収できないため","") -> 給与及び退職手当等から未徴収税額を一括徴収できないため | CM79: =IF(CM45=CM76,"給与及び退職手当等から未徴収税額を一括徴収できないため","") -> 給与及び退職手当等から未徴収税額を一括徴収できないため | CS79: =IF(CS45=CS76,"給与及び退職手当等から未徴収税額を一括徴収できないため","") -> 給与及び退職手当等から未徴収税額を一括徴収できないため | CY79: =IF(CY45=CY76,"給与及び退職手当等から未徴収税額を一括徴収できないため","") -> 給与及び退職手当等から未徴収税額を一括徴収できないため | DE79: =IF(DE45=DE76,"給与及び退職手当等から未徴収税額を一括徴収できないため","") -> 給与及び退職手当等から未徴収税額を一括徴収できないため | DK79: =IF(DK45=DK76,"給与及び退職手当等から未徴収税額を一括徴収できないため","") -> 給与及び退職手当等から未徴収税額を一括徴収できないため | DQ79: =IF(DQ45=DQ76,"給与及び退職手当等から未徴収税額を一括徴収できないため","") -> 給与及び退職手当等から未徴収税額を一括徴収できないため | DW79: =IF(DW45=DW76,"給与及び退職手当等から未徴収税額を一括徴収できないため","") -> 給与及び退職手当等から未徴収税額を一括徴収できないため | EC79: =IF(EC45=EC76,"給与及び退職手当等から未徴収税額を一括徴収できないため","") -> 給与及び退職手当等から未徴収税額を一括徴収できないため | EI79: =IF(EI45=EI76,"給与及び退職手当等から未徴収税額を一括徴収できないため","") -> 給与及び退職手当等から未徴収税額を一括徴収できないため | EO79: =IF(EO45=EO76,"給与及び退職手当等から未徴収税額を一括徴収できないため","") -> 給与及び退職手当等から未徴収税額を一括徴収できないため | EU79: =IF(EU45=EU76,"給与及び退職手当等から未徴収税額を一括徴収できないため","") -> 給与及び退職手当等から未徴収税額を一括徴収できないため | FA79: =IF(FA45=FA76,"給与及び退職手当等から未徴収税額を一括徴収できないため","") -> 給与及び退職手当等から未徴収税額を一括徴収できないため | FG79: =IF(FG45=FG76,"給与及び退職手当等から未徴収税額を一括徴収できないため","") -> 給与及び退職手当等から未徴収税額を一括徴収できないため | FM79: =IF(FM45=FM76,"給与及び退職手当等から未徴収税額を一括徴収できないため","") -> 給与及び退職手当等から未徴収税額を一括徴収できないため | FS79: =IF(FS45=FS76,"給与及び退職手当等から未徴収税額を一括徴収できないため","") -> 給与及び退職手当等から未徴収税額を一括徴収できないため | FY79: =IF(FY45=FY76,"給与及び退職手当等から未徴収税額を一括徴収できないため","") -> 給与及び退職手当等から未徴収税額を一括徴収できないため | GE79: =IF(GE45=GE76,"給与及び退職手当等から未徴収税額を一括徴収できないため","") -> 給与及び退職手当等から未徴収税額を一括徴収できないため | GK79: =IF(GK45=GK76,"給与及び退職手当等から未徴収税額を一括徴収できないため","") -> 給与及び退職手当等から未徴収税額を一括徴収できないため | GQ79: =IF(GQ45=GQ76,"給与及び退職手当等から未徴収税額を一括徴収できないため","") -> 給与及び退職手当等から未徴収税額を一括徴収できないため | GW79: =IF(GW45=GW76,"給与及び退職手当等から未徴収税額を一括徴収できないため","") -> 給与及び退職手当等から未徴収税額を一括徴収できないため | HC79: =IF(HC45=HC76,"給与及び退職手当等から未徴収税額を一括徴収できないため","") -> 給与及び退職手当等から未徴収税額を一括徴収できないため | HI79: =IF(HI45=HI76,"給与及び退職手当等から未徴収税額を一括徴収できないため","") -> 給与及び退職手当等から未徴収税額を一括徴収できないため | HO79: =IF(HO45=HO76,"給与及び退職手当等から未徴収税額を一括徴収できないため","") -> 給与及び退職手当等から未徴収税額を一括徴収できないため | HU79: =IF(HU45=HU76,"給与及び退職手当等から未徴収税額を一括徴収できないため","") -> 給与及び退職手当等から未徴収税額を一括徴収できないため | IA79: =IF(IA45=IA76,"給与及び退職手当等から未徴収税額を一括徴収できないため","") -> 給与及び退職手当等から未徴収税額を一括徴収できないため | IG79: =IF(IG45=IG76,"給与及び退職手当等から未徴収税額を一括徴収できないため","") -> 給与及び退職手当等から未徴収税額を一括徴収できないため
B80: =IF(AND(AW21<>"",AW25<>"",AY25<>"",BA25<>""),AW17,"") ->  | C80: 平 | D80: =IF(D79-1>0,D79-1,64) -> 16 | E80: 平16 | F80: 8 その他 | G80: =IF(AND(G37=$F$75,G45=G76),"死亡による退職のため","") ->  | M80: =IF(AND(M37=$F$75,M45=M76),"死亡による退職のため","") ->  | S80: =IF(AND(S37=$F$75,S45=S76),"死亡による退職のため","") ->  | Y80: =IF(AND(Y37=$F$75,Y45=Y76),"死亡による退職のため","") ->  | AE80: =IF(AND(AE37=$F$75,AE45=AE76),"死亡による退職のため","") ->  | AK80: =IF(AND(AK37=$F$75,AK45=AK76),"死亡による退職のため","") ->  | AQ80: =IF(AND(AQ37=$F$75,AQ45=AQ76),"死亡による退職のため","") ->  | AW80: =IF(AND(AW37=$F$75,AW45=AW76),"死亡による退職のため","") ->  | BC80: =IF(AND(BC37=$F$75,BC45=BC76),"死亡による退職のため","") ->  | BI80: =IF(AND(BI37=$F$75,BI45=BI76),"死亡による退職のため","") ->  | BO80: =IF(AND(BO37=$F$75,BO45=BO76),"死亡による退職のため","") ->  | BU80: =IF(AND(BU37=$F$75,BU45=BU76),"死亡による退職のため","") ->  | CA80: =IF(AND(CA37=$F$75,CA45=CA76),"死亡による退職のため","") ->  | CG80: =IF(AND(CG37=$F$75,CG45=CG76),"死亡による退職のため","") ->  | CM80: =IF(AND(CM37=$F$75,CM45=CM76),"死亡による退職のため","") ->  | CS80: =IF(AND(CS37=$F$75,CS45=CS76),"死亡による退職のため","") ->  | CY80: =IF(AND(CY37=$F$75,CY45=CY76),"死亡による退職のため","") ->  | DE80: =IF(AND(DE37=$F$75,DE45=DE76),"死亡による退職のため","") ->  | DK80: =IF(AND(DK37=$F$75,DK45=DK76),"死亡による退職のため","") ->  | DQ80: =IF(AND(DQ37=$F$75,DQ45=DQ76),"死亡による退職のため","") ->  | DW80: =IF(AND(DW37=$F$75,DW45=DW76),"死亡による退職のため","") ->  | EC80: =IF(AND(EC37=$F$75,EC45=EC76),"死亡による退職のため","") ->  | EI80: =IF(AND(EI37=$F$75,EI45=EI76),"死亡による退職のため","") ->  | EO80: =IF(AND(EO37=$F$75,EO45=EO76),"死亡による退職のため","") ->  | EU80: =IF(AND(EU37=$F$75,EU45=EU76),"死亡による退職のため","") ->  | FA80: =IF(AND(FA37=$F$75,FA45=FA76),"死亡による退職のため","") ->  | FG80: =IF(AND(FG37=$F$75,FG45=FG76),"死亡による退職のため","") ->  | FM80: =IF(AND(FM37=$F$75,FM45=FM76),"死亡による退職のため","") ->  | FS80: =IF(AND(FS37=$F$75,FS45=FS76),"死亡による退職のため","") ->  | FY80: =IF(AND(FY37=$F$75,FY45=FY76),"死亡による退職のため","") ->  | GE80: =IF(AND(GE37=$F$75,GE45=GE76),"死亡による退職のため","") ->  | GK80: =IF(AND(GK37=$F$75,GK45=GK76),"死亡による退職のため","") ->  | GQ80: =IF(AND(GQ37=$F$75,GQ45=GQ76),"死亡による退職のため","") ->  | GW80: =IF(AND(GW37=$F$75,GW45=GW76),"死亡による退職のため","") ->  | HC80: =IF(AND(HC37=$F$75,HC45=HC76),"死亡による退職のため","") ->  | HI80: =IF(AND(HI37=$F$75,HI45=HI76),"死亡による退職のため","") ->  | HO80: =IF(AND(HO37=$F$75,HO45=HO76),"死亡による退職のため","") ->  | HU80: =IF(AND(HU37=$F$75,HU45=HU76),"死亡による退職のため","") ->  | IA80: =IF(AND(IA37=$F$75,IA45=IA76),"死亡による退職のため","") ->  | IG80: =IF(AND(IG37=$F$75,IG45=IG76),"死亡による退職のため","") -> 
B81: =IF(AND(BC21<>"",BC25<>"",BE25<>"",BG25<>""),BC17,"") ->  | C81: =IF(D81=64,"昭",IF(C80="昭","昭","平")) -> 平 | D81: =IF(D80-1>0,D80-1,64) -> 15 | E81: 平15 | F81: 納入書の要否
B82: =IF(AND(BI21<>"",BI25<>"",BK25<>"",BM25<>""),BI17,"") ->  | C82: 平 | D82: 14 | E82: 平14 | F82: 1 必要 | G82: 済月 | H82: 納月 | I82: 開月 | M82: 済月 | N82: 納月 | O82: 開月 | S82: 済月 | T82: 納月 | U82: 開月 | Y82: 済月 | Z82: 納月 | AA82: 開月 | AE82: 済月 | AF82: 納月 | AG82: 開月 | AK82: 済月 | AL82: 納月 | AM82: 開月 | AQ82: 済月 | AR82: 納月 | AS82: 開月 | AW82: 済月 | AX82: 納月 | AY82: 開月 | BC82: 済月 | BD82: 納月 | BE82: 開月 | BI82: 済月 | BJ82: 納月 | BK82: 開月 | BO82: 済月 | BP82: 納月 | BQ82: 開月 | BU82: 済月 | BV82: 納月 | BW82: 開月 | CA82: 済月 | CB82: 納月 | CC82: 開月 | CG82: 済月 | CH82: 納月 | CI82: 開月 | CM82: 済月 | CN82: 納月 | CO82: 開月 | CS82: 済月 | CT82: 納月 | CU82: 開月 | CY82: 済月 | CZ82: 納月 | DA82: 開月 | DE82: 済月 | DF82: 納月 | DG82: 開月 | DK82: 済月 | DL82: 納月 | DM82: 開月 | DQ82: 済月 | DR82: 納月 | DS82: 開月 | DW82: 済月 | DX82: 納月 | DY82: 開月 | EC82: 済月 | ED82: 納月 | EE82: 開月 | EI82: 済月 | EJ82: 納月 | EK82: 開月 | EO82: 済月 | EP82: 納月 | EQ82: 開月 | EU82: 済月 | EV82: 納月 | EW82: 開月 | FA82: 済月 | FB82: 納月 | FC82: 開月 | FG82: 済月 | FH82: 納月 | FI82: 開月 | FM82: 済月 | FN82: 納月 | FO82: 開月 | FS82: 済月 | FT82: 納月 | FU82: 開月 | FY82: 済月 | FZ82: 納月 | GA82: 開月 | GE82: 済月 | GF82: 納月 | GG82: 開月 | GK82: 済月 | GL82: 納月 | GM82: 開月 | GQ82: 済月 | GR82: 納月 | GS82: 開月 | GW82: 済月 | GX82: 納月 | GY82: 開月 | HC82: 済月 | HD82: 納月 | HE82: 開月 | HI82: 済月 | HJ82: 納月 | HK82: 開月 | HO82: 済月 | HP82: 納月 | HQ82: 開月 | HU82: 済月 | HV82: 納月 | HW82: 開月 | IA82: 済月 | IB82: 納月 | IC82: 開月 | IG82: 済月 | IH82: 納月 | II82: 開月
B83: =IF(AND(BO21<>"",BO25<>"",BQ25<>"",BS25<>""),BO17,"") ->  | C83: 平 | D83: 13 | E83: 平13 | F83: 2 不要 | G83: =IF(OR(G84="",G$41=7),"",6) -> 6 | H83: =IF(OR(H84="",J$41=4),"",IF(AND(I$36>=1,I$36<=4,G$36=31),"平成"&30&"年"&6,IF(AND(I$36=5,G$36="元"),"平成"&30&"年"&6,IF(AND(I$36>=6,G$36="元"),"令和元年"&6,IF(AND(I$36>=1,I$36<=5,G$36=2),"令和元年"&6,(IF((AND(I$36>=1,I$36<=5)),"令和"&G$36-1&"年"&6,"令和"&G$36&"年"&6))))))) -> 令和年6 | I83: =IF(OR(H84="",J$41=4),"",IF(AND(I$36>=1,I$36<=4,G$36=31),"平成"&30&"年"&6,IF(AND(I$36=5,G$36="元"),"平成"&30&"年"&6,IF(AND(I$36>=6,G$36="元"),"令和元年"&6,IF(AND(I$36>=1,I$36<=5,G$36=2),"令和元年"&6,(IF((AND(I$36>=1,I$36<=5)),"令和"&G$36-1&"年"&6,"令和"&G$36&"年"&6))))))) -> 令和年6 | M83: =IF(OR(M84="",M$41=7),"",6) -> 6 | N83: =IF(OR(N84="",P$41=4),"",IF(AND(O$36>=1,O$36<=4,M$36=31),"平成"&30&"年"&6,IF(AND(O$36=5,M$36="元"),"平成"&30&"年"&6,IF(AND(O$36>=6,M$36="元"),"令和元年"&6,IF(AND(O$36>=1,O$36<=5,M$36=2),"令和元年"&6,(IF((AND(O$36>=1,O$36<=5)),"令和"&M$36-1&"年"&6,"令和"&M$36&"年"&6))))))) -> 令和年6 | O83: =IF(OR(N84="",P$41=4),"",IF(AND(O$36>=1,O$36<=4,M$36=31),"平成"&30&"年"&6,IF(AND(O$36=5,M$36="元"),"平成"&30&"年"&6,IF(AND(O$36>=6,M$36="元"),"令和元年"&6,IF(AND(O$36>=1,O$36<=5,M$36=2),"令和元年"&6,(IF((AND(O$36>=1,O$36<=5)),"令和"&M$36-1&"年"&6,"令和"&M$36&"年"&6))))))) -> 令和年6 | S83: =IF(OR(S84="",S$41=7),"",6) -> 6 | T83: =IF(OR(T84="",V$41=4),"",IF(AND(U$36>=1,U$36<=4,S$36=31),"平成"&30&"年"&6,IF(AND(U$36=5,S$36="元"),"平成"&30&"年"&6,IF(AND(U$36>=6,S$36="元"),"令和元年"&6,IF(AND(U$36>=1,U$36<=5,S$36=2),"令和元年"&6,(IF((AND(U$36>=1,U$36<=5)),"令和"&S$36-1&"年"&6,"令和"&S$36&"年"&6))))))) -> 令和年6 | U83: =IF(OR(T84="",V$41=4),"",IF(AND(U$36>=1,U$36<=4,S$36=31),"平成"&30&"年"&6,IF(AND(U$36=5,S$36="元"),"平成"&30&"年"&6,IF(AND(U$36>=6,S$36="元"),"令和元年"&6,IF(AND(U$36>=1,U$36<=5,S$36=2),"令和元年"&6,(IF((AND(U$36>=1,U$36<=5)),"令和"&S$36-1&"年"&6,"令和"&S$36&"年"&6))))))) -> 令和年6 | Y83: =IF(OR(Y84="",Y$41=7),"",6) -> 6 | Z83: =IF(OR(Z84="",AB$41=4),"",IF(AND(AA$36>=1,AA$36<=4,Y$36=31),"平成"&30&"年"&6,IF(AND(AA$36=5,Y$36="元"),"平成"&30&"年"&6,IF(AND(AA$36>=6,Y$36="元"),"令和元年"&6,IF(AND(AA$36>=1,AA$36<=5,Y$36=2),"令和元年"&6,(IF((AND(AA$36>=1,AA$36<=5)),"令和"&Y$36-1&"年"&6,"令和"&Y$36&"年"&6))))))) -> 令和年6 | AA83: =IF(OR(Z84="",AB$41=4),"",IF(AND(AA$36>=1,AA$36<=4,Y$36=31),"平成"&30&"年"&6,IF(AND(AA$36=5,Y$36="元"),"平成"&30&"年"&6,IF(AND(AA$36>=6,Y$36="元"),"令和元年"&6,IF(AND(AA$36>=1,AA$36<=5,Y$36=2),"令和元年"&6,(IF((AND(AA$36>=1,AA$36<=5)),"令和"&Y$36-1&"年"&6,"令和"&Y$36&"年"&6))))))) -> 令和年6 | AE83: =IF(OR(AE84="",AE$41=7),"",6) -> 6 | AF83: =IF(OR(AF84="",AH$41=4),"",IF(AND(AG$36>=1,AG$36<=4,AE$36=31),"平成"&30&"年"&6,IF(AND(AG$36=5,AE$36="元"),"平成"&30&"年"&6,IF(AND(AG$36>=6,AE$36="元"),"令和元年"&6,IF(AND(AG$36>=1,AG$36<=5,AE$36=2),"令和元年"&6,(IF((AND(AG$36>=1,AG$36<=5)),"令和"&AE$36-1&"年"&6,"令和"&AE$36&"年"&6))))))) -> 令和年6 | AG83: =IF(OR(AF84="",AH$41=4),"",IF(AND(AG$36>=1,AG$36<=4,AE$36=31),"平成"&30&"年"&6,IF(AND(AG$36=5,AE$36="元"),"平成"&30&"年"&6,IF(AND(AG$36>=6,AE$36="元"),"令和元年"&6,IF(AND(AG$36>=1,AG$36<=5,AE$36=2),"令和元年"&6,(IF((AND(AG$36>=1,AG$36<=5)),"令和"&AE$36-1&"年"&6,"令和"&AE$36&"年"&6))))))) -> 令和年6 | AK83: =IF(OR(AK84="",AK$41=7),"",6) -> 6 | AL83: =IF(OR(AL84="",AN$41=4),"",IF(AND(AM$36>=1,AM$36<=4,AK$36=31),"平成"&30&"年"&6,IF(AND(AM$36=5,AK$36="元"),"平成"&30&"年"&6,IF(AND(AM$36>=6,AK$36="元"),"令和元年"&6,IF(AND(AM$36>=1,AM$36<=5,AK$36=2),"令和元年"&6,(IF((AND(AM$36>=1,AM$36<=5)),"令和"&AK$36-1&"年"&6,"令和"&AK$36&"年"&6))))))) -> 令和年6 | AM83: =IF(OR(AL84="",AN$41=4),"",IF(AND(AM$36>=1,AM$36<=4,AK$36=31),"平成"&30&"年"&6,IF(AND(AM$36=5,AK$36="元"),"平成"&30&"年"&6,IF(AND(AM$36>=6,AK$36="元"),"令和元年"&6,IF(AND(AM$36>=1,AM$36<=5,AK$36=2),"令和元年"&6,(IF((AND(AM$36>=1,AM$36<=5)),"令和"&AK$36-1&"年"&6,"令和"&AK$36&"年"&6))))))) -> 令和年6 | AQ83: =IF(OR(AQ84="",AQ$41=7),"",6) -> 6 | AR83: =IF(OR(AR84="",AT$41=4),"",IF(AND(AS$36>=1,AS$36<=4,AQ$36=31),"平成"&30&"年"&6,IF(AND(AS$36=5,AQ$36="元"),"平成"&30&"年"&6,IF(AND(AS$36>=6,AQ$36="元"),"令和元年"&6,IF(AND(AS$36>=1,AS$36<=5,AQ$36=2),"令和元年"&6,(IF((AND(AS$36>=1,AS$36<=5)),"令和"&AQ$36-1&"年"&6,"令和"&AQ$36&"年"&6))))))) -> 令和年6 | AS83: =IF(OR(AR84="",AT$41=4),"",IF(AND(AS$36>=1,AS$36<=4,AQ$36=31),"平成"&30&"年"&6,IF(AND(AS$36=5,AQ$36="元"),"平成"&30&"年"&6,IF(AND(AS$36>=6,AQ$36="元"),"令和元年"&6,IF(AND(AS$36>=1,AS$36<=5,AQ$36=2),"令和元年"&6,(IF((AND(AS$36>=1,AS$36<=5)),"令和"&AQ$36-1&"年"&6,"令和"&AQ$36&"年"&6))))))) -> 令和年6 | AW83: =IF(OR(AW84="",AW$41=7),"",6) -> 6 | AX83: =IF(OR(AX84="",AZ$41=4),"",IF(AND(AY$36>=1,AY$36<=4,AW$36=31),"平成"&30&"年"&6,IF(AND(AY$36=5,AW$36="元"),"平成"&30&"年"&6,IF(AND(AY$36>=6,AW$36="元"),"令和元年"&6,IF(AND(AY$36>=1,AY$36<=5,AW$36=2),"令和元年"&6,(IF((AND(AY$36>=1,AY$36<=5)),"令和"&AW$36-1&"年"&6,"令和"&AW$36&"年"&6))))))) -> 令和年6 | AY83: =IF(OR(AX84="",AZ$41=4),"",IF(AND(AY$36>=1,AY$36<=4,AW$36=31),"平成"&30&"年"&6,IF(AND(AY$36=5,AW$36="元"),"平成"&30&"年"&6,IF(AND(AY$36>=6,AW$36="元"),"令和元年"&6,IF(AND(AY$36>=1,AY$36<=5,AW$36=2),"令和元年"&6,(IF((AND(AY$36>=1,AY$36<=5)),"令和"&AW$36-1&"年"&6,"令和"&AW$36&"年"&6))))))) -> 令和年6 | BC83: =IF(OR(BC84="",BC$41=7),"",6) -> 6 | BD83: =IF(OR(BD84="",BF$41=4),"",IF(AND(BE$36>=1,BE$36<=4,BC$36=31),"平成"&30&"年"&6,IF(AND(BE$36=5,BC$36="元"),"平成"&30&"年"&6,IF(AND(BE$36>=6,BC$36="元"),"令和元年"&6,IF(AND(BE$36>=1,BE$36<=5,BC$36=2),"令和元年"&6,(IF((AND(BE$36>=1,BE$36<=5)),"令和"&BC$36-1&"年"&6,"令和"&BC$36&"年"&6))))))) -> 令和年6 | BE83: =IF(OR(BD84="",BF$41=4),"",IF(AND(BE$36>=1,BE$36<=4,BC$36=31),"平成"&30&"年"&6,IF(AND(BE$36=5,BC$36="元"),"平成"&30&"年"&6,IF(AND(BE$36>=6,BC$36="元"),"令和元年"&6,IF(AND(BE$36>=1,BE$36<=5,BC$36=2),"令和元年"&6,(IF((AND(BE$36>=1,BE$36<=5)),"令和"&BC$36-1&"年"&6,"令和"&BC$36&"年"&6))))))) -> 令和年6 | BI83: =IF(OR(BI84="",BI$41=7),"",6) -> 6 | BJ83: =IF(OR(BJ84="",BL$41=4),"",IF(AND(BK$36>=1,BK$36<=4,BI$36=31),"平成"&30&"年"&6,IF(AND(BK$36=5,BI$36="元"),"平成"&30&"年"&6,IF(AND(BK$36>=6,BI$36="元"),"令和元年"&6,IF(AND(BK$36>=1,BK$36<=5,BI$36=2),"令和元年"&6,(IF((AND(BK$36>=1,BK$36<=5)),"令和"&BI$36-1&"年"&6,"令和"&BI$36&"年"&6))))))) -> 令和年6 | BK83: =IF(OR(BJ84="",BL$41=4),"",IF(AND(BK$36>=1,BK$36<=4,BI$36=31),"平成"&30&"年"&6,IF(AND(BK$36=5,BI$36="元"),"平成"&30&"年"&6,IF(AND(BK$36>=6,BI$36="元"),"令和元年"&6,IF(AND(BK$36>=1,BK$36<=5,BI$36=2),"令和元年"&6,(IF((AND(BK$36>=1,BK$36<=5)),"令和"&BI$36-1&"年"&6,"令和"&BI$36&"年"&6))))))) -> 令和年6 | BO83: =IF(OR(BO84="",BO$41=7),"",6) -> 6 | BP83: =IF(OR(BP84="",BR$41=4),"",IF(AND(BQ$36>=1,BQ$36<=4,BO$36=31),"平成"&30&"年"&6,IF(AND(BQ$36=5,BO$36="元"),"平成"&30&"年"&6,IF(AND(BQ$36>=6,BO$36="元"),"令和元年"&6,IF(AND(BQ$36>=1,BQ$36<=5,BO$36=2),"令和元年"&6,(IF((AND(BQ$36>=1,BQ$36<=5)),"令和"&BO$36-1&"年"&6,"令和"&BO$36&"年"&6))))))) -> 令和年6 | BQ83: =IF(OR(BP84="",BR$41=4),"",IF(AND(BQ$36>=1,BQ$36<=4,BO$36=31),"平成"&30&"年"&6,IF(AND(BQ$36=5,BO$36="元"),"平成"&30&"年"&6,IF(AND(BQ$36>=6,BO$36="元"),"令和元年"&6,IF(AND(BQ$36>=1,BQ$36<=5,BO$36=2),"令和元年"&6,(IF((AND(BQ$36>=1,BQ$36<=5)),"令和"&BO$36-1&"年"&6,"令和"&BO$36&"年"&6))))))) -> 令和年6 | BU83: =IF(OR(BU84="",BU$41=7),"",6) -> 6 | BV83: =IF(OR(BV84="",BX$41=4),"",IF(AND(BW$36>=1,BW$36<=4,BU$36=31),"平成"&30&"年"&6,IF(AND(BW$36=5,BU$36="元"),"平成"&30&"年"&6,IF(AND(BW$36>=6,BU$36="元"),"令和元年"&6,IF(AND(BW$36>=1,BW$36<=5,BU$36=2),"令和元年"&6,(IF((AND(BW$36>=1,BW$36<=5)),"令和"&BU$36-1&"年"&6,"令和"&BU$36&"年"&6))))))) -> 令和年6 | BW83: =IF(OR(BV84="",BX$41=4),"",IF(AND(BW$36>=1,BW$36<=4,BU$36=31),"平成"&30&"年"&6,IF(AND(BW$36=5,BU$36="元"),"平成"&30&"年"&6,IF(AND(BW$36>=6,BU$36="元"),"令和元年"&6,IF(AND(BW$36>=1,BW$36<=5,BU$36=2),"令和元年"&6,(IF((AND(BW$36>=1,BW$36<=5)),"令和"&BU$36-1&"年"&6,"令和"&BU$36&"年"&6))))))) -> 令和年6 | CA83: =IF(OR(CA84="",CA$41=7),"",6) -> 6 | CB83: =IF(OR(CB84="",CD$41=4),"",IF(AND(CC$36>=1,CC$36<=4,CA$36=31),"平成"&30&"年"&6,IF(AND(CC$36=5,CA$36="元"),"平成"&30&"年"&6,IF(AND(CC$36>=6,CA$36="元"),"令和元年"&6,IF(AND(CC$36>=1,CC$36<=5,CA$36=2),"令和元年"&6,(IF((AND(CC$36>=1,CC$36<=5)),"令和"&CA$36-1&"年"&6,"令和"&CA$36&"年"&6))))))) -> 令和年6 | CC83: =IF(OR(CB84="",CD$41=4),"",IF(AND(CC$36>=1,CC$36<=4,CA$36=31),"平成"&30&"年"&6,IF(AND(CC$36=5,CA$36="元"),"平成"&30&"年"&6,IF(AND(CC$36>=6,CA$36="元"),"令和元年"&6,IF(AND(CC$36>=1,CC$36<=5,CA$36=2),"令和元年"&6,(IF((AND(CC$36>=1,CC$36<=5)),"令和"&CA$36-1&"年"&6,"令和"&CA$36&"年"&6))))))) -> 令和年6 | CG83: =IF(OR(CG84="",CG$41=7),"",6) -> 6 | CH83: =IF(OR(CH84="",CJ$41=4),"",IF(AND(CI$36>=1,CI$36<=4,CG$36=31),"平成"&30&"年"&6,IF(AND(CI$36=5,CG$36="元"),"平成"&30&"年"&6,IF(AND(CI$36>=6,CG$36="元"),"令和元年"&6,IF(AND(CI$36>=1,CI$36<=5,CG$36=2),"令和元年"&6,(IF((AND(CI$36>=1,CI$36<=5)),"令和"&CG$36-1&"年"&6,"令和"&CG$36&"年"&6))))))) -> 令和年6 | CI83: =IF(OR(CH84="",CJ$41=4),"",IF(AND(CI$36>=1,CI$36<=4,CG$36=31),"平成"&30&"年"&6,IF(AND(CI$36=5,CG$36="元"),"平成"&30&"年"&6,IF(AND(CI$36>=6,CG$36="元"),"令和元年"&6,IF(AND(CI$36>=1,CI$36<=5,CG$36=2),"令和元年"&6,(IF((AND(CI$36>=1,CI$36<=5)),"令和"&CG$36-1&"年"&6,"令和"&CG$36&"年"&6))))))) -> 令和年6 | CM83: =IF(OR(CM84="",CM$41=7),"",6) -> 6 | CN83: =IF(OR(CN84="",CP$41=4),"",IF(AND(CO$36>=1,CO$36<=4,CM$36=31),"平成"&30&"年"&6,IF(AND(CO$36=5,CM$36="元"),"平成"&30&"年"&6,IF(AND(CO$36>=6,CM$36="元"),"令和元年"&6,IF(AND(CO$36>=1,CO$36<=5,CM$36=2),"令和元年"&6,(IF((AND(CO$36>=1,CO$36<=5)),"令和"&CM$36-1&"年"&6,"令和"&CM$36&"年"&6))))))) -> 令和年6 | CO83: =IF(OR(CN84="",CP$41=4),"",IF(AND(CO$36>=1,CO$36<=4,CM$36=31),"平成"&30&"年"&6,IF(AND(CO$36=5,CM$36="元"),"平成"&30&"年"&6,IF(AND(CO$36>=6,CM$36="元"),"令和元年"&6,IF(AND(CO$36>=1,CO$36<=5,CM$36=2),"令和元年"&6,(IF((AND(CO$36>=1,CO$36<=5)),"令和"&CM$36-1&"年"&6,"令和"&CM$36&"年"&6))))))) -> 令和年6 | CS83: =IF(OR(CS84="",CS$41=7),"",6) -> 6 | CT83: =IF(OR(CT84="",CV$41=4),"",IF(AND(CU$36>=1,CU$36<=4,CS$36=31),"平成"&30&"年"&6,IF(AND(CU$36=5,CS$36="元"),"平成"&30&"年"&6,IF(AND(CU$36>=6,CS$36="元"),"令和元年"&6,IF(AND(CU$36>=1,CU$36<=5,CS$36=2),"令和元年"&6,(IF((AND(CU$36>=1,CU$36<=5)),"令和"&CS$36-1&"年"&6,"令和"&CS$36&"年"&6))))))) -> 令和年6 | CU83: =IF(OR(CT84="",CV$41=4),"",IF(AND(CU$36>=1,CU$36<=4,CS$36=31),"平成"&30&"年"&6,IF(AND(CU$36=5,CS$36="元"),"平成"&30&"年"&6,IF(AND(CU$36>=6,CS$36="元"),"令和元年"&6,IF(AND(CU$36>=1,CU$36<=5,CS$36=2),"令和元年"&6,(IF((AND(CU$36>=1,CU$36<=5)),"令和"&CS$36-1&"年"&6,"令和"&CS$36&"年"&6))))))) -> 令和年6 | CY83: =IF(OR(CY84="",CY$41=7),"",6) -> 6 | CZ83: =IF(OR(CZ84="",DB$41=4),"",IF(AND(DA$36>=1,DA$36<=4,CY$36=31),"平成"&30&"年"&6,IF(AND(DA$36=5,CY$36="元"),"平成"&30&"年"&6,IF(AND(DA$36>=6,CY$36="元"),"令和元年"&6,IF(AND(DA$36>=1,DA$36<=5,CY$36=2),"令和元年"&6,(IF((AND(DA$36>=1,DA$36<=5)),"令和"&CY$36-1&"年"&6,"令和"&CY$36&"年"&6))))))) -> 令和年6 | DA83: =IF(OR(CZ84="",DB$41=4),"",IF(AND(DA$36>=1,DA$36<=4,CY$36=31),"平成"&30&"年"&6,IF(AND(DA$36=5,CY$36="元"),"平成"&30&"年"&6,IF(AND(DA$36>=6,CY$36="元"),"令和元年"&6,IF(AND(DA$36>=1,DA$36<=5,CY$36=2),"令和元年"&6,(IF((AND(DA$36>=1,DA$36<=5)),"令和"&CY$36-1&"年"&6,"令和"&CY$36&"年"&6))))))) -> 令和年6 | DE83: =IF(OR(DE84="",DE$41=7),"",6) -> 6 | DF83: =IF(OR(DF84="",DH$41=4),"",IF(AND(DG$36>=1,DG$36<=4,DE$36=31),"平成"&30&"年"&6,IF(AND(DG$36=5,DE$36="元"),"平成"&30&"年"&6,IF(AND(DG$36>=6,DE$36="元"),"令和元年"&6,IF(AND(DG$36>=1,DG$36<=5,DE$36=2),"令和元年"&6,(IF((AND(DG$36>=1,DG$36<=5)),"令和"&DE$36-1&"年"&6,"令和"&DE$36&"年"&6))))))) -> 令和年6 | DG83: =IF(OR(DF84="",DH$41=4),"",IF(AND(DG$36>=1,DG$36<=4,DE$36=31),"平成"&30&"年"&6,IF(AND(DG$36=5,DE$36="元"),"平成"&30&"年"&6,IF(AND(DG$36>=6,DE$36="元"),"令和元年"&6,IF(AND(DG$36>=1,DG$36<=5,DE$36=2),"令和元年"&6,(IF((AND(DG$36>=1,DG$36<=5)),"令和"&DE$36-1&"年"&6,"令和"&DE$36&"年"&6))))))) -> 令和年6 | DK83: =IF(OR(DK84="",DK$41=7),"",6) -> 6 | DL83: =IF(OR(DL84="",DN$41=4),"",IF(AND(DM$36>=1,DM$36<=4,DK$36=31),"平成"&30&"年"&6,IF(AND(DM$36=5,DK$36="元"),"平成"&30&"年"&6,IF(AND(DM$36>=6,DK$36="元"),"令和元年"&6,IF(AND(DM$36>=1,DM$36<=5,DK$36=2),"令和元年"&6,(IF((AND(DM$36>=1,DM$36<=5)),"令和"&DK$36-1&"年"&6,"令和"&DK$36&"年"&6))))))) -> 令和年6 | DM83: =IF(OR(DL84="",DN$41=4),"",IF(AND(DM$36>=1,DM$36<=4,DK$36=31),"平成"&30&"年"&6,IF(AND(DM$36=5,DK$36="元"),"平成"&30&"年"&6,IF(AND(DM$36>=6,DK$36="元"),"令和元年"&6,IF(AND(DM$36>=1,DM$36<=5,DK$36=2),"令和元年"&6,(IF((AND(DM$36>=1,DM$36<=5)),"令和"&DK$36-1&"年"&6,"令和"&DK$36&"年"&6))))))) -> 令和年6 | DQ83: =IF(OR(DQ84="",DQ$41=7),"",6) -> 6 | DR83: =IF(OR(DR84="",DT$41=4),"",IF(AND(DS$36>=1,DS$36<=4,DQ$36=31),"平成"&30&"年"&6,IF(AND(DS$36=5,DQ$36="元"),"平成"&30&"年"&6,IF(AND(DS$36>=6,DQ$36="元"),"令和元年"&6,IF(AND(DS$36>=1,DS$36<=5,DQ$36=2),"令和元年"&6,(IF((AND(DS$36>=1,DS$36<=5)),"令和"&DQ$36-1&"年"&6,"令和"&DQ$36&"年"&6))))))) -> 令和年6 | DS83: =IF(OR(DR84="",DT$41=4),"",IF(AND(DS$36>=1,DS$36<=4,DQ$36=31),"平成"&30&"年"&6,IF(AND(DS$36=5,DQ$36="元"),"平成"&30&"年"&6,IF(AND(DS$36>=6,DQ$36="元"),"令和元年"&6,IF(AND(DS$36>=1,DS$36<=5,DQ$36=2),"令和元年"&6,(IF((AND(DS$36>=1,DS$36<=5)),"令和"&DQ$36-1&"年"&6,"令和"&DQ$36&"年"&6))))))) -> 令和年6 | DW83: =IF(OR(DW84="",DW$41=7),"",6) -> 6 | DX83: =IF(OR(DX84="",DZ$41=4),"",IF(AND(DY$36>=1,DY$36<=4,DW$36=31),"平成"&30&"年"&6,IF(AND(DY$36=5,DW$36="元"),"平成"&30&"年"&6,IF(AND(DY$36>=6,DW$36="元"),"令和元年"&6,IF(AND(DY$36>=1,DY$36<=5,DW$36=2),"令和元年"&6,(IF((AND(DY$36>=1,DY$36<=5)),"令和"&DW$36-1&"年"&6,"令和"&DW$36&"年"&6))))))) -> 令和年6 | DY83: =IF(OR(DX84="",DZ$41=4),"",IF(AND(DY$36>=1,DY$36<=4,DW$36=31),"平成"&30&"年"&6,IF(AND(DY$36=5,DW$36="元"),"平成"&30&"年"&6,IF(AND(DY$36>=6,DW$36="元"),"令和元年"&6,IF(AND(DY$36>=1,DY$36<=5,DW$36=2),"令和元年"&6,(IF((AND(DY$36>=1,DY$36<=5)),"令和"&DW$36-1&"年"&6,"令和"&DW$36&"年"&6))))))) -> 令和年6 | EC83: =IF(OR(EC84="",EC$41=7),"",6) -> 6 | ED83: =IF(OR(ED84="",EF$41=4),"",IF(AND(EE$36>=1,EE$36<=4,EC$36=31),"平成"&30&"年"&6,IF(AND(EE$36=5,EC$36="元"),"平成"&30&"年"&6,IF(AND(EE$36>=6,EC$36="元"),"令和元年"&6,IF(AND(EE$36>=1,EE$36<=5,EC$36=2),"令和元年"&6,(IF((AND(EE$36>=1,EE$36<=5)),"令和"&EC$36-1&"年"&6,"令和"&EC$36&"年"&6))))))) -> 令和年6 | EE83: =IF(OR(ED84="",EF$41=4),"",IF(AND(EE$36>=1,EE$36<=4,EC$36=31),"平成"&30&"年"&6,IF(AND(EE$36=5,EC$36="元"),"平成"&30&"年"&6,IF(AND(EE$36>=6,EC$36="元"),"令和元年"&6,IF(AND(EE$36>=1,EE$36<=5,EC$36=2),"令和元年"&6,(IF((AND(EE$36>=1,EE$36<=5)),"令和"&EC$36-1&"年"&6,"令和"&EC$36&"年"&6))))))) -> 令和年6 | EI83: =IF(OR(EI84="",EI$41=7),"",6) -> 6 | EJ83: =IF(OR(EJ84="",EL$41=4),"",IF(AND(EK$36>=1,EK$36<=4,EI$36=31),"平成"&30&"年"&6,IF(AND(EK$36=5,EI$36="元"),"平成"&30&"年"&6,IF(AND(EK$36>=6,EI$36="元"),"令和元年"&6,IF(AND(EK$36>=1,EK$36<=5,EI$36=2),"令和元年"&6,(IF((AND(EK$36>=1,EK$36<=5)),"令和"&EI$36-1&"年"&6,"令和"&EI$36&"年"&6))))))) -> 令和年6 | EK83: =IF(OR(EJ84="",EL$41=4),"",IF(AND(EK$36>=1,EK$36<=4,EI$36=31),"平成"&30&"年"&6,IF(AND(EK$36=5,EI$36="元"),"平成"&30&"年"&6,IF(AND(EK$36>=6,EI$36="元"),"令和元年"&6,IF(AND(EK$36>=1,EK$36<=5,EI$36=2),"令和元年"&6,(IF((AND(EK$36>=1,EK$36<=5)),"令和"&EI$36-1&"年"&6,"令和"&EI$36&"年"&6))))))) -> 令和年6 | EO83: =IF(OR(EO84="",EO$41=7),"",6) -> 6 | EP83: =IF(OR(EP84="",ER$41=4),"",IF(AND(EQ$36>=1,EQ$36<=4,EO$36=31),"平成"&30&"年"&6,IF(AND(EQ$36=5,EO$36="元"),"平成"&30&"年"&6,IF(AND(EQ$36>=6,EO$36="元"),"令和元年"&6,IF(AND(EQ$36>=1,EQ$36<=5,EO$36=2),"令和元年"&6,(IF((AND(EQ$36>=1,EQ$36<=5)),"令和"&EO$36-1&"年"&6,"令和"&EO$36&"年"&6))))))) -> 令和年6 | EQ83: =IF(OR(EP84="",ER$41=4),"",IF(AND(EQ$36>=1,EQ$36<=4,EO$36=31),"平成"&30&"年"&6,IF(AND(EQ$36=5,EO$36="元"),"平成"&30&"年"&6,IF(AND(EQ$36>=6,EO$36="元"),"令和元年"&6,IF(AND(EQ$36>=1,EQ$36<=5,EO$36=2),"令和元年"&6,(IF((AND(EQ$36>=1,EQ$36<=5)),"令和"&EO$36-1&"年"&6,"令和"&EO$36&"年"&6))))))) -> 令和年6 | EU83: =IF(OR(EU84="",EU$41=7),"",6) -> 6 | EV83: =IF(OR(EV84="",EX$41=4),"",IF(AND(EW$36>=1,EW$36<=4,EU$36=31),"平成"&30&"年"&6,IF(AND(EW$36=5,EU$36="元"),"平成"&30&"年"&6,IF(AND(EW$36>=6,EU$36="元"),"令和元年"&6,IF(AND(EW$36>=1,EW$36<=5,EU$36=2),"令和元年"&6,(IF((AND(EW$36>=1,EW$36<=5)),"令和"&EU$36-1&"年"&6,"令和"&EU$36&"年"&6))))))) -> 令和年6 | EW83: =IF(OR(EV84="",EX$41=4),"",IF(AND(EW$36>=1,EW$36<=4,EU$36=31),"平成"&30&"年"&6,IF(AND(EW$36=5,EU$36="元"),"平成"&30&"年"&6,IF(AND(EW$36>=6,EU$36="元"),"令和元年"&6,IF(AND(EW$36>=1,EW$36<=5,EU$36=2),"令和元年"&6,(IF((AND(EW$36>=1,EW$36<=5)),"令和"&EU$36-1&"年"&6,"令和"&EU$36&"年"&6))))))) -> 令和年6 | FA83: =IF(OR(FA84="",FA$41=7),"",6) -> 6 | FB83: =IF(OR(FB84="",FD$41=4),"",IF(AND(FC$36>=1,FC$36<=4,FA$36=31),"平成"&30&"年"&6,IF(AND(FC$36=5,FA$36="元"),"平成"&30&"年"&6,IF(AND(FC$36>=6,FA$36="元"),"令和元年"&6,IF(AND(FC$36>=1,FC$36<=5,FA$36=2),"令和元年"&6,(IF((AND(FC$36>=1,FC$36<=5)),"令和"&FA$36-1&"年"&6,"令和"&FA$36&"年"&6))))))) -> 令和年6 | FC83: =IF(OR(FB84="",FD$41=4),"",IF(AND(FC$36>=1,FC$36<=4,FA$36=31),"平成"&30&"年"&6,IF(AND(FC$36=5,FA$36="元"),"平成"&30&"年"&6,IF(AND(FC$36>=6,FA$36="元"),"令和元年"&6,IF(AND(FC$36>=1,FC$36<=5,FA$36=2),"令和元年"&6,(IF((AND(FC$36>=1,FC$36<=5)),"令和"&FA$36-1&"年"&6,"令和"&FA$36&"年"&6))))))) -> 令和年6 | FG83: =IF(OR(FG84="",FG$41=7),"",6) -> 6 | FH83: =IF(OR(FH84="",FJ$41=4),"",IF(AND(FI$36>=1,FI$36<=4,FG$36=31),"平成"&30&"年"&6,IF(AND(FI$36=5,FG$36="元"),"平成"&30&"年"&6,IF(AND(FI$36>=6,FG$36="元"),"令和元年"&6,IF(AND(FI$36>=1,FI$36<=5,FG$36=2),"令和元年"&6,(IF((AND(FI$36>=1,FI$36<=5)),"令和"&FG$36-1&"年"&6,"令和"&FG$36&"年"&6))))))) -> 令和年6 | FI83: =IF(OR(FH84="",FJ$41=4),"",IF(AND(FI$36>=1,FI$36<=4,FG$36=31),"平成"&30&"年"&6,IF(AND(FI$36=5,FG$36="元"),"平成"&30&"年"&6,IF(AND(FI$36>=6,FG$36="元"),"令和元年"&6,IF(AND(FI$36>=1,FI$36<=5,FG$36=2),"令和元年"&6,(IF((AND(FI$36>=1,FI$36<=5)),"令和"&FG$36-1&"年"&6,"令和"&FG$36&"年"&6))))))) -> 令和年6 | FM83: =IF(OR(FM84="",FM$41=7),"",6) -> 6 | FN83: =IF(OR(FN84="",FP$41=4),"",IF(AND(FO$36>=1,FO$36<=4,FM$36=31),"平成"&30&"年"&6,IF(AND(FO$36=5,FM$36="元"),"平成"&30&"年"&6,IF(AND(FO$36>=6,FM$36="元"),"令和元年"&6,IF(AND(FO$36>=1,FO$36<=5,FM$36=2),"令和元年"&6,(IF((AND(FO$36>=1,FO$36<=5)),"令和"&FM$36-1&"年"&6,"令和"&FM$36&"年"&6))))))) -> 令和年6 | FO83: =IF(OR(FN84="",FP$41=4),"",IF(AND(FO$36>=1,FO$36<=4,FM$36=31),"平成"&30&"年"&6,IF(AND(FO$36=5,FM$36="元"),"平成"&30&"年"&6,IF(AND(FO$36>=6,FM$36="元"),"令和元年"&6,IF(AND(FO$36>=1,FO$36<=5,FM$36=2),"令和元年"&6,(IF((AND(FO$36>=1,FO$36<=5)),"令和"&FM$36-1&"年"&6,"令和"&FM$36&"年"&6))))))) -> 令和年6 | FS83: =IF(OR(FS84="",FS$41=7),"",6) -> 6 | FT83: =IF(OR(FT84="",FV$41=4),"",IF(AND(FU$36>=1,FU$36<=4,FS$36=31),"平成"&30&"年"&6,IF(AND(FU$36=5,FS$36="元"),"平成"&30&"年"&6,IF(AND(FU$36>=6,FS$36="元"),"令和元年"&6,IF(AND(FU$36>=1,FU$36<=5,FS$36=2),"令和元年"&6,(IF((AND(FU$36>=1,FU$36<=5)),"令和"&FS$36-1&"年"&6,"令和"&FS$36&"年"&6))))))) -> 令和年6 | FU83: =IF(OR(FT84="",FV$41=4),"",IF(AND(FU$36>=1,FU$36<=4,FS$36=31),"平成"&30&"年"&6,IF(AND(FU$36=5,FS$36="元"),"平成"&30&"年"&6,IF(AND(FU$36>=6,FS$36="元"),"令和元年"&6,IF(AND(FU$36>=1,FU$36<=5,FS$36=2),"令和元年"&6,(IF((AND(FU$36>=1,FU$36<=5)),"令和"&FS$36-1&"年"&6,"令和"&FS$36&"年"&6))))))) -> 令和年6 | FY83: =IF(OR(FY84="",FY$41=7),"",6) -> 6 | FZ83: =IF(OR(FZ84="",GB$41=4),"",IF(AND(GA$36>=1,GA$36<=4,FY$36=31),"平成"&30&"年"&6,IF(AND(GA$36=5,FY$36="元"),"平成"&30&"年"&6,IF(AND(GA$36>=6,FY$36="元"),"令和元年"&6,IF(AND(GA$36>=1,GA$36<=5,FY$36=2),"令和元年"&6,(IF((AND(GA$36>=1,GA$36<=5)),"令和"&FY$36-1&"年"&6,"令和"&FY$36&"年"&6))))))) -> 令和年6 | GA83: =IF(OR(FZ84="",GB$41=4),"",IF(AND(GA$36>=1,GA$36<=4,FY$36=31),"平成"&30&"年"&6,IF(AND(GA$36=5,FY$36="元"),"平成"&30&"年"&6,IF(AND(GA$36>=6,FY$36="元"),"令和元年"&6,IF(AND(GA$36>=1,GA$36<=5,FY$36=2),"令和元年"&6,(IF((AND(GA$36>=1,GA$36<=5)),"令和"&FY$36-1&"年"&6,"令和"&FY$36&"年"&6))))))) -> 令和年6 | GE83: =IF(OR(GE84="",GE$41=7),"",6) -> 6 | GF83: =IF(OR(GF84="",GH$41=4),"",IF(AND(GG$36>=1,GG$36<=4,GE$36=31),"平成"&30&"年"&6,IF(AND(GG$36=5,GE$36="元"),"平成"&30&"年"&6,IF(AND(GG$36>=6,GE$36="元"),"令和元年"&6,IF(AND(GG$36>=1,GG$36<=5,GE$36=2),"令和元年"&6,(IF((AND(GG$36>=1,GG$36<=5)),"令和"&GE$36-1&"年"&6,"令和"&GE$36&"年"&6))))))) -> 令和年6 | GG83: =IF(OR(GF84="",GH$41=4),"",IF(AND(GG$36>=1,GG$36<=4,GE$36=31),"平成"&30&"年"&6,IF(AND(GG$36=5,GE$36="元"),"平成"&30&"年"&6,IF(AND(GG$36>=6,GE$36="元"),"令和元年"&6,IF(AND(GG$36>=1,GG$36<=5,GE$36=2),"令和元年"&6,(IF((AND(GG$36>=1,GG$36<=5)),"令和"&GE$36-1&"年"&6,"令和"&GE$36&"年"&6))))))) -> 令和年6 | GK83: =IF(OR(GK84="",GK$41=7),"",6) -> 6 | GL83: =IF(OR(GL84="",GN$41=4),"",IF(AND(GM$36>=1,GM$36<=4,GK$36=31),"平成"&30&"年"&6,IF(AND(GM$36=5,GK$36="元"),"平成"&30&"年"&6,IF(AND(GM$36>=6,GK$36="元"),"令和元年"&6,IF(AND(GM$36>=1,GM$36<=5,GK$36=2),"令和元年"&6,(IF((AND(GM$36>=1,GM$36<=5)),"令和"&GK$36-1&"年"&6,"令和"&GK$36&"年"&6))))))) -> 令和年6 | GM83: =IF(OR(GL84="",GN$41=4),"",IF(AND(GM$36>=1,GM$36<=4,GK$36=31),"平成"&30&"年"&6,IF(AND(GM$36=5,GK$36="元"),"平成"&30&"年"&6,IF(AND(GM$36>=6,GK$36="元"),"令和元年"&6,IF(AND(GM$36>=1,GM$36<=5,GK$36=2),"令和元年"&6,(IF((AND(GM$36>=1,GM$36<=5)),"令和"&GK$36-1&"年"&6,"令和"&GK$36&"年"&6))))))) -> 令和年6 | GQ83: =IF(OR(GQ84="",GQ$41=7),"",6) -> 6 | GR83: =IF(OR(GR84="",GT$41=4),"",IF(AND(GS$36>=1,GS$36<=4,GQ$36=31),"平成"&30&"年"&6,IF(AND(GS$36=5,GQ$36="元"),"平成"&30&"年"&6,IF(AND(GS$36>=6,GQ$36="元"),"令和元年"&6,IF(AND(GS$36>=1,GS$36<=5,GQ$36=2),"令和元年"&6,(IF((AND(GS$36>=1,GS$36<=5)),"令和"&GQ$36-1&"年"&6,"令和"&GQ$36&"年"&6))))))) -> 令和年6 | GS83: =IF(OR(GR84="",GT$41=4),"",IF(AND(GS$36>=1,GS$36<=4,GQ$36=31),"平成"&30&"年"&6,IF(AND(GS$36=5,GQ$36="元"),"平成"&30&"年"&6,IF(AND(GS$36>=6,GQ$36="元"),"令和元年"&6,IF(AND(GS$36>=1,GS$36<=5,GQ$36=2),"令和元年"&6,(IF((AND(GS$36>=1,GS$36<=5)),"令和"&GQ$36-1&"年"&6,"令和"&GQ$36&"年"&6))))))) -> 令和年6 | GW83: =IF(OR(GW84="",GW$41=7),"",6) -> 6 | GX83: =IF(OR(GX84="",GZ$41=4),"",IF(AND(GY$36>=1,GY$36<=4,GW$36=31),"平成"&30&"年"&6,IF(AND(GY$36=5,GW$36="元"),"平成"&30&"年"&6,IF(AND(GY$36>=6,GW$36="元"),"令和元年"&6,IF(AND(GY$36>=1,GY$36<=5,GW$36=2),"令和元年"&6,(IF((AND(GY$36>=1,GY$36<=5)),"令和"&GW$36-1&"年"&6,"令和"&GW$36&"年"&6))))))) -> 令和年6 | GY83: =IF(OR(GX84="",GZ$41=4),"",IF(AND(GY$36>=1,GY$36<=4,GW$36=31),"平成"&30&"年"&6,IF(AND(GY$36=5,GW$36="元"),"平成"&30&"年"&6,IF(AND(GY$36>=6,GW$36="元"),"令和元年"&6,IF(AND(GY$36>=1,GY$36<=5,GW$36=2),"令和元年"&6,(IF((AND(GY$36>=1,GY$36<=5)),"令和"&GW$36-1&"年"&6,"令和"&GW$36&"年"&6))))))) -> 令和年6 | HC83: =IF(OR(HC84="",HC$41=7),"",6) -> 6 | HD83: =IF(OR(HD84="",HF$41=4),"",IF(AND(HE$36>=1,HE$36<=4,HC$36=31),"平成"&30&"年"&6,IF(AND(HE$36=5,HC$36="元"),"平成"&30&"年"&6,IF(AND(HE$36>=6,HC$36="元"),"令和元年"&6,IF(AND(HE$36>=1,HE$36<=5,HC$36=2),"令和元年"&6,(IF((AND(HE$36>=1,HE$36<=5)),"令和"&HC$36-1&"年"&6,"令和"&HC$36&"年"&6))))))) -> 令和年6 | HE83: =IF(OR(HD84="",HF$41=4),"",IF(AND(HE$36>=1,HE$36<=4,HC$36=31),"平成"&30&"年"&6,IF(AND(HE$36=5,HC$36="元"),"平成"&30&"年"&6,IF(AND(HE$36>=6,HC$36="元"),"令和元年"&6,IF(AND(HE$36>=1,HE$36<=5,HC$36=2),"令和元年"&6,(IF((AND(HE$36>=1,HE$36<=5)),"令和"&HC$36-1&"年"&6,"令和"&HC$36&"年"&6))))))) -> 令和年6 | HI83: =IF(OR(HI84="",HI$41=7),"",6) -> 6 | HJ83: =IF(OR(HJ84="",HL$41=4),"",IF(AND(HK$36>=1,HK$36<=4,HI$36=31),"平成"&30&"年"&6,IF(AND(HK$36=5,HI$36="元"),"平成"&30&"年"&6,IF(AND(HK$36>=6,HI$36="元"),"令和元年"&6,IF(AND(HK$36>=1,HK$36<=5,HI$36=2),"令和元年"&6,(IF((AND(HK$36>=1,HK$36<=5)),"令和"&HI$36-1&"年"&6,"令和"&HI$36&"年"&6))))))) -> 令和年6 | HK83: =IF(OR(HJ84="",HL$41=4),"",IF(AND(HK$36>=1,HK$36<=4,HI$36=31),"平成"&30&"年"&6,IF(AND(HK$36=5,HI$36="元"),"平成"&30&"年"&6,IF(AND(HK$36>=6,HI$36="元"),"令和元年"&6,IF(AND(HK$36>=1,HK$36<=5,HI$36=2),"令和元年"&6,(IF((AND(HK$36>=1,HK$36<=5)),"令和"&HI$36-1&"年"&6,"令和"&HI$36&"年"&6))))))) -> 令和年6 | HO83: =IF(OR(HO84="",HO$41=7),"",6) -> 6 | HP83: =IF(OR(HP84="",HR$41=4),"",IF(AND(HQ$36>=1,HQ$36<=4,HO$36=31),"平成"&30&"年"&6,IF(AND(HQ$36=5,HO$36="元"),"平成"&30&"年"&6,IF(AND(HQ$36>=6,HO$36="元"),"令和元年"&6,IF(AND(HQ$36>=1,HQ$36<=5,HO$36=2),"令和元年"&6,(IF((AND(HQ$36>=1,HQ$36<=5)),"令和"&HO$36-1&"年"&6,"令和"&HO$36&"年"&6))))))) -> 令和年6 | HQ83: =IF(OR(HP84="",HR$41=4),"",IF(AND(HQ$36>=1,HQ$36<=4,HO$36=31),"平成"&30&"年"&6,IF(AND(HQ$36=5,HO$36="元"),"平成"&30&"年"&6,IF(AND(HQ$36>=6,HO$36="元"),"令和元年"&6,IF(AND(HQ$36>=1,HQ$36<=5,HO$36=2),"令和元年"&6,(IF((AND(HQ$36>=1,HQ$36<=5)),"令和"&HO$36-1&"年"&6,"令和"&HO$36&"年"&6))))))) -> 令和年6 | HU83: =IF(OR(HU84="",HU$41=7),"",6) -> 6 | HV83: =IF(OR(HV84="",HX$41=4),"",IF(AND(HW$36>=1,HW$36<=4,HU$36=31),"平成"&30&"年"&6,IF(AND(HW$36=5,HU$36="元"),"平成"&30&"年"&6,IF(AND(HW$36>=6,HU$36="元"),"令和元年"&6,IF(AND(HW$36>=1,HW$36<=5,HU$36=2),"令和元年"&6,(IF((AND(HW$36>=1,HW$36<=5)),"令和"&HU$36-1&"年"&6,"令和"&HU$36&"年"&6))))))) -> 令和年6 | HW83: =IF(OR(HV84="",HX$41=4),"",IF(AND(HW$36>=1,HW$36<=4,HU$36=31),"平成"&30&"年"&6,IF(AND(HW$36=5,HU$36="元"),"平成"&30&"年"&6,IF(AND(HW$36>=6,HU$36="元"),"令和元年"&6,IF(AND(HW$36>=1,HW$36<=5,HU$36=2),"令和元年"&6,(IF((AND(HW$36>=1,HW$36<=5)),"令和"&HU$36-1&"年"&6,"令和"&HU$36&"年"&6))))))) -> 令和年6 | IA83: =IF(OR(IA84="",IA$41=7),"",6) -> 6 | IB83: =IF(OR(IB84="",ID$41=4),"",IF(AND(IC$36>=1,IC$36<=4,IA$36=31),"平成"&30&"年"&6,IF(AND(IC$36=5,IA$36="元"),"平成"&30&"年"&6,IF(AND(IC$36>=6,IA$36="元"),"令和元年"&6,IF(AND(IC$36>=1,IC$36<=5,IA$36=2),"令和元年"&6,(IF((AND(IC$36>=1,IC$36<=5)),"令和"&IA$36-1&"年"&6,"令和"&IA$36&"年"&6))))))) -> 令和年6 | IC83: =IF(OR(IB84="",ID$41=4),"",IF(AND(IC$36>=1,IC$36<=4,IA$36=31),"平成"&30&"年"&6,IF(AND(IC$36=5,IA$36="元"),"平成"&30&"年"&6,IF(AND(IC$36>=6,IA$36="元"),"令和元年"&6,IF(AND(IC$36>=1,IC$36<=5,IA$36=2),"令和元年"&6,(IF((AND(IC$36>=1,IC$36<=5)),"令和"&IA$36-1&"年"&6,"令和"&IA$36&"年"&6))))))) -> 令和年6 | IG83: =IF(OR(IG84="",IG$41=7),"",6) -> 6 | IH83: =IF(OR(IH84="",IJ$41=4),"",IF(AND(II$36>=1,II$36<=4,IG$36=31),"平成"&30&"年"&6,IF(AND(II$36=5,IG$36="元"),"平成"&30&"年"&6,IF(AND(II$36>=6,IG$36="元"),"令和元年"&6,IF(AND(II$36>=1,II$36<=5,IG$36=2),"令和元年"&6,(IF((AND(II$36>=1,II$36<=5)),"令和"&IG$36-1&"年"&6,"令和"&IG$36&"年"&6))))))) -> 令和年6 | II83: =IF(OR(IH84="",IJ$41=4),"",IF(AND(II$36>=1,II$36<=4,IG$36=31),"平成"&30&"年"&6,IF(AND(II$36=5,IG$36="元"),"平成"&30&"年"&6,IF(AND(II$36>=6,IG$36="元"),"令和元年"&6,IF(AND(II$36>=1,II$36<=5,IG$36=2),"令和元年"&6,(IF((AND(II$36>=1,II$36<=5)),"令和"&IG$36-1&"年"&6,"令和"&IG$36&"年"&6))))))) -> 令和年6
B84: =IF(AND(BU21<>"",BU25<>"",BW25<>"",BY25<>""),BU17,"") ->  | C84: 平 | D84: 12 | E84: 平12 | G84: =IF(OR(G85="",G$41=8),"",7) -> 7 | H84: =IF(OR(H85="",J$41=4),"",IF(AND(I$36>=1,I$36<=4,G$36=31),"平成"&30&"年"&7,IF(AND(I$36=5,G$36="元"),"平成"&30&"年"&7,IF(AND(I$36>=6,G$36="元"),"令和元年"&7,IF(AND(I$36>=1,I$36<=5,G$36=2),"令和元年"&7,(IF((AND(I$36>=1,I$36<=5)),"令和"&G$36-1&"年"&7,"令和"&G$36&"年"&7))))))) -> 令和年7 | I84: =IF(OR(H85="",J$41=4),"",IF(AND(I$36>=1,I$36<=4,G$36=31),"平成"&30&"年"&7,IF(AND(I$36=5,G$36="元"),"平成"&30&"年"&7,IF(AND(I$36>=6,G$36="元"),"令和元年"&7,IF(AND(I$36>=1,I$36<=5,G$36=2),"令和元年"&7,(IF((AND(I$36>=1,I$36<=5)),"令和"&G$36-1&"年"&7,"令和"&G$36&"年"&7))))))) -> 令和年7 | M84: =IF(OR(M85="",M$41=8),"",7) -> 7 | N84: =IF(OR(N85="",P$41=4),"",IF(AND(O$36>=1,O$36<=4,M$36=31),"平成"&30&"年"&7,IF(AND(O$36=5,M$36="元"),"平成"&30&"年"&7,IF(AND(O$36>=6,M$36="元"),"令和元年"&7,IF(AND(O$36>=1,O$36<=5,M$36=2),"令和元年"&7,(IF((AND(O$36>=1,O$36<=5)),"令和"&M$36-1&"年"&7,"令和"&M$36&"年"&7))))))) -> 令和年7 | O84: =IF(OR(N85="",P$41=4),"",IF(AND(O$36>=1,O$36<=4,M$36=31),"平成"&30&"年"&7,IF(AND(O$36=5,M$36="元"),"平成"&30&"年"&7,IF(AND(O$36>=6,M$36="元"),"令和元年"&7,IF(AND(O$36>=1,O$36<=5,M$36=2),"令和元年"&7,(IF((AND(O$36>=1,O$36<=5)),"令和"&M$36-1&"年"&7,"令和"&M$36&"年"&7))))))) -> 令和年7 | S84: =IF(OR(S85="",S$41=8),"",7) -> 7 | T84: =IF(OR(T85="",V$41=4),"",IF(AND(U$36>=1,U$36<=4,S$36=31),"平成"&30&"年"&7,IF(AND(U$36=5,S$36="元"),"平成"&30&"年"&7,IF(AND(U$36>=6,S$36="元"),"令和元年"&7,IF(AND(U$36>=1,U$36<=5,S$36=2),"令和元年"&7,(IF((AND(U$36>=1,U$36<=5)),"令和"&S$36-1&"年"&7,"令和"&S$36&"年"&7))))))) -> 令和年7 | U84: =IF(OR(T85="",V$41=4),"",IF(AND(U$36>=1,U$36<=4,S$36=31),"平成"&30&"年"&7,IF(AND(U$36=5,S$36="元"),"平成"&30&"年"&7,IF(AND(U$36>=6,S$36="元"),"令和元年"&7,IF(AND(U$36>=1,U$36<=5,S$36=2),"令和元年"&7,(IF((AND(U$36>=1,U$36<=5)),"令和"&S$36-1&"年"&7,"令和"&S$36&"年"&7))))))) -> 令和年7 | Y84: =IF(OR(Y85="",Y$41=8),"",7) -> 7 | Z84: =IF(OR(Z85="",AB$41=4),"",IF(AND(AA$36>=1,AA$36<=4,Y$36=31),"平成"&30&"年"&7,IF(AND(AA$36=5,Y$36="元"),"平成"&30&"年"&7,IF(AND(AA$36>=6,Y$36="元"),"令和元年"&7,IF(AND(AA$36>=1,AA$36<=5,Y$36=2),"令和元年"&7,(IF((AND(AA$36>=1,AA$36<=5)),"令和"&Y$36-1&"年"&7,"令和"&Y$36&"年"&7))))))) -> 令和年7 | AA84: =IF(OR(Z85="",AB$41=4),"",IF(AND(AA$36>=1,AA$36<=4,Y$36=31),"平成"&30&"年"&7,IF(AND(AA$36=5,Y$36="元"),"平成"&30&"年"&7,IF(AND(AA$36>=6,Y$36="元"),"令和元年"&7,IF(AND(AA$36>=1,AA$36<=5,Y$36=2),"令和元年"&7,(IF((AND(AA$36>=1,AA$36<=5)),"令和"&Y$36-1&"年"&7,"令和"&Y$36&"年"&7))))))) -> 令和年7 | AE84: =IF(OR(AE85="",AE$41=8),"",7) -> 7 | AF84: =IF(OR(AF85="",AH$41=4),"",IF(AND(AG$36>=1,AG$36<=4,AE$36=31),"平成"&30&"年"&7,IF(AND(AG$36=5,AE$36="元"),"平成"&30&"年"&7,IF(AND(AG$36>=6,AE$36="元"),"令和元年"&7,IF(AND(AG$36>=1,AG$36<=5,AE$36=2),"令和元年"&7,(IF((AND(AG$36>=1,AG$36<=5)),"令和"&AE$36-1&"年"&7,"令和"&AE$36&"年"&7))))))) -> 令和年7 | AG84: =IF(OR(AF85="",AH$41=4),"",IF(AND(AG$36>=1,AG$36<=4,AE$36=31),"平成"&30&"年"&7,IF(AND(AG$36=5,AE$36="元"),"平成"&30&"年"&7,IF(AND(AG$36>=6,AE$36="元"),"令和元年"&7,IF(AND(AG$36>=1,AG$36<=5,AE$36=2),"令和元年"&7,(IF((AND(AG$36>=1,AG$36<=5)),"令和"&AE$36-1&"年"&7,"令和"&AE$36&"年"&7))))))) -> 令和年7 | AK84: =IF(OR(AK85="",AK$41=8),"",7) -> 7 | AL84: =IF(OR(AL85="",AN$41=4),"",IF(AND(AM$36>=1,AM$36<=4,AK$36=31),"平成"&30&"年"&7,IF(AND(AM$36=5,AK$36="元"),"平成"&30&"年"&7,IF(AND(AM$36>=6,AK$36="元"),"令和元年"&7,IF(AND(AM$36>=1,AM$36<=5,AK$36=2),"令和元年"&7,(IF((AND(AM$36>=1,AM$36<=5)),"令和"&AK$36-1&"年"&7,"令和"&AK$36&"年"&7))))))) -> 令和年7 | AM84: =IF(OR(AL85="",AN$41=4),"",IF(AND(AM$36>=1,AM$36<=4,AK$36=31),"平成"&30&"年"&7,IF(AND(AM$36=5,AK$36="元"),"平成"&30&"年"&7,IF(AND(AM$36>=6,AK$36="元"),"令和元年"&7,IF(AND(AM$36>=1,AM$36<=5,AK$36=2),"令和元年"&7,(IF((AND(AM$36>=1,AM$36<=5)),"令和"&AK$36-1&"年"&7,"令和"&AK$36&"年"&7))))))) -> 令和年7 | AQ84: =IF(OR(AQ85="",AQ$41=8),"",7) -> 7 | AR84: =IF(OR(AR85="",AT$41=4),"",IF(AND(AS$36>=1,AS$36<=4,AQ$36=31),"平成"&30&"年"&7,IF(AND(AS$36=5,AQ$36="元"),"平成"&30&"年"&7,IF(AND(AS$36>=6,AQ$36="元"),"令和元年"&7,IF(AND(AS$36>=1,AS$36<=5,AQ$36=2),"令和元年"&7,(IF((AND(AS$36>=1,AS$36<=5)),"令和"&AQ$36-1&"年"&7,"令和"&AQ$36&"年"&7))))))) -> 令和年7 | AS84: =IF(OR(AR85="",AT$41=4),"",IF(AND(AS$36>=1,AS$36<=4,AQ$36=31),"平成"&30&"年"&7,IF(AND(AS$36=5,AQ$36="元"),"平成"&30&"年"&7,IF(AND(AS$36>=6,AQ$36="元"),"令和元年"&7,IF(AND(AS$36>=1,AS$36<=5,AQ$36=2),"令和元年"&7,(IF((AND(AS$36>=1,AS$36<=5)),"令和"&AQ$36-1&"年"&7,"令和"&AQ$36&"年"&7))))))) -> 令和年7 | AW84: =IF(OR(AW85="",AW$41=8),"",7) -> 7 | AX84: =IF(OR(AX85="",AZ$41=4),"",IF(AND(AY$36>=1,AY$36<=4,AW$36=31),"平成"&30&"年"&7,IF(AND(AY$36=5,AW$36="元"),"平成"&30&"年"&7,IF(AND(AY$36>=6,AW$36="元"),"令和元年"&7,IF(AND(AY$36>=1,AY$36<=5,AW$36=2),"令和元年"&7,(IF((AND(AY$36>=1,AY$36<=5)),"令和"&AW$36-1&"年"&7,"令和"&AW$36&"年"&7))))))) -> 令和年7 | AY84: =IF(OR(AX85="",AZ$41=4),"",IF(AND(AY$36>=1,AY$36<=4,AW$36=31),"平成"&30&"年"&7,IF(AND(AY$36=5,AW$36="元"),"平成"&30&"年"&7,IF(AND(AY$36>=6,AW$36="元"),"令和元年"&7,IF(AND(AY$36>=1,AY$36<=5,AW$36=2),"令和元年"&7,(IF((AND(AY$36>=1,AY$36<=5)),"令和"&AW$36-1&"年"&7,"令和"&AW$36&"年"&7))))))) -> 令和年7 | BC84: =IF(OR(BC85="",BC$41=8),"",7) -> 7 | BD84: =IF(OR(BD85="",BF$41=4),"",IF(AND(BE$36>=1,BE$36<=4,BC$36=31),"平成"&30&"年"&7,IF(AND(BE$36=5,BC$36="元"),"平成"&30&"年"&7,IF(AND(BE$36>=6,BC$36="元"),"令和元年"&7,IF(AND(BE$36>=1,BE$36<=5,BC$36=2),"令和元年"&7,(IF((AND(BE$36>=1,BE$36<=5)),"令和"&BC$36-1&"年"&7,"令和"&BC$36&"年"&7))))))) -> 令和年7 | BE84: =IF(OR(BD85="",BF$41=4),"",IF(AND(BE$36>=1,BE$36<=4,BC$36=31),"平成"&30&"年"&7,IF(AND(BE$36=5,BC$36="元"),"平成"&30&"年"&7,IF(AND(BE$36>=6,BC$36="元"),"令和元年"&7,IF(AND(BE$36>=1,BE$36<=5,BC$36=2),"令和元年"&7,(IF((AND(BE$36>=1,BE$36<=5)),"令和"&BC$36-1&"年"&7,"令和"&BC$36&"年"&7))))))) -> 令和年7 | BI84: =IF(OR(BI85="",BI$41=8),"",7) -> 7 | BJ84: =IF(OR(BJ85="",BL$41=4),"",IF(AND(BK$36>=1,BK$36<=4,BI$36=31),"平成"&30&"年"&7,IF(AND(BK$36=5,BI$36="元"),"平成"&30&"年"&7,IF(AND(BK$36>=6,BI$36="元"),"令和元年"&7,IF(AND(BK$36>=1,BK$36<=5,BI$36=2),"令和元年"&7,(IF((AND(BK$36>=1,BK$36<=5)),"令和"&BI$36-1&"年"&7,"令和"&BI$36&"年"&7))))))) -> 令和年7 | BK84: =IF(OR(BJ85="",BL$41=4),"",IF(AND(BK$36>=1,BK$36<=4,BI$36=31),"平成"&30&"年"&7,IF(AND(BK$36=5,BI$36="元"),"平成"&30&"年"&7,IF(AND(BK$36>=6,BI$36="元"),"令和元年"&7,IF(AND(BK$36>=1,BK$36<=5,BI$36=2),"令和元年"&7,(IF((AND(BK$36>=1,BK$36<=5)),"令和"&BI$36-1&"年"&7,"令和"&BI$36&"年"&7))))))) -> 令和年7 | BO84: =IF(OR(BO85="",BO$41=8),"",7) -> 7 | BP84: =IF(OR(BP85="",BR$41=4),"",IF(AND(BQ$36>=1,BQ$36<=4,BO$36=31),"平成"&30&"年"&7,IF(AND(BQ$36=5,BO$36="元"),"平成"&30&"年"&7,IF(AND(BQ$36>=6,BO$36="元"),"令和元年"&7,IF(AND(BQ$36>=1,BQ$36<=5,BO$36=2),"令和元年"&7,(IF((AND(BQ$36>=1,BQ$36<=5)),"令和"&BO$36-1&"年"&7,"令和"&BO$36&"年"&7))))))) -> 令和年7 | BQ84: =IF(OR(BP85="",BR$41=4),"",IF(AND(BQ$36>=1,BQ$36<=4,BO$36=31),"平成"&30&"年"&7,IF(AND(BQ$36=5,BO$36="元"),"平成"&30&"年"&7,IF(AND(BQ$36>=6,BO$36="元"),"令和元年"&7,IF(AND(BQ$36>=1,BQ$36<=5,BO$36=2),"令和元年"&7,(IF((AND(BQ$36>=1,BQ$36<=5)),"令和"&BO$36-1&"年"&7,"令和"&BO$36&"年"&7))))))) -> 令和年7 | BU84: =IF(OR(BU85="",BU$41=8),"",7) -> 7 | BV84: =IF(OR(BV85="",BX$41=4),"",IF(AND(BW$36>=1,BW$36<=4,BU$36=31),"平成"&30&"年"&7,IF(AND(BW$36=5,BU$36="元"),"平成"&30&"年"&7,IF(AND(BW$36>=6,BU$36="元"),"令和元年"&7,IF(AND(BW$36>=1,BW$36<=5,BU$36=2),"令和元年"&7,(IF((AND(BW$36>=1,BW$36<=5)),"令和"&BU$36-1&"年"&7,"令和"&BU$36&"年"&7))))))) -> 令和年7 | BW84: =IF(OR(BV85="",BX$41=4),"",IF(AND(BW$36>=1,BW$36<=4,BU$36=31),"平成"&30&"年"&7,IF(AND(BW$36=5,BU$36="元"),"平成"&30&"年"&7,IF(AND(BW$36>=6,BU$36="元"),"令和元年"&7,IF(AND(BW$36>=1,BW$36<=5,BU$36=2),"令和元年"&7,(IF((AND(BW$36>=1,BW$36<=5)),"令和"&BU$36-1&"年"&7,"令和"&BU$36&"年"&7))))))) -> 令和年7 | CA84: =IF(OR(CA85="",CA$41=8),"",7) -> 7 | CB84: =IF(OR(CB85="",CD$41=4),"",IF(AND(CC$36>=1,CC$36<=4,CA$36=31),"平成"&30&"年"&7,IF(AND(CC$36=5,CA$36="元"),"平成"&30&"年"&7,IF(AND(CC$36>=6,CA$36="元"),"令和元年"&7,IF(AND(CC$36>=1,CC$36<=5,CA$36=2),"令和元年"&7,(IF((AND(CC$36>=1,CC$36<=5)),"令和"&CA$36-1&"年"&7,"令和"&CA$36&"年"&7))))))) -> 令和年7 | CC84: =IF(OR(CB85="",CD$41=4),"",IF(AND(CC$36>=1,CC$36<=4,CA$36=31),"平成"&30&"年"&7,IF(AND(CC$36=5,CA$36="元"),"平成"&30&"年"&7,IF(AND(CC$36>=6,CA$36="元"),"令和元年"&7,IF(AND(CC$36>=1,CC$36<=5,CA$36=2),"令和元年"&7,(IF((AND(CC$36>=1,CC$36<=5)),"令和"&CA$36-1&"年"&7,"令和"&CA$36&"年"&7))))))) -> 令和年7 | CG84: =IF(OR(CG85="",CG$41=8),"",7) -> 7 | CH84: =IF(OR(CH85="",CJ$41=4),"",IF(AND(CI$36>=1,CI$36<=4,CG$36=31),"平成"&30&"年"&7,IF(AND(CI$36=5,CG$36="元"),"平成"&30&"年"&7,IF(AND(CI$36>=6,CG$36="元"),"令和元年"&7,IF(AND(CI$36>=1,CI$36<=5,CG$36=2),"令和元年"&7,(IF((AND(CI$36>=1,CI$36<=5)),"令和"&CG$36-1&"年"&7,"令和"&CG$36&"年"&7))))))) -> 令和年7 | CI84: =IF(OR(CH85="",CJ$41=4),"",IF(AND(CI$36>=1,CI$36<=4,CG$36=31),"平成"&30&"年"&7,IF(AND(CI$36=5,CG$36="元"),"平成"&30&"年"&7,IF(AND(CI$36>=6,CG$36="元"),"令和元年"&7,IF(AND(CI$36>=1,CI$36<=5,CG$36=2),"令和元年"&7,(IF((AND(CI$36>=1,CI$36<=5)),"令和"&CG$36-1&"年"&7,"令和"&CG$36&"年"&7))))))) -> 令和年7 | CM84: =IF(OR(CM85="",CM$41=8),"",7) -> 7 | CN84: =IF(OR(CN85="",CP$41=4),"",IF(AND(CO$36>=1,CO$36<=4,CM$36=31),"平成"&30&"年"&7,IF(AND(CO$36=5,CM$36="元"),"平成"&30&"年"&7,IF(AND(CO$36>=6,CM$36="元"),"令和元年"&7,IF(AND(CO$36>=1,CO$36<=5,CM$36=2),"令和元年"&7,(IF((AND(CO$36>=1,CO$36<=5)),"令和"&CM$36-1&"年"&7,"令和"&CM$36&"年"&7))))))) -> 令和年7 | CO84: =IF(OR(CN85="",CP$41=4),"",IF(AND(CO$36>=1,CO$36<=4,CM$36=31),"平成"&30&"年"&7,IF(AND(CO$36=5,CM$36="元"),"平成"&30&"年"&7,IF(AND(CO$36>=6,CM$36="元"),"令和元年"&7,IF(AND(CO$36>=1,CO$36<=5,CM$36=2),"令和元年"&7,(IF((AND(CO$36>=1,CO$36<=5)),"令和"&CM$36-1&"年"&7,"令和"&CM$36&"年"&7))))))) -> 令和年7 | CS84: =IF(OR(CS85="",CS$41=8),"",7) -> 7 | CT84: =IF(OR(CT85="",CV$41=4),"",IF(AND(CU$36>=1,CU$36<=4,CS$36=31),"平成"&30&"年"&7,IF(AND(CU$36=5,CS$36="元"),"平成"&30&"年"&7,IF(AND(CU$36>=6,CS$36="元"),"令和元年"&7,IF(AND(CU$36>=1,CU$36<=5,CS$36=2),"令和元年"&7,(IF((AND(CU$36>=1,CU$36<=5)),"令和"&CS$36-1&"年"&7,"令和"&CS$36&"年"&7))))))) -> 令和年7 | CU84: =IF(OR(CT85="",CV$41=4),"",IF(AND(CU$36>=1,CU$36<=4,CS$36=31),"平成"&30&"年"&7,IF(AND(CU$36=5,CS$36="元"),"平成"&30&"年"&7,IF(AND(CU$36>=6,CS$36="元"),"令和元年"&7,IF(AND(CU$36>=1,CU$36<=5,CS$36=2),"令和元年"&7,(IF((AND(CU$36>=1,CU$36<=5)),"令和"&CS$36-1&"年"&7,"令和"&CS$36&"年"&7))))))) -> 令和年7 | CY84: =IF(OR(CY85="",CY$41=8),"",7) -> 7 | CZ84: =IF(OR(CZ85="",DB$41=4),"",IF(AND(DA$36>=1,DA$36<=4,CY$36=31),"平成"&30&"年"&7,IF(AND(DA$36=5,CY$36="元"),"平成"&30&"年"&7,IF(AND(DA$36>=6,CY$36="元"),"令和元年"&7,IF(AND(DA$36>=1,DA$36<=5,CY$36=2),"令和元年"&7,(IF((AND(DA$36>=1,DA$36<=5)),"令和"&CY$36-1&"年"&7,"令和"&CY$36&"年"&7))))))) -> 令和年7 | DA84: =IF(OR(CZ85="",DB$41=4),"",IF(AND(DA$36>=1,DA$36<=4,CY$36=31),"平成"&30&"年"&7,IF(AND(DA$36=5,CY$36="元"),"平成"&30&"年"&7,IF(AND(DA$36>=6,CY$36="元"),"令和元年"&7,IF(AND(DA$36>=1,DA$36<=5,CY$36=2),"令和元年"&7,(IF((AND(DA$36>=1,DA$36<=5)),"令和"&CY$36-1&"年"&7,"令和"&CY$36&"年"&7))))))) -> 令和年7 | DE84: =IF(OR(DE85="",DE$41=8),"",7) -> 7 | DF84: =IF(OR(DF85="",DH$41=4),"",IF(AND(DG$36>=1,DG$36<=4,DE$36=31),"平成"&30&"年"&7,IF(AND(DG$36=5,DE$36="元"),"平成"&30&"年"&7,IF(AND(DG$36>=6,DE$36="元"),"令和元年"&7,IF(AND(DG$36>=1,DG$36<=5,DE$36=2),"令和元年"&7,(IF((AND(DG$36>=1,DG$36<=5)),"令和"&DE$36-1&"年"&7,"令和"&DE$36&"年"&7))))))) -> 令和年7 | DG84: =IF(OR(DF85="",DH$41=4),"",IF(AND(DG$36>=1,DG$36<=4,DE$36=31),"平成"&30&"年"&7,IF(AND(DG$36=5,DE$36="元"),"平成"&30&"年"&7,IF(AND(DG$36>=6,DE$36="元"),"令和元年"&7,IF(AND(DG$36>=1,DG$36<=5,DE$36=2),"令和元年"&7,(IF((AND(DG$36>=1,DG$36<=5)),"令和"&DE$36-1&"年"&7,"令和"&DE$36&"年"&7))))))) -> 令和年7 | DK84: =IF(OR(DK85="",DK$41=8),"",7) -> 7 | DL84: =IF(OR(DL85="",DN$41=4),"",IF(AND(DM$36>=1,DM$36<=4,DK$36=31),"平成"&30&"年"&7,IF(AND(DM$36=5,DK$36="元"),"平成"&30&"年"&7,IF(AND(DM$36>=6,DK$36="元"),"令和元年"&7,IF(AND(DM$36>=1,DM$36<=5,DK$36=2),"令和元年"&7,(IF((AND(DM$36>=1,DM$36<=5)),"令和"&DK$36-1&"年"&7,"令和"&DK$36&"年"&7))))))) -> 令和年7 | DM84: =IF(OR(DL85="",DN$41=4),"",IF(AND(DM$36>=1,DM$36<=4,DK$36=31),"平成"&30&"年"&7,IF(AND(DM$36=5,DK$36="元"),"平成"&30&"年"&7,IF(AND(DM$36>=6,DK$36="元"),"令和元年"&7,IF(AND(DM$36>=1,DM$36<=5,DK$36=2),"令和元年"&7,(IF((AND(DM$36>=1,DM$36<=5)),"令和"&DK$36-1&"年"&7,"令和"&DK$36&"年"&7))))))) -> 令和年7 | DQ84: =IF(OR(DQ85="",DQ$41=8),"",7) -> 7 | DR84: =IF(OR(DR85="",DT$41=4),"",IF(AND(DS$36>=1,DS$36<=4,DQ$36=31),"平成"&30&"年"&7,IF(AND(DS$36=5,DQ$36="元"),"平成"&30&"年"&7,IF(AND(DS$36>=6,DQ$36="元"),"令和元年"&7,IF(AND(DS$36>=1,DS$36<=5,DQ$36=2),"令和元年"&7,(IF((AND(DS$36>=1,DS$36<=5)),"令和"&DQ$36-1&"年"&7,"令和"&DQ$36&"年"&7))))))) -> 令和年7 | DS84: =IF(OR(DR85="",DT$41=4),"",IF(AND(DS$36>=1,DS$36<=4,DQ$36=31),"平成"&30&"年"&7,IF(AND(DS$36=5,DQ$36="元"),"平成"&30&"年"&7,IF(AND(DS$36>=6,DQ$36="元"),"令和元年"&7,IF(AND(DS$36>=1,DS$36<=5,DQ$36=2),"令和元年"&7,(IF((AND(DS$36>=1,DS$36<=5)),"令和"&DQ$36-1&"年"&7,"令和"&DQ$36&"年"&7))))))) -> 令和年7 | DW84: =IF(OR(DW85="",DW$41=8),"",7) -> 7 | DX84: =IF(OR(DX85="",DZ$41=4),"",IF(AND(DY$36>=1,DY$36<=4,DW$36=31),"平成"&30&"年"&7,IF(AND(DY$36=5,DW$36="元"),"平成"&30&"年"&7,IF(AND(DY$36>=6,DW$36="元"),"令和元年"&7,IF(AND(DY$36>=1,DY$36<=5,DW$36=2),"令和元年"&7,(IF((AND(DY$36>=1,DY$36<=5)),"令和"&DW$36-1&"年"&7,"令和"&DW$36&"年"&7))))))) -> 令和年7 | DY84: =IF(OR(DX85="",DZ$41=4),"",IF(AND(DY$36>=1,DY$36<=4,DW$36=31),"平成"&30&"年"&7,IF(AND(DY$36=5,DW$36="元"),"平成"&30&"年"&7,IF(AND(DY$36>=6,DW$36="元"),"令和元年"&7,IF(AND(DY$36>=1,DY$36<=5,DW$36=2),"令和元年"&7,(IF((AND(DY$36>=1,DY$36<=5)),"令和"&DW$36-1&"年"&7,"令和"&DW$36&"年"&7))))))) -> 令和年7 | EC84: =IF(OR(EC85="",EC$41=8),"",7) -> 7 | ED84: =IF(OR(ED85="",EF$41=4),"",IF(AND(EE$36>=1,EE$36<=4,EC$36=31),"平成"&30&"年"&7,IF(AND(EE$36=5,EC$36="元"),"平成"&30&"年"&7,IF(AND(EE$36>=6,EC$36="元"),"令和元年"&7,IF(AND(EE$36>=1,EE$36<=5,EC$36=2),"令和元年"&7,(IF((AND(EE$36>=1,EE$36<=5)),"令和"&EC$36-1&"年"&7,"令和"&EC$36&"年"&7))))))) -> 令和年7 | EE84: =IF(OR(ED85="",EF$41=4),"",IF(AND(EE$36>=1,EE$36<=4,EC$36=31),"平成"&30&"年"&7,IF(AND(EE$36=5,EC$36="元"),"平成"&30&"年"&7,IF(AND(EE$36>=6,EC$36="元"),"令和元年"&7,IF(AND(EE$36>=1,EE$36<=5,EC$36=2),"令和元年"&7,(IF((AND(EE$36>=1,EE$36<=5)),"令和"&EC$36-1&"年"&7,"令和"&EC$36&"年"&7))))))) -> 令和年7 | EI84: =IF(OR(EI85="",EI$41=8),"",7) -> 7 | EJ84: =IF(OR(EJ85="",EL$41=4),"",IF(AND(EK$36>=1,EK$36<=4,EI$36=31),"平成"&30&"年"&7,IF(AND(EK$36=5,EI$36="元"),"平成"&30&"年"&7,IF(AND(EK$36>=6,EI$36="元"),"令和元年"&7,IF(AND(EK$36>=1,EK$36<=5,EI$36=2),"令和元年"&7,(IF((AND(EK$36>=1,EK$36<=5)),"令和"&EI$36-1&"年"&7,"令和"&EI$36&"年"&7))))))) -> 令和年7 | EK84: =IF(OR(EJ85="",EL$41=4),"",IF(AND(EK$36>=1,EK$36<=4,EI$36=31),"平成"&30&"年"&7,IF(AND(EK$36=5,EI$36="元"),"平成"&30&"年"&7,IF(AND(EK$36>=6,EI$36="元"),"令和元年"&7,IF(AND(EK$36>=1,EK$36<=5,EI$36=2),"令和元年"&7,(IF((AND(EK$36>=1,EK$36<=5)),"令和"&EI$36-1&"年"&7,"令和"&EI$36&"年"&7))))))) -> 令和年7 | EO84: =IF(OR(EO85="",EO$41=8),"",7) -> 7 | EP84: =IF(OR(EP85="",ER$41=4),"",IF(AND(EQ$36>=1,EQ$36<=4,EO$36=31),"平成"&30&"年"&7,IF(AND(EQ$36=5,EO$36="元"),"平成"&30&"年"&7,IF(AND(EQ$36>=6,EO$36="元"),"令和元年"&7,IF(AND(EQ$36>=1,EQ$36<=5,EO$36=2),"令和元年"&7,(IF((AND(EQ$36>=1,EQ$36<=5)),"令和"&EO$36-1&"年"&7,"令和"&EO$36&"年"&7))))))) -> 令和年7 | EQ84: =IF(OR(EP85="",ER$41=4),"",IF(AND(EQ$36>=1,EQ$36<=4,EO$36=31),"平成"&30&"年"&7,IF(AND(EQ$36=5,EO$36="元"),"平成"&30&"年"&7,IF(AND(EQ$36>=6,EO$36="元"),"令和元年"&7,IF(AND(EQ$36>=1,EQ$36<=5,EO$36=2),"令和元年"&7,(IF((AND(EQ$36>=1,EQ$36<=5)),"令和"&EO$36-1&"年"&7,"令和"&EO$36&"年"&7))))))) -> 令和年7 | EU84: =IF(OR(EU85="",EU$41=8),"",7) -> 7 | EV84: =IF(OR(EV85="",EX$41=4),"",IF(AND(EW$36>=1,EW$36<=4,EU$36=31),"平成"&30&"年"&7,IF(AND(EW$36=5,EU$36="元"),"平成"&30&"年"&7,IF(AND(EW$36>=6,EU$36="元"),"令和元年"&7,IF(AND(EW$36>=1,EW$36<=5,EU$36=2),"令和元年"&7,(IF((AND(EW$36>=1,EW$36<=5)),"令和"&EU$36-1&"年"&7,"令和"&EU$36&"年"&7))))))) -> 令和年7 | EW84: =IF(OR(EV85="",EX$41=4),"",IF(AND(EW$36>=1,EW$36<=4,EU$36=31),"平成"&30&"年"&7,IF(AND(EW$36=5,EU$36="元"),"平成"&30&"年"&7,IF(AND(EW$36>=6,EU$36="元"),"令和元年"&7,IF(AND(EW$36>=1,EW$36<=5,EU$36=2),"令和元年"&7,(IF((AND(EW$36>=1,EW$36<=5)),"令和"&EU$36-1&"年"&7,"令和"&EU$36&"年"&7))))))) -> 令和年7 | FA84: =IF(OR(FA85="",FA$41=8),"",7) -> 7 | FB84: =IF(OR(FB85="",FD$41=4),"",IF(AND(FC$36>=1,FC$36<=4,FA$36=31),"平成"&30&"年"&7,IF(AND(FC$36=5,FA$36="元"),"平成"&30&"年"&7,IF(AND(FC$36>=6,FA$36="元"),"令和元年"&7,IF(AND(FC$36>=1,FC$36<=5,FA$36=2),"令和元年"&7,(IF((AND(FC$36>=1,FC$36<=5)),"令和"&FA$36-1&"年"&7,"令和"&FA$36&"年"&7))))))) -> 令和年7 | FC84: =IF(OR(FB85="",FD$41=4),"",IF(AND(FC$36>=1,FC$36<=4,FA$36=31),"平成"&30&"年"&7,IF(AND(FC$36=5,FA$36="元"),"平成"&30&"年"&7,IF(AND(FC$36>=6,FA$36="元"),"令和元年"&7,IF(AND(FC$36>=1,FC$36<=5,FA$36=2),"令和元年"&7,(IF((AND(FC$36>=1,FC$36<=5)),"令和"&FA$36-1&"年"&7,"令和"&FA$36&"年"&7))))))) -> 令和年7 | FG84: =IF(OR(FG85="",FG$41=8),"",7) -> 7 | FH84: =IF(OR(FH85="",FJ$41=4),"",IF(AND(FI$36>=1,FI$36<=4,FG$36=31),"平成"&30&"年"&7,IF(AND(FI$36=5,FG$36="元"),"平成"&30&"年"&7,IF(AND(FI$36>=6,FG$36="元"),"令和元年"&7,IF(AND(FI$36>=1,FI$36<=5,FG$36=2),"令和元年"&7,(IF((AND(FI$36>=1,FI$36<=5)),"令和"&FG$36-1&"年"&7,"令和"&FG$36&"年"&7))))))) -> 令和年7 | FI84: =IF(OR(FH85="",FJ$41=4),"",IF(AND(FI$36>=1,FI$36<=4,FG$36=31),"平成"&30&"年"&7,IF(AND(FI$36=5,FG$36="元"),"平成"&30&"年"&7,IF(AND(FI$36>=6,FG$36="元"),"令和元年"&7,IF(AND(FI$36>=1,FI$36<=5,FG$36=2),"令和元年"&7,(IF((AND(FI$36>=1,FI$36<=5)),"令和"&FG$36-1&"年"&7,"令和"&FG$36&"年"&7))))))) -> 令和年7 | FM84: =IF(OR(FM85="",FM$41=8),"",7) -> 7 | FN84: =IF(OR(FN85="",FP$41=4),"",IF(AND(FO$36>=1,FO$36<=4,FM$36=31),"平成"&30&"年"&7,IF(AND(FO$36=5,FM$36="元"),"平成"&30&"年"&7,IF(AND(FO$36>=6,FM$36="元"),"令和元年"&7,IF(AND(FO$36>=1,FO$36<=5,FM$36=2),"令和元年"&7,(IF((AND(FO$36>=1,FO$36<=5)),"令和"&FM$36-1&"年"&7,"令和"&FM$36&"年"&7))))))) -> 令和年7 | FO84: =IF(OR(FN85="",FP$41=4),"",IF(AND(FO$36>=1,FO$36<=4,FM$36=31),"平成"&30&"年"&7,IF(AND(FO$36=5,FM$36="元"),"平成"&30&"年"&7,IF(AND(FO$36>=6,FM$36="元"),"令和元年"&7,IF(AND(FO$36>=1,FO$36<=5,FM$36=2),"令和元年"&7,(IF((AND(FO$36>=1,FO$36<=5)),"令和"&FM$36-1&"年"&7,"令和"&FM$36&"年"&7))))))) -> 令和年7 | FS84: =IF(OR(FS85="",FS$41=8),"",7) -> 7 | FT84: =IF(OR(FT85="",FV$41=4),"",IF(AND(FU$36>=1,FU$36<=4,FS$36=31),"平成"&30&"年"&7,IF(AND(FU$36=5,FS$36="元"),"平成"&30&"年"&7,IF(AND(FU$36>=6,FS$36="元"),"令和元年"&7,IF(AND(FU$36>=1,FU$36<=5,FS$36=2),"令和元年"&7,(IF((AND(FU$36>=1,FU$36<=5)),"令和"&FS$36-1&"年"&7,"令和"&FS$36&"年"&7))))))) -> 令和年7 | FU84: =IF(OR(FT85="",FV$41=4),"",IF(AND(FU$36>=1,FU$36<=4,FS$36=31),"平成"&30&"年"&7,IF(AND(FU$36=5,FS$36="元"),"平成"&30&"年"&7,IF(AND(FU$36>=6,FS$36="元"),"令和元年"&7,IF(AND(FU$36>=1,FU$36<=5,FS$36=2),"令和元年"&7,(IF((AND(FU$36>=1,FU$36<=5)),"令和"&FS$36-1&"年"&7,"令和"&FS$36&"年"&7))))))) -> 令和年7 | FY84: =IF(OR(FY85="",FY$41=8),"",7) -> 7 | FZ84: =IF(OR(FZ85="",GB$41=4),"",IF(AND(GA$36>=1,GA$36<=4,FY$36=31),"平成"&30&"年"&7,IF(AND(GA$36=5,FY$36="元"),"平成"&30&"年"&7,IF(AND(GA$36>=6,FY$36="元"),"令和元年"&7,IF(AND(GA$36>=1,GA$36<=5,FY$36=2),"令和元年"&7,(IF((AND(GA$36>=1,GA$36<=5)),"令和"&FY$36-1&"年"&7,"令和"&FY$36&"年"&7))))))) -> 令和年7 | GA84: =IF(OR(FZ85="",GB$41=4),"",IF(AND(GA$36>=1,GA$36<=4,FY$36=31),"平成"&30&"年"&7,IF(AND(GA$36=5,FY$36="元"),"平成"&30&"年"&7,IF(AND(GA$36>=6,FY$36="元"),"令和元年"&7,IF(AND(GA$36>=1,GA$36<=5,FY$36=2),"令和元年"&7,(IF((AND(GA$36>=1,GA$36<=5)),"令和"&FY$36-1&"年"&7,"令和"&FY$36&"年"&7))))))) -> 令和年7 | GE84: =IF(OR(GE85="",GE$41=8),"",7) -> 7 | GF84: =IF(OR(GF85="",GH$41=4),"",IF(AND(GG$36>=1,GG$36<=4,GE$36=31),"平成"&30&"年"&7,IF(AND(GG$36=5,GE$36="元"),"平成"&30&"年"&7,IF(AND(GG$36>=6,GE$36="元"),"令和元年"&7,IF(AND(GG$36>=1,GG$36<=5,GE$36=2),"令和元年"&7,(IF((AND(GG$36>=1,GG$36<=5)),"令和"&GE$36-1&"年"&7,"令和"&GE$36&"年"&7))))))) -> 令和年7 | GG84: =IF(OR(GF85="",GH$41=4),"",IF(AND(GG$36>=1,GG$36<=4,GE$36=31),"平成"&30&"年"&7,IF(AND(GG$36=5,GE$36="元"),"平成"&30&"年"&7,IF(AND(GG$36>=6,GE$36="元"),"令和元年"&7,IF(AND(GG$36>=1,GG$36<=5,GE$36=2),"令和元年"&7,(IF((AND(GG$36>=1,GG$36<=5)),"令和"&GE$36-1&"年"&7,"令和"&GE$36&"年"&7))))))) -> 令和年7 | GK84: =IF(OR(GK85="",GK$41=8),"",7) -> 7 | GL84: =IF(OR(GL85="",GN$41=4),"",IF(AND(GM$36>=1,GM$36<=4,GK$36=31),"平成"&30&"年"&7,IF(AND(GM$36=5,GK$36="元"),"平成"&30&"年"&7,IF(AND(GM$36>=6,GK$36="元"),"令和元年"&7,IF(AND(GM$36>=1,GM$36<=5,GK$36=2),"令和元年"&7,(IF((AND(GM$36>=1,GM$36<=5)),"令和"&GK$36-1&"年"&7,"令和"&GK$36&"年"&7))))))) -> 令和年7 | GM84: =IF(OR(GL85="",GN$41=4),"",IF(AND(GM$36>=1,GM$36<=4,GK$36=31),"平成"&30&"年"&7,IF(AND(GM$36=5,GK$36="元"),"平成"&30&"年"&7,IF(AND(GM$36>=6,GK$36="元"),"令和元年"&7,IF(AND(GM$36>=1,GM$36<=5,GK$36=2),"令和元年"&7,(IF((AND(GM$36>=1,GM$36<=5)),"令和"&GK$36-1&"年"&7,"令和"&GK$36&"年"&7))))))) -> 令和年7 | GQ84: =IF(OR(GQ85="",GQ$41=8),"",7) -> 7 | GR84: =IF(OR(GR85="",GT$41=4),"",IF(AND(GS$36>=1,GS$36<=4,GQ$36=31),"平成"&30&"年"&7,IF(AND(GS$36=5,GQ$36="元"),"平成"&30&"年"&7,IF(AND(GS$36>=6,GQ$36="元"),"令和元年"&7,IF(AND(GS$36>=1,GS$36<=5,GQ$36=2),"令和元年"&7,(IF((AND(GS$36>=1,GS$36<=5)),"令和"&GQ$36-1&"年"&7,"令和"&GQ$36&"年"&7))))))) -> 令和年7 | GS84: =IF(OR(GR85="",GT$41=4),"",IF(AND(GS$36>=1,GS$36<=4,GQ$36=31),"平成"&30&"年"&7,IF(AND(GS$36=5,GQ$36="元"),"平成"&30&"年"&7,IF(AND(GS$36>=6,GQ$36="元"),"令和元年"&7,IF(AND(GS$36>=1,GS$36<=5,GQ$36=2),"令和元年"&7,(IF((AND(GS$36>=1,GS$36<=5)),"令和"&GQ$36-1&"年"&7,"令和"&GQ$36&"年"&7))))))) -> 令和年7 | GW84: =IF(OR(GW85="",GW$41=8),"",7) -> 7 | GX84: =IF(OR(GX85="",GZ$41=4),"",IF(AND(GY$36>=1,GY$36<=4,GW$36=31),"平成"&30&"年"&7,IF(AND(GY$36=5,GW$36="元"),"平成"&30&"年"&7,IF(AND(GY$36>=6,GW$36="元"),"令和元年"&7,IF(AND(GY$36>=1,GY$36<=5,GW$36=2),"令和元年"&7,(IF((AND(GY$36>=1,GY$36<=5)),"令和"&GW$36-1&"年"&7,"令和"&GW$36&"年"&7))))))) -> 令和年7 | GY84: =IF(OR(GX85="",GZ$41=4),"",IF(AND(GY$36>=1,GY$36<=4,GW$36=31),"平成"&30&"年"&7,IF(AND(GY$36=5,GW$36="元"),"平成"&30&"年"&7,IF(AND(GY$36>=6,GW$36="元"),"令和元年"&7,IF(AND(GY$36>=1,GY$36<=5,GW$36=2),"令和元年"&7,(IF((AND(GY$36>=1,GY$36<=5)),"令和"&GW$36-1&"年"&7,"令和"&GW$36&"年"&7))))))) -> 令和年7 | HC84: =IF(OR(HC85="",HC$41=8),"",7) -> 7 | HD84: =IF(OR(HD85="",HF$41=4),"",IF(AND(HE$36>=1,HE$36<=4,HC$36=31),"平成"&30&"年"&7,IF(AND(HE$36=5,HC$36="元"),"平成"&30&"年"&7,IF(AND(HE$36>=6,HC$36="元"),"令和元年"&7,IF(AND(HE$36>=1,HE$36<=5,HC$36=2),"令和元年"&7,(IF((AND(HE$36>=1,HE$36<=5)),"令和"&HC$36-1&"年"&7,"令和"&HC$36&"年"&7))))))) -> 令和年7 | HE84: =IF(OR(HD85="",HF$41=4),"",IF(AND(HE$36>=1,HE$36<=4,HC$36=31),"平成"&30&"年"&7,IF(AND(HE$36=5,HC$36="元"),"平成"&30&"年"&7,IF(AND(HE$36>=6,HC$36="元"),"令和元年"&7,IF(AND(HE$36>=1,HE$36<=5,HC$36=2),"令和元年"&7,(IF((AND(HE$36>=1,HE$36<=5)),"令和"&HC$36-1&"年"&7,"令和"&HC$36&"年"&7))))))) -> 令和年7 | HI84: =IF(OR(HI85="",HI$41=8),"",7) -> 7 | HJ84: =IF(OR(HJ85="",HL$41=4),"",IF(AND(HK$36>=1,HK$36<=4,HI$36=31),"平成"&30&"年"&7,IF(AND(HK$36=5,HI$36="元"),"平成"&30&"年"&7,IF(AND(HK$36>=6,HI$36="元"),"令和元年"&7,IF(AND(HK$36>=1,HK$36<=5,HI$36=2),"令和元年"&7,(IF((AND(HK$36>=1,HK$36<=5)),"令和"&HI$36-1&"年"&7,"令和"&HI$36&"年"&7))))))) -> 令和年7 | HK84: =IF(OR(HJ85="",HL$41=4),"",IF(AND(HK$36>=1,HK$36<=4,HI$36=31),"平成"&30&"年"&7,IF(AND(HK$36=5,HI$36="元"),"平成"&30&"年"&7,IF(AND(HK$36>=6,HI$36="元"),"令和元年"&7,IF(AND(HK$36>=1,HK$36<=5,HI$36=2),"令和元年"&7,(IF((AND(HK$36>=1,HK$36<=5)),"令和"&HI$36-1&"年"&7,"令和"&HI$36&"年"&7))))))) -> 令和年7 | HO84: =IF(OR(HO85="",HO$41=8),"",7) -> 7 | HP84: =IF(OR(HP85="",HR$41=4),"",IF(AND(HQ$36>=1,HQ$36<=4,HO$36=31),"平成"&30&"年"&7,IF(AND(HQ$36=5,HO$36="元"),"平成"&30&"年"&7,IF(AND(HQ$36>=6,HO$36="元"),"令和元年"&7,IF(AND(HQ$36>=1,HQ$36<=5,HO$36=2),"令和元年"&7,(IF((AND(HQ$36>=1,HQ$36<=5)),"令和"&HO$36-1&"年"&7,"令和"&HO$36&"年"&7))))))) -> 令和年7 | HQ84: =IF(OR(HP85="",HR$41=4),"",IF(AND(HQ$36>=1,HQ$36<=4,HO$36=31),"平成"&30&"年"&7,IF(AND(HQ$36=5,HO$36="元"),"平成"&30&"年"&7,IF(AND(HQ$36>=6,HO$36="元"),"令和元年"&7,IF(AND(HQ$36>=1,HQ$36<=5,HO$36=2),"令和元年"&7,(IF((AND(HQ$36>=1,HQ$36<=5)),"令和"&HO$36-1&"年"&7,"令和"&HO$36&"年"&7))))))) -> 令和年7 | HU84: =IF(OR(HU85="",HU$41=8),"",7) -> 7 | HV84: =IF(OR(HV85="",HX$41=4),"",IF(AND(HW$36>=1,HW$36<=4,HU$36=31),"平成"&30&"年"&7,IF(AND(HW$36=5,HU$36="元"),"平成"&30&"年"&7,IF(AND(HW$36>=6,HU$36="元"),"令和元年"&7,IF(AND(HW$36>=1,HW$36<=5,HU$36=2),"令和元年"&7,(IF((AND(HW$36>=1,HW$36<=5)),"令和"&HU$36-1&"年"&7,"令和"&HU$36&"年"&7))))))) -> 令和年7 | HW84: =IF(OR(HV85="",HX$41=4),"",IF(AND(HW$36>=1,HW$36<=4,HU$36=31),"平成"&30&"年"&7,IF(AND(HW$36=5,HU$36="元"),"平成"&30&"年"&7,IF(AND(HW$36>=6,HU$36="元"),"令和元年"&7,IF(AND(HW$36>=1,HW$36<=5,HU$36=2),"令和元年"&7,(IF((AND(HW$36>=1,HW$36<=5)),"令和"&HU$36-1&"年"&7,"令和"&HU$36&"年"&7))))))) -> 令和年7 | IA84: =IF(OR(IA85="",IA$41=8),"",7) -> 7 | IB84: =IF(OR(IB85="",ID$41=4),"",IF(AND(IC$36>=1,IC$36<=4,IA$36=31),"平成"&30&"年"&7,IF(AND(IC$36=5,IA$36="元"),"平成"&30&"年"&7,IF(AND(IC$36>=6,IA$36="元"),"令和元年"&7,IF(AND(IC$36>=1,IC$36<=5,IA$36=2),"令和元年"&7,(IF((AND(IC$36>=1,IC$36<=5)),"令和"&IA$36-1&"年"&7,"令和"&IA$36&"年"&7))))))) -> 令和年7 | IC84: =IF(OR(IB85="",ID$41=4),"",IF(AND(IC$36>=1,IC$36<=4,IA$36=31),"平成"&30&"年"&7,IF(AND(IC$36=5,IA$36="元"),"平成"&30&"年"&7,IF(AND(IC$36>=6,IA$36="元"),"令和元年"&7,IF(AND(IC$36>=1,IC$36<=5,IA$36=2),"令和元年"&7,(IF((AND(IC$36>=1,IC$36<=5)),"令和"&IA$36-1&"年"&7,"令和"&IA$36&"年"&7))))))) -> 令和年7 | IG84: =IF(OR(IG85="",IG$41=8),"",7) -> 7 | IH84: =IF(OR(IH85="",IJ$41=4),"",IF(AND(II$36>=1,II$36<=4,IG$36=31),"平成"&30&"年"&7,IF(AND(II$36=5,IG$36="元"),"平成"&30&"年"&7,IF(AND(II$36>=6,IG$36="元"),"令和元年"&7,IF(AND(II$36>=1,II$36<=5,IG$36=2),"令和元年"&7,(IF((AND(II$36>=1,II$36<=5)),"令和"&IG$36-1&"年"&7,"令和"&IG$36&"年"&7))))))) -> 令和年7 | II84: =IF(OR(IH85="",IJ$41=4),"",IF(AND(II$36>=1,II$36<=4,IG$36=31),"平成"&30&"年"&7,IF(AND(II$36=5,IG$36="元"),"平成"&30&"年"&7,IF(AND(II$36>=6,IG$36="元"),"令和元年"&7,IF(AND(II$36>=1,II$36<=5,IG$36=2),"令和元年"&7,(IF((AND(II$36>=1,II$36<=5)),"令和"&IG$36-1&"年"&7,"令和"&IG$36&"年"&7))))))) -> 令和年7
B85: =IF(AND(CA21<>"",CA25<>"",CC25<>"",CE25<>""),CA17,"") ->  | C85: 平 | D85: 11 | E85: 平11 | G85: =IF(OR(G86="",G$41=9),"",8) -> 8 | H85: =IF(OR(H86="",J$41=4),"",IF(AND(I$36>=1,I$36<=4,G$36=31),"平成"&30&"年"&8,IF(AND(I$36=5,G$36="元"),"平成"&30&"年"&8,IF(AND(I$36>=6,G$36="元"),"令和元年"&8,IF(AND(I$36>=1,I$36<=5,G$36=2),"令和元年"&8,(IF((AND(I$36>=1,I$36<=5)),"令和"&G$36-1&"年"&8,"令和"&G$36&"年"&8))))))) -> 令和年8 | I85: =IF(OR(H86="",J$41=4),"",IF(AND(I$36>=1,I$36<=4,G$36=31),"平成"&30&"年"&8,IF(AND(I$36=5,G$36="元"),"平成"&30&"年"&8,IF(AND(I$36>=6,G$36="元"),"令和元年"&8,IF(AND(I$36>=1,I$36<=5,G$36=2),"令和元年"&8,(IF((AND(I$36>=1,I$36<=5)),"令和"&G$36-1&"年"&8,"令和"&G$36&"年"&8))))))) -> 令和年8 | M85: =IF(OR(M86="",M$41=9),"",8) -> 8 | N85: =IF(OR(N86="",P$41=4),"",IF(AND(O$36>=1,O$36<=4,M$36=31),"平成"&30&"年"&8,IF(AND(O$36=5,M$36="元"),"平成"&30&"年"&8,IF(AND(O$36>=6,M$36="元"),"令和元年"&8,IF(AND(O$36>=1,O$36<=5,M$36=2),"令和元年"&8,(IF((AND(O$36>=1,O$36<=5)),"令和"&M$36-1&"年"&8,"令和"&M$36&"年"&8))))))) -> 令和年8 | O85: =IF(OR(N86="",P$41=4),"",IF(AND(O$36>=1,O$36<=4,M$36=31),"平成"&30&"年"&8,IF(AND(O$36=5,M$36="元"),"平成"&30&"年"&8,IF(AND(O$36>=6,M$36="元"),"令和元年"&8,IF(AND(O$36>=1,O$36<=5,M$36=2),"令和元年"&8,(IF((AND(O$36>=1,O$36<=5)),"令和"&M$36-1&"年"&8,"令和"&M$36&"年"&8))))))) -> 令和年8 | S85: =IF(OR(S86="",S$41=9),"",8) -> 8 | T85: =IF(OR(T86="",V$41=4),"",IF(AND(U$36>=1,U$36<=4,S$36=31),"平成"&30&"年"&8,IF(AND(U$36=5,S$36="元"),"平成"&30&"年"&8,IF(AND(U$36>=6,S$36="元"),"令和元年"&8,IF(AND(U$36>=1,U$36<=5,S$36=2),"令和元年"&8,(IF((AND(U$36>=1,U$36<=5)),"令和"&S$36-1&"年"&8,"令和"&S$36&"年"&8))))))) -> 令和年8 | U85: =IF(OR(T86="",V$41=4),"",IF(AND(U$36>=1,U$36<=4,S$36=31),"平成"&30&"年"&8,IF(AND(U$36=5,S$36="元"),"平成"&30&"年"&8,IF(AND(U$36>=6,S$36="元"),"令和元年"&8,IF(AND(U$36>=1,U$36<=5,S$36=2),"令和元年"&8,(IF((AND(U$36>=1,U$36<=5)),"令和"&S$36-1&"年"&8,"令和"&S$36&"年"&8))))))) -> 令和年8 | Y85: =IF(OR(Y86="",Y$41=9),"",8) -> 8 | Z85: =IF(OR(Z86="",AB$41=4),"",IF(AND(AA$36>=1,AA$36<=4,Y$36=31),"平成"&30&"年"&8,IF(AND(AA$36=5,Y$36="元"),"平成"&30&"年"&8,IF(AND(AA$36>=6,Y$36="元"),"令和元年"&8,IF(AND(AA$36>=1,AA$36<=5,Y$36=2),"令和元年"&8,(IF((AND(AA$36>=1,AA$36<=5)),"令和"&Y$36-1&"年"&8,"令和"&Y$36&"年"&8))))))) -> 令和年8 | AA85: =IF(OR(Z86="",AB$41=4),"",IF(AND(AA$36>=1,AA$36<=4,Y$36=31),"平成"&30&"年"&8,IF(AND(AA$36=5,Y$36="元"),"平成"&30&"年"&8,IF(AND(AA$36>=6,Y$36="元"),"令和元年"&8,IF(AND(AA$36>=1,AA$36<=5,Y$36=2),"令和元年"&8,(IF((AND(AA$36>=1,AA$36<=5)),"令和"&Y$36-1&"年"&8,"令和"&Y$36&"年"&8))))))) -> 令和年8 | AE85: =IF(OR(AE86="",AE$41=9),"",8) -> 8 | AF85: =IF(OR(AF86="",AH$41=4),"",IF(AND(AG$36>=1,AG$36<=4,AE$36=31),"平成"&30&"年"&8,IF(AND(AG$36=5,AE$36="元"),"平成"&30&"年"&8,IF(AND(AG$36>=6,AE$36="元"),"令和元年"&8,IF(AND(AG$36>=1,AG$36<=5,AE$36=2),"令和元年"&8,(IF((AND(AG$36>=1,AG$36<=5)),"令和"&AE$36-1&"年"&8,"令和"&AE$36&"年"&8))))))) -> 令和年8 | AG85: =IF(OR(AF86="",AH$41=4),"",IF(AND(AG$36>=1,AG$36<=4,AE$36=31),"平成"&30&"年"&8,IF(AND(AG$36=5,AE$36="元"),"平成"&30&"年"&8,IF(AND(AG$36>=6,AE$36="元"),"令和元年"&8,IF(AND(AG$36>=1,AG$36<=5,AE$36=2),"令和元年"&8,(IF((AND(AG$36>=1,AG$36<=5)),"令和"&AE$36-1&"年"&8,"令和"&AE$36&"年"&8))))))) -> 令和年8 | AK85: =IF(OR(AK86="",AK$41=9),"",8) -> 8 | AL85: =IF(OR(AL86="",AN$41=4),"",IF(AND(AM$36>=1,AM$36<=4,AK$36=31),"平成"&30&"年"&8,IF(AND(AM$36=5,AK$36="元"),"平成"&30&"年"&8,IF(AND(AM$36>=6,AK$36="元"),"令和元年"&8,IF(AND(AM$36>=1,AM$36<=5,AK$36=2),"令和元年"&8,(IF((AND(AM$36>=1,AM$36<=5)),"令和"&AK$36-1&"年"&8,"令和"&AK$36&"年"&8))))))) -> 令和年8 | AM85: =IF(OR(AL86="",AN$41=4),"",IF(AND(AM$36>=1,AM$36<=4,AK$36=31),"平成"&30&"年"&8,IF(AND(AM$36=5,AK$36="元"),"平成"&30&"年"&8,IF(AND(AM$36>=6,AK$36="元"),"令和元年"&8,IF(AND(AM$36>=1,AM$36<=5,AK$36=2),"令和元年"&8,(IF((AND(AM$36>=1,AM$36<=5)),"令和"&AK$36-1&"年"&8,"令和"&AK$36&"年"&8))))))) -> 令和年8 | AQ85: =IF(OR(AQ86="",AQ$41=9),"",8) -> 8 | AR85: =IF(OR(AR86="",AT$41=4),"",IF(AND(AS$36>=1,AS$36<=4,AQ$36=31),"平成"&30&"年"&8,IF(AND(AS$36=5,AQ$36="元"),"平成"&30&"年"&8,IF(AND(AS$36>=6,AQ$36="元"),"令和元年"&8,IF(AND(AS$36>=1,AS$36<=5,AQ$36=2),"令和元年"&8,(IF((AND(AS$36>=1,AS$36<=5)),"令和"&AQ$36-1&"年"&8,"令和"&AQ$36&"年"&8))))))) -> 令和年8 | AS85: =IF(OR(AR86="",AT$41=4),"",IF(AND(AS$36>=1,AS$36<=4,AQ$36=31),"平成"&30&"年"&8,IF(AND(AS$36=5,AQ$36="元"),"平成"&30&"年"&8,IF(AND(AS$36>=6,AQ$36="元"),"令和元年"&8,IF(AND(AS$36>=1,AS$36<=5,AQ$36=2),"令和元年"&8,(IF((AND(AS$36>=1,AS$36<=5)),"令和"&AQ$36-1&"年"&8,"令和"&AQ$36&"年"&8))))))) -> 令和年8 | AW85: =IF(OR(AW86="",AW$41=9),"",8) -> 8 | AX85: =IF(OR(AX86="",AZ$41=4),"",IF(AND(AY$36>=1,AY$36<=4,AW$36=31),"平成"&30&"年"&8,IF(AND(AY$36=5,AW$36="元"),"平成"&30&"年"&8,IF(AND(AY$36>=6,AW$36="元"),"令和元年"&8,IF(AND(AY$36>=1,AY$36<=5,AW$36=2),"令和元年"&8,(IF((AND(AY$36>=1,AY$36<=5)),"令和"&AW$36-1&"年"&8,"令和"&AW$36&"年"&8))))))) -> 令和年8 | AY85: =IF(OR(AX86="",AZ$41=4),"",IF(AND(AY$36>=1,AY$36<=4,AW$36=31),"平成"&30&"年"&8,IF(AND(AY$36=5,AW$36="元"),"平成"&30&"年"&8,IF(AND(AY$36>=6,AW$36="元"),"令和元年"&8,IF(AND(AY$36>=1,AY$36<=5,AW$36=2),"令和元年"&8,(IF((AND(AY$36>=1,AY$36<=5)),"令和"&AW$36-1&"年"&8,"令和"&AW$36&"年"&8))))))) -> 令和年8 | BC85: =IF(OR(BC86="",BC$41=9),"",8) -> 8 | BD85: =IF(OR(BD86="",BF$41=4),"",IF(AND(BE$36>=1,BE$36<=4,BC$36=31),"平成"&30&"年"&8,IF(AND(BE$36=5,BC$36="元"),"平成"&30&"年"&8,IF(AND(BE$36>=6,BC$36="元"),"令和元年"&8,IF(AND(BE$36>=1,BE$36<=5,BC$36=2),"令和元年"&8,(IF((AND(BE$36>=1,BE$36<=5)),"令和"&BC$36-1&"年"&8,"令和"&BC$36&"年"&8))))))) -> 令和年8 | BE85: =IF(OR(BD86="",BF$41=4),"",IF(AND(BE$36>=1,BE$36<=4,BC$36=31),"平成"&30&"年"&8,IF(AND(BE$36=5,BC$36="元"),"平成"&30&"年"&8,IF(AND(BE$36>=6,BC$36="元"),"令和元年"&8,IF(AND(BE$36>=1,BE$36<=5,BC$36=2),"令和元年"&8,(IF((AND(BE$36>=1,BE$36<=5)),"令和"&BC$36-1&"年"&8,"令和"&BC$36&"年"&8))))))) -> 令和年8 | BI85: =IF(OR(BI86="",BI$41=9),"",8) -> 8 | BJ85: =IF(OR(BJ86="",BL$41=4),"",IF(AND(BK$36>=1,BK$36<=4,BI$36=31),"平成"&30&"年"&8,IF(AND(BK$36=5,BI$36="元"),"平成"&30&"年"&8,IF(AND(BK$36>=6,BI$36="元"),"令和元年"&8,IF(AND(BK$36>=1,BK$36<=5,BI$36=2),"令和元年"&8,(IF((AND(BK$36>=1,BK$36<=5)),"令和"&BI$36-1&"年"&8,"令和"&BI$36&"年"&8))))))) -> 令和年8 | BK85: =IF(OR(BJ86="",BL$41=4),"",IF(AND(BK$36>=1,BK$36<=4,BI$36=31),"平成"&30&"年"&8,IF(AND(BK$36=5,BI$36="元"),"平成"&30&"年"&8,IF(AND(BK$36>=6,BI$36="元"),"令和元年"&8,IF(AND(BK$36>=1,BK$36<=5,BI$36=2),"令和元年"&8,(IF((AND(BK$36>=1,BK$36<=5)),"令和"&BI$36-1&"年"&8,"令和"&BI$36&"年"&8))))))) -> 令和年8 | BO85: =IF(OR(BO86="",BO$41=9),"",8) -> 8 | BP85: =IF(OR(BP86="",BR$41=4),"",IF(AND(BQ$36>=1,BQ$36<=4,BO$36=31),"平成"&30&"年"&8,IF(AND(BQ$36=5,BO$36="元"),"平成"&30&"年"&8,IF(AND(BQ$36>=6,BO$36="元"),"令和元年"&8,IF(AND(BQ$36>=1,BQ$36<=5,BO$36=2),"令和元年"&8,(IF((AND(BQ$36>=1,BQ$36<=5)),"令和"&BO$36-1&"年"&8,"令和"&BO$36&"年"&8))))))) -> 令和年8 | BQ85: =IF(OR(BP86="",BR$41=4),"",IF(AND(BQ$36>=1,BQ$36<=4,BO$36=31),"平成"&30&"年"&8,IF(AND(BQ$36=5,BO$36="元"),"平成"&30&"年"&8,IF(AND(BQ$36>=6,BO$36="元"),"令和元年"&8,IF(AND(BQ$36>=1,BQ$36<=5,BO$36=2),"令和元年"&8,(IF((AND(BQ$36>=1,BQ$36<=5)),"令和"&BO$36-1&"年"&8,"令和"&BO$36&"年"&8))))))) -> 令和年8 | BU85: =IF(OR(BU86="",BU$41=9),"",8) -> 8 | BV85: =IF(OR(BV86="",BX$41=4),"",IF(AND(BW$36>=1,BW$36<=4,BU$36=31),"平成"&30&"年"&8,IF(AND(BW$36=5,BU$36="元"),"平成"&30&"年"&8,IF(AND(BW$36>=6,BU$36="元"),"令和元年"&8,IF(AND(BW$36>=1,BW$36<=5,BU$36=2),"令和元年"&8,(IF((AND(BW$36>=1,BW$36<=5)),"令和"&BU$36-1&"年"&8,"令和"&BU$36&"年"&8))))))) -> 令和年8 | BW85: =IF(OR(BV86="",BX$41=4),"",IF(AND(BW$36>=1,BW$36<=4,BU$36=31),"平成"&30&"年"&8,IF(AND(BW$36=5,BU$36="元"),"平成"&30&"年"&8,IF(AND(BW$36>=6,BU$36="元"),"令和元年"&8,IF(AND(BW$36>=1,BW$36<=5,BU$36=2),"令和元年"&8,(IF((AND(BW$36>=1,BW$36<=5)),"令和"&BU$36-1&"年"&8,"令和"&BU$36&"年"&8))))))) -> 令和年8 | CA85: =IF(OR(CA86="",CA$41=9),"",8) -> 8 | CB85: =IF(OR(CB86="",CD$41=4),"",IF(AND(CC$36>=1,CC$36<=4,CA$36=31),"平成"&30&"年"&8,IF(AND(CC$36=5,CA$36="元"),"平成"&30&"年"&8,IF(AND(CC$36>=6,CA$36="元"),"令和元年"&8,IF(AND(CC$36>=1,CC$36<=5,CA$36=2),"令和元年"&8,(IF((AND(CC$36>=1,CC$36<=5)),"令和"&CA$36-1&"年"&8,"令和"&CA$36&"年"&8))))))) -> 令和年8 | CC85: =IF(OR(CB86="",CD$41=4),"",IF(AND(CC$36>=1,CC$36<=4,CA$36=31),"平成"&30&"年"&8,IF(AND(CC$36=5,CA$36="元"),"平成"&30&"年"&8,IF(AND(CC$36>=6,CA$36="元"),"令和元年"&8,IF(AND(CC$36>=1,CC$36<=5,CA$36=2),"令和元年"&8,(IF((AND(CC$36>=1,CC$36<=5)),"令和"&CA$36-1&"年"&8,"令和"&CA$36&"年"&8))))))) -> 令和年8 | CG85: =IF(OR(CG86="",CG$41=9),"",8) -> 8 | CH85: =IF(OR(CH86="",CJ$41=4),"",IF(AND(CI$36>=1,CI$36<=4,CG$36=31),"平成"&30&"年"&8,IF(AND(CI$36=5,CG$36="元"),"平成"&30&"年"&8,IF(AND(CI$36>=6,CG$36="元"),"令和元年"&8,IF(AND(CI$36>=1,CI$36<=5,CG$36=2),"令和元年"&8,(IF((AND(CI$36>=1,CI$36<=5)),"令和"&CG$36-1&"年"&8,"令和"&CG$36&"年"&8))))))) -> 令和年8 | CI85: =IF(OR(CH86="",CJ$41=4),"",IF(AND(CI$36>=1,CI$36<=4,CG$36=31),"平成"&30&"年"&8,IF(AND(CI$36=5,CG$36="元"),"平成"&30&"年"&8,IF(AND(CI$36>=6,CG$36="元"),"令和元年"&8,IF(AND(CI$36>=1,CI$36<=5,CG$36=2),"令和元年"&8,(IF((AND(CI$36>=1,CI$36<=5)),"令和"&CG$36-1&"年"&8,"令和"&CG$36&"年"&8))))))) -> 令和年8 | CM85: =IF(OR(CM86="",CM$41=9),"",8) -> 8 | CN85: =IF(OR(CN86="",CP$41=4),"",IF(AND(CO$36>=1,CO$36<=4,CM$36=31),"平成"&30&"年"&8,IF(AND(CO$36=5,CM$36="元"),"平成"&30&"年"&8,IF(AND(CO$36>=6,CM$36="元"),"令和元年"&8,IF(AND(CO$36>=1,CO$36<=5,CM$36=2),"令和元年"&8,(IF((AND(CO$36>=1,CO$36<=5)),"令和"&CM$36-1&"年"&8,"令和"&CM$36&"年"&8))))))) -> 令和年8 | CO85: =IF(OR(CN86="",CP$41=4),"",IF(AND(CO$36>=1,CO$36<=4,CM$36=31),"平成"&30&"年"&8,IF(AND(CO$36=5,CM$36="元"),"平成"&30&"年"&8,IF(AND(CO$36>=6,CM$36="元"),"令和元年"&8,IF(AND(CO$36>=1,CO$36<=5,CM$36=2),"令和元年"&8,(IF((AND(CO$36>=1,CO$36<=5)),"令和"&CM$36-1&"年"&8,"令和"&CM$36&"年"&8))))))) -> 令和年8 | CS85: =IF(OR(CS86="",CS$41=9),"",8) -> 8 | CT85: =IF(OR(CT86="",CV$41=4),"",IF(AND(CU$36>=1,CU$36<=4,CS$36=31),"平成"&30&"年"&8,IF(AND(CU$36=5,CS$36="元"),"平成"&30&"年"&8,IF(AND(CU$36>=6,CS$36="元"),"令和元年"&8,IF(AND(CU$36>=1,CU$36<=5,CS$36=2),"令和元年"&8,(IF((AND(CU$36>=1,CU$36<=5)),"令和"&CS$36-1&"年"&8,"令和"&CS$36&"年"&8))))))) -> 令和年8 | CU85: =IF(OR(CT86="",CV$41=4),"",IF(AND(CU$36>=1,CU$36<=4,CS$36=31),"平成"&30&"年"&8,IF(AND(CU$36=5,CS$36="元"),"平成"&30&"年"&8,IF(AND(CU$36>=6,CS$36="元"),"令和元年"&8,IF(AND(CU$36>=1,CU$36<=5,CS$36=2),"令和元年"&8,(IF((AND(CU$36>=1,CU$36<=5)),"令和"&CS$36-1&"年"&8,"令和"&CS$36&"年"&8))))))) -> 令和年8 | CY85: =IF(OR(CY86="",CY$41=9),"",8) -> 8 | CZ85: =IF(OR(CZ86="",DB$41=4),"",IF(AND(DA$36>=1,DA$36<=4,CY$36=31),"平成"&30&"年"&8,IF(AND(DA$36=5,CY$36="元"),"平成"&30&"年"&8,IF(AND(DA$36>=6,CY$36="元"),"令和元年"&8,IF(AND(DA$36>=1,DA$36<=5,CY$36=2),"令和元年"&8,(IF((AND(DA$36>=1,DA$36<=5)),"令和"&CY$36-1&"年"&8,"令和"&CY$36&"年"&8))))))) -> 令和年8 | DA85: =IF(OR(CZ86="",DB$41=4),"",IF(AND(DA$36>=1,DA$36<=4,CY$36=31),"平成"&30&"年"&8,IF(AND(DA$36=5,CY$36="元"),"平成"&30&"年"&8,IF(AND(DA$36>=6,CY$36="元"),"令和元年"&8,IF(AND(DA$36>=1,DA$36<=5,CY$36=2),"令和元年"&8,(IF((AND(DA$36>=1,DA$36<=5)),"令和"&CY$36-1&"年"&8,"令和"&CY$36&"年"&8))))))) -> 令和年8 | DE85: =IF(OR(DE86="",DE$41=9),"",8) -> 8 | DF85: =IF(OR(DF86="",DH$41=4),"",IF(AND(DG$36>=1,DG$36<=4,DE$36=31),"平成"&30&"年"&8,IF(AND(DG$36=5,DE$36="元"),"平成"&30&"年"&8,IF(AND(DG$36>=6,DE$36="元"),"令和元年"&8,IF(AND(DG$36>=1,DG$36<=5,DE$36=2),"令和元年"&8,(IF((AND(DG$36>=1,DG$36<=5)),"令和"&DE$36-1&"年"&8,"令和"&DE$36&"年"&8))))))) -> 令和年8 | DG85: =IF(OR(DF86="",DH$41=4),"",IF(AND(DG$36>=1,DG$36<=4,DE$36=31),"平成"&30&"年"&8,IF(AND(DG$36=5,DE$36="元"),"平成"&30&"年"&8,IF(AND(DG$36>=6,DE$36="元"),"令和元年"&8,IF(AND(DG$36>=1,DG$36<=5,DE$36=2),"令和元年"&8,(IF((AND(DG$36>=1,DG$36<=5)),"令和"&DE$36-1&"年"&8,"令和"&DE$36&"年"&8))))))) -> 令和年8 | DK85: =IF(OR(DK86="",DK$41=9),"",8) -> 8 | DL85: =IF(OR(DL86="",DN$41=4),"",IF(AND(DM$36>=1,DM$36<=4,DK$36=31),"平成"&30&"年"&8,IF(AND(DM$36=5,DK$36="元"),"平成"&30&"年"&8,IF(AND(DM$36>=6,DK$36="元"),"令和元年"&8,IF(AND(DM$36>=1,DM$36<=5,DK$36=2),"令和元年"&8,(IF((AND(DM$36>=1,DM$36<=5)),"令和"&DK$36-1&"年"&8,"令和"&DK$36&"年"&8))))))) -> 令和年8 | DM85: =IF(OR(DL86="",DN$41=4),"",IF(AND(DM$36>=1,DM$36<=4,DK$36=31),"平成"&30&"年"&8,IF(AND(DM$36=5,DK$36="元"),"平成"&30&"年"&8,IF(AND(DM$36>=6,DK$36="元"),"令和元年"&8,IF(AND(DM$36>=1,DM$36<=5,DK$36=2),"令和元年"&8,(IF((AND(DM$36>=1,DM$36<=5)),"令和"&DK$36-1&"年"&8,"令和"&DK$36&"年"&8))))))) -> 令和年8 | DQ85: =IF(OR(DQ86="",DQ$41=9),"",8) -> 8 | DR85: =IF(OR(DR86="",DT$41=4),"",IF(AND(DS$36>=1,DS$36<=4,DQ$36=31),"平成"&30&"年"&8,IF(AND(DS$36=5,DQ$36="元"),"平成"&30&"年"&8,IF(AND(DS$36>=6,DQ$36="元"),"令和元年"&8,IF(AND(DS$36>=1,DS$36<=5,DQ$36=2),"令和元年"&8,(IF((AND(DS$36>=1,DS$36<=5)),"令和"&DQ$36-1&"年"&8,"令和"&DQ$36&"年"&8))))))) -> 令和年8 | DS85: =IF(OR(DR86="",DT$41=4),"",IF(AND(DS$36>=1,DS$36<=4,DQ$36=31),"平成"&30&"年"&8,IF(AND(DS$36=5,DQ$36="元"),"平成"&30&"年"&8,IF(AND(DS$36>=6,DQ$36="元"),"令和元年"&8,IF(AND(DS$36>=1,DS$36<=5,DQ$36=2),"令和元年"&8,(IF((AND(DS$36>=1,DS$36<=5)),"令和"&DQ$36-1&"年"&8,"令和"&DQ$36&"年"&8))))))) -> 令和年8 | DW85: =IF(OR(DW86="",DW$41=9),"",8) -> 8 | DX85: =IF(OR(DX86="",DZ$41=4),"",IF(AND(DY$36>=1,DY$36<=4,DW$36=31),"平成"&30&"年"&8,IF(AND(DY$36=5,DW$36="元"),"平成"&30&"年"&8,IF(AND(DY$36>=6,DW$36="元"),"令和元年"&8,IF(AND(DY$36>=1,DY$36<=5,DW$36=2),"令和元年"&8,(IF((AND(DY$36>=1,DY$36<=5)),"令和"&DW$36-1&"年"&8,"令和"&DW$36&"年"&8))))))) -> 令和年8 | DY85: =IF(OR(DX86="",DZ$41=4),"",IF(AND(DY$36>=1,DY$36<=4,DW$36=31),"平成"&30&"年"&8,IF(AND(DY$36=5,DW$36="元"),"平成"&30&"年"&8,IF(AND(DY$36>=6,DW$36="元"),"令和元年"&8,IF(AND(DY$36>=1,DY$36<=5,DW$36=2),"令和元年"&8,(IF((AND(DY$36>=1,DY$36<=5)),"令和"&DW$36-1&"年"&8,"令和"&DW$36&"年"&8))))))) -> 令和年8 | EC85: =IF(OR(EC86="",EC$41=9),"",8) -> 8 | ED85: =IF(OR(ED86="",EF$41=4),"",IF(AND(EE$36>=1,EE$36<=4,EC$36=31),"平成"&30&"年"&8,IF(AND(EE$36=5,EC$36="元"),"平成"&30&"年"&8,IF(AND(EE$36>=6,EC$36="元"),"令和元年"&8,IF(AND(EE$36>=1,EE$36<=5,EC$36=2),"令和元年"&8,(IF((AND(EE$36>=1,EE$36<=5)),"令和"&EC$36-1&"年"&8,"令和"&EC$36&"年"&8))))))) -> 令和年8 | EE85: =IF(OR(ED86="",EF$41=4),"",IF(AND(EE$36>=1,EE$36<=4,EC$36=31),"平成"&30&"年"&8,IF(AND(EE$36=5,EC$36="元"),"平成"&30&"年"&8,IF(AND(EE$36>=6,EC$36="元"),"令和元年"&8,IF(AND(EE$36>=1,EE$36<=5,EC$36=2),"令和元年"&8,(IF((AND(EE$36>=1,EE$36<=5)),"令和"&EC$36-1&"年"&8,"令和"&EC$36&"年"&8))))))) -> 令和年8 | EI85: =IF(OR(EI86="",EI$41=9),"",8) -> 8 | EJ85: =IF(OR(EJ86="",EL$41=4),"",IF(AND(EK$36>=1,EK$36<=4,EI$36=31),"平成"&30&"年"&8,IF(AND(EK$36=5,EI$36="元"),"平成"&30&"年"&8,IF(AND(EK$36>=6,EI$36="元"),"令和元年"&8,IF(AND(EK$36>=1,EK$36<=5,EI$36=2),"令和元年"&8,(IF((AND(EK$36>=1,EK$36<=5)),"令和"&EI$36-1&"年"&8,"令和"&EI$36&"年"&8))))))) -> 令和年8 | EK85: =IF(OR(EJ86="",EL$41=4),"",IF(AND(EK$36>=1,EK$36<=4,EI$36=31),"平成"&30&"年"&8,IF(AND(EK$36=5,EI$36="元"),"平成"&30&"年"&8,IF(AND(EK$36>=6,EI$36="元"),"令和元年"&8,IF(AND(EK$36>=1,EK$36<=5,EI$36=2),"令和元年"&8,(IF((AND(EK$36>=1,EK$36<=5)),"令和"&EI$36-1&"年"&8,"令和"&EI$36&"年"&8))))))) -> 令和年8 | EO85: =IF(OR(EO86="",EO$41=9),"",8) -> 8 | EP85: =IF(OR(EP86="",ER$41=4),"",IF(AND(EQ$36>=1,EQ$36<=4,EO$36=31),"平成"&30&"年"&8,IF(AND(EQ$36=5,EO$36="元"),"平成"&30&"年"&8,IF(AND(EQ$36>=6,EO$36="元"),"令和元年"&8,IF(AND(EQ$36>=1,EQ$36<=5,EO$36=2),"令和元年"&8,(IF((AND(EQ$36>=1,EQ$36<=5)),"令和"&EO$36-1&"年"&8,"令和"&EO$36&"年"&8))))))) -> 令和年8 | EQ85: =IF(OR(EP86="",ER$41=4),"",IF(AND(EQ$36>=1,EQ$36<=4,EO$36=31),"平成"&30&"年"&8,IF(AND(EQ$36=5,EO$36="元"),"平成"&30&"年"&8,IF(AND(EQ$36>=6,EO$36="元"),"令和元年"&8,IF(AND(EQ$36>=1,EQ$36<=5,EO$36=2),"令和元年"&8,(IF((AND(EQ$36>=1,EQ$36<=5)),"令和"&EO$36-1&"年"&8,"令和"&EO$36&"年"&8))))))) -> 令和年8 | EU85: =IF(OR(EU86="",EU$41=9),"",8) -> 8 | EV85: =IF(OR(EV86="",EX$41=4),"",IF(AND(EW$36>=1,EW$36<=4,EU$36=31),"平成"&30&"年"&8,IF(AND(EW$36=5,EU$36="元"),"平成"&30&"年"&8,IF(AND(EW$36>=6,EU$36="元"),"令和元年"&8,IF(AND(EW$36>=1,EW$36<=5,EU$36=2),"令和元年"&8,(IF((AND(EW$36>=1,EW$36<=5)),"令和"&EU$36-1&"年"&8,"令和"&EU$36&"年"&8))))))) -> 令和年8 | EW85: =IF(OR(EV86="",EX$41=4),"",IF(AND(EW$36>=1,EW$36<=4,EU$36=31),"平成"&30&"年"&8,IF(AND(EW$36=5,EU$36="元"),"平成"&30&"年"&8,IF(AND(EW$36>=6,EU$36="元"),"令和元年"&8,IF(AND(EW$36>=1,EW$36<=5,EU$36=2),"令和元年"&8,(IF((AND(EW$36>=1,EW$36<=5)),"令和"&EU$36-1&"年"&8,"令和"&EU$36&"年"&8))))))) -> 令和年8 | FA85: =IF(OR(FA86="",FA$41=9),"",8) -> 8 | FB85: =IF(OR(FB86="",FD$41=4),"",IF(AND(FC$36>=1,FC$36<=4,FA$36=31),"平成"&30&"年"&8,IF(AND(FC$36=5,FA$36="元"),"平成"&30&"年"&8,IF(AND(FC$36>=6,FA$36="元"),"令和元年"&8,IF(AND(FC$36>=1,FC$36<=5,FA$36=2),"令和元年"&8,(IF((AND(FC$36>=1,FC$36<=5)),"令和"&FA$36-1&"年"&8,"令和"&FA$36&"年"&8))))))) -> 令和年8 | FC85: =IF(OR(FB86="",FD$41=4),"",IF(AND(FC$36>=1,FC$36<=4,FA$36=31),"平成"&30&"年"&8,IF(AND(FC$36=5,FA$36="元"),"平成"&30&"年"&8,IF(AND(FC$36>=6,FA$36="元"),"令和元年"&8,IF(AND(FC$36>=1,FC$36<=5,FA$36=2),"令和元年"&8,(IF((AND(FC$36>=1,FC$36<=5)),"令和"&FA$36-1&"年"&8,"令和"&FA$36&"年"&8))))))) -> 令和年8 | FG85: =IF(OR(FG86="",FG$41=9),"",8) -> 8 | FH85: =IF(OR(FH86="",FJ$41=4),"",IF(AND(FI$36>=1,FI$36<=4,FG$36=31),"平成"&30&"年"&8,IF(AND(FI$36=5,FG$36="元"),"平成"&30&"年"&8,IF(AND(FI$36>=6,FG$36="元"),"令和元年"&8,IF(AND(FI$36>=1,FI$36<=5,FG$36=2),"令和元年"&8,(IF((AND(FI$36>=1,FI$36<=5)),"令和"&FG$36-1&"年"&8,"令和"&FG$36&"年"&8))))))) -> 令和年8 | FI85: =IF(OR(FH86="",FJ$41=4),"",IF(AND(FI$36>=1,FI$36<=4,FG$36=31),"平成"&30&"年"&8,IF(AND(FI$36=5,FG$36="元"),"平成"&30&"年"&8,IF(AND(FI$36>=6,FG$36="元"),"令和元年"&8,IF(AND(FI$36>=1,FI$36<=5,FG$36=2),"令和元年"&8,(IF((AND(FI$36>=1,FI$36<=5)),"令和"&FG$36-1&"年"&8,"令和"&FG$36&"年"&8))))))) -> 令和年8 | FM85: =IF(OR(FM86="",FM$41=9),"",8) -> 8 | FN85: =IF(OR(FN86="",FP$41=4),"",IF(AND(FO$36>=1,FO$36<=4,FM$36=31),"平成"&30&"年"&8,IF(AND(FO$36=5,FM$36="元"),"平成"&30&"年"&8,IF(AND(FO$36>=6,FM$36="元"),"令和元年"&8,IF(AND(FO$36>=1,FO$36<=5,FM$36=2),"令和元年"&8,(IF((AND(FO$36>=1,FO$36<=5)),"令和"&FM$36-1&"年"&8,"令和"&FM$36&"年"&8))))))) -> 令和年8 | FO85: =IF(OR(FN86="",FP$41=4),"",IF(AND(FO$36>=1,FO$36<=4,FM$36=31),"平成"&30&"年"&8,IF(AND(FO$36=5,FM$36="元"),"平成"&30&"年"&8,IF(AND(FO$36>=6,FM$36="元"),"令和元年"&8,IF(AND(FO$36>=1,FO$36<=5,FM$36=2),"令和元年"&8,(IF((AND(FO$36>=1,FO$36<=5)),"令和"&FM$36-1&"年"&8,"令和"&FM$36&"年"&8))))))) -> 令和年8 | FS85: =IF(OR(FS86="",FS$41=9),"",8) -> 8 | FT85: =IF(OR(FT86="",FV$41=4),"",IF(AND(FU$36>=1,FU$36<=4,FS$36=31),"平成"&30&"年"&8,IF(AND(FU$36=5,FS$36="元"),"平成"&30&"年"&8,IF(AND(FU$36>=6,FS$36="元"),"令和元年"&8,IF(AND(FU$36>=1,FU$36<=5,FS$36=2),"令和元年"&8,(IF((AND(FU$36>=1,FU$36<=5)),"令和"&FS$36-1&"年"&8,"令和"&FS$36&"年"&8))))))) -> 令和年8 | FU85: =IF(OR(FT86="",FV$41=4),"",IF(AND(FU$36>=1,FU$36<=4,FS$36=31),"平成"&30&"年"&8,IF(AND(FU$36=5,FS$36="元"),"平成"&30&"年"&8,IF(AND(FU$36>=6,FS$36="元"),"令和元年"&8,IF(AND(FU$36>=1,FU$36<=5,FS$36=2),"令和元年"&8,(IF((AND(FU$36>=1,FU$36<=5)),"令和"&FS$36-1&"年"&8,"令和"&FS$36&"年"&8))))))) -> 令和年8 | FY85: =IF(OR(FY86="",FY$41=9),"",8) -> 8 | FZ85: =IF(OR(FZ86="",GB$41=4),"",IF(AND(GA$36>=1,GA$36<=4,FY$36=31),"平成"&30&"年"&8,IF(AND(GA$36=5,FY$36="元"),"平成"&30&"年"&8,IF(AND(GA$36>=6,FY$36="元"),"令和元年"&8,IF(AND(GA$36>=1,GA$36<=5,FY$36=2),"令和元年"&8,(IF((AND(GA$36>=1,GA$36<=5)),"令和"&FY$36-1&"年"&8,"令和"&FY$36&"年"&8))))))) -> 令和年8 | GA85: =IF(OR(FZ86="",GB$41=4),"",IF(AND(GA$36>=1,GA$36<=4,FY$36=31),"平成"&30&"年"&8,IF(AND(GA$36=5,FY$36="元"),"平成"&30&"年"&8,IF(AND(GA$36>=6,FY$36="元"),"令和元年"&8,IF(AND(GA$36>=1,GA$36<=5,FY$36=2),"令和元年"&8,(IF((AND(GA$36>=1,GA$36<=5)),"令和"&FY$36-1&"年"&8,"令和"&FY$36&"年"&8))))))) -> 令和年8 | GE85: =IF(OR(GE86="",GE$41=9),"",8) -> 8 | GF85: =IF(OR(GF86="",GH$41=4),"",IF(AND(GG$36>=1,GG$36<=4,GE$36=31),"平成"&30&"年"&8,IF(AND(GG$36=5,GE$36="元"),"平成"&30&"年"&8,IF(AND(GG$36>=6,GE$36="元"),"令和元年"&8,IF(AND(GG$36>=1,GG$36<=5,GE$36=2),"令和元年"&8,(IF((AND(GG$36>=1,GG$36<=5)),"令和"&GE$36-1&"年"&8,"令和"&GE$36&"年"&8))))))) -> 令和年8 | GG85: =IF(OR(GF86="",GH$41=4),"",IF(AND(GG$36>=1,GG$36<=4,GE$36=31),"平成"&30&"年"&8,IF(AND(GG$36=5,GE$36="元"),"平成"&30&"年"&8,IF(AND(GG$36>=6,GE$36="元"),"令和元年"&8,IF(AND(GG$36>=1,GG$36<=5,GE$36=2),"令和元年"&8,(IF((AND(GG$36>=1,GG$36<=5)),"令和"&GE$36-1&"年"&8,"令和"&GE$36&"年"&8))))))) -> 令和年8 | GK85: =IF(OR(GK86="",GK$41=9),"",8) -> 8 | GL85: =IF(OR(GL86="",GN$41=4),"",IF(AND(GM$36>=1,GM$36<=4,GK$36=31),"平成"&30&"年"&8,IF(AND(GM$36=5,GK$36="元"),"平成"&30&"年"&8,IF(AND(GM$36>=6,GK$36="元"),"令和元年"&8,IF(AND(GM$36>=1,GM$36<=5,GK$36=2),"令和元年"&8,(IF((AND(GM$36>=1,GM$36<=5)),"令和"&GK$36-1&"年"&8,"令和"&GK$36&"年"&8))))))) -> 令和年8 | GM85: =IF(OR(GL86="",GN$41=4),"",IF(AND(GM$36>=1,GM$36<=4,GK$36=31),"平成"&30&"年"&8,IF(AND(GM$36=5,GK$36="元"),"平成"&30&"年"&8,IF(AND(GM$36>=6,GK$36="元"),"令和元年"&8,IF(AND(GM$36>=1,GM$36<=5,GK$36=2),"令和元年"&8,(IF((AND(GM$36>=1,GM$36<=5)),"令和"&GK$36-1&"年"&8,"令和"&GK$36&"年"&8))))))) -> 令和年8 | GQ85: =IF(OR(GQ86="",GQ$41=9),"",8) -> 8 | GR85: =IF(OR(GR86="",GT$41=4),"",IF(AND(GS$36>=1,GS$36<=4,GQ$36=31),"平成"&30&"年"&8,IF(AND(GS$36=5,GQ$36="元"),"平成"&30&"年"&8,IF(AND(GS$36>=6,GQ$36="元"),"令和元年"&8,IF(AND(GS$36>=1,GS$36<=5,GQ$36=2),"令和元年"&8,(IF((AND(GS$36>=1,GS$36<=5)),"令和"&GQ$36-1&"年"&8,"令和"&GQ$36&"年"&8))))))) -> 令和年8 | GS85: =IF(OR(GR86="",GT$41=4),"",IF(AND(GS$36>=1,GS$36<=4,GQ$36=31),"平成"&30&"年"&8,IF(AND(GS$36=5,GQ$36="元"),"平成"&30&"年"&8,IF(AND(GS$36>=6,GQ$36="元"),"令和元年"&8,IF(AND(GS$36>=1,GS$36<=5,GQ$36=2),"令和元年"&8,(IF((AND(GS$36>=1,GS$36<=5)),"令和"&GQ$36-1&"年"&8,"令和"&GQ$36&"年"&8))))))) -> 令和年8 | GW85: =IF(OR(GW86="",GW$41=9),"",8) -> 8 | GX85: =IF(OR(GX86="",GZ$41=4),"",IF(AND(GY$36>=1,GY$36<=4,GW$36=31),"平成"&30&"年"&8,IF(AND(GY$36=5,GW$36="元"),"平成"&30&"年"&8,IF(AND(GY$36>=6,GW$36="元"),"令和元年"&8,IF(AND(GY$36>=1,GY$36<=5,GW$36=2),"令和元年"&8,(IF((AND(GY$36>=1,GY$36<=5)),"令和"&GW$36-1&"年"&8,"令和"&GW$36&"年"&8))))))) -> 令和年8 | GY85: =IF(OR(GX86="",GZ$41=4),"",IF(AND(GY$36>=1,GY$36<=4,GW$36=31),"平成"&30&"年"&8,IF(AND(GY$36=5,GW$36="元"),"平成"&30&"年"&8,IF(AND(GY$36>=6,GW$36="元"),"令和元年"&8,IF(AND(GY$36>=1,GY$36<=5,GW$36=2),"令和元年"&8,(IF((AND(GY$36>=1,GY$36<=5)),"令和"&GW$36-1&"年"&8,"令和"&GW$36&"年"&8))))))) -> 令和年8 | HC85: =IF(OR(HC86="",HC$41=9),"",8) -> 8 | HD85: =IF(OR(HD86="",HF$41=4),"",IF(AND(HE$36>=1,HE$36<=4,HC$36=31),"平成"&30&"年"&8,IF(AND(HE$36=5,HC$36="元"),"平成"&30&"年"&8,IF(AND(HE$36>=6,HC$36="元"),"令和元年"&8,IF(AND(HE$36>=1,HE$36<=5,HC$36=2),"令和元年"&8,(IF((AND(HE$36>=1,HE$36<=5)),"令和"&HC$36-1&"年"&8,"令和"&HC$36&"年"&8))))))) -> 令和年8 | HE85: =IF(OR(HD86="",HF$41=4),"",IF(AND(HE$36>=1,HE$36<=4,HC$36=31),"平成"&30&"年"&8,IF(AND(HE$36=5,HC$36="元"),"平成"&30&"年"&8,IF(AND(HE$36>=6,HC$36="元"),"令和元年"&8,IF(AND(HE$36>=1,HE$36<=5,HC$36=2),"令和元年"&8,(IF((AND(HE$36>=1,HE$36<=5)),"令和"&HC$36-1&"年"&8,"令和"&HC$36&"年"&8))))))) -> 令和年8 | HI85: =IF(OR(HI86="",HI$41=9),"",8) -> 8 | HJ85: =IF(OR(HJ86="",HL$41=4),"",IF(AND(HK$36>=1,HK$36<=4,HI$36=31),"平成"&30&"年"&8,IF(AND(HK$36=5,HI$36="元"),"平成"&30&"年"&8,IF(AND(HK$36>=6,HI$36="元"),"令和元年"&8,IF(AND(HK$36>=1,HK$36<=5,HI$36=2),"令和元年"&8,(IF((AND(HK$36>=1,HK$36<=5)),"令和"&HI$36-1&"年"&8,"令和"&HI$36&"年"&8))))))) -> 令和年8 | HK85: =IF(OR(HJ86="",HL$41=4),"",IF(AND(HK$36>=1,HK$36<=4,HI$36=31),"平成"&30&"年"&8,IF(AND(HK$36=5,HI$36="元"),"平成"&30&"年"&8,IF(AND(HK$36>=6,HI$36="元"),"令和元年"&8,IF(AND(HK$36>=1,HK$36<=5,HI$36=2),"令和元年"&8,(IF((AND(HK$36>=1,HK$36<=5)),"令和"&HI$36-1&"年"&8,"令和"&HI$36&"年"&8))))))) -> 令和年8 | HO85: =IF(OR(HO86="",HO$41=9),"",8) -> 8 | HP85: =IF(OR(HP86="",HR$41=4),"",IF(AND(HQ$36>=1,HQ$36<=4,HO$36=31),"平成"&30&"年"&8,IF(AND(HQ$36=5,HO$36="元"),"平成"&30&"年"&8,IF(AND(HQ$36>=6,HO$36="元"),"令和元年"&8,IF(AND(HQ$36>=1,HQ$36<=5,HO$36=2),"令和元年"&8,(IF((AND(HQ$36>=1,HQ$36<=5)),"令和"&HO$36-1&"年"&8,"令和"&HO$36&"年"&8))))))) -> 令和年8 | HQ85: =IF(OR(HP86="",HR$41=4),"",IF(AND(HQ$36>=1,HQ$36<=4,HO$36=31),"平成"&30&"年"&8,IF(AND(HQ$36=5,HO$36="元"),"平成"&30&"年"&8,IF(AND(HQ$36>=6,HO$36="元"),"令和元年"&8,IF(AND(HQ$36>=1,HQ$36<=5,HO$36=2),"令和元年"&8,(IF((AND(HQ$36>=1,HQ$36<=5)),"令和"&HO$36-1&"年"&8,"令和"&HO$36&"年"&8))))))) -> 令和年8 | HU85: =IF(OR(HU86="",HU$41=9),"",8) -> 8 | HV85: =IF(OR(HV86="",HX$41=4),"",IF(AND(HW$36>=1,HW$36<=4,HU$36=31),"平成"&30&"年"&8,IF(AND(HW$36=5,HU$36="元"),"平成"&30&"年"&8,IF(AND(HW$36>=6,HU$36="元"),"令和元年"&8,IF(AND(HW$36>=1,HW$36<=5,HU$36=2),"令和元年"&8,(IF((AND(HW$36>=1,HW$36<=5)),"令和"&HU$36-1&"年"&8,"令和"&HU$36&"年"&8))))))) -> 令和年8 | HW85: =IF(OR(HV86="",HX$41=4),"",IF(AND(HW$36>=1,HW$36<=4,HU$36=31),"平成"&30&"年"&8,IF(AND(HW$36=5,HU$36="元"),"平成"&30&"年"&8,IF(AND(HW$36>=6,HU$36="元"),"令和元年"&8,IF(AND(HW$36>=1,HW$36<=5,HU$36=2),"令和元年"&8,(IF((AND(HW$36>=1,HW$36<=5)),"令和"&HU$36-1&"年"&8,"令和"&HU$36&"年"&8))))))) -> 令和年8 | IA85: =IF(OR(IA86="",IA$41=9),"",8) -> 8 | IB85: =IF(OR(IB86="",ID$41=4),"",IF(AND(IC$36>=1,IC$36<=4,IA$36=31),"平成"&30&"年"&8,IF(AND(IC$36=5,IA$36="元"),"平成"&30&"年"&8,IF(AND(IC$36>=6,IA$36="元"),"令和元年"&8,IF(AND(IC$36>=1,IC$36<=5,IA$36=2),"令和元年"&8,(IF((AND(IC$36>=1,IC$36<=5)),"令和"&IA$36-1&"年"&8,"令和"&IA$36&"年"&8))))))) -> 令和年8 | IC85: =IF(OR(IB86="",ID$41=4),"",IF(AND(IC$36>=1,IC$36<=4,IA$36=31),"平成"&30&"年"&8,IF(AND(IC$36=5,IA$36="元"),"平成"&30&"年"&8,IF(AND(IC$36>=6,IA$36="元"),"令和元年"&8,IF(AND(IC$36>=1,IC$36<=5,IA$36=2),"令和元年"&8,(IF((AND(IC$36>=1,IC$36<=5)),"令和"&IA$36-1&"年"&8,"令和"&IA$36&"年"&8))))))) -> 令和年8 | IG85: =IF(OR(IG86="",IG$41=9),"",8) -> 8 | IH85: =IF(OR(IH86="",IJ$41=4),"",IF(AND(II$36>=1,II$36<=4,IG$36=31),"平成"&30&"年"&8,IF(AND(II$36=5,IG$36="元"),"平成"&30&"年"&8,IF(AND(II$36>=6,IG$36="元"),"令和元年"&8,IF(AND(II$36>=1,II$36<=5,IG$36=2),"令和元年"&8,(IF((AND(II$36>=1,II$36<=5)),"令和"&IG$36-1&"年"&8,"令和"&IG$36&"年"&8))))))) -> 令和年8 | II85: =IF(OR(IH86="",IJ$41=4),"",IF(AND(II$36>=1,II$36<=4,IG$36=31),"平成"&30&"年"&8,IF(AND(II$36=5,IG$36="元"),"平成"&30&"年"&8,IF(AND(II$36>=6,IG$36="元"),"令和元年"&8,IF(AND(II$36>=1,II$36<=5,IG$36=2),"令和元年"&8,(IF((AND(II$36>=1,II$36<=5)),"令和"&IG$36-1&"年"&8,"令和"&IG$36&"年"&8))))))) -> 令和年8
B86: =IF(AND(CG21<>"",CG25<>"",CI25<>"",CK25<>""),CG17,"") ->  | C86: 平 | D86: 10 | E86: 平10 | G86: =IF(OR(G87="",G$41=10),"",9) -> 9 | H86: =IF(OR(H87="",J$41=4),"",IF(AND(I$36>=1,I$36<=4,G$36=31),"平成"&30&"年"&9,IF(AND(I$36=5,G$36="元"),"平成"&30&"年"&9,IF(AND(I$36>=6,G$36="元"),"令和元年"&9,IF(AND(I$36>=1,I$36<=5,G$36=2),"令和元年"&9,(IF((AND(I$36>=1,I$36<=5)),"令和"&G$36-1&"年"&9,"令和"&G$36&"年"&9))))))) -> 令和年9 | I86: =IF(OR(H87="",J$41=4),"",IF(AND(I$36>=1,I$36<=4,G$36=31),"平成"&30&"年"&9,IF(AND(I$36=5,G$36="元"),"平成"&30&"年"&9,IF(AND(I$36>=6,G$36="元"),"令和元年"&9,IF(AND(I$36>=1,I$36<=5,G$36=2),"令和元年"&9,(IF((AND(I$36>=1,I$36<=5)),"令和"&G$36-1&"年"&9,"令和"&G$36&"年"&9))))))) -> 令和年9 | M86: =IF(OR(M87="",M$41=10),"",9) -> 9 | N86: =IF(OR(N87="",P$41=4),"",IF(AND(O$36>=1,O$36<=4,M$36=31),"平成"&30&"年"&9,IF(AND(O$36=5,M$36="元"),"平成"&30&"年"&9,IF(AND(O$36>=6,M$36="元"),"令和元年"&9,IF(AND(O$36>=1,O$36<=5,M$36=2),"令和元年"&9,(IF((AND(O$36>=1,O$36<=5)),"令和"&M$36-1&"年"&9,"令和"&M$36&"年"&9))))))) -> 令和年9 | O86: =IF(OR(N87="",P$41=4),"",IF(AND(O$36>=1,O$36<=4,M$36=31),"平成"&30&"年"&9,IF(AND(O$36=5,M$36="元"),"平成"&30&"年"&9,IF(AND(O$36>=6,M$36="元"),"令和元年"&9,IF(AND(O$36>=1,O$36<=5,M$36=2),"令和元年"&9,(IF((AND(O$36>=1,O$36<=5)),"令和"&M$36-1&"年"&9,"令和"&M$36&"年"&9))))))) -> 令和年9 | S86: =IF(OR(S87="",S$41=10),"",9) -> 9 | T86: =IF(OR(T87="",V$41=4),"",IF(AND(U$36>=1,U$36<=4,S$36=31),"平成"&30&"年"&9,IF(AND(U$36=5,S$36="元"),"平成"&30&"年"&9,IF(AND(U$36>=6,S$36="元"),"令和元年"&9,IF(AND(U$36>=1,U$36<=5,S$36=2),"令和元年"&9,(IF((AND(U$36>=1,U$36<=5)),"令和"&S$36-1&"年"&9,"令和"&S$36&"年"&9))))))) -> 令和年9 | U86: =IF(OR(T87="",V$41=4),"",IF(AND(U$36>=1,U$36<=4,S$36=31),"平成"&30&"年"&9,IF(AND(U$36=5,S$36="元"),"平成"&30&"年"&9,IF(AND(U$36>=6,S$36="元"),"令和元年"&9,IF(AND(U$36>=1,U$36<=5,S$36=2),"令和元年"&9,(IF((AND(U$36>=1,U$36<=5)),"令和"&S$36-1&"年"&9,"令和"&S$36&"年"&9))))))) -> 令和年9 | Y86: =IF(OR(Y87="",Y$41=10),"",9) -> 9 | Z86: =IF(OR(Z87="",AB$41=4),"",IF(AND(AA$36>=1,AA$36<=4,Y$36=31),"平成"&30&"年"&9,IF(AND(AA$36=5,Y$36="元"),"平成"&30&"年"&9,IF(AND(AA$36>=6,Y$36="元"),"令和元年"&9,IF(AND(AA$36>=1,AA$36<=5,Y$36=2),"令和元年"&9,(IF((AND(AA$36>=1,AA$36<=5)),"令和"&Y$36-1&"年"&9,"令和"&Y$36&"年"&9))))))) -> 令和年9 | AA86: =IF(OR(Z87="",AB$41=4),"",IF(AND(AA$36>=1,AA$36<=4,Y$36=31),"平成"&30&"年"&9,IF(AND(AA$36=5,Y$36="元"),"平成"&30&"年"&9,IF(AND(AA$36>=6,Y$36="元"),"令和元年"&9,IF(AND(AA$36>=1,AA$36<=5,Y$36=2),"令和元年"&9,(IF((AND(AA$36>=1,AA$36<=5)),"令和"&Y$36-1&"年"&9,"令和"&Y$36&"年"&9))))))) -> 令和年9 | AE86: =IF(OR(AE87="",AE$41=10),"",9) -> 9 | AF86: =IF(OR(AF87="",AH$41=4),"",IF(AND(AG$36>=1,AG$36<=4,AE$36=31),"平成"&30&"年"&9,IF(AND(AG$36=5,AE$36="元"),"平成"&30&"年"&9,IF(AND(AG$36>=6,AE$36="元"),"令和元年"&9,IF(AND(AG$36>=1,AG$36<=5,AE$36=2),"令和元年"&9,(IF((AND(AG$36>=1,AG$36<=5)),"令和"&AE$36-1&"年"&9,"令和"&AE$36&"年"&9))))))) -> 令和年9 | AG86: =IF(OR(AF87="",AH$41=4),"",IF(AND(AG$36>=1,AG$36<=4,AE$36=31),"平成"&30&"年"&9,IF(AND(AG$36=5,AE$36="元"),"平成"&30&"年"&9,IF(AND(AG$36>=6,AE$36="元"),"令和元年"&9,IF(AND(AG$36>=1,AG$36<=5,AE$36=2),"令和元年"&9,(IF((AND(AG$36>=1,AG$36<=5)),"令和"&AE$36-1&"年"&9,"令和"&AE$36&"年"&9))))))) -> 令和年9 | AK86: =IF(OR(AK87="",AK$41=10),"",9) -> 9 | AL86: =IF(OR(AL87="",AN$41=4),"",IF(AND(AM$36>=1,AM$36<=4,AK$36=31),"平成"&30&"年"&9,IF(AND(AM$36=5,AK$36="元"),"平成"&30&"年"&9,IF(AND(AM$36>=6,AK$36="元"),"令和元年"&9,IF(AND(AM$36>=1,AM$36<=5,AK$36=2),"令和元年"&9,(IF((AND(AM$36>=1,AM$36<=5)),"令和"&AK$36-1&"年"&9,"令和"&AK$36&"年"&9))))))) -> 令和年9 | AM86: =IF(OR(AL87="",AN$41=4),"",IF(AND(AM$36>=1,AM$36<=4,AK$36=31),"平成"&30&"年"&9,IF(AND(AM$36=5,AK$36="元"),"平成"&30&"年"&9,IF(AND(AM$36>=6,AK$36="元"),"令和元年"&9,IF(AND(AM$36>=1,AM$36<=5,AK$36=2),"令和元年"&9,(IF((AND(AM$36>=1,AM$36<=5)),"令和"&AK$36-1&"年"&9,"令和"&AK$36&"年"&9))))))) -> 令和年9 | AQ86: =IF(OR(AQ87="",AQ$41=10),"",9) -> 9 | AR86: =IF(OR(AR87="",AT$41=4),"",IF(AND(AS$36>=1,AS$36<=4,AQ$36=31),"平成"&30&"年"&9,IF(AND(AS$36=5,AQ$36="元"),"平成"&30&"年"&9,IF(AND(AS$36>=6,AQ$36="元"),"令和元年"&9,IF(AND(AS$36>=1,AS$36<=5,AQ$36=2),"令和元年"&9,(IF((AND(AS$36>=1,AS$36<=5)),"令和"&AQ$36-1&"年"&9,"令和"&AQ$36&"年"&9))))))) -> 令和年9 | AS86: =IF(OR(AR87="",AT$41=4),"",IF(AND(AS$36>=1,AS$36<=4,AQ$36=31),"平成"&30&"年"&9,IF(AND(AS$36=5,AQ$36="元"),"平成"&30&"年"&9,IF(AND(AS$36>=6,AQ$36="元"),"令和元年"&9,IF(AND(AS$36>=1,AS$36<=5,AQ$36=2),"令和元年"&9,(IF((AND(AS$36>=1,AS$36<=5)),"令和"&AQ$36-1&"年"&9,"令和"&AQ$36&"年"&9))))))) -> 令和年9 | AW86: =IF(OR(AW87="",AW$41=10),"",9) -> 9 | AX86: =IF(OR(AX87="",AZ$41=4),"",IF(AND(AY$36>=1,AY$36<=4,AW$36=31),"平成"&30&"年"&9,IF(AND(AY$36=5,AW$36="元"),"平成"&30&"年"&9,IF(AND(AY$36>=6,AW$36="元"),"令和元年"&9,IF(AND(AY$36>=1,AY$36<=5,AW$36=2),"令和元年"&9,(IF((AND(AY$36>=1,AY$36<=5)),"令和"&AW$36-1&"年"&9,"令和"&AW$36&"年"&9))))))) -> 令和年9 | AY86: =IF(OR(AX87="",AZ$41=4),"",IF(AND(AY$36>=1,AY$36<=4,AW$36=31),"平成"&30&"年"&9,IF(AND(AY$36=5,AW$36="元"),"平成"&30&"年"&9,IF(AND(AY$36>=6,AW$36="元"),"令和元年"&9,IF(AND(AY$36>=1,AY$36<=5,AW$36=2),"令和元年"&9,(IF((AND(AY$36>=1,AY$36<=5)),"令和"&AW$36-1&"年"&9,"令和"&AW$36&"年"&9))))))) -> 令和年9 | BC86: =IF(OR(BC87="",BC$41=10),"",9) -> 9 | BD86: =IF(OR(BD87="",BF$41=4),"",IF(AND(BE$36>=1,BE$36<=4,BC$36=31),"平成"&30&"年"&9,IF(AND(BE$36=5,BC$36="元"),"平成"&30&"年"&9,IF(AND(BE$36>=6,BC$36="元"),"令和元年"&9,IF(AND(BE$36>=1,BE$36<=5,BC$36=2),"令和元年"&9,(IF((AND(BE$36>=1,BE$36<=5)),"令和"&BC$36-1&"年"&9,"令和"&BC$36&"年"&9))))))) -> 令和年9 | BE86: =IF(OR(BD87="",BF$41=4),"",IF(AND(BE$36>=1,BE$36<=4,BC$36=31),"平成"&30&"年"&9,IF(AND(BE$36=5,BC$36="元"),"平成"&30&"年"&9,IF(AND(BE$36>=6,BC$36="元"),"令和元年"&9,IF(AND(BE$36>=1,BE$36<=5,BC$36=2),"令和元年"&9,(IF((AND(BE$36>=1,BE$36<=5)),"令和"&BC$36-1&"年"&9,"令和"&BC$36&"年"&9))))))) -> 令和年9 | BI86: =IF(OR(BI87="",BI$41=10),"",9) -> 9 | BJ86: =IF(OR(BJ87="",BL$41=4),"",IF(AND(BK$36>=1,BK$36<=4,BI$36=31),"平成"&30&"年"&9,IF(AND(BK$36=5,BI$36="元"),"平成"&30&"年"&9,IF(AND(BK$36>=6,BI$36="元"),"令和元年"&9,IF(AND(BK$36>=1,BK$36<=5,BI$36=2),"令和元年"&9,(IF((AND(BK$36>=1,BK$36<=5)),"令和"&BI$36-1&"年"&9,"令和"&BI$36&"年"&9))))))) -> 令和年9 | BK86: =IF(OR(BJ87="",BL$41=4),"",IF(AND(BK$36>=1,BK$36<=4,BI$36=31),"平成"&30&"年"&9,IF(AND(BK$36=5,BI$36="元"),"平成"&30&"年"&9,IF(AND(BK$36>=6,BI$36="元"),"令和元年"&9,IF(AND(BK$36>=1,BK$36<=5,BI$36=2),"令和元年"&9,(IF((AND(BK$36>=1,BK$36<=5)),"令和"&BI$36-1&"年"&9,"令和"&BI$36&"年"&9))))))) -> 令和年9 | BO86: =IF(OR(BO87="",BO$41=10),"",9) -> 9 | BP86: =IF(OR(BP87="",BR$41=4),"",IF(AND(BQ$36>=1,BQ$36<=4,BO$36=31),"平成"&30&"年"&9,IF(AND(BQ$36=5,BO$36="元"),"平成"&30&"年"&9,IF(AND(BQ$36>=6,BO$36="元"),"令和元年"&9,IF(AND(BQ$36>=1,BQ$36<=5,BO$36=2),"令和元年"&9,(IF((AND(BQ$36>=1,BQ$36<=5)),"令和"&BO$36-1&"年"&9,"令和"&BO$36&"年"&9))))))) -> 令和年9 | BQ86: =IF(OR(BP87="",BR$41=4),"",IF(AND(BQ$36>=1,BQ$36<=4,BO$36=31),"平成"&30&"年"&9,IF(AND(BQ$36=5,BO$36="元"),"平成"&30&"年"&9,IF(AND(BQ$36>=6,BO$36="元"),"令和元年"&9,IF(AND(BQ$36>=1,BQ$36<=5,BO$36=2),"令和元年"&9,(IF((AND(BQ$36>=1,BQ$36<=5)),"令和"&BO$36-1&"年"&9,"令和"&BO$36&"年"&9))))))) -> 令和年9 | BU86: =IF(OR(BU87="",BU$41=10),"",9) -> 9 | BV86: =IF(OR(BV87="",BX$41=4),"",IF(AND(BW$36>=1,BW$36<=4,BU$36=31),"平成"&30&"年"&9,IF(AND(BW$36=5,BU$36="元"),"平成"&30&"年"&9,IF(AND(BW$36>=6,BU$36="元"),"令和元年"&9,IF(AND(BW$36>=1,BW$36<=5,BU$36=2),"令和元年"&9,(IF((AND(BW$36>=1,BW$36<=5)),"令和"&BU$36-1&"年"&9,"令和"&BU$36&"年"&9))))))) -> 令和年9 | BW86: =IF(OR(BV87="",BX$41=4),"",IF(AND(BW$36>=1,BW$36<=4,BU$36=31),"平成"&30&"年"&9,IF(AND(BW$36=5,BU$36="元"),"平成"&30&"年"&9,IF(AND(BW$36>=6,BU$36="元"),"令和元年"&9,IF(AND(BW$36>=1,BW$36<=5,BU$36=2),"令和元年"&9,(IF((AND(BW$36>=1,BW$36<=5)),"令和"&BU$36-1&"年"&9,"令和"&BU$36&"年"&9))))))) -> 令和年9 | CA86: =IF(OR(CA87="",CA$41=10),"",9) -> 9 | CB86: =IF(OR(CB87="",CD$41=4),"",IF(AND(CC$36>=1,CC$36<=4,CA$36=31),"平成"&30&"年"&9,IF(AND(CC$36=5,CA$36="元"),"平成"&30&"年"&9,IF(AND(CC$36>=6,CA$36="元"),"令和元年"&9,IF(AND(CC$36>=1,CC$36<=5,CA$36=2),"令和元年"&9,(IF((AND(CC$36>=1,CC$36<=5)),"令和"&CA$36-1&"年"&9,"令和"&CA$36&"年"&9))))))) -> 令和年9 | CC86: =IF(OR(CB87="",CD$41=4),"",IF(AND(CC$36>=1,CC$36<=4,CA$36=31),"平成"&30&"年"&9,IF(AND(CC$36=5,CA$36="元"),"平成"&30&"年"&9,IF(AND(CC$36>=6,CA$36="元"),"令和元年"&9,IF(AND(CC$36>=1,CC$36<=5,CA$36=2),"令和元年"&9,(IF((AND(CC$36>=1,CC$36<=5)),"令和"&CA$36-1&"年"&9,"令和"&CA$36&"年"&9))))))) -> 令和年9 | CG86: =IF(OR(CG87="",CG$41=10),"",9) -> 9 | CH86: =IF(OR(CH87="",CJ$41=4),"",IF(AND(CI$36>=1,CI$36<=4,CG$36=31),"平成"&30&"年"&9,IF(AND(CI$36=5,CG$36="元"),"平成"&30&"年"&9,IF(AND(CI$36>=6,CG$36="元"),"令和元年"&9,IF(AND(CI$36>=1,CI$36<=5,CG$36=2),"令和元年"&9,(IF((AND(CI$36>=1,CI$36<=5)),"令和"&CG$36-1&"年"&9,"令和"&CG$36&"年"&9))))))) -> 令和年9 | CI86: =IF(OR(CH87="",CJ$41=4),"",IF(AND(CI$36>=1,CI$36<=4,CG$36=31),"平成"&30&"年"&9,IF(AND(CI$36=5,CG$36="元"),"平成"&30&"年"&9,IF(AND(CI$36>=6,CG$36="元"),"令和元年"&9,IF(AND(CI$36>=1,CI$36<=5,CG$36=2),"令和元年"&9,(IF((AND(CI$36>=1,CI$36<=5)),"令和"&CG$36-1&"年"&9,"令和"&CG$36&"年"&9))))))) -> 令和年9 | CM86: =IF(OR(CM87="",CM$41=10),"",9) -> 9 | CN86: =IF(OR(CN87="",CP$41=4),"",IF(AND(CO$36>=1,CO$36<=4,CM$36=31),"平成"&30&"年"&9,IF(AND(CO$36=5,CM$36="元"),"平成"&30&"年"&9,IF(AND(CO$36>=6,CM$36="元"),"令和元年"&9,IF(AND(CO$36>=1,CO$36<=5,CM$36=2),"令和元年"&9,(IF((AND(CO$36>=1,CO$36<=5)),"令和"&CM$36-1&"年"&9,"令和"&CM$36&"年"&9))))))) -> 令和年9 | CO86: =IF(OR(CN87="",CP$41=4),"",IF(AND(CO$36>=1,CO$36<=4,CM$36=31),"平成"&30&"年"&9,IF(AND(CO$36=5,CM$36="元"),"平成"&30&"年"&9,IF(AND(CO$36>=6,CM$36="元"),"令和元年"&9,IF(AND(CO$36>=1,CO$36<=5,CM$36=2),"令和元年"&9,(IF((AND(CO$36>=1,CO$36<=5)),"令和"&CM$36-1&"年"&9,"令和"&CM$36&"年"&9))))))) -> 令和年9 | CS86: =IF(OR(CS87="",CS$41=10),"",9) -> 9 | CT86: =IF(OR(CT87="",CV$41=4),"",IF(AND(CU$36>=1,CU$36<=4,CS$36=31),"平成"&30&"年"&9,IF(AND(CU$36=5,CS$36="元"),"平成"&30&"年"&9,IF(AND(CU$36>=6,CS$36="元"),"令和元年"&9,IF(AND(CU$36>=1,CU$36<=5,CS$36=2),"令和元年"&9,(IF((AND(CU$36>=1,CU$36<=5)),"令和"&CS$36-1&"年"&9,"令和"&CS$36&"年"&9))))))) -> 令和年9 | CU86: =IF(OR(CT87="",CV$41=4),"",IF(AND(CU$36>=1,CU$36<=4,CS$36=31),"平成"&30&"年"&9,IF(AND(CU$36=5,CS$36="元"),"平成"&30&"年"&9,IF(AND(CU$36>=6,CS$36="元"),"令和元年"&9,IF(AND(CU$36>=1,CU$36<=5,CS$36=2),"令和元年"&9,(IF((AND(CU$36>=1,CU$36<=5)),"令和"&CS$36-1&"年"&9,"令和"&CS$36&"年"&9))))))) -> 令和年9 | CY86: =IF(OR(CY87="",CY$41=10),"",9) -> 9 | CZ86: =IF(OR(CZ87="",DB$41=4),"",IF(AND(DA$36>=1,DA$36<=4,CY$36=31),"平成"&30&"年"&9,IF(AND(DA$36=5,CY$36="元"),"平成"&30&"年"&9,IF(AND(DA$36>=6,CY$36="元"),"令和元年"&9,IF(AND(DA$36>=1,DA$36<=5,CY$36=2),"令和元年"&9,(IF((AND(DA$36>=1,DA$36<=5)),"令和"&CY$36-1&"年"&9,"令和"&CY$36&"年"&9))))))) -> 令和年9 | DA86: =IF(OR(CZ87="",DB$41=4),"",IF(AND(DA$36>=1,DA$36<=4,CY$36=31),"平成"&30&"年"&9,IF(AND(DA$36=5,CY$36="元"),"平成"&30&"年"&9,IF(AND(DA$36>=6,CY$36="元"),"令和元年"&9,IF(AND(DA$36>=1,DA$36<=5,CY$36=2),"令和元年"&9,(IF((AND(DA$36>=1,DA$36<=5)),"令和"&CY$36-1&"年"&9,"令和"&CY$36&"年"&9))))))) -> 令和年9 | DE86: =IF(OR(DE87="",DE$41=10),"",9) -> 9 | DF86: =IF(OR(DF87="",DH$41=4),"",IF(AND(DG$36>=1,DG$36<=4,DE$36=31),"平成"&30&"年"&9,IF(AND(DG$36=5,DE$36="元"),"平成"&30&"年"&9,IF(AND(DG$36>=6,DE$36="元"),"令和元年"&9,IF(AND(DG$36>=1,DG$36<=5,DE$36=2),"令和元年"&9,(IF((AND(DG$36>=1,DG$36<=5)),"令和"&DE$36-1&"年"&9,"令和"&DE$36&"年"&9))))))) -> 令和年9 | DG86: =IF(OR(DF87="",DH$41=4),"",IF(AND(DG$36>=1,DG$36<=4,DE$36=31),"平成"&30&"年"&9,IF(AND(DG$36=5,DE$36="元"),"平成"&30&"年"&9,IF(AND(DG$36>=6,DE$36="元"),"令和元年"&9,IF(AND(DG$36>=1,DG$36<=5,DE$36=2),"令和元年"&9,(IF((AND(DG$36>=1,DG$36<=5)),"令和"&DE$36-1&"年"&9,"令和"&DE$36&"年"&9))))))) -> 令和年9 | DK86: =IF(OR(DK87="",DK$41=10),"",9) -> 9 | DL86: =IF(OR(DL87="",DN$41=4),"",IF(AND(DM$36>=1,DM$36<=4,DK$36=31),"平成"&30&"年"&9,IF(AND(DM$36=5,DK$36="元"),"平成"&30&"年"&9,IF(AND(DM$36>=6,DK$36="元"),"令和元年"&9,IF(AND(DM$36>=1,DM$36<=5,DK$36=2),"令和元年"&9,(IF((AND(DM$36>=1,DM$36<=5)),"令和"&DK$36-1&"年"&9,"令和"&DK$36&"年"&9))))))) -> 令和年9 | DM86: =IF(OR(DL87="",DN$41=4),"",IF(AND(DM$36>=1,DM$36<=4,DK$36=31),"平成"&30&"年"&9,IF(AND(DM$36=5,DK$36="元"),"平成"&30&"年"&9,IF(AND(DM$36>=6,DK$36="元"),"令和元年"&9,IF(AND(DM$36>=1,DM$36<=5,DK$36=2),"令和元年"&9,(IF((AND(DM$36>=1,DM$36<=5)),"令和"&DK$36-1&"年"&9,"令和"&DK$36&"年"&9))))))) -> 令和年9 | DQ86: =IF(OR(DQ87="",DQ$41=10),"",9) -> 9 | DR86: =IF(OR(DR87="",DT$41=4),"",IF(AND(DS$36>=1,DS$36<=4,DQ$36=31),"平成"&30&"年"&9,IF(AND(DS$36=5,DQ$36="元"),"平成"&30&"年"&9,IF(AND(DS$36>=6,DQ$36="元"),"令和元年"&9,IF(AND(DS$36>=1,DS$36<=5,DQ$36=2),"令和元年"&9,(IF((AND(DS$36>=1,DS$36<=5)),"令和"&DQ$36-1&"年"&9,"令和"&DQ$36&"年"&9))))))) -> 令和年9 | DS86: =IF(OR(DR87="",DT$41=4),"",IF(AND(DS$36>=1,DS$36<=4,DQ$36=31),"平成"&30&"年"&9,IF(AND(DS$36=5,DQ$36="元"),"平成"&30&"年"&9,IF(AND(DS$36>=6,DQ$36="元"),"令和元年"&9,IF(AND(DS$36>=1,DS$36<=5,DQ$36=2),"令和元年"&9,(IF((AND(DS$36>=1,DS$36<=5)),"令和"&DQ$36-1&"年"&9,"令和"&DQ$36&"年"&9))))))) -> 令和年9 | DW86: =IF(OR(DW87="",DW$41=10),"",9) -> 9 | DX86: =IF(OR(DX87="",DZ$41=4),"",IF(AND(DY$36>=1,DY$36<=4,DW$36=31),"平成"&30&"年"&9,IF(AND(DY$36=5,DW$36="元"),"平成"&30&"年"&9,IF(AND(DY$36>=6,DW$36="元"),"令和元年"&9,IF(AND(DY$36>=1,DY$36<=5,DW$36=2),"令和元年"&9,(IF((AND(DY$36>=1,DY$36<=5)),"令和"&DW$36-1&"年"&9,"令和"&DW$36&"年"&9))))))) -> 令和年9 | DY86: =IF(OR(DX87="",DZ$41=4),"",IF(AND(DY$36>=1,DY$36<=4,DW$36=31),"平成"&30&"年"&9,IF(AND(DY$36=5,DW$36="元"),"平成"&30&"年"&9,IF(AND(DY$36>=6,DW$36="元"),"令和元年"&9,IF(AND(DY$36>=1,DY$36<=5,DW$36=2),"令和元年"&9,(IF((AND(DY$36>=1,DY$36<=5)),"令和"&DW$36-1&"年"&9,"令和"&DW$36&"年"&9))))))) -> 令和年9 | EC86: =IF(OR(EC87="",EC$41=10),"",9) -> 9 | ED86: =IF(OR(ED87="",EF$41=4),"",IF(AND(EE$36>=1,EE$36<=4,EC$36=31),"平成"&30&"年"&9,IF(AND(EE$36=5,EC$36="元"),"平成"&30&"年"&9,IF(AND(EE$36>=6,EC$36="元"),"令和元年"&9,IF(AND(EE$36>=1,EE$36<=5,EC$36=2),"令和元年"&9,(IF((AND(EE$36>=1,EE$36<=5)),"令和"&EC$36-1&"年"&9,"令和"&EC$36&"年"&9))))))) -> 令和年9 | EE86: =IF(OR(ED87="",EF$41=4),"",IF(AND(EE$36>=1,EE$36<=4,EC$36=31),"平成"&30&"年"&9,IF(AND(EE$36=5,EC$36="元"),"平成"&30&"年"&9,IF(AND(EE$36>=6,EC$36="元"),"令和元年"&9,IF(AND(EE$36>=1,EE$36<=5,EC$36=2),"令和元年"&9,(IF((AND(EE$36>=1,EE$36<=5)),"令和"&EC$36-1&"年"&9,"令和"&EC$36&"年"&9))))))) -> 令和年9 | EI86: =IF(OR(EI87="",EI$41=10),"",9) -> 9 | EJ86: =IF(OR(EJ87="",EL$41=4),"",IF(AND(EK$36>=1,EK$36<=4,EI$36=31),"平成"&30&"年"&9,IF(AND(EK$36=5,EI$36="元"),"平成"&30&"年"&9,IF(AND(EK$36>=6,EI$36="元"),"令和元年"&9,IF(AND(EK$36>=1,EK$36<=5,EI$36=2),"令和元年"&9,(IF((AND(EK$36>=1,EK$36<=5)),"令和"&EI$36-1&"年"&9,"令和"&EI$36&"年"&9))))))) -> 令和年9 | EK86: =IF(OR(EJ87="",EL$41=4),"",IF(AND(EK$36>=1,EK$36<=4,EI$36=31),"平成"&30&"年"&9,IF(AND(EK$36=5,EI$36="元"),"平成"&30&"年"&9,IF(AND(EK$36>=6,EI$36="元"),"令和元年"&9,IF(AND(EK$36>=1,EK$36<=5,EI$36=2),"令和元年"&9,(IF((AND(EK$36>=1,EK$36<=5)),"令和"&EI$36-1&"年"&9,"令和"&EI$36&"年"&9))))))) -> 令和年9 | EO86: =IF(OR(EO87="",EO$41=10),"",9) -> 9 | EP86: =IF(OR(EP87="",ER$41=4),"",IF(AND(EQ$36>=1,EQ$36<=4,EO$36=31),"平成"&30&"年"&9,IF(AND(EQ$36=5,EO$36="元"),"平成"&30&"年"&9,IF(AND(EQ$36>=6,EO$36="元"),"令和元年"&9,IF(AND(EQ$36>=1,EQ$36<=5,EO$36=2),"令和元年"&9,(IF((AND(EQ$36>=1,EQ$36<=5)),"令和"&EO$36-1&"年"&9,"令和"&EO$36&"年"&9))))))) -> 令和年9 | EQ86: =IF(OR(EP87="",ER$41=4),"",IF(AND(EQ$36>=1,EQ$36<=4,EO$36=31),"平成"&30&"年"&9,IF(AND(EQ$36=5,EO$36="元"),"平成"&30&"年"&9,IF(AND(EQ$36>=6,EO$36="元"),"令和元年"&9,IF(AND(EQ$36>=1,EQ$36<=5,EO$36=2),"令和元年"&9,(IF((AND(EQ$36>=1,EQ$36<=5)),"令和"&EO$36-1&"年"&9,"令和"&EO$36&"年"&9))))))) -> 令和年9 | EU86: =IF(OR(EU87="",EU$41=10),"",9) -> 9 | EV86: =IF(OR(EV87="",EX$41=4),"",IF(AND(EW$36>=1,EW$36<=4,EU$36=31),"平成"&30&"年"&9,IF(AND(EW$36=5,EU$36="元"),"平成"&30&"年"&9,IF(AND(EW$36>=6,EU$36="元"),"令和元年"&9,IF(AND(EW$36>=1,EW$36<=5,EU$36=2),"令和元年"&9,(IF((AND(EW$36>=1,EW$36<=5)),"令和"&EU$36-1&"年"&9,"令和"&EU$36&"年"&9))))))) -> 令和年9 | EW86: =IF(OR(EV87="",EX$41=4),"",IF(AND(EW$36>=1,EW$36<=4,EU$36=31),"平成"&30&"年"&9,IF(AND(EW$36=5,EU$36="元"),"平成"&30&"年"&9,IF(AND(EW$36>=6,EU$36="元"),"令和元年"&9,IF(AND(EW$36>=1,EW$36<=5,EU$36=2),"令和元年"&9,(IF((AND(EW$36>=1,EW$36<=5)),"令和"&EU$36-1&"年"&9,"令和"&EU$36&"年"&9))))))) -> 令和年9 | FA86: =IF(OR(FA87="",FA$41=10),"",9) -> 9 | FB86: =IF(OR(FB87="",FD$41=4),"",IF(AND(FC$36>=1,FC$36<=4,FA$36=31),"平成"&30&"年"&9,IF(AND(FC$36=5,FA$36="元"),"平成"&30&"年"&9,IF(AND(FC$36>=6,FA$36="元"),"令和元年"&9,IF(AND(FC$36>=1,FC$36<=5,FA$36=2),"令和元年"&9,(IF((AND(FC$36>=1,FC$36<=5)),"令和"&FA$36-1&"年"&9,"令和"&FA$36&"年"&9))))))) -> 令和年9 | FC86: =IF(OR(FB87="",FD$41=4),"",IF(AND(FC$36>=1,FC$36<=4,FA$36=31),"平成"&30&"年"&9,IF(AND(FC$36=5,FA$36="元"),"平成"&30&"年"&9,IF(AND(FC$36>=6,FA$36="元"),"令和元年"&9,IF(AND(FC$36>=1,FC$36<=5,FA$36=2),"令和元年"&9,(IF((AND(FC$36>=1,FC$36<=5)),"令和"&FA$36-1&"年"&9,"令和"&FA$36&"年"&9))))))) -> 令和年9 | FG86: =IF(OR(FG87="",FG$41=10),"",9) -> 9 | FH86: =IF(OR(FH87="",FJ$41=4),"",IF(AND(FI$36>=1,FI$36<=4,FG$36=31),"平成"&30&"年"&9,IF(AND(FI$36=5,FG$36="元"),"平成"&30&"年"&9,IF(AND(FI$36>=6,FG$36="元"),"令和元年"&9,IF(AND(FI$36>=1,FI$36<=5,FG$36=2),"令和元年"&9,(IF((AND(FI$36>=1,FI$36<=5)),"令和"&FG$36-1&"年"&9,"令和"&FG$36&"年"&9))))))) -> 令和年9 | FI86: =IF(OR(FH87="",FJ$41=4),"",IF(AND(FI$36>=1,FI$36<=4,FG$36=31),"平成"&30&"年"&9,IF(AND(FI$36=5,FG$36="元"),"平成"&30&"年"&9,IF(AND(FI$36>=6,FG$36="元"),"令和元年"&9,IF(AND(FI$36>=1,FI$36<=5,FG$36=2),"令和元年"&9,(IF((AND(FI$36>=1,FI$36<=5)),"令和"&FG$36-1&"年"&9,"令和"&FG$36&"年"&9))))))) -> 令和年9 | FM86: =IF(OR(FM87="",FM$41=10),"",9) -> 9 | FN86: =IF(OR(FN87="",FP$41=4),"",IF(AND(FO$36>=1,FO$36<=4,FM$36=31),"平成"&30&"年"&9,IF(AND(FO$36=5,FM$36="元"),"平成"&30&"年"&9,IF(AND(FO$36>=6,FM$36="元"),"令和元年"&9,IF(AND(FO$36>=1,FO$36<=5,FM$36=2),"令和元年"&9,(IF((AND(FO$36>=1,FO$36<=5)),"令和"&FM$36-1&"年"&9,"令和"&FM$36&"年"&9))))))) -> 令和年9 | FO86: =IF(OR(FN87="",FP$41=4),"",IF(AND(FO$36>=1,FO$36<=4,FM$36=31),"平成"&30&"年"&9,IF(AND(FO$36=5,FM$36="元"),"平成"&30&"年"&9,IF(AND(FO$36>=6,FM$36="元"),"令和元年"&9,IF(AND(FO$36>=1,FO$36<=5,FM$36=2),"令和元年"&9,(IF((AND(FO$36>=1,FO$36<=5)),"令和"&FM$36-1&"年"&9,"令和"&FM$36&"年"&9))))))) -> 令和年9 | FS86: =IF(OR(FS87="",FS$41=10),"",9) -> 9 | FT86: =IF(OR(FT87="",FV$41=4),"",IF(AND(FU$36>=1,FU$36<=4,FS$36=31),"平成"&30&"年"&9,IF(AND(FU$36=5,FS$36="元"),"平成"&30&"年"&9,IF(AND(FU$36>=6,FS$36="元"),"令和元年"&9,IF(AND(FU$36>=1,FU$36<=5,FS$36=2),"令和元年"&9,(IF((AND(FU$36>=1,FU$36<=5)),"令和"&FS$36-1&"年"&9,"令和"&FS$36&"年"&9))))))) -> 令和年9 | FU86: =IF(OR(FT87="",FV$41=4),"",IF(AND(FU$36>=1,FU$36<=4,FS$36=31),"平成"&30&"年"&9,IF(AND(FU$36=5,FS$36="元"),"平成"&30&"年"&9,IF(AND(FU$36>=6,FS$36="元"),"令和元年"&9,IF(AND(FU$36>=1,FU$36<=5,FS$36=2),"令和元年"&9,(IF((AND(FU$36>=1,FU$36<=5)),"令和"&FS$36-1&"年"&9,"令和"&FS$36&"年"&9))))))) -> 令和年9 | FY86: =IF(OR(FY87="",FY$41=10),"",9) -> 9 | FZ86: =IF(OR(FZ87="",GB$41=4),"",IF(AND(GA$36>=1,GA$36<=4,FY$36=31),"平成"&30&"年"&9,IF(AND(GA$36=5,FY$36="元"),"平成"&30&"年"&9,IF(AND(GA$36>=6,FY$36="元"),"令和元年"&9,IF(AND(GA$36>=1,GA$36<=5,FY$36=2),"令和元年"&9,(IF((AND(GA$36>=1,GA$36<=5)),"令和"&FY$36-1&"年"&9,"令和"&FY$36&"年"&9))))))) -> 令和年9 | GA86: =IF(OR(FZ87="",GB$41=4),"",IF(AND(GA$36>=1,GA$36<=4,FY$36=31),"平成"&30&"年"&9,IF(AND(GA$36=5,FY$36="元"),"平成"&30&"年"&9,IF(AND(GA$36>=6,FY$36="元"),"令和元年"&9,IF(AND(GA$36>=1,GA$36<=5,FY$36=2),"令和元年"&9,(IF((AND(GA$36>=1,GA$36<=5)),"令和"&FY$36-1&"年"&9,"令和"&FY$36&"年"&9))))))) -> 令和年9 | GE86: =IF(OR(GE87="",GE$41=10),"",9) -> 9 | GF86: =IF(OR(GF87="",GH$41=4),"",IF(AND(GG$36>=1,GG$36<=4,GE$36=31),"平成"&30&"年"&9,IF(AND(GG$36=5,GE$36="元"),"平成"&30&"年"&9,IF(AND(GG$36>=6,GE$36="元"),"令和元年"&9,IF(AND(GG$36>=1,GG$36<=5,GE$36=2),"令和元年"&9,(IF((AND(GG$36>=1,GG$36<=5)),"令和"&GE$36-1&"年"&9,"令和"&GE$36&"年"&9))))))) -> 令和年9 | GG86: =IF(OR(GF87="",GH$41=4),"",IF(AND(GG$36>=1,GG$36<=4,GE$36=31),"平成"&30&"年"&9,IF(AND(GG$36=5,GE$36="元"),"平成"&30&"年"&9,IF(AND(GG$36>=6,GE$36="元"),"令和元年"&9,IF(AND(GG$36>=1,GG$36<=5,GE$36=2),"令和元年"&9,(IF((AND(GG$36>=1,GG$36<=5)),"令和"&GE$36-1&"年"&9,"令和"&GE$36&"年"&9))))))) -> 令和年9 | GK86: =IF(OR(GK87="",GK$41=10),"",9) -> 9 | GL86: =IF(OR(GL87="",GN$41=4),"",IF(AND(GM$36>=1,GM$36<=4,GK$36=31),"平成"&30&"年"&9,IF(AND(GM$36=5,GK$36="元"),"平成"&30&"年"&9,IF(AND(GM$36>=6,GK$36="元"),"令和元年"&9,IF(AND(GM$36>=1,GM$36<=5,GK$36=2),"令和元年"&9,(IF((AND(GM$36>=1,GM$36<=5)),"令和"&GK$36-1&"年"&9,"令和"&GK$36&"年"&9))))))) -> 令和年9 | GM86: =IF(OR(GL87="",GN$41=4),"",IF(AND(GM$36>=1,GM$36<=4,GK$36=31),"平成"&30&"年"&9,IF(AND(GM$36=5,GK$36="元"),"平成"&30&"年"&9,IF(AND(GM$36>=6,GK$36="元"),"令和元年"&9,IF(AND(GM$36>=1,GM$36<=5,GK$36=2),"令和元年"&9,(IF((AND(GM$36>=1,GM$36<=5)),"令和"&GK$36-1&"年"&9,"令和"&GK$36&"年"&9))))))) -> 令和年9 | GQ86: =IF(OR(GQ87="",GQ$41=10),"",9) -> 9 | GR86: =IF(OR(GR87="",GT$41=4),"",IF(AND(GS$36>=1,GS$36<=4,GQ$36=31),"平成"&30&"年"&9,IF(AND(GS$36=5,GQ$36="元"),"平成"&30&"年"&9,IF(AND(GS$36>=6,GQ$36="元"),"令和元年"&9,IF(AND(GS$36>=1,GS$36<=5,GQ$36=2),"令和元年"&9,(IF((AND(GS$36>=1,GS$36<=5)),"令和"&GQ$36-1&"年"&9,"令和"&GQ$36&"年"&9))))))) -> 令和年9 | GS86: =IF(OR(GR87="",GT$41=4),"",IF(AND(GS$36>=1,GS$36<=4,GQ$36=31),"平成"&30&"年"&9,IF(AND(GS$36=5,GQ$36="元"),"平成"&30&"年"&9,IF(AND(GS$36>=6,GQ$36="元"),"令和元年"&9,IF(AND(GS$36>=1,GS$36<=5,GQ$36=2),"令和元年"&9,(IF((AND(GS$36>=1,GS$36<=5)),"令和"&GQ$36-1&"年"&9,"令和"&GQ$36&"年"&9))))))) -> 令和年9 | GW86: =IF(OR(GW87="",GW$41=10),"",9) -> 9 | GX86: =IF(OR(GX87="",GZ$41=4),"",IF(AND(GY$36>=1,GY$36<=4,GW$36=31),"平成"&30&"年"&9,IF(AND(GY$36=5,GW$36="元"),"平成"&30&"年"&9,IF(AND(GY$36>=6,GW$36="元"),"令和元年"&9,IF(AND(GY$36>=1,GY$36<=5,GW$36=2),"令和元年"&9,(IF((AND(GY$36>=1,GY$36<=5)),"令和"&GW$36-1&"年"&9,"令和"&GW$36&"年"&9))))))) -> 令和年9 | GY86: =IF(OR(GX87="",GZ$41=4),"",IF(AND(GY$36>=1,GY$36<=4,GW$36=31),"平成"&30&"年"&9,IF(AND(GY$36=5,GW$36="元"),"平成"&30&"年"&9,IF(AND(GY$36>=6,GW$36="元"),"令和元年"&9,IF(AND(GY$36>=1,GY$36<=5,GW$36=2),"令和元年"&9,(IF((AND(GY$36>=1,GY$36<=5)),"令和"&GW$36-1&"年"&9,"令和"&GW$36&"年"&9))))))) -> 令和年9 | HC86: =IF(OR(HC87="",HC$41=10),"",9) -> 9 | HD86: =IF(OR(HD87="",HF$41=4),"",IF(AND(HE$36>=1,HE$36<=4,HC$36=31),"平成"&30&"年"&9,IF(AND(HE$36=5,HC$36="元"),"平成"&30&"年"&9,IF(AND(HE$36>=6,HC$36="元"),"令和元年"&9,IF(AND(HE$36>=1,HE$36<=5,HC$36=2),"令和元年"&9,(IF((AND(HE$36>=1,HE$36<=5)),"令和"&HC$36-1&"年"&9,"令和"&HC$36&"年"&9))))))) -> 令和年9 | HE86: =IF(OR(HD87="",HF$41=4),"",IF(AND(HE$36>=1,HE$36<=4,HC$36=31),"平成"&30&"年"&9,IF(AND(HE$36=5,HC$36="元"),"平成"&30&"年"&9,IF(AND(HE$36>=6,HC$36="元"),"令和元年"&9,IF(AND(HE$36>=1,HE$36<=5,HC$36=2),"令和元年"&9,(IF((AND(HE$36>=1,HE$36<=5)),"令和"&HC$36-1&"年"&9,"令和"&HC$36&"年"&9))))))) -> 令和年9 | HI86: =IF(OR(HI87="",HI$41=10),"",9) -> 9 | HJ86: =IF(OR(HJ87="",HL$41=4),"",IF(AND(HK$36>=1,HK$36<=4,HI$36=31),"平成"&30&"年"&9,IF(AND(HK$36=5,HI$36="元"),"平成"&30&"年"&9,IF(AND(HK$36>=6,HI$36="元"),"令和元年"&9,IF(AND(HK$36>=1,HK$36<=5,HI$36=2),"令和元年"&9,(IF((AND(HK$36>=1,HK$36<=5)),"令和"&HI$36-1&"年"&9,"令和"&HI$36&"年"&9))))))) -> 令和年9 | HK86: =IF(OR(HJ87="",HL$41=4),"",IF(AND(HK$36>=1,HK$36<=4,HI$36=31),"平成"&30&"年"&9,IF(AND(HK$36=5,HI$36="元"),"平成"&30&"年"&9,IF(AND(HK$36>=6,HI$36="元"),"令和元年"&9,IF(AND(HK$36>=1,HK$36<=5,HI$36=2),"令和元年"&9,(IF((AND(HK$36>=1,HK$36<=5)),"令和"&HI$36-1&"年"&9,"令和"&HI$36&"年"&9))))))) -> 令和年9 | HO86: =IF(OR(HO87="",HO$41=10),"",9) -> 9 | HP86: =IF(OR(HP87="",HR$41=4),"",IF(AND(HQ$36>=1,HQ$36<=4,HO$36=31),"平成"&30&"年"&9,IF(AND(HQ$36=5,HO$36="元"),"平成"&30&"年"&9,IF(AND(HQ$36>=6,HO$36="元"),"令和元年"&9,IF(AND(HQ$36>=1,HQ$36<=5,HO$36=2),"令和元年"&9,(IF((AND(HQ$36>=1,HQ$36<=5)),"令和"&HO$36-1&"年"&9,"令和"&HO$36&"年"&9))))))) -> 令和年9 | HQ86: =IF(OR(HP87="",HR$41=4),"",IF(AND(HQ$36>=1,HQ$36<=4,HO$36=31),"平成"&30&"年"&9,IF(AND(HQ$36=5,HO$36="元"),"平成"&30&"年"&9,IF(AND(HQ$36>=6,HO$36="元"),"令和元年"&9,IF(AND(HQ$36>=1,HQ$36<=5,HO$36=2),"令和元年"&9,(IF((AND(HQ$36>=1,HQ$36<=5)),"令和"&HO$36-1&"年"&9,"令和"&HO$36&"年"&9))))))) -> 令和年9 | HU86: =IF(OR(HU87="",HU$41=10),"",9) -> 9 | HV86: =IF(OR(HV87="",HX$41=4),"",IF(AND(HW$36>=1,HW$36<=4,HU$36=31),"平成"&30&"年"&9,IF(AND(HW$36=5,HU$36="元"),"平成"&30&"年"&9,IF(AND(HW$36>=6,HU$36="元"),"令和元年"&9,IF(AND(HW$36>=1,HW$36<=5,HU$36=2),"令和元年"&9,(IF((AND(HW$36>=1,HW$36<=5)),"令和"&HU$36-1&"年"&9,"令和"&HU$36&"年"&9))))))) -> 令和年9 | HW86: =IF(OR(HV87="",HX$41=4),"",IF(AND(HW$36>=1,HW$36<=4,HU$36=31),"平成"&30&"年"&9,IF(AND(HW$36=5,HU$36="元"),"平成"&30&"年"&9,IF(AND(HW$36>=6,HU$36="元"),"令和元年"&9,IF(AND(HW$36>=1,HW$36<=5,HU$36=2),"令和元年"&9,(IF((AND(HW$36>=1,HW$36<=5)),"令和"&HU$36-1&"年"&9,"令和"&HU$36&"年"&9))))))) -> 令和年9 | IA86: =IF(OR(IA87="",IA$41=10),"",9) -> 9 | IB86: =IF(OR(IB87="",ID$41=4),"",IF(AND(IC$36>=1,IC$36<=4,IA$36=31),"平成"&30&"年"&9,IF(AND(IC$36=5,IA$36="元"),"平成"&30&"年"&9,IF(AND(IC$36>=6,IA$36="元"),"令和元年"&9,IF(AND(IC$36>=1,IC$36<=5,IA$36=2),"令和元年"&9,(IF((AND(IC$36>=1,IC$36<=5)),"令和"&IA$36-1&"年"&9,"令和"&IA$36&"年"&9))))))) -> 令和年9 | IC86: =IF(OR(IB87="",ID$41=4),"",IF(AND(IC$36>=1,IC$36<=4,IA$36=31),"平成"&30&"年"&9,IF(AND(IC$36=5,IA$36="元"),"平成"&30&"年"&9,IF(AND(IC$36>=6,IA$36="元"),"令和元年"&9,IF(AND(IC$36>=1,IC$36<=5,IA$36=2),"令和元年"&9,(IF((AND(IC$36>=1,IC$36<=5)),"令和"&IA$36-1&"年"&9,"令和"&IA$36&"年"&9))))))) -> 令和年9 | IG86: =IF(OR(IG87="",IG$41=10),"",9) -> 9 | IH86: =IF(OR(IH87="",IJ$41=4),"",IF(AND(II$36>=1,II$36<=4,IG$36=31),"平成"&30&"年"&9,IF(AND(II$36=5,IG$36="元"),"平成"&30&"年"&9,IF(AND(II$36>=6,IG$36="元"),"令和元年"&9,IF(AND(II$36>=1,II$36<=5,IG$36=2),"令和元年"&9,(IF((AND(II$36>=1,II$36<=5)),"令和"&IG$36-1&"年"&9,"令和"&IG$36&"年"&9))))))) -> 令和年9 | II86: =IF(OR(IH87="",IJ$41=4),"",IF(AND(II$36>=1,II$36<=4,IG$36=31),"平成"&30&"年"&9,IF(AND(II$36=5,IG$36="元"),"平成"&30&"年"&9,IF(AND(II$36>=6,IG$36="元"),"令和元年"&9,IF(AND(II$36>=1,II$36<=5,IG$36=2),"令和元年"&9,(IF((AND(II$36>=1,II$36<=5)),"令和"&IG$36-1&"年"&9,"令和"&IG$36&"年"&9))))))) -> 令和年9
B87: =IF(AND(CM21<>"",CM25<>"",CO25<>"",CQ25<>""),CM17,"") ->  | C87: 平 | D87: 9 | E87: 平9 | G87: =IF(OR(G88="",G$41=11),"",10) -> 10 | H87: =IF(OR(H88="",J$41=4),"",IF(AND(I$36>=1,I$36<=4,G$36=31),"平成"&30&"年"&10,IF(AND(I$36=5,G$36="元"),"平成"&30&"年"&10,IF(AND(I$36>=6,G$36="元"),"令和元年"&10,IF(AND(I$36>=1,I$36<=5,G$36=2),"令和元年"&10,(IF((AND(I$36>=1,I$36<=5)),"令和"&G$36-1&"年"&10,"令和"&G$36&"年"&10))))))) -> 令和年10 | I87: =IF(OR(H88="",J$41=4),"",IF(AND(I$36>=1,I$36<=4,G$36=31),"平成"&30&"年"&10,IF(AND(I$36=5,G$36="元"),"平成"&30&"年"&10,IF(AND(I$36>=6,G$36="元"),"令和元年"&10,IF(AND(I$36>=1,I$36<=5,G$36=2),"令和元年"&10,(IF((AND(I$36>=1,I$36<=5)),"令和"&G$36-1&"年"&10,"令和"&G$36&"年"&10))))))) -> 令和年10 | M87: =IF(OR(M88="",M$41=11),"",10) -> 10 | N87: =IF(OR(N88="",P$41=4),"",IF(AND(O$36>=1,O$36<=4,M$36=31),"平成"&30&"年"&10,IF(AND(O$36=5,M$36="元"),"平成"&30&"年"&10,IF(AND(O$36>=6,M$36="元"),"令和元年"&10,IF(AND(O$36>=1,O$36<=5,M$36=2),"令和元年"&10,(IF((AND(O$36>=1,O$36<=5)),"令和"&M$36-1&"年"&10,"令和"&M$36&"年"&10))))))) -> 令和年10 | O87: =IF(OR(N88="",P$41=4),"",IF(AND(O$36>=1,O$36<=4,M$36=31),"平成"&30&"年"&10,IF(AND(O$36=5,M$36="元"),"平成"&30&"年"&10,IF(AND(O$36>=6,M$36="元"),"令和元年"&10,IF(AND(O$36>=1,O$36<=5,M$36=2),"令和元年"&10,(IF((AND(O$36>=1,O$36<=5)),"令和"&M$36-1&"年"&10,"令和"&M$36&"年"&10))))))) -> 令和年10 | S87: =IF(OR(S88="",S$41=11),"",10) -> 10 | T87: =IF(OR(T88="",V$41=4),"",IF(AND(U$36>=1,U$36<=4,S$36=31),"平成"&30&"年"&10,IF(AND(U$36=5,S$36="元"),"平成"&30&"年"&10,IF(AND(U$36>=6,S$36="元"),"令和元年"&10,IF(AND(U$36>=1,U$36<=5,S$36=2),"令和元年"&10,(IF((AND(U$36>=1,U$36<=5)),"令和"&S$36-1&"年"&10,"令和"&S$36&"年"&10))))))) -> 令和年10 | U87: =IF(OR(T88="",V$41=4),"",IF(AND(U$36>=1,U$36<=4,S$36=31),"平成"&30&"年"&10,IF(AND(U$36=5,S$36="元"),"平成"&30&"年"&10,IF(AND(U$36>=6,S$36="元"),"令和元年"&10,IF(AND(U$36>=1,U$36<=5,S$36=2),"令和元年"&10,(IF((AND(U$36>=1,U$36<=5)),"令和"&S$36-1&"年"&10,"令和"&S$36&"年"&10))))))) -> 令和年10 | Y87: =IF(OR(Y88="",Y$41=11),"",10) -> 10 | Z87: =IF(OR(Z88="",AB$41=4),"",IF(AND(AA$36>=1,AA$36<=4,Y$36=31),"平成"&30&"年"&10,IF(AND(AA$36=5,Y$36="元"),"平成"&30&"年"&10,IF(AND(AA$36>=6,Y$36="元"),"令和元年"&10,IF(AND(AA$36>=1,AA$36<=5,Y$36=2),"令和元年"&10,(IF((AND(AA$36>=1,AA$36<=5)),"令和"&Y$36-1&"年"&10,"令和"&Y$36&"年"&10))))))) -> 令和年10 | AA87: =IF(OR(Z88="",AB$41=4),"",IF(AND(AA$36>=1,AA$36<=4,Y$36=31),"平成"&30&"年"&10,IF(AND(AA$36=5,Y$36="元"),"平成"&30&"年"&10,IF(AND(AA$36>=6,Y$36="元"),"令和元年"&10,IF(AND(AA$36>=1,AA$36<=5,Y$36=2),"令和元年"&10,(IF((AND(AA$36>=1,AA$36<=5)),"令和"&Y$36-1&"年"&10,"令和"&Y$36&"年"&10))))))) -> 令和年10 | AE87: =IF(OR(AE88="",AE$41=11),"",10) -> 10 | AF87: =IF(OR(AF88="",AH$41=4),"",IF(AND(AG$36>=1,AG$36<=4,AE$36=31),"平成"&30&"年"&10,IF(AND(AG$36=5,AE$36="元"),"平成"&30&"年"&10,IF(AND(AG$36>=6,AE$36="元"),"令和元年"&10,IF(AND(AG$36>=1,AG$36<=5,AE$36=2),"令和元年"&10,(IF((AND(AG$36>=1,AG$36<=5)),"令和"&AE$36-1&"年"&10,"令和"&AE$36&"年"&10))))))) -> 令和年10 | AG87: =IF(OR(AF88="",AH$41=4),"",IF(AND(AG$36>=1,AG$36<=4,AE$36=31),"平成"&30&"年"&10,IF(AND(AG$36=5,AE$36="元"),"平成"&30&"年"&10,IF(AND(AG$36>=6,AE$36="元"),"令和元年"&10,IF(AND(AG$36>=1,AG$36<=5,AE$36=2),"令和元年"&10,(IF((AND(AG$36>=1,AG$36<=5)),"令和"&AE$36-1&"年"&10,"令和"&AE$36&"年"&10))))))) -> 令和年10 | AK87: =IF(OR(AK88="",AK$41=11),"",10) -> 10 | AL87: =IF(OR(AL88="",AN$41=4),"",IF(AND(AM$36>=1,AM$36<=4,AK$36=31),"平成"&30&"年"&10,IF(AND(AM$36=5,AK$36="元"),"平成"&30&"年"&10,IF(AND(AM$36>=6,AK$36="元"),"令和元年"&10,IF(AND(AM$36>=1,AM$36<=5,AK$36=2),"令和元年"&10,(IF((AND(AM$36>=1,AM$36<=5)),"令和"&AK$36-1&"年"&10,"令和"&AK$36&"年"&10))))))) -> 令和年10 | AM87: =IF(OR(AL88="",AN$41=4),"",IF(AND(AM$36>=1,AM$36<=4,AK$36=31),"平成"&30&"年"&10,IF(AND(AM$36=5,AK$36="元"),"平成"&30&"年"&10,IF(AND(AM$36>=6,AK$36="元"),"令和元年"&10,IF(AND(AM$36>=1,AM$36<=5,AK$36=2),"令和元年"&10,(IF((AND(AM$36>=1,AM$36<=5)),"令和"&AK$36-1&"年"&10,"令和"&AK$36&"年"&10))))))) -> 令和年10 | AQ87: =IF(OR(AQ88="",AQ$41=11),"",10) -> 10 | AR87: =IF(OR(AR88="",AT$41=4),"",IF(AND(AS$36>=1,AS$36<=4,AQ$36=31),"平成"&30&"年"&10,IF(AND(AS$36=5,AQ$36="元"),"平成"&30&"年"&10,IF(AND(AS$36>=6,AQ$36="元"),"令和元年"&10,IF(AND(AS$36>=1,AS$36<=5,AQ$36=2),"令和元年"&10,(IF((AND(AS$36>=1,AS$36<=5)),"令和"&AQ$36-1&"年"&10,"令和"&AQ$36&"年"&10))))))) -> 令和年10 | AS87: =IF(OR(AR88="",AT$41=4),"",IF(AND(AS$36>=1,AS$36<=4,AQ$36=31),"平成"&30&"年"&10,IF(AND(AS$36=5,AQ$36="元"),"平成"&30&"年"&10,IF(AND(AS$36>=6,AQ$36="元"),"令和元年"&10,IF(AND(AS$36>=1,AS$36<=5,AQ$36=2),"令和元年"&10,(IF((AND(AS$36>=1,AS$36<=5)),"令和"&AQ$36-1&"年"&10,"令和"&AQ$36&"年"&10))))))) -> 令和年10 | AW87: =IF(OR(AW88="",AW$41=11),"",10) -> 10 | AX87: =IF(OR(AX88="",AZ$41=4),"",IF(AND(AY$36>=1,AY$36<=4,AW$36=31),"平成"&30&"年"&10,IF(AND(AY$36=5,AW$36="元"),"平成"&30&"年"&10,IF(AND(AY$36>=6,AW$36="元"),"令和元年"&10,IF(AND(AY$36>=1,AY$36<=5,AW$36=2),"令和元年"&10,(IF((AND(AY$36>=1,AY$36<=5)),"令和"&AW$36-1&"年"&10,"令和"&AW$36&"年"&10))))))) -> 令和年10 | AY87: =IF(OR(AX88="",AZ$41=4),"",IF(AND(AY$36>=1,AY$36<=4,AW$36=31),"平成"&30&"年"&10,IF(AND(AY$36=5,AW$36="元"),"平成"&30&"年"&10,IF(AND(AY$36>=6,AW$36="元"),"令和元年"&10,IF(AND(AY$36>=1,AY$36<=5,AW$36=2),"令和元年"&10,(IF((AND(AY$36>=1,AY$36<=5)),"令和"&AW$36-1&"年"&10,"令和"&AW$36&"年"&10))))))) -> 令和年10 | BC87: =IF(OR(BC88="",BC$41=11),"",10) -> 10 | BD87: =IF(OR(BD88="",BF$41=4),"",IF(AND(BE$36>=1,BE$36<=4,BC$36=31),"平成"&30&"年"&10,IF(AND(BE$36=5,BC$36="元"),"平成"&30&"年"&10,IF(AND(BE$36>=6,BC$36="元"),"令和元年"&10,IF(AND(BE$36>=1,BE$36<=5,BC$36=2),"令和元年"&10,(IF((AND(BE$36>=1,BE$36<=5)),"令和"&BC$36-1&"年"&10,"令和"&BC$36&"年"&10))))))) -> 令和年10 | BE87: =IF(OR(BD88="",BF$41=4),"",IF(AND(BE$36>=1,BE$36<=4,BC$36=31),"平成"&30&"年"&10,IF(AND(BE$36=5,BC$36="元"),"平成"&30&"年"&10,IF(AND(BE$36>=6,BC$36="元"),"令和元年"&10,IF(AND(BE$36>=1,BE$36<=5,BC$36=2),"令和元年"&10,(IF((AND(BE$36>=1,BE$36<=5)),"令和"&BC$36-1&"年"&10,"令和"&BC$36&"年"&10))))))) -> 令和年10 | BI87: =IF(OR(BI88="",BI$41=11),"",10) -> 10 | BJ87: =IF(OR(BJ88="",BL$41=4),"",IF(AND(BK$36>=1,BK$36<=4,BI$36=31),"平成"&30&"年"&10,IF(AND(BK$36=5,BI$36="元"),"平成"&30&"年"&10,IF(AND(BK$36>=6,BI$36="元"),"令和元年"&10,IF(AND(BK$36>=1,BK$36<=5,BI$36=2),"令和元年"&10,(IF((AND(BK$36>=1,BK$36<=5)),"令和"&BI$36-1&"年"&10,"令和"&BI$36&"年"&10))))))) -> 令和年10 | BK87: =IF(OR(BJ88="",BL$41=4),"",IF(AND(BK$36>=1,BK$36<=4,BI$36=31),"平成"&30&"年"&10,IF(AND(BK$36=5,BI$36="元"),"平成"&30&"年"&10,IF(AND(BK$36>=6,BI$36="元"),"令和元年"&10,IF(AND(BK$36>=1,BK$36<=5,BI$36=2),"令和元年"&10,(IF((AND(BK$36>=1,BK$36<=5)),"令和"&BI$36-1&"年"&10,"令和"&BI$36&"年"&10))))))) -> 令和年10 | BO87: =IF(OR(BO88="",BO$41=11),"",10) -> 10 | BP87: =IF(OR(BP88="",BR$41=4),"",IF(AND(BQ$36>=1,BQ$36<=4,BO$36=31),"平成"&30&"年"&10,IF(AND(BQ$36=5,BO$36="元"),"平成"&30&"年"&10,IF(AND(BQ$36>=6,BO$36="元"),"令和元年"&10,IF(AND(BQ$36>=1,BQ$36<=5,BO$36=2),"令和元年"&10,(IF((AND(BQ$36>=1,BQ$36<=5)),"令和"&BO$36-1&"年"&10,"令和"&BO$36&"年"&10))))))) -> 令和年10 | BQ87: =IF(OR(BP88="",BR$41=4),"",IF(AND(BQ$36>=1,BQ$36<=4,BO$36=31),"平成"&30&"年"&10,IF(AND(BQ$36=5,BO$36="元"),"平成"&30&"年"&10,IF(AND(BQ$36>=6,BO$36="元"),"令和元年"&10,IF(AND(BQ$36>=1,BQ$36<=5,BO$36=2),"令和元年"&10,(IF((AND(BQ$36>=1,BQ$36<=5)),"令和"&BO$36-1&"年"&10,"令和"&BO$36&"年"&10))))))) -> 令和年10 | BU87: =IF(OR(BU88="",BU$41=11),"",10) -> 10 | BV87: =IF(OR(BV88="",BX$41=4),"",IF(AND(BW$36>=1,BW$36<=4,BU$36=31),"平成"&30&"年"&10,IF(AND(BW$36=5,BU$36="元"),"平成"&30&"年"&10,IF(AND(BW$36>=6,BU$36="元"),"令和元年"&10,IF(AND(BW$36>=1,BW$36<=5,BU$36=2),"令和元年"&10,(IF((AND(BW$36>=1,BW$36<=5)),"令和"&BU$36-1&"年"&10,"令和"&BU$36&"年"&10))))))) -> 令和年10 | BW87: =IF(OR(BV88="",BX$41=4),"",IF(AND(BW$36>=1,BW$36<=4,BU$36=31),"平成"&30&"年"&10,IF(AND(BW$36=5,BU$36="元"),"平成"&30&"年"&10,IF(AND(BW$36>=6,BU$36="元"),"令和元年"&10,IF(AND(BW$36>=1,BW$36<=5,BU$36=2),"令和元年"&10,(IF((AND(BW$36>=1,BW$36<=5)),"令和"&BU$36-1&"年"&10,"令和"&BU$36&"年"&10))))))) -> 令和年10 | CA87: =IF(OR(CA88="",CA$41=11),"",10) -> 10 | CB87: =IF(OR(CB88="",CD$41=4),"",IF(AND(CC$36>=1,CC$36<=4,CA$36=31),"平成"&30&"年"&10,IF(AND(CC$36=5,CA$36="元"),"平成"&30&"年"&10,IF(AND(CC$36>=6,CA$36="元"),"令和元年"&10,IF(AND(CC$36>=1,CC$36<=5,CA$36=2),"令和元年"&10,(IF((AND(CC$36>=1,CC$36<=5)),"令和"&CA$36-1&"年"&10,"令和"&CA$36&"年"&10))))))) -> 令和年10 | CC87: =IF(OR(CB88="",CD$41=4),"",IF(AND(CC$36>=1,CC$36<=4,CA$36=31),"平成"&30&"年"&10,IF(AND(CC$36=5,CA$36="元"),"平成"&30&"年"&10,IF(AND(CC$36>=6,CA$36="元"),"令和元年"&10,IF(AND(CC$36>=1,CC$36<=5,CA$36=2),"令和元年"&10,(IF((AND(CC$36>=1,CC$36<=5)),"令和"&CA$36-1&"年"&10,"令和"&CA$36&"年"&10))))))) -> 令和年10 | CG87: =IF(OR(CG88="",CG$41=11),"",10) -> 10 | CH87: =IF(OR(CH88="",CJ$41=4),"",IF(AND(CI$36>=1,CI$36<=4,CG$36=31),"平成"&30&"年"&10,IF(AND(CI$36=5,CG$36="元"),"平成"&30&"年"&10,IF(AND(CI$36>=6,CG$36="元"),"令和元年"&10,IF(AND(CI$36>=1,CI$36<=5,CG$36=2),"令和元年"&10,(IF((AND(CI$36>=1,CI$36<=5)),"令和"&CG$36-1&"年"&10,"令和"&CG$36&"年"&10))))))) -> 令和年10 | CI87: =IF(OR(CH88="",CJ$41=4),"",IF(AND(CI$36>=1,CI$36<=4,CG$36=31),"平成"&30&"年"&10,IF(AND(CI$36=5,CG$36="元"),"平成"&30&"年"&10,IF(AND(CI$36>=6,CG$36="元"),"令和元年"&10,IF(AND(CI$36>=1,CI$36<=5,CG$36=2),"令和元年"&10,(IF((AND(CI$36>=1,CI$36<=5)),"令和"&CG$36-1&"年"&10,"令和"&CG$36&"年"&10))))))) -> 令和年10 | CM87: =IF(OR(CM88="",CM$41=11),"",10) -> 10 | CN87: =IF(OR(CN88="",CP$41=4),"",IF(AND(CO$36>=1,CO$36<=4,CM$36=31),"平成"&30&"年"&10,IF(AND(CO$36=5,CM$36="元"),"平成"&30&"年"&10,IF(AND(CO$36>=6,CM$36="元"),"令和元年"&10,IF(AND(CO$36>=1,CO$36<=5,CM$36=2),"令和元年"&10,(IF((AND(CO$36>=1,CO$36<=5)),"令和"&CM$36-1&"年"&10,"令和"&CM$36&"年"&10))))))) -> 令和年10 | CO87: =IF(OR(CN88="",CP$41=4),"",IF(AND(CO$36>=1,CO$36<=4,CM$36=31),"平成"&30&"年"&10,IF(AND(CO$36=5,CM$36="元"),"平成"&30&"年"&10,IF(AND(CO$36>=6,CM$36="元"),"令和元年"&10,IF(AND(CO$36>=1,CO$36<=5,CM$36=2),"令和元年"&10,(IF((AND(CO$36>=1,CO$36<=5)),"令和"&CM$36-1&"年"&10,"令和"&CM$36&"年"&10))))))) -> 令和年10 | CS87: =IF(OR(CS88="",CS$41=11),"",10) -> 10 | CT87: =IF(OR(CT88="",CV$41=4),"",IF(AND(CU$36>=1,CU$36<=4,CS$36=31),"平成"&30&"年"&10,IF(AND(CU$36=5,CS$36="元"),"平成"&30&"年"&10,IF(AND(CU$36>=6,CS$36="元"),"令和元年"&10,IF(AND(CU$36>=1,CU$36<=5,CS$36=2),"令和元年"&10,(IF((AND(CU$36>=1,CU$36<=5)),"令和"&CS$36-1&"年"&10,"令和"&CS$36&"年"&10))))))) -> 令和年10 | CU87: =IF(OR(CT88="",CV$41=4),"",IF(AND(CU$36>=1,CU$36<=4,CS$36=31),"平成"&30&"年"&10,IF(AND(CU$36=5,CS$36="元"),"平成"&30&"年"&10,IF(AND(CU$36>=6,CS$36="元"),"令和元年"&10,IF(AND(CU$36>=1,CU$36<=5,CS$36=2),"令和元年"&10,(IF((AND(CU$36>=1,CU$36<=5)),"令和"&CS$36-1&"年"&10,"令和"&CS$36&"年"&10))))))) -> 令和年10 | CY87: =IF(OR(CY88="",CY$41=11),"",10) -> 10 | CZ87: =IF(OR(CZ88="",DB$41=4),"",IF(AND(DA$36>=1,DA$36<=4,CY$36=31),"平成"&30&"年"&10,IF(AND(DA$36=5,CY$36="元"),"平成"&30&"年"&10,IF(AND(DA$36>=6,CY$36="元"),"令和元年"&10,IF(AND(DA$36>=1,DA$36<=5,CY$36=2),"令和元年"&10,(IF((AND(DA$36>=1,DA$36<=5)),"令和"&CY$36-1&"年"&10,"令和"&CY$36&"年"&10))))))) -> 令和年10 | DA87: =IF(OR(CZ88="",DB$41=4),"",IF(AND(DA$36>=1,DA$36<=4,CY$36=31),"平成"&30&"年"&10,IF(AND(DA$36=5,CY$36="元"),"平成"&30&"年"&10,IF(AND(DA$36>=6,CY$36="元"),"令和元年"&10,IF(AND(DA$36>=1,DA$36<=5,CY$36=2),"令和元年"&10,(IF((AND(DA$36>=1,DA$36<=5)),"令和"&CY$36-1&"年"&10,"令和"&CY$36&"年"&10))))))) -> 令和年10 | DE87: =IF(OR(DE88="",DE$41=11),"",10) -> 10 | DF87: =IF(OR(DF88="",DH$41=4),"",IF(AND(DG$36>=1,DG$36<=4,DE$36=31),"平成"&30&"年"&10,IF(AND(DG$36=5,DE$36="元"),"平成"&30&"年"&10,IF(AND(DG$36>=6,DE$36="元"),"令和元年"&10,IF(AND(DG$36>=1,DG$36<=5,DE$36=2),"令和元年"&10,(IF((AND(DG$36>=1,DG$36<=5)),"令和"&DE$36-1&"年"&10,"令和"&DE$36&"年"&10))))))) -> 令和年10 | DG87: =IF(OR(DF88="",DH$41=4),"",IF(AND(DG$36>=1,DG$36<=4,DE$36=31),"平成"&30&"年"&10,IF(AND(DG$36=5,DE$36="元"),"平成"&30&"年"&10,IF(AND(DG$36>=6,DE$36="元"),"令和元年"&10,IF(AND(DG$36>=1,DG$36<=5,DE$36=2),"令和元年"&10,(IF((AND(DG$36>=1,DG$36<=5)),"令和"&DE$36-1&"年"&10,"令和"&DE$36&"年"&10))))))) -> 令和年10 | DK87: =IF(OR(DK88="",DK$41=11),"",10) -> 10 | DL87: =IF(OR(DL88="",DN$41=4),"",IF(AND(DM$36>=1,DM$36<=4,DK$36=31),"平成"&30&"年"&10,IF(AND(DM$36=5,DK$36="元"),"平成"&30&"年"&10,IF(AND(DM$36>=6,DK$36="元"),"令和元年"&10,IF(AND(DM$36>=1,DM$36<=5,DK$36=2),"令和元年"&10,(IF((AND(DM$36>=1,DM$36<=5)),"令和"&DK$36-1&"年"&10,"令和"&DK$36&"年"&10))))))) -> 令和年10 | DM87: =IF(OR(DL88="",DN$41=4),"",IF(AND(DM$36>=1,DM$36<=4,DK$36=31),"平成"&30&"年"&10,IF(AND(DM$36=5,DK$36="元"),"平成"&30&"年"&10,IF(AND(DM$36>=6,DK$36="元"),"令和元年"&10,IF(AND(DM$36>=1,DM$36<=5,DK$36=2),"令和元年"&10,(IF((AND(DM$36>=1,DM$36<=5)),"令和"&DK$36-1&"年"&10,"令和"&DK$36&"年"&10))))))) -> 令和年10 | DQ87: =IF(OR(DQ88="",DQ$41=11),"",10) -> 10 | DR87: =IF(OR(DR88="",DT$41=4),"",IF(AND(DS$36>=1,DS$36<=4,DQ$36=31),"平成"&30&"年"&10,IF(AND(DS$36=5,DQ$36="元"),"平成"&30&"年"&10,IF(AND(DS$36>=6,DQ$36="元"),"令和元年"&10,IF(AND(DS$36>=1,DS$36<=5,DQ$36=2),"令和元年"&10,(IF((AND(DS$36>=1,DS$36<=5)),"令和"&DQ$36-1&"年"&10,"令和"&DQ$36&"年"&10))))))) -> 令和年10 | DS87: =IF(OR(DR88="",DT$41=4),"",IF(AND(DS$36>=1,DS$36<=4,DQ$36=31),"平成"&30&"年"&10,IF(AND(DS$36=5,DQ$36="元"),"平成"&30&"年"&10,IF(AND(DS$36>=6,DQ$36="元"),"令和元年"&10,IF(AND(DS$36>=1,DS$36<=5,DQ$36=2),"令和元年"&10,(IF((AND(DS$36>=1,DS$36<=5)),"令和"&DQ$36-1&"年"&10,"令和"&DQ$36&"年"&10))))))) -> 令和年10 | DW87: =IF(OR(DW88="",DW$41=11),"",10) -> 10 | DX87: =IF(OR(DX88="",DZ$41=4),"",IF(AND(DY$36>=1,DY$36<=4,DW$36=31),"平成"&30&"年"&10,IF(AND(DY$36=5,DW$36="元"),"平成"&30&"年"&10,IF(AND(DY$36>=6,DW$36="元"),"令和元年"&10,IF(AND(DY$36>=1,DY$36<=5,DW$36=2),"令和元年"&10,(IF((AND(DY$36>=1,DY$36<=5)),"令和"&DW$36-1&"年"&10,"令和"&DW$36&"年"&10))))))) -> 令和年10 | DY87: =IF(OR(DX88="",DZ$41=4),"",IF(AND(DY$36>=1,DY$36<=4,DW$36=31),"平成"&30&"年"&10,IF(AND(DY$36=5,DW$36="元"),"平成"&30&"年"&10,IF(AND(DY$36>=6,DW$36="元"),"令和元年"&10,IF(AND(DY$36>=1,DY$36<=5,DW$36=2),"令和元年"&10,(IF((AND(DY$36>=1,DY$36<=5)),"令和"&DW$36-1&"年"&10,"令和"&DW$36&"年"&10))))))) -> 令和年10 | EC87: =IF(OR(EC88="",EC$41=11),"",10) -> 10 | ED87: =IF(OR(ED88="",EF$41=4),"",IF(AND(EE$36>=1,EE$36<=4,EC$36=31),"平成"&30&"年"&10,IF(AND(EE$36=5,EC$36="元"),"平成"&30&"年"&10,IF(AND(EE$36>=6,EC$36="元"),"令和元年"&10,IF(AND(EE$36>=1,EE$36<=5,EC$36=2),"令和元年"&10,(IF((AND(EE$36>=1,EE$36<=5)),"令和"&EC$36-1&"年"&10,"令和"&EC$36&"年"&10))))))) -> 令和年10 | EE87: =IF(OR(ED88="",EF$41=4),"",IF(AND(EE$36>=1,EE$36<=4,EC$36=31),"平成"&30&"年"&10,IF(AND(EE$36=5,EC$36="元"),"平成"&30&"年"&10,IF(AND(EE$36>=6,EC$36="元"),"令和元年"&10,IF(AND(EE$36>=1,EE$36<=5,EC$36=2),"令和元年"&10,(IF((AND(EE$36>=1,EE$36<=5)),"令和"&EC$36-1&"年"&10,"令和"&EC$36&"年"&10))))))) -> 令和年10 | EI87: =IF(OR(EI88="",EI$41=11),"",10) -> 10 | EJ87: =IF(OR(EJ88="",EL$41=4),"",IF(AND(EK$36>=1,EK$36<=4,EI$36=31),"平成"&30&"年"&10,IF(AND(EK$36=5,EI$36="元"),"平成"&30&"年"&10,IF(AND(EK$36>=6,EI$36="元"),"令和元年"&10,IF(AND(EK$36>=1,EK$36<=5,EI$36=2),"令和元年"&10,(IF((AND(EK$36>=1,EK$36<=5)),"令和"&EI$36-1&"年"&10,"令和"&EI$36&"年"&10))))))) -> 令和年10 | EK87: =IF(OR(EJ88="",EL$41=4),"",IF(AND(EK$36>=1,EK$36<=4,EI$36=31),"平成"&30&"年"&10,IF(AND(EK$36=5,EI$36="元"),"平成"&30&"年"&10,IF(AND(EK$36>=6,EI$36="元"),"令和元年"&10,IF(AND(EK$36>=1,EK$36<=5,EI$36=2),"令和元年"&10,(IF((AND(EK$36>=1,EK$36<=5)),"令和"&EI$36-1&"年"&10,"令和"&EI$36&"年"&10))))))) -> 令和年10 | EO87: =IF(OR(EO88="",EO$41=11),"",10) -> 10 | EP87: =IF(OR(EP88="",ER$41=4),"",IF(AND(EQ$36>=1,EQ$36<=4,EO$36=31),"平成"&30&"年"&10,IF(AND(EQ$36=5,EO$36="元"),"平成"&30&"年"&10,IF(AND(EQ$36>=6,EO$36="元"),"令和元年"&10,IF(AND(EQ$36>=1,EQ$36<=5,EO$36=2),"令和元年"&10,(IF((AND(EQ$36>=1,EQ$36<=5)),"令和"&EO$36-1&"年"&10,"令和"&EO$36&"年"&10))))))) -> 令和年10 | EQ87: =IF(OR(EP88="",ER$41=4),"",IF(AND(EQ$36>=1,EQ$36<=4,EO$36=31),"平成"&30&"年"&10,IF(AND(EQ$36=5,EO$36="元"),"平成"&30&"年"&10,IF(AND(EQ$36>=6,EO$36="元"),"令和元年"&10,IF(AND(EQ$36>=1,EQ$36<=5,EO$36=2),"令和元年"&10,(IF((AND(EQ$36>=1,EQ$36<=5)),"令和"&EO$36-1&"年"&10,"令和"&EO$36&"年"&10))))))) -> 令和年10 | EU87: =IF(OR(EU88="",EU$41=11),"",10) -> 10 | EV87: =IF(OR(EV88="",EX$41=4),"",IF(AND(EW$36>=1,EW$36<=4,EU$36=31),"平成"&30&"年"&10,IF(AND(EW$36=5,EU$36="元"),"平成"&30&"年"&10,IF(AND(EW$36>=6,EU$36="元"),"令和元年"&10,IF(AND(EW$36>=1,EW$36<=5,EU$36=2),"令和元年"&10,(IF((AND(EW$36>=1,EW$36<=5)),"令和"&EU$36-1&"年"&10,"令和"&EU$36&"年"&10))))))) -> 令和年10 | EW87: =IF(OR(EV88="",EX$41=4),"",IF(AND(EW$36>=1,EW$36<=4,EU$36=31),"平成"&30&"年"&10,IF(AND(EW$36=5,EU$36="元"),"平成"&30&"年"&10,IF(AND(EW$36>=6,EU$36="元"),"令和元年"&10,IF(AND(EW$36>=1,EW$36<=5,EU$36=2),"令和元年"&10,(IF((AND(EW$36>=1,EW$36<=5)),"令和"&EU$36-1&"年"&10,"令和"&EU$36&"年"&10))))))) -> 令和年10 | FA87: =IF(OR(FA88="",FA$41=11),"",10) -> 10 | FB87: =IF(OR(FB88="",FD$41=4),"",IF(AND(FC$36>=1,FC$36<=4,FA$36=31),"平成"&30&"年"&10,IF(AND(FC$36=5,FA$36="元"),"平成"&30&"年"&10,IF(AND(FC$36>=6,FA$36="元"),"令和元年"&10,IF(AND(FC$36>=1,FC$36<=5,FA$36=2),"令和元年"&10,(IF((AND(FC$36>=1,FC$36<=5)),"令和"&FA$36-1&"年"&10,"令和"&FA$36&"年"&10))))))) -> 令和年10 | FC87: =IF(OR(FB88="",FD$41=4),"",IF(AND(FC$36>=1,FC$36<=4,FA$36=31),"平成"&30&"年"&10,IF(AND(FC$36=5,FA$36="元"),"平成"&30&"年"&10,IF(AND(FC$36>=6,FA$36="元"),"令和元年"&10,IF(AND(FC$36>=1,FC$36<=5,FA$36=2),"令和元年"&10,(IF((AND(FC$36>=1,FC$36<=5)),"令和"&FA$36-1&"年"&10,"令和"&FA$36&"年"&10))))))) -> 令和年10 | FG87: =IF(OR(FG88="",FG$41=11),"",10) -> 10 | FH87: =IF(OR(FH88="",FJ$41=4),"",IF(AND(FI$36>=1,FI$36<=4,FG$36=31),"平成"&30&"年"&10,IF(AND(FI$36=5,FG$36="元"),"平成"&30&"年"&10,IF(AND(FI$36>=6,FG$36="元"),"令和元年"&10,IF(AND(FI$36>=1,FI$36<=5,FG$36=2),"令和元年"&10,(IF((AND(FI$36>=1,FI$36<=5)),"令和"&FG$36-1&"年"&10,"令和"&FG$36&"年"&10))))))) -> 令和年10 | FI87: =IF(OR(FH88="",FJ$41=4),"",IF(AND(FI$36>=1,FI$36<=4,FG$36=31),"平成"&30&"年"&10,IF(AND(FI$36=5,FG$36="元"),"平成"&30&"年"&10,IF(AND(FI$36>=6,FG$36="元"),"令和元年"&10,IF(AND(FI$36>=1,FI$36<=5,FG$36=2),"令和元年"&10,(IF((AND(FI$36>=1,FI$36<=5)),"令和"&FG$36-1&"年"&10,"令和"&FG$36&"年"&10))))))) -> 令和年10 | FM87: =IF(OR(FM88="",FM$41=11),"",10) -> 10 | FN87: =IF(OR(FN88="",FP$41=4),"",IF(AND(FO$36>=1,FO$36<=4,FM$36=31),"平成"&30&"年"&10,IF(AND(FO$36=5,FM$36="元"),"平成"&30&"年"&10,IF(AND(FO$36>=6,FM$36="元"),"令和元年"&10,IF(AND(FO$36>=1,FO$36<=5,FM$36=2),"令和元年"&10,(IF((AND(FO$36>=1,FO$36<=5)),"令和"&FM$36-1&"年"&10,"令和"&FM$36&"年"&10))))))) -> 令和年10 | FO87: =IF(OR(FN88="",FP$41=4),"",IF(AND(FO$36>=1,FO$36<=4,FM$36=31),"平成"&30&"年"&10,IF(AND(FO$36=5,FM$36="元"),"平成"&30&"年"&10,IF(AND(FO$36>=6,FM$36="元"),"令和元年"&10,IF(AND(FO$36>=1,FO$36<=5,FM$36=2),"令和元年"&10,(IF((AND(FO$36>=1,FO$36<=5)),"令和"&FM$36-1&"年"&10,"令和"&FM$36&"年"&10))))))) -> 令和年10 | FS87: =IF(OR(FS88="",FS$41=11),"",10) -> 10 | FT87: =IF(OR(FT88="",FV$41=4),"",IF(AND(FU$36>=1,FU$36<=4,FS$36=31),"平成"&30&"年"&10,IF(AND(FU$36=5,FS$36="元"),"平成"&30&"年"&10,IF(AND(FU$36>=6,FS$36="元"),"令和元年"&10,IF(AND(FU$36>=1,FU$36<=5,FS$36=2),"令和元年"&10,(IF((AND(FU$36>=1,FU$36<=5)),"令和"&FS$36-1&"年"&10,"令和"&FS$36&"年"&10))))))) -> 令和年10 | FU87: =IF(OR(FT88="",FV$41=4),"",IF(AND(FU$36>=1,FU$36<=4,FS$36=31),"平成"&30&"年"&10,IF(AND(FU$36=5,FS$36="元"),"平成"&30&"年"&10,IF(AND(FU$36>=6,FS$36="元"),"令和元年"&10,IF(AND(FU$36>=1,FU$36<=5,FS$36=2),"令和元年"&10,(IF((AND(FU$36>=1,FU$36<=5)),"令和"&FS$36-1&"年"&10,"令和"&FS$36&"年"&10))))))) -> 令和年10 | FY87: =IF(OR(FY88="",FY$41=11),"",10) -> 10 | FZ87: =IF(OR(FZ88="",GB$41=4),"",IF(AND(GA$36>=1,GA$36<=4,FY$36=31),"平成"&30&"年"&10,IF(AND(GA$36=5,FY$36="元"),"平成"&30&"年"&10,IF(AND(GA$36>=6,FY$36="元"),"令和元年"&10,IF(AND(GA$36>=1,GA$36<=5,FY$36=2),"令和元年"&10,(IF((AND(GA$36>=1,GA$36<=5)),"令和"&FY$36-1&"年"&10,"令和"&FY$36&"年"&10))))))) -> 令和年10 | GA87: =IF(OR(FZ88="",GB$41=4),"",IF(AND(GA$36>=1,GA$36<=4,FY$36=31),"平成"&30&"年"&10,IF(AND(GA$36=5,FY$36="元"),"平成"&30&"年"&10,IF(AND(GA$36>=6,FY$36="元"),"令和元年"&10,IF(AND(GA$36>=1,GA$36<=5,FY$36=2),"令和元年"&10,(IF((AND(GA$36>=1,GA$36<=5)),"令和"&FY$36-1&"年"&10,"令和"&FY$36&"年"&10))))))) -> 令和年10 | GE87: =IF(OR(GE88="",GE$41=11),"",10) -> 10 | GF87: =IF(OR(GF88="",GH$41=4),"",IF(AND(GG$36>=1,GG$36<=4,GE$36=31),"平成"&30&"年"&10,IF(AND(GG$36=5,GE$36="元"),"平成"&30&"年"&10,IF(AND(GG$36>=6,GE$36="元"),"令和元年"&10,IF(AND(GG$36>=1,GG$36<=5,GE$36=2),"令和元年"&10,(IF((AND(GG$36>=1,GG$36<=5)),"令和"&GE$36-1&"年"&10,"令和"&GE$36&"年"&10))))))) -> 令和年10 | GG87: =IF(OR(GF88="",GH$41=4),"",IF(AND(GG$36>=1,GG$36<=4,GE$36=31),"平成"&30&"年"&10,IF(AND(GG$36=5,GE$36="元"),"平成"&30&"年"&10,IF(AND(GG$36>=6,GE$36="元"),"令和元年"&10,IF(AND(GG$36>=1,GG$36<=5,GE$36=2),"令和元年"&10,(IF((AND(GG$36>=1,GG$36<=5)),"令和"&GE$36-1&"年"&10,"令和"&GE$36&"年"&10))))))) -> 令和年10 | GK87: =IF(OR(GK88="",GK$41=11),"",10) -> 10 | GL87: =IF(OR(GL88="",GN$41=4),"",IF(AND(GM$36>=1,GM$36<=4,GK$36=31),"平成"&30&"年"&10,IF(AND(GM$36=5,GK$36="元"),"平成"&30&"年"&10,IF(AND(GM$36>=6,GK$36="元"),"令和元年"&10,IF(AND(GM$36>=1,GM$36<=5,GK$36=2),"令和元年"&10,(IF((AND(GM$36>=1,GM$36<=5)),"令和"&GK$36-1&"年"&10,"令和"&GK$36&"年"&10))))))) -> 令和年10 | GM87: =IF(OR(GL88="",GN$41=4),"",IF(AND(GM$36>=1,GM$36<=4,GK$36=31),"平成"&30&"年"&10,IF(AND(GM$36=5,GK$36="元"),"平成"&30&"年"&10,IF(AND(GM$36>=6,GK$36="元"),"令和元年"&10,IF(AND(GM$36>=1,GM$36<=5,GK$36=2),"令和元年"&10,(IF((AND(GM$36>=1,GM$36<=5)),"令和"&GK$36-1&"年"&10,"令和"&GK$36&"年"&10))))))) -> 令和年10 | GQ87: =IF(OR(GQ88="",GQ$41=11),"",10) -> 10 | GR87: =IF(OR(GR88="",GT$41=4),"",IF(AND(GS$36>=1,GS$36<=4,GQ$36=31),"平成"&30&"年"&10,IF(AND(GS$36=5,GQ$36="元"),"平成"&30&"年"&10,IF(AND(GS$36>=6,GQ$36="元"),"令和元年"&10,IF(AND(GS$36>=1,GS$36<=5,GQ$36=2),"令和元年"&10,(IF((AND(GS$36>=1,GS$36<=5)),"令和"&GQ$36-1&"年"&10,"令和"&GQ$36&"年"&10))))))) -> 令和年10 | GS87: =IF(OR(GR88="",GT$41=4),"",IF(AND(GS$36>=1,GS$36<=4,GQ$36=31),"平成"&30&"年"&10,IF(AND(GS$36=5,GQ$36="元"),"平成"&30&"年"&10,IF(AND(GS$36>=6,GQ$36="元"),"令和元年"&10,IF(AND(GS$36>=1,GS$36<=5,GQ$36=2),"令和元年"&10,(IF((AND(GS$36>=1,GS$36<=5)),"令和"&GQ$36-1&"年"&10,"令和"&GQ$36&"年"&10))))))) -> 令和年10 | GW87: =IF(OR(GW88="",GW$41=11),"",10) -> 10 | GX87: =IF(OR(GX88="",GZ$41=4),"",IF(AND(GY$36>=1,GY$36<=4,GW$36=31),"平成"&30&"年"&10,IF(AND(GY$36=5,GW$36="元"),"平成"&30&"年"&10,IF(AND(GY$36>=6,GW$36="元"),"令和元年"&10,IF(AND(GY$36>=1,GY$36<=5,GW$36=2),"令和元年"&10,(IF((AND(GY$36>=1,GY$36<=5)),"令和"&GW$36-1&"年"&10,"令和"&GW$36&"年"&10))))))) -> 令和年10 | GY87: =IF(OR(GX88="",GZ$41=4),"",IF(AND(GY$36>=1,GY$36<=4,GW$36=31),"平成"&30&"年"&10,IF(AND(GY$36=5,GW$36="元"),"平成"&30&"年"&10,IF(AND(GY$36>=6,GW$36="元"),"令和元年"&10,IF(AND(GY$36>=1,GY$36<=5,GW$36=2),"令和元年"&10,(IF((AND(GY$36>=1,GY$36<=5)),"令和"&GW$36-1&"年"&10,"令和"&GW$36&"年"&10))))))) -> 令和年10 | HC87: =IF(OR(HC88="",HC$41=11),"",10) -> 10 | HD87: =IF(OR(HD88="",HF$41=4),"",IF(AND(HE$36>=1,HE$36<=4,HC$36=31),"平成"&30&"年"&10,IF(AND(HE$36=5,HC$36="元"),"平成"&30&"年"&10,IF(AND(HE$36>=6,HC$36="元"),"令和元年"&10,IF(AND(HE$36>=1,HE$36<=5,HC$36=2),"令和元年"&10,(IF((AND(HE$36>=1,HE$36<=5)),"令和"&HC$36-1&"年"&10,"令和"&HC$36&"年"&10))))))) -> 令和年10 | HE87: =IF(OR(HD88="",HF$41=4),"",IF(AND(HE$36>=1,HE$36<=4,HC$36=31),"平成"&30&"年"&10,IF(AND(HE$36=5,HC$36="元"),"平成"&30&"年"&10,IF(AND(HE$36>=6,HC$36="元"),"令和元年"&10,IF(AND(HE$36>=1,HE$36<=5,HC$36=2),"令和元年"&10,(IF((AND(HE$36>=1,HE$36<=5)),"令和"&HC$36-1&"年"&10,"令和"&HC$36&"年"&10))))))) -> 令和年10 | HI87: =IF(OR(HI88="",HI$41=11),"",10) -> 10 | HJ87: =IF(OR(HJ88="",HL$41=4),"",IF(AND(HK$36>=1,HK$36<=4,HI$36=31),"平成"&30&"年"&10,IF(AND(HK$36=5,HI$36="元"),"平成"&30&"年"&10,IF(AND(HK$36>=6,HI$36="元"),"令和元年"&10,IF(AND(HK$36>=1,HK$36<=5,HI$36=2),"令和元年"&10,(IF((AND(HK$36>=1,HK$36<=5)),"令和"&HI$36-1&"年"&10,"令和"&HI$36&"年"&10))))))) -> 令和年10 | HK87: =IF(OR(HJ88="",HL$41=4),"",IF(AND(HK$36>=1,HK$36<=4,HI$36=31),"平成"&30&"年"&10,IF(AND(HK$36=5,HI$36="元"),"平成"&30&"年"&10,IF(AND(HK$36>=6,HI$36="元"),"令和元年"&10,IF(AND(HK$36>=1,HK$36<=5,HI$36=2),"令和元年"&10,(IF((AND(HK$36>=1,HK$36<=5)),"令和"&HI$36-1&"年"&10,"令和"&HI$36&"年"&10))))))) -> 令和年10 | HO87: =IF(OR(HO88="",HO$41=11),"",10) -> 10 | HP87: =IF(OR(HP88="",HR$41=4),"",IF(AND(HQ$36>=1,HQ$36<=4,HO$36=31),"平成"&30&"年"&10,IF(AND(HQ$36=5,HO$36="元"),"平成"&30&"年"&10,IF(AND(HQ$36>=6,HO$36="元"),"令和元年"&10,IF(AND(HQ$36>=1,HQ$36<=5,HO$36=2),"令和元年"&10,(IF((AND(HQ$36>=1,HQ$36<=5)),"令和"&HO$36-1&"年"&10,"令和"&HO$36&"年"&10))))))) -> 令和年10 | HQ87: =IF(OR(HP88="",HR$41=4),"",IF(AND(HQ$36>=1,HQ$36<=4,HO$36=31),"平成"&30&"年"&10,IF(AND(HQ$36=5,HO$36="元"),"平成"&30&"年"&10,IF(AND(HQ$36>=6,HO$36="元"),"令和元年"&10,IF(AND(HQ$36>=1,HQ$36<=5,HO$36=2),"令和元年"&10,(IF((AND(HQ$36>=1,HQ$36<=5)),"令和"&HO$36-1&"年"&10,"令和"&HO$36&"年"&10))))))) -> 令和年10 | HU87: =IF(OR(HU88="",HU$41=11),"",10) -> 10 | HV87: =IF(OR(HV88="",HX$41=4),"",IF(AND(HW$36>=1,HW$36<=4,HU$36=31),"平成"&30&"年"&10,IF(AND(HW$36=5,HU$36="元"),"平成"&30&"年"&10,IF(AND(HW$36>=6,HU$36="元"),"令和元年"&10,IF(AND(HW$36>=1,HW$36<=5,HU$36=2),"令和元年"&10,(IF((AND(HW$36>=1,HW$36<=5)),"令和"&HU$36-1&"年"&10,"令和"&HU$36&"年"&10))))))) -> 令和年10 | HW87: =IF(OR(HV88="",HX$41=4),"",IF(AND(HW$36>=1,HW$36<=4,HU$36=31),"平成"&30&"年"&10,IF(AND(HW$36=5,HU$36="元"),"平成"&30&"年"&10,IF(AND(HW$36>=6,HU$36="元"),"令和元年"&10,IF(AND(HW$36>=1,HW$36<=5,HU$36=2),"令和元年"&10,(IF((AND(HW$36>=1,HW$36<=5)),"令和"&HU$36-1&"年"&10,"令和"&HU$36&"年"&10))))))) -> 令和年10 | IA87: =IF(OR(IA88="",IA$41=11),"",10) -> 10 | IB87: =IF(OR(IB88="",ID$41=4),"",IF(AND(IC$36>=1,IC$36<=4,IA$36=31),"平成"&30&"年"&10,IF(AND(IC$36=5,IA$36="元"),"平成"&30&"年"&10,IF(AND(IC$36>=6,IA$36="元"),"令和元年"&10,IF(AND(IC$36>=1,IC$36<=5,IA$36=2),"令和元年"&10,(IF((AND(IC$36>=1,IC$36<=5)),"令和"&IA$36-1&"年"&10,"令和"&IA$36&"年"&10))))))) -> 令和年10 | IC87: =IF(OR(IB88="",ID$41=4),"",IF(AND(IC$36>=1,IC$36<=4,IA$36=31),"平成"&30&"年"&10,IF(AND(IC$36=5,IA$36="元"),"平成"&30&"年"&10,IF(AND(IC$36>=6,IA$36="元"),"令和元年"&10,IF(AND(IC$36>=1,IC$36<=5,IA$36=2),"令和元年"&10,(IF((AND(IC$36>=1,IC$36<=5)),"令和"&IA$36-1&"年"&10,"令和"&IA$36&"年"&10))))))) -> 令和年10 | IG87: =IF(OR(IG88="",IG$41=11),"",10) -> 10 | IH87: =IF(OR(IH88="",IJ$41=4),"",IF(AND(II$36>=1,II$36<=4,IG$36=31),"平成"&30&"年"&10,IF(AND(II$36=5,IG$36="元"),"平成"&30&"年"&10,IF(AND(II$36>=6,IG$36="元"),"令和元年"&10,IF(AND(II$36>=1,II$36<=5,IG$36=2),"令和元年"&10,(IF((AND(II$36>=1,II$36<=5)),"令和"&IG$36-1&"年"&10,"令和"&IG$36&"年"&10))))))) -> 令和年10 | II87: =IF(OR(IH88="",IJ$41=4),"",IF(AND(II$36>=1,II$36<=4,IG$36=31),"平成"&30&"年"&10,IF(AND(II$36=5,IG$36="元"),"平成"&30&"年"&10,IF(AND(II$36>=6,IG$36="元"),"令和元年"&10,IF(AND(II$36>=1,II$36<=5,IG$36=2),"令和元年"&10,(IF((AND(II$36>=1,II$36<=5)),"令和"&IG$36-1&"年"&10,"令和"&IG$36&"年"&10))))))) -> 令和年10
B88: =IF(AND(CS21<>"",CS25<>"",CU25<>"",CW25<>""),CS17,"") ->  | C88: 平 | D88: 8 | E88: 平8 | G88: =IF(OR(G89="",G$41=12),"",11) -> 11 | H88: =IF(OR(H89="",J$41=4),"",IF(AND(I$36>=1,I$36<=4,G$36=31),"平成"&30&"年"&11,IF(AND(I$36=5,G$36="元"),"平成"&30&"年"&11,IF(AND(I$36>=6,G$36="元"),"令和元年"&11,IF(AND(I$36>=1,I$36<=5,G$36=2),"令和元年"&11,(IF((AND(I$36>=1,I$36<=5)),"令和"&G$36-1&"年"&11,"令和"&G$36&"年"&11))))))) -> 令和年11 | I88: =IF(OR(H89="",J$41=4),"",IF(AND(I$36>=1,I$36<=4,G$36=31),"平成"&30&"年"&11,IF(AND(I$36=5,G$36="元"),"平成"&30&"年"&11,IF(AND(I$36>=6,G$36="元"),"令和元年"&11,IF(AND(I$36>=1,I$36<=5,G$36=2),"令和元年"&11,(IF((AND(I$36>=1,I$36<=5)),"令和"&G$36-1&"年"&11,"令和"&G$36&"年"&11))))))) -> 令和年11 | M88: =IF(OR(M89="",M$41=12),"",11) -> 11 | N88: =IF(OR(N89="",P$41=4),"",IF(AND(O$36>=1,O$36<=4,M$36=31),"平成"&30&"年"&11,IF(AND(O$36=5,M$36="元"),"平成"&30&"年"&11,IF(AND(O$36>=6,M$36="元"),"令和元年"&11,IF(AND(O$36>=1,O$36<=5,M$36=2),"令和元年"&11,(IF((AND(O$36>=1,O$36<=5)),"令和"&M$36-1&"年"&11,"令和"&M$36&"年"&11))))))) -> 令和年11 | O88: =IF(OR(N89="",P$41=4),"",IF(AND(O$36>=1,O$36<=4,M$36=31),"平成"&30&"年"&11,IF(AND(O$36=5,M$36="元"),"平成"&30&"年"&11,IF(AND(O$36>=6,M$36="元"),"令和元年"&11,IF(AND(O$36>=1,O$36<=5,M$36=2),"令和元年"&11,(IF((AND(O$36>=1,O$36<=5)),"令和"&M$36-1&"年"&11,"令和"&M$36&"年"&11))))))) -> 令和年11 | S88: =IF(OR(S89="",S$41=12),"",11) -> 11 | T88: =IF(OR(T89="",V$41=4),"",IF(AND(U$36>=1,U$36<=4,S$36=31),"平成"&30&"年"&11,IF(AND(U$36=5,S$36="元"),"平成"&30&"年"&11,IF(AND(U$36>=6,S$36="元"),"令和元年"&11,IF(AND(U$36>=1,U$36<=5,S$36=2),"令和元年"&11,(IF((AND(U$36>=1,U$36<=5)),"令和"&S$36-1&"年"&11,"令和"&S$36&"年"&11))))))) -> 令和年11 | U88: =IF(OR(T89="",V$41=4),"",IF(AND(U$36>=1,U$36<=4,S$36=31),"平成"&30&"年"&11,IF(AND(U$36=5,S$36="元"),"平成"&30&"年"&11,IF(AND(U$36>=6,S$36="元"),"令和元年"&11,IF(AND(U$36>=1,U$36<=5,S$36=2),"令和元年"&11,(IF((AND(U$36>=1,U$36<=5)),"令和"&S$36-1&"年"&11,"令和"&S$36&"年"&11))))))) -> 令和年11 | Y88: =IF(OR(Y89="",Y$41=12),"",11) -> 11 | Z88: =IF(OR(Z89="",AB$41=4),"",IF(AND(AA$36>=1,AA$36<=4,Y$36=31),"平成"&30&"年"&11,IF(AND(AA$36=5,Y$36="元"),"平成"&30&"年"&11,IF(AND(AA$36>=6,Y$36="元"),"令和元年"&11,IF(AND(AA$36>=1,AA$36<=5,Y$36=2),"令和元年"&11,(IF((AND(AA$36>=1,AA$36<=5)),"令和"&Y$36-1&"年"&11,"令和"&Y$36&"年"&11))))))) -> 令和年11 | AA88: =IF(OR(Z89="",AB$41=4),"",IF(AND(AA$36>=1,AA$36<=4,Y$36=31),"平成"&30&"年"&11,IF(AND(AA$36=5,Y$36="元"),"平成"&30&"年"&11,IF(AND(AA$36>=6,Y$36="元"),"令和元年"&11,IF(AND(AA$36>=1,AA$36<=5,Y$36=2),"令和元年"&11,(IF((AND(AA$36>=1,AA$36<=5)),"令和"&Y$36-1&"年"&11,"令和"&Y$36&"年"&11))))))) -> 令和年11 | AE88: =IF(OR(AE89="",AE$41=12),"",11) -> 11 | AF88: =IF(OR(AF89="",AH$41=4),"",IF(AND(AG$36>=1,AG$36<=4,AE$36=31),"平成"&30&"年"&11,IF(AND(AG$36=5,AE$36="元"),"平成"&30&"年"&11,IF(AND(AG$36>=6,AE$36="元"),"令和元年"&11,IF(AND(AG$36>=1,AG$36<=5,AE$36=2),"令和元年"&11,(IF((AND(AG$36>=1,AG$36<=5)),"令和"&AE$36-1&"年"&11,"令和"&AE$36&"年"&11))))))) -> 令和年11 | AG88: =IF(OR(AF89="",AH$41=4),"",IF(AND(AG$36>=1,AG$36<=4,AE$36=31),"平成"&30&"年"&11,IF(AND(AG$36=5,AE$36="元"),"平成"&30&"年"&11,IF(AND(AG$36>=6,AE$36="元"),"令和元年"&11,IF(AND(AG$36>=1,AG$36<=5,AE$36=2),"令和元年"&11,(IF((AND(AG$36>=1,AG$36<=5)),"令和"&AE$36-1&"年"&11,"令和"&AE$36&"年"&11))))))) -> 令和年11 | AK88: =IF(OR(AK89="",AK$41=12),"",11) -> 11 | AL88: =IF(OR(AL89="",AN$41=4),"",IF(AND(AM$36>=1,AM$36<=4,AK$36=31),"平成"&30&"年"&11,IF(AND(AM$36=5,AK$36="元"),"平成"&30&"年"&11,IF(AND(AM$36>=6,AK$36="元"),"令和元年"&11,IF(AND(AM$36>=1,AM$36<=5,AK$36=2),"令和元年"&11,(IF((AND(AM$36>=1,AM$36<=5)),"令和"&AK$36-1&"年"&11,"令和"&AK$36&"年"&11))))))) -> 令和年11 | AM88: =IF(OR(AL89="",AN$41=4),"",IF(AND(AM$36>=1,AM$36<=4,AK$36=31),"平成"&30&"年"&11,IF(AND(AM$36=5,AK$36="元"),"平成"&30&"年"&11,IF(AND(AM$36>=6,AK$36="元"),"令和元年"&11,IF(AND(AM$36>=1,AM$36<=5,AK$36=2),"令和元年"&11,(IF((AND(AM$36>=1,AM$36<=5)),"令和"&AK$36-1&"年"&11,"令和"&AK$36&"年"&11))))))) -> 令和年11 | AQ88: =IF(OR(AQ89="",AQ$41=12),"",11) -> 11 | AR88: =IF(OR(AR89="",AT$41=4),"",IF(AND(AS$36>=1,AS$36<=4,AQ$36=31),"平成"&30&"年"&11,IF(AND(AS$36=5,AQ$36="元"),"平成"&30&"年"&11,IF(AND(AS$36>=6,AQ$36="元"),"令和元年"&11,IF(AND(AS$36>=1,AS$36<=5,AQ$36=2),"令和元年"&11,(IF((AND(AS$36>=1,AS$36<=5)),"令和"&AQ$36-1&"年"&11,"令和"&AQ$36&"年"&11))))))) -> 令和年11 | AS88: =IF(OR(AR89="",AT$41=4),"",IF(AND(AS$36>=1,AS$36<=4,AQ$36=31),"平成"&30&"年"&11,IF(AND(AS$36=5,AQ$36="元"),"平成"&30&"年"&11,IF(AND(AS$36>=6,AQ$36="元"),"令和元年"&11,IF(AND(AS$36>=1,AS$36<=5,AQ$36=2),"令和元年"&11,(IF((AND(AS$36>=1,AS$36<=5)),"令和"&AQ$36-1&"年"&11,"令和"&AQ$36&"年"&11))))))) -> 令和年11 | AW88: =IF(OR(AW89="",AW$41=12),"",11) -> 11 | AX88: =IF(OR(AX89="",AZ$41=4),"",IF(AND(AY$36>=1,AY$36<=4,AW$36=31),"平成"&30&"年"&11,IF(AND(AY$36=5,AW$36="元"),"平成"&30&"年"&11,IF(AND(AY$36>=6,AW$36="元"),"令和元年"&11,IF(AND(AY$36>=1,AY$36<=5,AW$36=2),"令和元年"&11,(IF((AND(AY$36>=1,AY$36<=5)),"令和"&AW$36-1&"年"&11,"令和"&AW$36&"年"&11))))))) -> 令和年11 | AY88: =IF(OR(AX89="",AZ$41=4),"",IF(AND(AY$36>=1,AY$36<=4,AW$36=31),"平成"&30&"年"&11,IF(AND(AY$36=5,AW$36="元"),"平成"&30&"年"&11,IF(AND(AY$36>=6,AW$36="元"),"令和元年"&11,IF(AND(AY$36>=1,AY$36<=5,AW$36=2),"令和元年"&11,(IF((AND(AY$36>=1,AY$36<=5)),"令和"&AW$36-1&"年"&11,"令和"&AW$36&"年"&11))))))) -> 令和年11 | BC88: =IF(OR(BC89="",BC$41=12),"",11) -> 11 | BD88: =IF(OR(BD89="",BF$41=4),"",IF(AND(BE$36>=1,BE$36<=4,BC$36=31),"平成"&30&"年"&11,IF(AND(BE$36=5,BC$36="元"),"平成"&30&"年"&11,IF(AND(BE$36>=6,BC$36="元"),"令和元年"&11,IF(AND(BE$36>=1,BE$36<=5,BC$36=2),"令和元年"&11,(IF((AND(BE$36>=1,BE$36<=5)),"令和"&BC$36-1&"年"&11,"令和"&BC$36&"年"&11))))))) -> 令和年11 | BE88: =IF(OR(BD89="",BF$41=4),"",IF(AND(BE$36>=1,BE$36<=4,BC$36=31),"平成"&30&"年"&11,IF(AND(BE$36=5,BC$36="元"),"平成"&30&"年"&11,IF(AND(BE$36>=6,BC$36="元"),"令和元年"&11,IF(AND(BE$36>=1,BE$36<=5,BC$36=2),"令和元年"&11,(IF((AND(BE$36>=1,BE$36<=5)),"令和"&BC$36-1&"年"&11,"令和"&BC$36&"年"&11))))))) -> 令和年11 | BI88: =IF(OR(BI89="",BI$41=12),"",11) -> 11 | BJ88: =IF(OR(BJ89="",BL$41=4),"",IF(AND(BK$36>=1,BK$36<=4,BI$36=31),"平成"&30&"年"&11,IF(AND(BK$36=5,BI$36="元"),"平成"&30&"年"&11,IF(AND(BK$36>=6,BI$36="元"),"令和元年"&11,IF(AND(BK$36>=1,BK$36<=5,BI$36=2),"令和元年"&11,(IF((AND(BK$36>=1,BK$36<=5)),"令和"&BI$36-1&"年"&11,"令和"&BI$36&"年"&11))))))) -> 令和年11 | BK88: =IF(OR(BJ89="",BL$41=4),"",IF(AND(BK$36>=1,BK$36<=4,BI$36=31),"平成"&30&"年"&11,IF(AND(BK$36=5,BI$36="元"),"平成"&30&"年"&11,IF(AND(BK$36>=6,BI$36="元"),"令和元年"&11,IF(AND(BK$36>=1,BK$36<=5,BI$36=2),"令和元年"&11,(IF((AND(BK$36>=1,BK$36<=5)),"令和"&BI$36-1&"年"&11,"令和"&BI$36&"年"&11))))))) -> 令和年11 | BO88: =IF(OR(BO89="",BO$41=12),"",11) -> 11 | BP88: =IF(OR(BP89="",BR$41=4),"",IF(AND(BQ$36>=1,BQ$36<=4,BO$36=31),"平成"&30&"年"&11,IF(AND(BQ$36=5,BO$36="元"),"平成"&30&"年"&11,IF(AND(BQ$36>=6,BO$36="元"),"令和元年"&11,IF(AND(BQ$36>=1,BQ$36<=5,BO$36=2),"令和元年"&11,(IF((AND(BQ$36>=1,BQ$36<=5)),"令和"&BO$36-1&"年"&11,"令和"&BO$36&"年"&11))))))) -> 令和年11 | BQ88: =IF(OR(BP89="",BR$41=4),"",IF(AND(BQ$36>=1,BQ$36<=4,BO$36=31),"平成"&30&"年"&11,IF(AND(BQ$36=5,BO$36="元"),"平成"&30&"年"&11,IF(AND(BQ$36>=6,BO$36="元"),"令和元年"&11,IF(AND(BQ$36>=1,BQ$36<=5,BO$36=2),"令和元年"&11,(IF((AND(BQ$36>=1,BQ$36<=5)),"令和"&BO$36-1&"年"&11,"令和"&BO$36&"年"&11))))))) -> 令和年11 | BU88: =IF(OR(BU89="",BU$41=12),"",11) -> 11 | BV88: =IF(OR(BV89="",BX$41=4),"",IF(AND(BW$36>=1,BW$36<=4,BU$36=31),"平成"&30&"年"&11,IF(AND(BW$36=5,BU$36="元"),"平成"&30&"年"&11,IF(AND(BW$36>=6,BU$36="元"),"令和元年"&11,IF(AND(BW$36>=1,BW$36<=5,BU$36=2),"令和元年"&11,(IF((AND(BW$36>=1,BW$36<=5)),"令和"&BU$36-1&"年"&11,"令和"&BU$36&"年"&11))))))) -> 令和年11 | BW88: =IF(OR(BV89="",BX$41=4),"",IF(AND(BW$36>=1,BW$36<=4,BU$36=31),"平成"&30&"年"&11,IF(AND(BW$36=5,BU$36="元"),"平成"&30&"年"&11,IF(AND(BW$36>=6,BU$36="元"),"令和元年"&11,IF(AND(BW$36>=1,BW$36<=5,BU$36=2),"令和元年"&11,(IF((AND(BW$36>=1,BW$36<=5)),"令和"&BU$36-1&"年"&11,"令和"&BU$36&"年"&11))))))) -> 令和年11 | CA88: =IF(OR(CA89="",CA$41=12),"",11) -> 11 | CB88: =IF(OR(CB89="",CD$41=4),"",IF(AND(CC$36>=1,CC$36<=4,CA$36=31),"平成"&30&"年"&11,IF(AND(CC$36=5,CA$36="元"),"平成"&30&"年"&11,IF(AND(CC$36>=6,CA$36="元"),"令和元年"&11,IF(AND(CC$36>=1,CC$36<=5,CA$36=2),"令和元年"&11,(IF((AND(CC$36>=1,CC$36<=5)),"令和"&CA$36-1&"年"&11,"令和"&CA$36&"年"&11))))))) -> 令和年11 | CC88: =IF(OR(CB89="",CD$41=4),"",IF(AND(CC$36>=1,CC$36<=4,CA$36=31),"平成"&30&"年"&11,IF(AND(CC$36=5,CA$36="元"),"平成"&30&"年"&11,IF(AND(CC$36>=6,CA$36="元"),"令和元年"&11,IF(AND(CC$36>=1,CC$36<=5,CA$36=2),"令和元年"&11,(IF((AND(CC$36>=1,CC$36<=5)),"令和"&CA$36-1&"年"&11,"令和"&CA$36&"年"&11))))))) -> 令和年11 | CG88: =IF(OR(CG89="",CG$41=12),"",11) -> 11 | CH88: =IF(OR(CH89="",CJ$41=4),"",IF(AND(CI$36>=1,CI$36<=4,CG$36=31),"平成"&30&"年"&11,IF(AND(CI$36=5,CG$36="元"),"平成"&30&"年"&11,IF(AND(CI$36>=6,CG$36="元"),"令和元年"&11,IF(AND(CI$36>=1,CI$36<=5,CG$36=2),"令和元年"&11,(IF((AND(CI$36>=1,CI$36<=5)),"令和"&CG$36-1&"年"&11,"令和"&CG$36&"年"&11))))))) -> 令和年11 | CI88: =IF(OR(CH89="",CJ$41=4),"",IF(AND(CI$36>=1,CI$36<=4,CG$36=31),"平成"&30&"年"&11,IF(AND(CI$36=5,CG$36="元"),"平成"&30&"年"&11,IF(AND(CI$36>=6,CG$36="元"),"令和元年"&11,IF(AND(CI$36>=1,CI$36<=5,CG$36=2),"令和元年"&11,(IF((AND(CI$36>=1,CI$36<=5)),"令和"&CG$36-1&"年"&11,"令和"&CG$36&"年"&11))))))) -> 令和年11 | CM88: =IF(OR(CM89="",CM$41=12),"",11) -> 11 | CN88: =IF(OR(CN89="",CP$41=4),"",IF(AND(CO$36>=1,CO$36<=4,CM$36=31),"平成"&30&"年"&11,IF(AND(CO$36=5,CM$36="元"),"平成"&30&"年"&11,IF(AND(CO$36>=6,CM$36="元"),"令和元年"&11,IF(AND(CO$36>=1,CO$36<=5,CM$36=2),"令和元年"&11,(IF((AND(CO$36>=1,CO$36<=5)),"令和"&CM$36-1&"年"&11,"令和"&CM$36&"年"&11))))))) -> 令和年11 | CO88: =IF(OR(CN89="",CP$41=4),"",IF(AND(CO$36>=1,CO$36<=4,CM$36=31),"平成"&30&"年"&11,IF(AND(CO$36=5,CM$36="元"),"平成"&30&"年"&11,IF(AND(CO$36>=6,CM$36="元"),"令和元年"&11,IF(AND(CO$36>=1,CO$36<=5,CM$36=2),"令和元年"&11,(IF((AND(CO$36>=1,CO$36<=5)),"令和"&CM$36-1&"年"&11,"令和"&CM$36&"年"&11))))))) -> 令和年11 | CS88: =IF(OR(CS89="",CS$41=12),"",11) -> 11 | CT88: =IF(OR(CT89="",CV$41=4),"",IF(AND(CU$36>=1,CU$36<=4,CS$36=31),"平成"&30&"年"&11,IF(AND(CU$36=5,CS$36="元"),"平成"&30&"年"&11,IF(AND(CU$36>=6,CS$36="元"),"令和元年"&11,IF(AND(CU$36>=1,CU$36<=5,CS$36=2),"令和元年"&11,(IF((AND(CU$36>=1,CU$36<=5)),"令和"&CS$36-1&"年"&11,"令和"&CS$36&"年"&11))))))) -> 令和年11 | CU88: =IF(OR(CT89="",CV$41=4),"",IF(AND(CU$36>=1,CU$36<=4,CS$36=31),"平成"&30&"年"&11,IF(AND(CU$36=5,CS$36="元"),"平成"&30&"年"&11,IF(AND(CU$36>=6,CS$36="元"),"令和元年"&11,IF(AND(CU$36>=1,CU$36<=5,CS$36=2),"令和元年"&11,(IF((AND(CU$36>=1,CU$36<=5)),"令和"&CS$36-1&"年"&11,"令和"&CS$36&"年"&11))))))) -> 令和年11 | CY88: =IF(OR(CY89="",CY$41=12),"",11) -> 11 | CZ88: =IF(OR(CZ89="",DB$41=4),"",IF(AND(DA$36>=1,DA$36<=4,CY$36=31),"平成"&30&"年"&11,IF(AND(DA$36=5,CY$36="元"),"平成"&30&"年"&11,IF(AND(DA$36>=6,CY$36="元"),"令和元年"&11,IF(AND(DA$36>=1,DA$36<=5,CY$36=2),"令和元年"&11,(IF((AND(DA$36>=1,DA$36<=5)),"令和"&CY$36-1&"年"&11,"令和"&CY$36&"年"&11))))))) -> 令和年11 | DA88: =IF(OR(CZ89="",DB$41=4),"",IF(AND(DA$36>=1,DA$36<=4,CY$36=31),"平成"&30&"年"&11,IF(AND(DA$36=5,CY$36="元"),"平成"&30&"年"&11,IF(AND(DA$36>=6,CY$36="元"),"令和元年"&11,IF(AND(DA$36>=1,DA$36<=5,CY$36=2),"令和元年"&11,(IF((AND(DA$36>=1,DA$36<=5)),"令和"&CY$36-1&"年"&11,"令和"&CY$36&"年"&11))))))) -> 令和年11 | DE88: =IF(OR(DE89="",DE$41=12),"",11) -> 11 | DF88: =IF(OR(DF89="",DH$41=4),"",IF(AND(DG$36>=1,DG$36<=4,DE$36=31),"平成"&30&"年"&11,IF(AND(DG$36=5,DE$36="元"),"平成"&30&"年"&11,IF(AND(DG$36>=6,DE$36="元"),"令和元年"&11,IF(AND(DG$36>=1,DG$36<=5,DE$36=2),"令和元年"&11,(IF((AND(DG$36>=1,DG$36<=5)),"令和"&DE$36-1&"年"&11,"令和"&DE$36&"年"&11))))))) -> 令和年11 | DG88: =IF(OR(DF89="",DH$41=4),"",IF(AND(DG$36>=1,DG$36<=4,DE$36=31),"平成"&30&"年"&11,IF(AND(DG$36=5,DE$36="元"),"平成"&30&"年"&11,IF(AND(DG$36>=6,DE$36="元"),"令和元年"&11,IF(AND(DG$36>=1,DG$36<=5,DE$36=2),"令和元年"&11,(IF((AND(DG$36>=1,DG$36<=5)),"令和"&DE$36-1&"年"&11,"令和"&DE$36&"年"&11))))))) -> 令和年11 | DK88: =IF(OR(DK89="",DK$41=12),"",11) -> 11 | DL88: =IF(OR(DL89="",DN$41=4),"",IF(AND(DM$36>=1,DM$36<=4,DK$36=31),"平成"&30&"年"&11,IF(AND(DM$36=5,DK$36="元"),"平成"&30&"年"&11,IF(AND(DM$36>=6,DK$36="元"),"令和元年"&11,IF(AND(DM$36>=1,DM$36<=5,DK$36=2),"令和元年"&11,(IF((AND(DM$36>=1,DM$36<=5)),"令和"&DK$36-1&"年"&11,"令和"&DK$36&"年"&11))))))) -> 令和年11 | DM88: =IF(OR(DL89="",DN$41=4),"",IF(AND(DM$36>=1,DM$36<=4,DK$36=31),"平成"&30&"年"&11,IF(AND(DM$36=5,DK$36="元"),"平成"&30&"年"&11,IF(AND(DM$36>=6,DK$36="元"),"令和元年"&11,IF(AND(DM$36>=1,DM$36<=5,DK$36=2),"令和元年"&11,(IF((AND(DM$36>=1,DM$36<=5)),"令和"&DK$36-1&"年"&11,"令和"&DK$36&"年"&11))))))) -> 令和年11 | DQ88: =IF(OR(DQ89="",DQ$41=12),"",11) -> 11 | DR88: =IF(OR(DR89="",DT$41=4),"",IF(AND(DS$36>=1,DS$36<=4,DQ$36=31),"平成"&30&"年"&11,IF(AND(DS$36=5,DQ$36="元"),"平成"&30&"年"&11,IF(AND(DS$36>=6,DQ$36="元"),"令和元年"&11,IF(AND(DS$36>=1,DS$36<=5,DQ$36=2),"令和元年"&11,(IF((AND(DS$36>=1,DS$36<=5)),"令和"&DQ$36-1&"年"&11,"令和"&DQ$36&"年"&11))))))) -> 令和年11 | DS88: =IF(OR(DR89="",DT$41=4),"",IF(AND(DS$36>=1,DS$36<=4,DQ$36=31),"平成"&30&"年"&11,IF(AND(DS$36=5,DQ$36="元"),"平成"&30&"年"&11,IF(AND(DS$36>=6,DQ$36="元"),"令和元年"&11,IF(AND(DS$36>=1,DS$36<=5,DQ$36=2),"令和元年"&11,(IF((AND(DS$36>=1,DS$36<=5)),"令和"&DQ$36-1&"年"&11,"令和"&DQ$36&"年"&11))))))) -> 令和年11 | DW88: =IF(OR(DW89="",DW$41=12),"",11) -> 11 | DX88: =IF(OR(DX89="",DZ$41=4),"",IF(AND(DY$36>=1,DY$36<=4,DW$36=31),"平成"&30&"年"&11,IF(AND(DY$36=5,DW$36="元"),"平成"&30&"年"&11,IF(AND(DY$36>=6,DW$36="元"),"令和元年"&11,IF(AND(DY$36>=1,DY$36<=5,DW$36=2),"令和元年"&11,(IF((AND(DY$36>=1,DY$36<=5)),"令和"&DW$36-1&"年"&11,"令和"&DW$36&"年"&11))))))) -> 令和年11 | DY88: =IF(OR(DX89="",DZ$41=4),"",IF(AND(DY$36>=1,DY$36<=4,DW$36=31),"平成"&30&"年"&11,IF(AND(DY$36=5,DW$36="元"),"平成"&30&"年"&11,IF(AND(DY$36>=6,DW$36="元"),"令和元年"&11,IF(AND(DY$36>=1,DY$36<=5,DW$36=2),"令和元年"&11,(IF((AND(DY$36>=1,DY$36<=5)),"令和"&DW$36-1&"年"&11,"令和"&DW$36&"年"&11))))))) -> 令和年11 | EC88: =IF(OR(EC89="",EC$41=12),"",11) -> 11 | ED88: =IF(OR(ED89="",EF$41=4),"",IF(AND(EE$36>=1,EE$36<=4,EC$36=31),"平成"&30&"年"&11,IF(AND(EE$36=5,EC$36="元"),"平成"&30&"年"&11,IF(AND(EE$36>=6,EC$36="元"),"令和元年"&11,IF(AND(EE$36>=1,EE$36<=5,EC$36=2),"令和元年"&11,(IF((AND(EE$36>=1,EE$36<=5)),"令和"&EC$36-1&"年"&11,"令和"&EC$36&"年"&11))))))) -> 令和年11 | EE88: =IF(OR(ED89="",EF$41=4),"",IF(AND(EE$36>=1,EE$36<=4,EC$36=31),"平成"&30&"年"&11,IF(AND(EE$36=5,EC$36="元"),"平成"&30&"年"&11,IF(AND(EE$36>=6,EC$36="元"),"令和元年"&11,IF(AND(EE$36>=1,EE$36<=5,EC$36=2),"令和元年"&11,(IF((AND(EE$36>=1,EE$36<=5)),"令和"&EC$36-1&"年"&11,"令和"&EC$36&"年"&11))))))) -> 令和年11 | EI88: =IF(OR(EI89="",EI$41=12),"",11) -> 11 | EJ88: =IF(OR(EJ89="",EL$41=4),"",IF(AND(EK$36>=1,EK$36<=4,EI$36=31),"平成"&30&"年"&11,IF(AND(EK$36=5,EI$36="元"),"平成"&30&"年"&11,IF(AND(EK$36>=6,EI$36="元"),"令和元年"&11,IF(AND(EK$36>=1,EK$36<=5,EI$36=2),"令和元年"&11,(IF((AND(EK$36>=1,EK$36<=5)),"令和"&EI$36-1&"年"&11,"令和"&EI$36&"年"&11))))))) -> 令和年11 | EK88: =IF(OR(EJ89="",EL$41=4),"",IF(AND(EK$36>=1,EK$36<=4,EI$36=31),"平成"&30&"年"&11,IF(AND(EK$36=5,EI$36="元"),"平成"&30&"年"&11,IF(AND(EK$36>=6,EI$36="元"),"令和元年"&11,IF(AND(EK$36>=1,EK$36<=5,EI$36=2),"令和元年"&11,(IF((AND(EK$36>=1,EK$36<=5)),"令和"&EI$36-1&"年"&11,"令和"&EI$36&"年"&11))))))) -> 令和年11 | EO88: =IF(OR(EO89="",EO$41=12),"",11) -> 11 | EP88: =IF(OR(EP89="",ER$41=4),"",IF(AND(EQ$36>=1,EQ$36<=4,EO$36=31),"平成"&30&"年"&11,IF(AND(EQ$36=5,EO$36="元"),"平成"&30&"年"&11,IF(AND(EQ$36>=6,EO$36="元"),"令和元年"&11,IF(AND(EQ$36>=1,EQ$36<=5,EO$36=2),"令和元年"&11,(IF((AND(EQ$36>=1,EQ$36<=5)),"令和"&EO$36-1&"年"&11,"令和"&EO$36&"年"&11))))))) -> 令和年11 | EQ88: =IF(OR(EP89="",ER$41=4),"",IF(AND(EQ$36>=1,EQ$36<=4,EO$36=31),"平成"&30&"年"&11,IF(AND(EQ$36=5,EO$36="元"),"平成"&30&"年"&11,IF(AND(EQ$36>=6,EO$36="元"),"令和元年"&11,IF(AND(EQ$36>=1,EQ$36<=5,EO$36=2),"令和元年"&11,(IF((AND(EQ$36>=1,EQ$36<=5)),"令和"&EO$36-1&"年"&11,"令和"&EO$36&"年"&11))))))) -> 令和年11 | EU88: =IF(OR(EU89="",EU$41=12),"",11) -> 11 | EV88: =IF(OR(EV89="",EX$41=4),"",IF(AND(EW$36>=1,EW$36<=4,EU$36=31),"平成"&30&"年"&11,IF(AND(EW$36=5,EU$36="元"),"平成"&30&"年"&11,IF(AND(EW$36>=6,EU$36="元"),"令和元年"&11,IF(AND(EW$36>=1,EW$36<=5,EU$36=2),"令和元年"&11,(IF((AND(EW$36>=1,EW$36<=5)),"令和"&EU$36-1&"年"&11,"令和"&EU$36&"年"&11))))))) -> 令和年11 | EW88: =IF(OR(EV89="",EX$41=4),"",IF(AND(EW$36>=1,EW$36<=4,EU$36=31),"平成"&30&"年"&11,IF(AND(EW$36=5,EU$36="元"),"平成"&30&"年"&11,IF(AND(EW$36>=6,EU$36="元"),"令和元年"&11,IF(AND(EW$36>=1,EW$36<=5,EU$36=2),"令和元年"&11,(IF((AND(EW$36>=1,EW$36<=5)),"令和"&EU$36-1&"年"&11,"令和"&EU$36&"年"&11))))))) -> 令和年11 | FA88: =IF(OR(FA89="",FA$41=12),"",11) -> 11 | FB88: =IF(OR(FB89="",FD$41=4),"",IF(AND(FC$36>=1,FC$36<=4,FA$36=31),"平成"&30&"年"&11,IF(AND(FC$36=5,FA$36="元"),"平成"&30&"年"&11,IF(AND(FC$36>=6,FA$36="元"),"令和元年"&11,IF(AND(FC$36>=1,FC$36<=5,FA$36=2),"令和元年"&11,(IF((AND(FC$36>=1,FC$36<=5)),"令和"&FA$36-1&"年"&11,"令和"&FA$36&"年"&11))))))) -> 令和年11 | FC88: =IF(OR(FB89="",FD$41=4),"",IF(AND(FC$36>=1,FC$36<=4,FA$36=31),"平成"&30&"年"&11,IF(AND(FC$36=5,FA$36="元"),"平成"&30&"年"&11,IF(AND(FC$36>=6,FA$36="元"),"令和元年"&11,IF(AND(FC$36>=1,FC$36<=5,FA$36=2),"令和元年"&11,(IF((AND(FC$36>=1,FC$36<=5)),"令和"&FA$36-1&"年"&11,"令和"&FA$36&"年"&11))))))) -> 令和年11 | FG88: =IF(OR(FG89="",FG$41=12),"",11) -> 11 | FH88: =IF(OR(FH89="",FJ$41=4),"",IF(AND(FI$36>=1,FI$36<=4,FG$36=31),"平成"&30&"年"&11,IF(AND(FI$36=5,FG$36="元"),"平成"&30&"年"&11,IF(AND(FI$36>=6,FG$36="元"),"令和元年"&11,IF(AND(FI$36>=1,FI$36<=5,FG$36=2),"令和元年"&11,(IF((AND(FI$36>=1,FI$36<=5)),"令和"&FG$36-1&"年"&11,"令和"&FG$36&"年"&11))))))) -> 令和年11 | FI88: =IF(OR(FH89="",FJ$41=4),"",IF(AND(FI$36>=1,FI$36<=4,FG$36=31),"平成"&30&"年"&11,IF(AND(FI$36=5,FG$36="元"),"平成"&30&"年"&11,IF(AND(FI$36>=6,FG$36="元"),"令和元年"&11,IF(AND(FI$36>=1,FI$36<=5,FG$36=2),"令和元年"&11,(IF((AND(FI$36>=1,FI$36<=5)),"令和"&FG$36-1&"年"&11,"令和"&FG$36&"年"&11))))))) -> 令和年11 | FM88: =IF(OR(FM89="",FM$41=12),"",11) -> 11 | FN88: =IF(OR(FN89="",FP$41=4),"",IF(AND(FO$36>=1,FO$36<=4,FM$36=31),"平成"&30&"年"&11,IF(AND(FO$36=5,FM$36="元"),"平成"&30&"年"&11,IF(AND(FO$36>=6,FM$36="元"),"令和元年"&11,IF(AND(FO$36>=1,FO$36<=5,FM$36=2),"令和元年"&11,(IF((AND(FO$36>=1,FO$36<=5)),"令和"&FM$36-1&"年"&11,"令和"&FM$36&"年"&11))))))) -> 令和年11 | FO88: =IF(OR(FN89="",FP$41=4),"",IF(AND(FO$36>=1,FO$36<=4,FM$36=31),"平成"&30&"年"&11,IF(AND(FO$36=5,FM$36="元"),"平成"&30&"年"&11,IF(AND(FO$36>=6,FM$36="元"),"令和元年"&11,IF(AND(FO$36>=1,FO$36<=5,FM$36=2),"令和元年"&11,(IF((AND(FO$36>=1,FO$36<=5)),"令和"&FM$36-1&"年"&11,"令和"&FM$36&"年"&11))))))) -> 令和年11 | FS88: =IF(OR(FS89="",FS$41=12),"",11) -> 11 | FT88: =IF(OR(FT89="",FV$41=4),"",IF(AND(FU$36>=1,FU$36<=4,FS$36=31),"平成"&30&"年"&11,IF(AND(FU$36=5,FS$36="元"),"平成"&30&"年"&11,IF(AND(FU$36>=6,FS$36="元"),"令和元年"&11,IF(AND(FU$36>=1,FU$36<=5,FS$36=2),"令和元年"&11,(IF((AND(FU$36>=1,FU$36<=5)),"令和"&FS$36-1&"年"&11,"令和"&FS$36&"年"&11))))))) -> 令和年11 | FU88: =IF(OR(FT89="",FV$41=4),"",IF(AND(FU$36>=1,FU$36<=4,FS$36=31),"平成"&30&"年"&11,IF(AND(FU$36=5,FS$36="元"),"平成"&30&"年"&11,IF(AND(FU$36>=6,FS$36="元"),"令和元年"&11,IF(AND(FU$36>=1,FU$36<=5,FS$36=2),"令和元年"&11,(IF((AND(FU$36>=1,FU$36<=5)),"令和"&FS$36-1&"年"&11,"令和"&FS$36&"年"&11))))))) -> 令和年11 | FY88: =IF(OR(FY89="",FY$41=12),"",11) -> 11 | FZ88: =IF(OR(FZ89="",GB$41=4),"",IF(AND(GA$36>=1,GA$36<=4,FY$36=31),"平成"&30&"年"&11,IF(AND(GA$36=5,FY$36="元"),"平成"&30&"年"&11,IF(AND(GA$36>=6,FY$36="元"),"令和元年"&11,IF(AND(GA$36>=1,GA$36<=5,FY$36=2),"令和元年"&11,(IF((AND(GA$36>=1,GA$36<=5)),"令和"&FY$36-1&"年"&11,"令和"&FY$36&"年"&11))))))) -> 令和年11 | GA88: =IF(OR(FZ89="",GB$41=4),"",IF(AND(GA$36>=1,GA$36<=4,FY$36=31),"平成"&30&"年"&11,IF(AND(GA$36=5,FY$36="元"),"平成"&30&"年"&11,IF(AND(GA$36>=6,FY$36="元"),"令和元年"&11,IF(AND(GA$36>=1,GA$36<=5,FY$36=2),"令和元年"&11,(IF((AND(GA$36>=1,GA$36<=5)),"令和"&FY$36-1&"年"&11,"令和"&FY$36&"年"&11))))))) -> 令和年11 | GE88: =IF(OR(GE89="",GE$41=12),"",11) -> 11 | GF88: =IF(OR(GF89="",GH$41=4),"",IF(AND(GG$36>=1,GG$36<=4,GE$36=31),"平成"&30&"年"&11,IF(AND(GG$36=5,GE$36="元"),"平成"&30&"年"&11,IF(AND(GG$36>=6,GE$36="元"),"令和元年"&11,IF(AND(GG$36>=1,GG$36<=5,GE$36=2),"令和元年"&11,(IF((AND(GG$36>=1,GG$36<=5)),"令和"&GE$36-1&"年"&11,"令和"&GE$36&"年"&11))))))) -> 令和年11 | GG88: =IF(OR(GF89="",GH$41=4),"",IF(AND(GG$36>=1,GG$36<=4,GE$36=31),"平成"&30&"年"&11,IF(AND(GG$36=5,GE$36="元"),"平成"&30&"年"&11,IF(AND(GG$36>=6,GE$36="元"),"令和元年"&11,IF(AND(GG$36>=1,GG$36<=5,GE$36=2),"令和元年"&11,(IF((AND(GG$36>=1,GG$36<=5)),"令和"&GE$36-1&"年"&11,"令和"&GE$36&"年"&11))))))) -> 令和年11 | GK88: =IF(OR(GK89="",GK$41=12),"",11) -> 11 | GL88: =IF(OR(GL89="",GN$41=4),"",IF(AND(GM$36>=1,GM$36<=4,GK$36=31),"平成"&30&"年"&11,IF(AND(GM$36=5,GK$36="元"),"平成"&30&"年"&11,IF(AND(GM$36>=6,GK$36="元"),"令和元年"&11,IF(AND(GM$36>=1,GM$36<=5,GK$36=2),"令和元年"&11,(IF((AND(GM$36>=1,GM$36<=5)),"令和"&GK$36-1&"年"&11,"令和"&GK$36&"年"&11))))))) -> 令和年11 | GM88: =IF(OR(GL89="",GN$41=4),"",IF(AND(GM$36>=1,GM$36<=4,GK$36=31),"平成"&30&"年"&11,IF(AND(GM$36=5,GK$36="元"),"平成"&30&"年"&11,IF(AND(GM$36>=6,GK$36="元"),"令和元年"&11,IF(AND(GM$36>=1,GM$36<=5,GK$36=2),"令和元年"&11,(IF((AND(GM$36>=1,GM$36<=5)),"令和"&GK$36-1&"年"&11,"令和"&GK$36&"年"&11))))))) -> 令和年11 | GQ88: =IF(OR(GQ89="",GQ$41=12),"",11) -> 11 | GR88: =IF(OR(GR89="",GT$41=4),"",IF(AND(GS$36>=1,GS$36<=4,GQ$36=31),"平成"&30&"年"&11,IF(AND(GS$36=5,GQ$36="元"),"平成"&30&"年"&11,IF(AND(GS$36>=6,GQ$36="元"),"令和元年"&11,IF(AND(GS$36>=1,GS$36<=5,GQ$36=2),"令和元年"&11,(IF((AND(GS$36>=1,GS$36<=5)),"令和"&GQ$36-1&"年"&11,"令和"&GQ$36&"年"&11))))))) -> 令和年11 | GS88: =IF(OR(GR89="",GT$41=4),"",IF(AND(GS$36>=1,GS$36<=4,GQ$36=31),"平成"&30&"年"&11,IF(AND(GS$36=5,GQ$36="元"),"平成"&30&"年"&11,IF(AND(GS$36>=6,GQ$36="元"),"令和元年"&11,IF(AND(GS$36>=1,GS$36<=5,GQ$36=2),"令和元年"&11,(IF((AND(GS$36>=1,GS$36<=5)),"令和"&GQ$36-1&"年"&11,"令和"&GQ$36&"年"&11))))))) -> 令和年11 | GW88: =IF(OR(GW89="",GW$41=12),"",11) -> 11 | GX88: =IF(OR(GX89="",GZ$41=4),"",IF(AND(GY$36>=1,GY$36<=4,GW$36=31),"平成"&30&"年"&11,IF(AND(GY$36=5,GW$36="元"),"平成"&30&"年"&11,IF(AND(GY$36>=6,GW$36="元"),"令和元年"&11,IF(AND(GY$36>=1,GY$36<=5,GW$36=2),"令和元年"&11,(IF((AND(GY$36>=1,GY$36<=5)),"令和"&GW$36-1&"年"&11,"令和"&GW$36&"年"&11))))))) -> 令和年11 | GY88: =IF(OR(GX89="",GZ$41=4),"",IF(AND(GY$36>=1,GY$36<=4,GW$36=31),"平成"&30&"年"&11,IF(AND(GY$36=5,GW$36="元"),"平成"&30&"年"&11,IF(AND(GY$36>=6,GW$36="元"),"令和元年"&11,IF(AND(GY$36>=1,GY$36<=5,GW$36=2),"令和元年"&11,(IF((AND(GY$36>=1,GY$36<=5)),"令和"&GW$36-1&"年"&11,"令和"&GW$36&"年"&11))))))) -> 令和年11 | HC88: =IF(OR(HC89="",HC$41=12),"",11) -> 11 | HD88: =IF(OR(HD89="",HF$41=4),"",IF(AND(HE$36>=1,HE$36<=4,HC$36=31),"平成"&30&"年"&11,IF(AND(HE$36=5,HC$36="元"),"平成"&30&"年"&11,IF(AND(HE$36>=6,HC$36="元"),"令和元年"&11,IF(AND(HE$36>=1,HE$36<=5,HC$36=2),"令和元年"&11,(IF((AND(HE$36>=1,HE$36<=5)),"令和"&HC$36-1&"年"&11,"令和"&HC$36&"年"&11))))))) -> 令和年11 | HE88: =IF(OR(HD89="",HF$41=4),"",IF(AND(HE$36>=1,HE$36<=4,HC$36=31),"平成"&30&"年"&11,IF(AND(HE$36=5,HC$36="元"),"平成"&30&"年"&11,IF(AND(HE$36>=6,HC$36="元"),"令和元年"&11,IF(AND(HE$36>=1,HE$36<=5,HC$36=2),"令和元年"&11,(IF((AND(HE$36>=1,HE$36<=5)),"令和"&HC$36-1&"年"&11,"令和"&HC$36&"年"&11))))))) -> 令和年11 | HI88: =IF(OR(HI89="",HI$41=12),"",11) -> 11 | HJ88: =IF(OR(HJ89="",HL$41=4),"",IF(AND(HK$36>=1,HK$36<=4,HI$36=31),"平成"&30&"年"&11,IF(AND(HK$36=5,HI$36="元"),"平成"&30&"年"&11,IF(AND(HK$36>=6,HI$36="元"),"令和元年"&11,IF(AND(HK$36>=1,HK$36<=5,HI$36=2),"令和元年"&11,(IF((AND(HK$36>=1,HK$36<=5)),"令和"&HI$36-1&"年"&11,"令和"&HI$36&"年"&11))))))) -> 令和年11 | HK88: =IF(OR(HJ89="",HL$41=4),"",IF(AND(HK$36>=1,HK$36<=4,HI$36=31),"平成"&30&"年"&11,IF(AND(HK$36=5,HI$36="元"),"平成"&30&"年"&11,IF(AND(HK$36>=6,HI$36="元"),"令和元年"&11,IF(AND(HK$36>=1,HK$36<=5,HI$36=2),"令和元年"&11,(IF((AND(HK$36>=1,HK$36<=5)),"令和"&HI$36-1&"年"&11,"令和"&HI$36&"年"&11))))))) -> 令和年11 | HO88: =IF(OR(HO89="",HO$41=12),"",11) -> 11 | HP88: =IF(OR(HP89="",HR$41=4),"",IF(AND(HQ$36>=1,HQ$36<=4,HO$36=31),"平成"&30&"年"&11,IF(AND(HQ$36=5,HO$36="元"),"平成"&30&"年"&11,IF(AND(HQ$36>=6,HO$36="元"),"令和元年"&11,IF(AND(HQ$36>=1,HQ$36<=5,HO$36=2),"令和元年"&11,(IF((AND(HQ$36>=1,HQ$36<=5)),"令和"&HO$36-1&"年"&11,"令和"&HO$36&"年"&11))))))) -> 令和年11 | HQ88: =IF(OR(HP89="",HR$41=4),"",IF(AND(HQ$36>=1,HQ$36<=4,HO$36=31),"平成"&30&"年"&11,IF(AND(HQ$36=5,HO$36="元"),"平成"&30&"年"&11,IF(AND(HQ$36>=6,HO$36="元"),"令和元年"&11,IF(AND(HQ$36>=1,HQ$36<=5,HO$36=2),"令和元年"&11,(IF((AND(HQ$36>=1,HQ$36<=5)),"令和"&HO$36-1&"年"&11,"令和"&HO$36&"年"&11))))))) -> 令和年11 | HU88: =IF(OR(HU89="",HU$41=12),"",11) -> 11 | HV88: =IF(OR(HV89="",HX$41=4),"",IF(AND(HW$36>=1,HW$36<=4,HU$36=31),"平成"&30&"年"&11,IF(AND(HW$36=5,HU$36="元"),"平成"&30&"年"&11,IF(AND(HW$36>=6,HU$36="元"),"令和元年"&11,IF(AND(HW$36>=1,HW$36<=5,HU$36=2),"令和元年"&11,(IF((AND(HW$36>=1,HW$36<=5)),"令和"&HU$36-1&"年"&11,"令和"&HU$36&"年"&11))))))) -> 令和年11 | HW88: =IF(OR(HV89="",HX$41=4),"",IF(AND(HW$36>=1,HW$36<=4,HU$36=31),"平成"&30&"年"&11,IF(AND(HW$36=5,HU$36="元"),"平成"&30&"年"&11,IF(AND(HW$36>=6,HU$36="元"),"令和元年"&11,IF(AND(HW$36>=1,HW$36<=5,HU$36=2),"令和元年"&11,(IF((AND(HW$36>=1,HW$36<=5)),"令和"&HU$36-1&"年"&11,"令和"&HU$36&"年"&11))))))) -> 令和年11 | IA88: =IF(OR(IA89="",IA$41=12),"",11) -> 11 | IB88: =IF(OR(IB89="",ID$41=4),"",IF(AND(IC$36>=1,IC$36<=4,IA$36=31),"平成"&30&"年"&11,IF(AND(IC$36=5,IA$36="元"),"平成"&30&"年"&11,IF(AND(IC$36>=6,IA$36="元"),"令和元年"&11,IF(AND(IC$36>=1,IC$36<=5,IA$36=2),"令和元年"&11,(IF((AND(IC$36>=1,IC$36<=5)),"令和"&IA$36-1&"年"&11,"令和"&IA$36&"年"&11))))))) -> 令和年11 | IC88: =IF(OR(IB89="",ID$41=4),"",IF(AND(IC$36>=1,IC$36<=4,IA$36=31),"平成"&30&"年"&11,IF(AND(IC$36=5,IA$36="元"),"平成"&30&"年"&11,IF(AND(IC$36>=6,IA$36="元"),"令和元年"&11,IF(AND(IC$36>=1,IC$36<=5,IA$36=2),"令和元年"&11,(IF((AND(IC$36>=1,IC$36<=5)),"令和"&IA$36-1&"年"&11,"令和"&IA$36&"年"&11))))))) -> 令和年11 | IG88: =IF(OR(IG89="",IG$41=12),"",11) -> 11 | IH88: =IF(OR(IH89="",IJ$41=4),"",IF(AND(II$36>=1,II$36<=4,IG$36=31),"平成"&30&"年"&11,IF(AND(II$36=5,IG$36="元"),"平成"&30&"年"&11,IF(AND(II$36>=6,IG$36="元"),"令和元年"&11,IF(AND(II$36>=1,II$36<=5,IG$36=2),"令和元年"&11,(IF((AND(II$36>=1,II$36<=5)),"令和"&IG$36-1&"年"&11,"令和"&IG$36&"年"&11))))))) -> 令和年11 | II88: =IF(OR(IH89="",IJ$41=4),"",IF(AND(II$36>=1,II$36<=4,IG$36=31),"平成"&30&"年"&11,IF(AND(II$36=5,IG$36="元"),"平成"&30&"年"&11,IF(AND(II$36>=6,IG$36="元"),"令和元年"&11,IF(AND(II$36>=1,II$36<=5,IG$36=2),"令和元年"&11,(IF((AND(II$36>=1,II$36<=5)),"令和"&IG$36-1&"年"&11,"令和"&IG$36&"年"&11))))))) -> 令和年11
B89: =IF(AND(CY21<>"",CY25<>"",DA25<>"",DC25<>""),CY17,"") ->  | C89: 平 | D89: 7 | E89: 平7 | G89: =IF(OR(G90="",G$41=1),"",12) -> 12 | H89: =IF(OR(H90="",J$41=4),"",IF(AND(I$36>=1,I$36<=4,G$36=31),"平成"&30&"年"&12,IF(AND(I$36=5,G$36="元"),"平成"&30&"年"&12,IF(AND(I$36>=6,G$36="元"),"令和元年"&12,IF(AND(I$36>=1,I$36<=5,G$36=2),"令和元年"&12,(IF((AND(I$36>=1,I$36<=5)),"令和"&G$36-1&"年"&12,"令和"&G$36&"年"&12))))))) -> 令和年12 | I89: =IF(OR(H90="",J$41=4),"",IF(AND(I$36>=1,I$36<=4,G$36=31),"平成"&30&"年"&12,IF(AND(I$36=5,G$36="元"),"平成"&30&"年"&12,IF(AND(I$36>=6,G$36="元"),"令和元年"&12,IF(AND(I$36>=1,I$36<=5,G$36=2),"令和元年"&12,(IF((AND(I$36>=1,I$36<=5)),"令和"&G$36-1&"年"&12,"令和"&G$36&"年"&12))))))) -> 令和年12 | M89: =IF(OR(M90="",M$41=1),"",12) -> 12 | N89: =IF(OR(N90="",P$41=4),"",IF(AND(O$36>=1,O$36<=4,M$36=31),"平成"&30&"年"&12,IF(AND(O$36=5,M$36="元"),"平成"&30&"年"&12,IF(AND(O$36>=6,M$36="元"),"令和元年"&12,IF(AND(O$36>=1,O$36<=5,M$36=2),"令和元年"&12,(IF((AND(O$36>=1,O$36<=5)),"令和"&M$36-1&"年"&12,"令和"&M$36&"年"&12))))))) -> 令和年12 | O89: =IF(OR(N90="",P$41=4),"",IF(AND(O$36>=1,O$36<=4,M$36=31),"平成"&30&"年"&12,IF(AND(O$36=5,M$36="元"),"平成"&30&"年"&12,IF(AND(O$36>=6,M$36="元"),"令和元年"&12,IF(AND(O$36>=1,O$36<=5,M$36=2),"令和元年"&12,(IF((AND(O$36>=1,O$36<=5)),"令和"&M$36-1&"年"&12,"令和"&M$36&"年"&12))))))) -> 令和年12 | S89: =IF(OR(S90="",S$41=1),"",12) -> 12 | T89: =IF(OR(T90="",V$41=4),"",IF(AND(U$36>=1,U$36<=4,S$36=31),"平成"&30&"年"&12,IF(AND(U$36=5,S$36="元"),"平成"&30&"年"&12,IF(AND(U$36>=6,S$36="元"),"令和元年"&12,IF(AND(U$36>=1,U$36<=5,S$36=2),"令和元年"&12,(IF((AND(U$36>=1,U$36<=5)),"令和"&S$36-1&"年"&12,"令和"&S$36&"年"&12))))))) -> 令和年12 | U89: =IF(OR(T90="",V$41=4),"",IF(AND(U$36>=1,U$36<=4,S$36=31),"平成"&30&"年"&12,IF(AND(U$36=5,S$36="元"),"平成"&30&"年"&12,IF(AND(U$36>=6,S$36="元"),"令和元年"&12,IF(AND(U$36>=1,U$36<=5,S$36=2),"令和元年"&12,(IF((AND(U$36>=1,U$36<=5)),"令和"&S$36-1&"年"&12,"令和"&S$36&"年"&12))))))) -> 令和年12 | Y89: =IF(OR(Y90="",Y$41=1),"",12) -> 12 | Z89: =IF(OR(Z90="",AB$41=4),"",IF(AND(AA$36>=1,AA$36<=4,Y$36=31),"平成"&30&"年"&12,IF(AND(AA$36=5,Y$36="元"),"平成"&30&"年"&12,IF(AND(AA$36>=6,Y$36="元"),"令和元年"&12,IF(AND(AA$36>=1,AA$36<=5,Y$36=2),"令和元年"&12,(IF((AND(AA$36>=1,AA$36<=5)),"令和"&Y$36-1&"年"&12,"令和"&Y$36&"年"&12))))))) -> 令和年12 | AA89: =IF(OR(Z90="",AB$41=4),"",IF(AND(AA$36>=1,AA$36<=4,Y$36=31),"平成"&30&"年"&12,IF(AND(AA$36=5,Y$36="元"),"平成"&30&"年"&12,IF(AND(AA$36>=6,Y$36="元"),"令和元年"&12,IF(AND(AA$36>=1,AA$36<=5,Y$36=2),"令和元年"&12,(IF((AND(AA$36>=1,AA$36<=5)),"令和"&Y$36-1&"年"&12,"令和"&Y$36&"年"&12))))))) -> 令和年12 | AE89: =IF(OR(AE90="",AE$41=1),"",12) -> 12 | AF89: =IF(OR(AF90="",AH$41=4),"",IF(AND(AG$36>=1,AG$36<=4,AE$36=31),"平成"&30&"年"&12,IF(AND(AG$36=5,AE$36="元"),"平成"&30&"年"&12,IF(AND(AG$36>=6,AE$36="元"),"令和元年"&12,IF(AND(AG$36>=1,AG$36<=5,AE$36=2),"令和元年"&12,(IF((AND(AG$36>=1,AG$36<=5)),"令和"&AE$36-1&"年"&12,"令和"&AE$36&"年"&12))))))) -> 令和年12 | AG89: =IF(OR(AF90="",AH$41=4),"",IF(AND(AG$36>=1,AG$36<=4,AE$36=31),"平成"&30&"年"&12,IF(AND(AG$36=5,AE$36="元"),"平成"&30&"年"&12,IF(AND(AG$36>=6,AE$36="元"),"令和元年"&12,IF(AND(AG$36>=1,AG$36<=5,AE$36=2),"令和元年"&12,(IF((AND(AG$36>=1,AG$36<=5)),"令和"&AE$36-1&"年"&12,"令和"&AE$36&"年"&12))))))) -> 令和年12 | AK89: =IF(OR(AK90="",AK$41=1),"",12) -> 12 | AL89: =IF(OR(AL90="",AN$41=4),"",IF(AND(AM$36>=1,AM$36<=4,AK$36=31),"平成"&30&"年"&12,IF(AND(AM$36=5,AK$36="元"),"平成"&30&"年"&12,IF(AND(AM$36>=6,AK$36="元"),"令和元年"&12,IF(AND(AM$36>=1,AM$36<=5,AK$36=2),"令和元年"&12,(IF((AND(AM$36>=1,AM$36<=5)),"令和"&AK$36-1&"年"&12,"令和"&AK$36&"年"&12))))))) -> 令和年12 | AM89: =IF(OR(AL90="",AN$41=4),"",IF(AND(AM$36>=1,AM$36<=4,AK$36=31),"平成"&30&"年"&12,IF(AND(AM$36=5,AK$36="元"),"平成"&30&"年"&12,IF(AND(AM$36>=6,AK$36="元"),"令和元年"&12,IF(AND(AM$36>=1,AM$36<=5,AK$36=2),"令和元年"&12,(IF((AND(AM$36>=1,AM$36<=5)),"令和"&AK$36-1&"年"&12,"令和"&AK$36&"年"&12))))))) -> 令和年12 | AQ89: =IF(OR(AQ90="",AQ$41=1),"",12) -> 12 | AR89: =IF(OR(AR90="",AT$41=4),"",IF(AND(AS$36>=1,AS$36<=4,AQ$36=31),"平成"&30&"年"&12,IF(AND(AS$36=5,AQ$36="元"),"平成"&30&"年"&12,IF(AND(AS$36>=6,AQ$36="元"),"令和元年"&12,IF(AND(AS$36>=1,AS$36<=5,AQ$36=2),"令和元年"&12,(IF((AND(AS$36>=1,AS$36<=5)),"令和"&AQ$36-1&"年"&12,"令和"&AQ$36&"年"&12))))))) -> 令和年12 | AS89: =IF(OR(AR90="",AT$41=4),"",IF(AND(AS$36>=1,AS$36<=4,AQ$36=31),"平成"&30&"年"&12,IF(AND(AS$36=5,AQ$36="元"),"平成"&30&"年"&12,IF(AND(AS$36>=6,AQ$36="元"),"令和元年"&12,IF(AND(AS$36>=1,AS$36<=5,AQ$36=2),"令和元年"&12,(IF((AND(AS$36>=1,AS$36<=5)),"令和"&AQ$36-1&"年"&12,"令和"&AQ$36&"年"&12))))))) -> 令和年12 | AW89: =IF(OR(AW90="",AW$41=1),"",12) -> 12 | AX89: =IF(OR(AX90="",AZ$41=4),"",IF(AND(AY$36>=1,AY$36<=4,AW$36=31),"平成"&30&"年"&12,IF(AND(AY$36=5,AW$36="元"),"平成"&30&"年"&12,IF(AND(AY$36>=6,AW$36="元"),"令和元年"&12,IF(AND(AY$36>=1,AY$36<=5,AW$36=2),"令和元年"&12,(IF((AND(AY$36>=1,AY$36<=5)),"令和"&AW$36-1&"年"&12,"令和"&AW$36&"年"&12))))))) -> 令和年12 | AY89: =IF(OR(AX90="",AZ$41=4),"",IF(AND(AY$36>=1,AY$36<=4,AW$36=31),"平成"&30&"年"&12,IF(AND(AY$36=5,AW$36="元"),"平成"&30&"年"&12,IF(AND(AY$36>=6,AW$36="元"),"令和元年"&12,IF(AND(AY$36>=1,AY$36<=5,AW$36=2),"令和元年"&12,(IF((AND(AY$36>=1,AY$36<=5)),"令和"&AW$36-1&"年"&12,"令和"&AW$36&"年"&12))))))) -> 令和年12 | BC89: =IF(OR(BC90="",BC$41=1),"",12) -> 12 | BD89: =IF(OR(BD90="",BF$41=4),"",IF(AND(BE$36>=1,BE$36<=4,BC$36=31),"平成"&30&"年"&12,IF(AND(BE$36=5,BC$36="元"),"平成"&30&"年"&12,IF(AND(BE$36>=6,BC$36="元"),"令和元年"&12,IF(AND(BE$36>=1,BE$36<=5,BC$36=2),"令和元年"&12,(IF((AND(BE$36>=1,BE$36<=5)),"令和"&BC$36-1&"年"&12,"令和"&BC$36&"年"&12))))))) -> 令和年12 | BE89: =IF(OR(BD90="",BF$41=4),"",IF(AND(BE$36>=1,BE$36<=4,BC$36=31),"平成"&30&"年"&12,IF(AND(BE$36=5,BC$36="元"),"平成"&30&"年"&12,IF(AND(BE$36>=6,BC$36="元"),"令和元年"&12,IF(AND(BE$36>=1,BE$36<=5,BC$36=2),"令和元年"&12,(IF((AND(BE$36>=1,BE$36<=5)),"令和"&BC$36-1&"年"&12,"令和"&BC$36&"年"&12))))))) -> 令和年12 | BI89: =IF(OR(BI90="",BI$41=1),"",12) -> 12 | BJ89: =IF(OR(BJ90="",BL$41=4),"",IF(AND(BK$36>=1,BK$36<=4,BI$36=31),"平成"&30&"年"&12,IF(AND(BK$36=5,BI$36="元"),"平成"&30&"年"&12,IF(AND(BK$36>=6,BI$36="元"),"令和元年"&12,IF(AND(BK$36>=1,BK$36<=5,BI$36=2),"令和元年"&12,(IF((AND(BK$36>=1,BK$36<=5)),"令和"&BI$36-1&"年"&12,"令和"&BI$36&"年"&12))))))) -> 令和年12 | BK89: =IF(OR(BJ90="",BL$41=4),"",IF(AND(BK$36>=1,BK$36<=4,BI$36=31),"平成"&30&"年"&12,IF(AND(BK$36=5,BI$36="元"),"平成"&30&"年"&12,IF(AND(BK$36>=6,BI$36="元"),"令和元年"&12,IF(AND(BK$36>=1,BK$36<=5,BI$36=2),"令和元年"&12,(IF((AND(BK$36>=1,BK$36<=5)),"令和"&BI$36-1&"年"&12,"令和"&BI$36&"年"&12))))))) -> 令和年12 | BO89: =IF(OR(BO90="",BO$41=1),"",12) -> 12 | BP89: =IF(OR(BP90="",BR$41=4),"",IF(AND(BQ$36>=1,BQ$36<=4,BO$36=31),"平成"&30&"年"&12,IF(AND(BQ$36=5,BO$36="元"),"平成"&30&"年"&12,IF(AND(BQ$36>=6,BO$36="元"),"令和元年"&12,IF(AND(BQ$36>=1,BQ$36<=5,BO$36=2),"令和元年"&12,(IF((AND(BQ$36>=1,BQ$36<=5)),"令和"&BO$36-1&"年"&12,"令和"&BO$36&"年"&12))))))) -> 令和年12 | BQ89: =IF(OR(BP90="",BR$41=4),"",IF(AND(BQ$36>=1,BQ$36<=4,BO$36=31),"平成"&30&"年"&12,IF(AND(BQ$36=5,BO$36="元"),"平成"&30&"年"&12,IF(AND(BQ$36>=6,BO$36="元"),"令和元年"&12,IF(AND(BQ$36>=1,BQ$36<=5,BO$36=2),"令和元年"&12,(IF((AND(BQ$36>=1,BQ$36<=5)),"令和"&BO$36-1&"年"&12,"令和"&BO$36&"年"&12))))))) -> 令和年12 | BU89: =IF(OR(BU90="",BU$41=1),"",12) -> 12 | BV89: =IF(OR(BV90="",BX$41=4),"",IF(AND(BW$36>=1,BW$36<=4,BU$36=31),"平成"&30&"年"&12,IF(AND(BW$36=5,BU$36="元"),"平成"&30&"年"&12,IF(AND(BW$36>=6,BU$36="元"),"令和元年"&12,IF(AND(BW$36>=1,BW$36<=5,BU$36=2),"令和元年"&12,(IF((AND(BW$36>=1,BW$36<=5)),"令和"&BU$36-1&"年"&12,"令和"&BU$36&"年"&12))))))) -> 令和年12 | BW89: =IF(OR(BV90="",BX$41=4),"",IF(AND(BW$36>=1,BW$36<=4,BU$36=31),"平成"&30&"年"&12,IF(AND(BW$36=5,BU$36="元"),"平成"&30&"年"&12,IF(AND(BW$36>=6,BU$36="元"),"令和元年"&12,IF(AND(BW$36>=1,BW$36<=5,BU$36=2),"令和元年"&12,(IF((AND(BW$36>=1,BW$36<=5)),"令和"&BU$36-1&"年"&12,"令和"&BU$36&"年"&12))))))) -> 令和年12 | CA89: =IF(OR(CA90="",CA$41=1),"",12) -> 12 | CB89: =IF(OR(CB90="",CD$41=4),"",IF(AND(CC$36>=1,CC$36<=4,CA$36=31),"平成"&30&"年"&12,IF(AND(CC$36=5,CA$36="元"),"平成"&30&"年"&12,IF(AND(CC$36>=6,CA$36="元"),"令和元年"&12,IF(AND(CC$36>=1,CC$36<=5,CA$36=2),"令和元年"&12,(IF((AND(CC$36>=1,CC$36<=5)),"令和"&CA$36-1&"年"&12,"令和"&CA$36&"年"&12))))))) -> 令和年12 | CC89: =IF(OR(CB90="",CD$41=4),"",IF(AND(CC$36>=1,CC$36<=4,CA$36=31),"平成"&30&"年"&12,IF(AND(CC$36=5,CA$36="元"),"平成"&30&"年"&12,IF(AND(CC$36>=6,CA$36="元"),"令和元年"&12,IF(AND(CC$36>=1,CC$36<=5,CA$36=2),"令和元年"&12,(IF((AND(CC$36>=1,CC$36<=5)),"令和"&CA$36-1&"年"&12,"令和"&CA$36&"年"&12))))))) -> 令和年12 | CG89: =IF(OR(CG90="",CG$41=1),"",12) -> 12 | CH89: =IF(OR(CH90="",CJ$41=4),"",IF(AND(CI$36>=1,CI$36<=4,CG$36=31),"平成"&30&"年"&12,IF(AND(CI$36=5,CG$36="元"),"平成"&30&"年"&12,IF(AND(CI$36>=6,CG$36="元"),"令和元年"&12,IF(AND(CI$36>=1,CI$36<=5,CG$36=2),"令和元年"&12,(IF((AND(CI$36>=1,CI$36<=5)),"令和"&CG$36-1&"年"&12,"令和"&CG$36&"年"&12))))))) -> 令和年12 | CI89: =IF(OR(CH90="",CJ$41=4),"",IF(AND(CI$36>=1,CI$36<=4,CG$36=31),"平成"&30&"年"&12,IF(AND(CI$36=5,CG$36="元"),"平成"&30&"年"&12,IF(AND(CI$36>=6,CG$36="元"),"令和元年"&12,IF(AND(CI$36>=1,CI$36<=5,CG$36=2),"令和元年"&12,(IF((AND(CI$36>=1,CI$36<=5)),"令和"&CG$36-1&"年"&12,"令和"&CG$36&"年"&12))))))) -> 令和年12 | CM89: =IF(OR(CM90="",CM$41=1),"",12) -> 12 | CN89: =IF(OR(CN90="",CP$41=4),"",IF(AND(CO$36>=1,CO$36<=4,CM$36=31),"平成"&30&"年"&12,IF(AND(CO$36=5,CM$36="元"),"平成"&30&"年"&12,IF(AND(CO$36>=6,CM$36="元"),"令和元年"&12,IF(AND(CO$36>=1,CO$36<=5,CM$36=2),"令和元年"&12,(IF((AND(CO$36>=1,CO$36<=5)),"令和"&CM$36-1&"年"&12,"令和"&CM$36&"年"&12))))))) -> 令和年12 | CO89: =IF(OR(CN90="",CP$41=4),"",IF(AND(CO$36>=1,CO$36<=4,CM$36=31),"平成"&30&"年"&12,IF(AND(CO$36=5,CM$36="元"),"平成"&30&"年"&12,IF(AND(CO$36>=6,CM$36="元"),"令和元年"&12,IF(AND(CO$36>=1,CO$36<=5,CM$36=2),"令和元年"&12,(IF((AND(CO$36>=1,CO$36<=5)),"令和"&CM$36-1&"年"&12,"令和"&CM$36&"年"&12))))))) -> 令和年12 | CS89: =IF(OR(CS90="",CS$41=1),"",12) -> 12 | CT89: =IF(OR(CT90="",CV$41=4),"",IF(AND(CU$36>=1,CU$36<=4,CS$36=31),"平成"&30&"年"&12,IF(AND(CU$36=5,CS$36="元"),"平成"&30&"年"&12,IF(AND(CU$36>=6,CS$36="元"),"令和元年"&12,IF(AND(CU$36>=1,CU$36<=5,CS$36=2),"令和元年"&12,(IF((AND(CU$36>=1,CU$36<=5)),"令和"&CS$36-1&"年"&12,"令和"&CS$36&"年"&12))))))) -> 令和年12 | CU89: =IF(OR(CT90="",CV$41=4),"",IF(AND(CU$36>=1,CU$36<=4,CS$36=31),"平成"&30&"年"&12,IF(AND(CU$36=5,CS$36="元"),"平成"&30&"年"&12,IF(AND(CU$36>=6,CS$36="元"),"令和元年"&12,IF(AND(CU$36>=1,CU$36<=5,CS$36=2),"令和元年"&12,(IF((AND(CU$36>=1,CU$36<=5)),"令和"&CS$36-1&"年"&12,"令和"&CS$36&"年"&12))))))) -> 令和年12 | CY89: =IF(OR(CY90="",CY$41=1),"",12) -> 12 | CZ89: =IF(OR(CZ90="",DB$41=4),"",IF(AND(DA$36>=1,DA$36<=4,CY$36=31),"平成"&30&"年"&12,IF(AND(DA$36=5,CY$36="元"),"平成"&30&"年"&12,IF(AND(DA$36>=6,CY$36="元"),"令和元年"&12,IF(AND(DA$36>=1,DA$36<=5,CY$36=2),"令和元年"&12,(IF((AND(DA$36>=1,DA$36<=5)),"令和"&CY$36-1&"年"&12,"令和"&CY$36&"年"&12))))))) -> 令和年12 | DA89: =IF(OR(CZ90="",DB$41=4),"",IF(AND(DA$36>=1,DA$36<=4,CY$36=31),"平成"&30&"年"&12,IF(AND(DA$36=5,CY$36="元"),"平成"&30&"年"&12,IF(AND(DA$36>=6,CY$36="元"),"令和元年"&12,IF(AND(DA$36>=1,DA$36<=5,CY$36=2),"令和元年"&12,(IF((AND(DA$36>=1,DA$36<=5)),"令和"&CY$36-1&"年"&12,"令和"&CY$36&"年"&12))))))) -> 令和年12 | DE89: =IF(OR(DE90="",DE$41=1),"",12) -> 12 | DF89: =IF(OR(DF90="",DH$41=4),"",IF(AND(DG$36>=1,DG$36<=4,DE$36=31),"平成"&30&"年"&12,IF(AND(DG$36=5,DE$36="元"),"平成"&30&"年"&12,IF(AND(DG$36>=6,DE$36="元"),"令和元年"&12,IF(AND(DG$36>=1,DG$36<=5,DE$36=2),"令和元年"&12,(IF((AND(DG$36>=1,DG$36<=5)),"令和"&DE$36-1&"年"&12,"令和"&DE$36&"年"&12))))))) -> 令和年12 | DG89: =IF(OR(DF90="",DH$41=4),"",IF(AND(DG$36>=1,DG$36<=4,DE$36=31),"平成"&30&"年"&12,IF(AND(DG$36=5,DE$36="元"),"平成"&30&"年"&12,IF(AND(DG$36>=6,DE$36="元"),"令和元年"&12,IF(AND(DG$36>=1,DG$36<=5,DE$36=2),"令和元年"&12,(IF((AND(DG$36>=1,DG$36<=5)),"令和"&DE$36-1&"年"&12,"令和"&DE$36&"年"&12))))))) -> 令和年12 | DK89: =IF(OR(DK90="",DK$41=1),"",12) -> 12 | DL89: =IF(OR(DL90="",DN$41=4),"",IF(AND(DM$36>=1,DM$36<=4,DK$36=31),"平成"&30&"年"&12,IF(AND(DM$36=5,DK$36="元"),"平成"&30&"年"&12,IF(AND(DM$36>=6,DK$36="元"),"令和元年"&12,IF(AND(DM$36>=1,DM$36<=5,DK$36=2),"令和元年"&12,(IF((AND(DM$36>=1,DM$36<=5)),"令和"&DK$36-1&"年"&12,"令和"&DK$36&"年"&12))))))) -> 令和年12 | DM89: =IF(OR(DL90="",DN$41=4),"",IF(AND(DM$36>=1,DM$36<=4,DK$36=31),"平成"&30&"年"&12,IF(AND(DM$36=5,DK$36="元"),"平成"&30&"年"&12,IF(AND(DM$36>=6,DK$36="元"),"令和元年"&12,IF(AND(DM$36>=1,DM$36<=5,DK$36=2),"令和元年"&12,(IF((AND(DM$36>=1,DM$36<=5)),"令和"&DK$36-1&"年"&12,"令和"&DK$36&"年"&12))))))) -> 令和年12 | DQ89: =IF(OR(DQ90="",DQ$41=1),"",12) -> 12 | DR89: =IF(OR(DR90="",DT$41=4),"",IF(AND(DS$36>=1,DS$36<=4,DQ$36=31),"平成"&30&"年"&12,IF(AND(DS$36=5,DQ$36="元"),"平成"&30&"年"&12,IF(AND(DS$36>=6,DQ$36="元"),"令和元年"&12,IF(AND(DS$36>=1,DS$36<=5,DQ$36=2),"令和元年"&12,(IF((AND(DS$36>=1,DS$36<=5)),"令和"&DQ$36-1&"年"&12,"令和"&DQ$36&"年"&12))))))) -> 令和年12 | DS89: =IF(OR(DR90="",DT$41=4),"",IF(AND(DS$36>=1,DS$36<=4,DQ$36=31),"平成"&30&"年"&12,IF(AND(DS$36=5,DQ$36="元"),"平成"&30&"年"&12,IF(AND(DS$36>=6,DQ$36="元"),"令和元年"&12,IF(AND(DS$36>=1,DS$36<=5,DQ$36=2),"令和元年"&12,(IF((AND(DS$36>=1,DS$36<=5)),"令和"&DQ$36-1&"年"&12,"令和"&DQ$36&"年"&12))))))) -> 令和年12 | DW89: =IF(OR(DW90="",DW$41=1),"",12) -> 12 | DX89: =IF(OR(DX90="",DZ$41=4),"",IF(AND(DY$36>=1,DY$36<=4,DW$36=31),"平成"&30&"年"&12,IF(AND(DY$36=5,DW$36="元"),"平成"&30&"年"&12,IF(AND(DY$36>=6,DW$36="元"),"令和元年"&12,IF(AND(DY$36>=1,DY$36<=5,DW$36=2),"令和元年"&12,(IF((AND(DY$36>=1,DY$36<=5)),"令和"&DW$36-1&"年"&12,"令和"&DW$36&"年"&12))))))) -> 令和年12 | DY89: =IF(OR(DX90="",DZ$41=4),"",IF(AND(DY$36>=1,DY$36<=4,DW$36=31),"平成"&30&"年"&12,IF(AND(DY$36=5,DW$36="元"),"平成"&30&"年"&12,IF(AND(DY$36>=6,DW$36="元"),"令和元年"&12,IF(AND(DY$36>=1,DY$36<=5,DW$36=2),"令和元年"&12,(IF((AND(DY$36>=1,DY$36<=5)),"令和"&DW$36-1&"年"&12,"令和"&DW$36&"年"&12))))))) -> 令和年12 | EC89: =IF(OR(EC90="",EC$41=1),"",12) -> 12 | ED89: =IF(OR(ED90="",EF$41=4),"",IF(AND(EE$36>=1,EE$36<=4,EC$36=31),"平成"&30&"年"&12,IF(AND(EE$36=5,EC$36="元"),"平成"&30&"年"&12,IF(AND(EE$36>=6,EC$36="元"),"令和元年"&12,IF(AND(EE$36>=1,EE$36<=5,EC$36=2),"令和元年"&12,(IF((AND(EE$36>=1,EE$36<=5)),"令和"&EC$36-1&"年"&12,"令和"&EC$36&"年"&12))))))) -> 令和年12 | EE89: =IF(OR(ED90="",EF$41=4),"",IF(AND(EE$36>=1,EE$36<=4,EC$36=31),"平成"&30&"年"&12,IF(AND(EE$36=5,EC$36="元"),"平成"&30&"年"&12,IF(AND(EE$36>=6,EC$36="元"),"令和元年"&12,IF(AND(EE$36>=1,EE$36<=5,EC$36=2),"令和元年"&12,(IF((AND(EE$36>=1,EE$36<=5)),"令和"&EC$36-1&"年"&12,"令和"&EC$36&"年"&12))))))) -> 令和年12 | EI89: =IF(OR(EI90="",EI$41=1),"",12) -> 12 | EJ89: =IF(OR(EJ90="",EL$41=4),"",IF(AND(EK$36>=1,EK$36<=4,EI$36=31),"平成"&30&"年"&12,IF(AND(EK$36=5,EI$36="元"),"平成"&30&"年"&12,IF(AND(EK$36>=6,EI$36="元"),"令和元年"&12,IF(AND(EK$36>=1,EK$36<=5,EI$36=2),"令和元年"&12,(IF((AND(EK$36>=1,EK$36<=5)),"令和"&EI$36-1&"年"&12,"令和"&EI$36&"年"&12))))))) -> 令和年12 | EK89: =IF(OR(EJ90="",EL$41=4),"",IF(AND(EK$36>=1,EK$36<=4,EI$36=31),"平成"&30&"年"&12,IF(AND(EK$36=5,EI$36="元"),"平成"&30&"年"&12,IF(AND(EK$36>=6,EI$36="元"),"令和元年"&12,IF(AND(EK$36>=1,EK$36<=5,EI$36=2),"令和元年"&12,(IF((AND(EK$36>=1,EK$36<=5)),"令和"&EI$36-1&"年"&12,"令和"&EI$36&"年"&12))))))) -> 令和年12 | EO89: =IF(OR(EO90="",EO$41=1),"",12) -> 12 | EP89: =IF(OR(EP90="",ER$41=4),"",IF(AND(EQ$36>=1,EQ$36<=4,EO$36=31),"平成"&30&"年"&12,IF(AND(EQ$36=5,EO$36="元"),"平成"&30&"年"&12,IF(AND(EQ$36>=6,EO$36="元"),"令和元年"&12,IF(AND(EQ$36>=1,EQ$36<=5,EO$36=2),"令和元年"&12,(IF((AND(EQ$36>=1,EQ$36<=5)),"令和"&EO$36-1&"年"&12,"令和"&EO$36&"年"&12))))))) -> 令和年12 | EQ89: =IF(OR(EP90="",ER$41=4),"",IF(AND(EQ$36>=1,EQ$36<=4,EO$36=31),"平成"&30&"年"&12,IF(AND(EQ$36=5,EO$36="元"),"平成"&30&"年"&12,IF(AND(EQ$36>=6,EO$36="元"),"令和元年"&12,IF(AND(EQ$36>=1,EQ$36<=5,EO$36=2),"令和元年"&12,(IF((AND(EQ$36>=1,EQ$36<=5)),"令和"&EO$36-1&"年"&12,"令和"&EO$36&"年"&12))))))) -> 令和年12 | EU89: =IF(OR(EU90="",EU$41=1),"",12) -> 12 | EV89: =IF(OR(EV90="",EX$41=4),"",IF(AND(EW$36>=1,EW$36<=4,EU$36=31),"平成"&30&"年"&12,IF(AND(EW$36=5,EU$36="元"),"平成"&30&"年"&12,IF(AND(EW$36>=6,EU$36="元"),"令和元年"&12,IF(AND(EW$36>=1,EW$36<=5,EU$36=2),"令和元年"&12,(IF((AND(EW$36>=1,EW$36<=5)),"令和"&EU$36-1&"年"&12,"令和"&EU$36&"年"&12))))))) -> 令和年12 | EW89: =IF(OR(EV90="",EX$41=4),"",IF(AND(EW$36>=1,EW$36<=4,EU$36=31),"平成"&30&"年"&12,IF(AND(EW$36=5,EU$36="元"),"平成"&30&"年"&12,IF(AND(EW$36>=6,EU$36="元"),"令和元年"&12,IF(AND(EW$36>=1,EW$36<=5,EU$36=2),"令和元年"&12,(IF((AND(EW$36>=1,EW$36<=5)),"令和"&EU$36-1&"年"&12,"令和"&EU$36&"年"&12))))))) -> 令和年12 | FA89: =IF(OR(FA90="",FA$41=1),"",12) -> 12 | FB89: =IF(OR(FB90="",FD$41=4),"",IF(AND(FC$36>=1,FC$36<=4,FA$36=31),"平成"&30&"年"&12,IF(AND(FC$36=5,FA$36="元"),"平成"&30&"年"&12,IF(AND(FC$36>=6,FA$36="元"),"令和元年"&12,IF(AND(FC$36>=1,FC$36<=5,FA$36=2),"令和元年"&12,(IF((AND(FC$36>=1,FC$36<=5)),"令和"&FA$36-1&"年"&12,"令和"&FA$36&"年"&12))))))) -> 令和年12 | FC89: =IF(OR(FB90="",FD$41=4),"",IF(AND(FC$36>=1,FC$36<=4,FA$36=31),"平成"&30&"年"&12,IF(AND(FC$36=5,FA$36="元"),"平成"&30&"年"&12,IF(AND(FC$36>=6,FA$36="元"),"令和元年"&12,IF(AND(FC$36>=1,FC$36<=5,FA$36=2),"令和元年"&12,(IF((AND(FC$36>=1,FC$36<=5)),"令和"&FA$36-1&"年"&12,"令和"&FA$36&"年"&12))))))) -> 令和年12 | FG89: =IF(OR(FG90="",FG$41=1),"",12) -> 12 | FH89: =IF(OR(FH90="",FJ$41=4),"",IF(AND(FI$36>=1,FI$36<=4,FG$36=31),"平成"&30&"年"&12,IF(AND(FI$36=5,FG$36="元"),"平成"&30&"年"&12,IF(AND(FI$36>=6,FG$36="元"),"令和元年"&12,IF(AND(FI$36>=1,FI$36<=5,FG$36=2),"令和元年"&12,(IF((AND(FI$36>=1,FI$36<=5)),"令和"&FG$36-1&"年"&12,"令和"&FG$36&"年"&12))))))) -> 令和年12 | FI89: =IF(OR(FH90="",FJ$41=4),"",IF(AND(FI$36>=1,FI$36<=4,FG$36=31),"平成"&30&"年"&12,IF(AND(FI$36=5,FG$36="元"),"平成"&30&"年"&12,IF(AND(FI$36>=6,FG$36="元"),"令和元年"&12,IF(AND(FI$36>=1,FI$36<=5,FG$36=2),"令和元年"&12,(IF((AND(FI$36>=1,FI$36<=5)),"令和"&FG$36-1&"年"&12,"令和"&FG$36&"年"&12))))))) -> 令和年12 | FM89: =IF(OR(FM90="",FM$41=1),"",12) -> 12 | FN89: =IF(OR(FN90="",FP$41=4),"",IF(AND(FO$36>=1,FO$36<=4,FM$36=31),"平成"&30&"年"&12,IF(AND(FO$36=5,FM$36="元"),"平成"&30&"年"&12,IF(AND(FO$36>=6,FM$36="元"),"令和元年"&12,IF(AND(FO$36>=1,FO$36<=5,FM$36=2),"令和元年"&12,(IF((AND(FO$36>=1,FO$36<=5)),"令和"&FM$36-1&"年"&12,"令和"&FM$36&"年"&12))))))) -> 令和年12 | FO89: =IF(OR(FN90="",FP$41=4),"",IF(AND(FO$36>=1,FO$36<=4,FM$36=31),"平成"&30&"年"&12,IF(AND(FO$36=5,FM$36="元"),"平成"&30&"年"&12,IF(AND(FO$36>=6,FM$36="元"),"令和元年"&12,IF(AND(FO$36>=1,FO$36<=5,FM$36=2),"令和元年"&12,(IF((AND(FO$36>=1,FO$36<=5)),"令和"&FM$36-1&"年"&12,"令和"&FM$36&"年"&12))))))) -> 令和年12 | FS89: =IF(OR(FS90="",FS$41=1),"",12) -> 12 | FT89: =IF(OR(FT90="",FV$41=4),"",IF(AND(FU$36>=1,FU$36<=4,FS$36=31),"平成"&30&"年"&12,IF(AND(FU$36=5,FS$36="元"),"平成"&30&"年"&12,IF(AND(FU$36>=6,FS$36="元"),"令和元年"&12,IF(AND(FU$36>=1,FU$36<=5,FS$36=2),"令和元年"&12,(IF((AND(FU$36>=1,FU$36<=5)),"令和"&FS$36-1&"年"&12,"令和"&FS$36&"年"&12))))))) -> 令和年12 | FU89: =IF(OR(FT90="",FV$41=4),"",IF(AND(FU$36>=1,FU$36<=4,FS$36=31),"平成"&30&"年"&12,IF(AND(FU$36=5,FS$36="元"),"平成"&30&"年"&12,IF(AND(FU$36>=6,FS$36="元"),"令和元年"&12,IF(AND(FU$36>=1,FU$36<=5,FS$36=2),"令和元年"&12,(IF((AND(FU$36>=1,FU$36<=5)),"令和"&FS$36-1&"年"&12,"令和"&FS$36&"年"&12))))))) -> 令和年12 | FY89: =IF(OR(FY90="",FY$41=1),"",12) -> 12 | FZ89: =IF(OR(FZ90="",GB$41=4),"",IF(AND(GA$36>=1,GA$36<=4,FY$36=31),"平成"&30&"年"&12,IF(AND(GA$36=5,FY$36="元"),"平成"&30&"年"&12,IF(AND(GA$36>=6,FY$36="元"),"令和元年"&12,IF(AND(GA$36>=1,GA$36<=5,FY$36=2),"令和元年"&12,(IF((AND(GA$36>=1,GA$36<=5)),"令和"&FY$36-1&"年"&12,"令和"&FY$36&"年"&12))))))) -> 令和年12 | GA89: =IF(OR(FZ90="",GB$41=4),"",IF(AND(GA$36>=1,GA$36<=4,FY$36=31),"平成"&30&"年"&12,IF(AND(GA$36=5,FY$36="元"),"平成"&30&"年"&12,IF(AND(GA$36>=6,FY$36="元"),"令和元年"&12,IF(AND(GA$36>=1,GA$36<=5,FY$36=2),"令和元年"&12,(IF((AND(GA$36>=1,GA$36<=5)),"令和"&FY$36-1&"年"&12,"令和"&FY$36&"年"&12))))))) -> 令和年12 | GE89: =IF(OR(GE90="",GE$41=1),"",12) -> 12 | GF89: =IF(OR(GF90="",GH$41=4),"",IF(AND(GG$36>=1,GG$36<=4,GE$36=31),"平成"&30&"年"&12,IF(AND(GG$36=5,GE$36="元"),"平成"&30&"年"&12,IF(AND(GG$36>=6,GE$36="元"),"令和元年"&12,IF(AND(GG$36>=1,GG$36<=5,GE$36=2),"令和元年"&12,(IF((AND(GG$36>=1,GG$36<=5)),"令和"&GE$36-1&"年"&12,"令和"&GE$36&"年"&12))))))) -> 令和年12 | GG89: =IF(OR(GF90="",GH$41=4),"",IF(AND(GG$36>=1,GG$36<=4,GE$36=31),"平成"&30&"年"&12,IF(AND(GG$36=5,GE$36="元"),"平成"&30&"年"&12,IF(AND(GG$36>=6,GE$36="元"),"令和元年"&12,IF(AND(GG$36>=1,GG$36<=5,GE$36=2),"令和元年"&12,(IF((AND(GG$36>=1,GG$36<=5)),"令和"&GE$36-1&"年"&12,"令和"&GE$36&"年"&12))))))) -> 令和年12 | GK89: =IF(OR(GK90="",GK$41=1),"",12) -> 12 | GL89: =IF(OR(GL90="",GN$41=4),"",IF(AND(GM$36>=1,GM$36<=4,GK$36=31),"平成"&30&"年"&12,IF(AND(GM$36=5,GK$36="元"),"平成"&30&"年"&12,IF(AND(GM$36>=6,GK$36="元"),"令和元年"&12,IF(AND(GM$36>=1,GM$36<=5,GK$36=2),"令和元年"&12,(IF((AND(GM$36>=1,GM$36<=5)),"令和"&GK$36-1&"年"&12,"令和"&GK$36&"年"&12))))))) -> 令和年12 | GM89: =IF(OR(GL90="",GN$41=4),"",IF(AND(GM$36>=1,GM$36<=4,GK$36=31),"平成"&30&"年"&12,IF(AND(GM$36=5,GK$36="元"),"平成"&30&"年"&12,IF(AND(GM$36>=6,GK$36="元"),"令和元年"&12,IF(AND(GM$36>=1,GM$36<=5,GK$36=2),"令和元年"&12,(IF((AND(GM$36>=1,GM$36<=5)),"令和"&GK$36-1&"年"&12,"令和"&GK$36&"年"&12))))))) -> 令和年12 | GQ89: =IF(OR(GQ90="",GQ$41=1),"",12) -> 12 | GR89: =IF(OR(GR90="",GT$41=4),"",IF(AND(GS$36>=1,GS$36<=4,GQ$36=31),"平成"&30&"年"&12,IF(AND(GS$36=5,GQ$36="元"),"平成"&30&"年"&12,IF(AND(GS$36>=6,GQ$36="元"),"令和元年"&12,IF(AND(GS$36>=1,GS$36<=5,GQ$36=2),"令和元年"&12,(IF((AND(GS$36>=1,GS$36<=5)),"令和"&GQ$36-1&"年"&12,"令和"&GQ$36&"年"&12))))))) -> 令和年12 | GS89: =IF(OR(GR90="",GT$41=4),"",IF(AND(GS$36>=1,GS$36<=4,GQ$36=31),"平成"&30&"年"&12,IF(AND(GS$36=5,GQ$36="元"),"平成"&30&"年"&12,IF(AND(GS$36>=6,GQ$36="元"),"令和元年"&12,IF(AND(GS$36>=1,GS$36<=5,GQ$36=2),"令和元年"&12,(IF((AND(GS$36>=1,GS$36<=5)),"令和"&GQ$36-1&"年"&12,"令和"&GQ$36&"年"&12))))))) -> 令和年12 | GW89: =IF(OR(GW90="",GW$41=1),"",12) -> 12 | GX89: =IF(OR(GX90="",GZ$41=4),"",IF(AND(GY$36>=1,GY$36<=4,GW$36=31),"平成"&30&"年"&12,IF(AND(GY$36=5,GW$36="元"),"平成"&30&"年"&12,IF(AND(GY$36>=6,GW$36="元"),"令和元年"&12,IF(AND(GY$36>=1,GY$36<=5,GW$36=2),"令和元年"&12,(IF((AND(GY$36>=1,GY$36<=5)),"令和"&GW$36-1&"年"&12,"令和"&GW$36&"年"&12))))))) -> 令和年12 | GY89: =IF(OR(GX90="",GZ$41=4),"",IF(AND(GY$36>=1,GY$36<=4,GW$36=31),"平成"&30&"年"&12,IF(AND(GY$36=5,GW$36="元"),"平成"&30&"年"&12,IF(AND(GY$36>=6,GW$36="元"),"令和元年"&12,IF(AND(GY$36>=1,GY$36<=5,GW$36=2),"令和元年"&12,(IF((AND(GY$36>=1,GY$36<=5)),"令和"&GW$36-1&"年"&12,"令和"&GW$36&"年"&12))))))) -> 令和年12 | HC89: =IF(OR(HC90="",HC$41=1),"",12) -> 12 | HD89: =IF(OR(HD90="",HF$41=4),"",IF(AND(HE$36>=1,HE$36<=4,HC$36=31),"平成"&30&"年"&12,IF(AND(HE$36=5,HC$36="元"),"平成"&30&"年"&12,IF(AND(HE$36>=6,HC$36="元"),"令和元年"&12,IF(AND(HE$36>=1,HE$36<=5,HC$36=2),"令和元年"&12,(IF((AND(HE$36>=1,HE$36<=5)),"令和"&HC$36-1&"年"&12,"令和"&HC$36&"年"&12))))))) -> 令和年12 | HE89: =IF(OR(HD90="",HF$41=4),"",IF(AND(HE$36>=1,HE$36<=4,HC$36=31),"平成"&30&"年"&12,IF(AND(HE$36=5,HC$36="元"),"平成"&30&"年"&12,IF(AND(HE$36>=6,HC$36="元"),"令和元年"&12,IF(AND(HE$36>=1,HE$36<=5,HC$36=2),"令和元年"&12,(IF((AND(HE$36>=1,HE$36<=5)),"令和"&HC$36-1&"年"&12,"令和"&HC$36&"年"&12))))))) -> 令和年12 | HI89: =IF(OR(HI90="",HI$41=1),"",12) -> 12 | HJ89: =IF(OR(HJ90="",HL$41=4),"",IF(AND(HK$36>=1,HK$36<=4,HI$36=31),"平成"&30&"年"&12,IF(AND(HK$36=5,HI$36="元"),"平成"&30&"年"&12,IF(AND(HK$36>=6,HI$36="元"),"令和元年"&12,IF(AND(HK$36>=1,HK$36<=5,HI$36=2),"令和元年"&12,(IF((AND(HK$36>=1,HK$36<=5)),"令和"&HI$36-1&"年"&12,"令和"&HI$36&"年"&12))))))) -> 令和年12 | HK89: =IF(OR(HJ90="",HL$41=4),"",IF(AND(HK$36>=1,HK$36<=4,HI$36=31),"平成"&30&"年"&12,IF(AND(HK$36=5,HI$36="元"),"平成"&30&"年"&12,IF(AND(HK$36>=6,HI$36="元"),"令和元年"&12,IF(AND(HK$36>=1,HK$36<=5,HI$36=2),"令和元年"&12,(IF((AND(HK$36>=1,HK$36<=5)),"令和"&HI$36-1&"年"&12,"令和"&HI$36&"年"&12))))))) -> 令和年12 | HO89: =IF(OR(HO90="",HO$41=1),"",12) -> 12 | HP89: =IF(OR(HP90="",HR$41=4),"",IF(AND(HQ$36>=1,HQ$36<=4,HO$36=31),"平成"&30&"年"&12,IF(AND(HQ$36=5,HO$36="元"),"平成"&30&"年"&12,IF(AND(HQ$36>=6,HO$36="元"),"令和元年"&12,IF(AND(HQ$36>=1,HQ$36<=5,HO$36=2),"令和元年"&12,(IF((AND(HQ$36>=1,HQ$36<=5)),"令和"&HO$36-1&"年"&12,"令和"&HO$36&"年"&12))))))) -> 令和年12 | HQ89: =IF(OR(HP90="",HR$41=4),"",IF(AND(HQ$36>=1,HQ$36<=4,HO$36=31),"平成"&30&"年"&12,IF(AND(HQ$36=5,HO$36="元"),"平成"&30&"年"&12,IF(AND(HQ$36>=6,HO$36="元"),"令和元年"&12,IF(AND(HQ$36>=1,HQ$36<=5,HO$36=2),"令和元年"&12,(IF((AND(HQ$36>=1,HQ$36<=5)),"令和"&HO$36-1&"年"&12,"令和"&HO$36&"年"&12))))))) -> 令和年12 | HU89: =IF(OR(HU90="",HU$41=1),"",12) -> 12 | HV89: =IF(OR(HV90="",HX$41=4),"",IF(AND(HW$36>=1,HW$36<=4,HU$36=31),"平成"&30&"年"&12,IF(AND(HW$36=5,HU$36="元"),"平成"&30&"年"&12,IF(AND(HW$36>=6,HU$36="元"),"令和元年"&12,IF(AND(HW$36>=1,HW$36<=5,HU$36=2),"令和元年"&12,(IF((AND(HW$36>=1,HW$36<=5)),"令和"&HU$36-1&"年"&12,"令和"&HU$36&"年"&12))))))) -> 令和年12 | HW89: =IF(OR(HV90="",HX$41=4),"",IF(AND(HW$36>=1,HW$36<=4,HU$36=31),"平成"&30&"年"&12,IF(AND(HW$36=5,HU$36="元"),"平成"&30&"年"&12,IF(AND(HW$36>=6,HU$36="元"),"令和元年"&12,IF(AND(HW$36>=1,HW$36<=5,HU$36=2),"令和元年"&12,(IF((AND(HW$36>=1,HW$36<=5)),"令和"&HU$36-1&"年"&12,"令和"&HU$36&"年"&12))))))) -> 令和年12 | IA89: =IF(OR(IA90="",IA$41=1),"",12) -> 12 | IB89: =IF(OR(IB90="",ID$41=4),"",IF(AND(IC$36>=1,IC$36<=4,IA$36=31),"平成"&30&"年"&12,IF(AND(IC$36=5,IA$36="元"),"平成"&30&"年"&12,IF(AND(IC$36>=6,IA$36="元"),"令和元年"&12,IF(AND(IC$36>=1,IC$36<=5,IA$36=2),"令和元年"&12,(IF((AND(IC$36>=1,IC$36<=5)),"令和"&IA$36-1&"年"&12,"令和"&IA$36&"年"&12))))))) -> 令和年12 | IC89: =IF(OR(IB90="",ID$41=4),"",IF(AND(IC$36>=1,IC$36<=4,IA$36=31),"平成"&30&"年"&12,IF(AND(IC$36=5,IA$36="元"),"平成"&30&"年"&12,IF(AND(IC$36>=6,IA$36="元"),"令和元年"&12,IF(AND(IC$36>=1,IC$36<=5,IA$36=2),"令和元年"&12,(IF((AND(IC$36>=1,IC$36<=5)),"令和"&IA$36-1&"年"&12,"令和"&IA$36&"年"&12))))))) -> 令和年12 | IG89: =IF(OR(IG90="",IG$41=1),"",12) -> 12 | IH89: =IF(OR(IH90="",IJ$41=4),"",IF(AND(II$36>=1,II$36<=4,IG$36=31),"平成"&30&"年"&12,IF(AND(II$36=5,IG$36="元"),"平成"&30&"年"&12,IF(AND(II$36>=6,IG$36="元"),"令和元年"&12,IF(AND(II$36>=1,II$36<=5,IG$36=2),"令和元年"&12,(IF((AND(II$36>=1,II$36<=5)),"令和"&IG$36-1&"年"&12,"令和"&IG$36&"年"&12))))))) -> 令和年12 | II89: =IF(OR(IH90="",IJ$41=4),"",IF(AND(II$36>=1,II$36<=4,IG$36=31),"平成"&30&"年"&12,IF(AND(II$36=5,IG$36="元"),"平成"&30&"年"&12,IF(AND(II$36>=6,IG$36="元"),"令和元年"&12,IF(AND(II$36>=1,II$36<=5,IG$36=2),"令和元年"&12,(IF((AND(II$36>=1,II$36<=5)),"令和"&IG$36-1&"年"&12,"令和"&IG$36&"年"&12))))))) -> 令和年12
B90: =IF(AND(DE21<>"",DE25<>"",DG25<>"",DI25<>""),DE17,"") ->  | C90: 平 | D90: 6 | E90: 平6 | G90: =IF(OR(G91="",G$41=2),"",1) -> 1 | H90: =IF(OR(H91="",J$41=4),"",IF(AND(I$36>=1,I$36<=4,G$36=31),"平成"&31&"年"&1,IF(AND(I$36=5,G$36="元"),"平成"&31&"年"&1,IF(AND(I$36>=6,G$36="元"),"令和"&2&"年"&1,IF((AND(I$36>=1,I$36<=5)),"令和"&G$36&"年"&1,"令和"&G$36+1&"年"&1))))) -> 令和1年1 | I90: =IF(OR(H91="",J$41=4),"",IF(AND(I$36>=1,I$36<=4,G$36=31),"平成"&31&"年"&1,IF(AND(I$36=5,G$36="元"),"平成"&31&"年"&1,IF(AND(I$36>=6,G$36="元"),"令和"&2&"年"&1,IF((AND(I$36>=1,I$36<=5)),"令和"&G$36&"年"&1,"令和"&G$36+1&"年"&1))))) -> 令和1年1 | M90: =IF(OR(M91="",M$41=2),"",1) -> 1 | N90: =IF(OR(N91="",P$41=4),"",IF(AND(O$36>=1,O$36<=4,M$36=31),"平成"&31&"年"&1,IF(AND(O$36=5,M$36="元"),"平成"&31&"年"&1,IF(AND(O$36>=6,M$36="元"),"令和"&2&"年"&1,IF((AND(O$36>=1,O$36<=5)),"令和"&M$36&"年"&1,"令和"&M$36+1&"年"&1))))) -> 令和1年1 | O90: =IF(OR(N91="",P$41=4),"",IF(AND(O$36>=1,O$36<=4,M$36=31),"平成"&31&"年"&1,IF(AND(O$36=5,M$36="元"),"平成"&31&"年"&1,IF(AND(O$36>=6,M$36="元"),"令和"&2&"年"&1,IF((AND(O$36>=1,O$36<=5)),"令和"&M$36&"年"&1,"令和"&M$36+1&"年"&1))))) -> 令和1年1 | S90: =IF(OR(S91="",S$41=2),"",1) -> 1 | T90: =IF(OR(T91="",V$41=4),"",IF(AND(U$36>=1,U$36<=4,S$36=31),"平成"&31&"年"&1,IF(AND(U$36=5,S$36="元"),"平成"&31&"年"&1,IF(AND(U$36>=6,S$36="元"),"令和"&2&"年"&1,IF((AND(U$36>=1,U$36<=5)),"令和"&S$36&"年"&1,"令和"&S$36+1&"年"&1))))) -> 令和1年1 | U90: =IF(OR(T91="",V$41=4),"",IF(AND(U$36>=1,U$36<=4,S$36=31),"平成"&31&"年"&1,IF(AND(U$36=5,S$36="元"),"平成"&31&"年"&1,IF(AND(U$36>=6,S$36="元"),"令和"&2&"年"&1,IF((AND(U$36>=1,U$36<=5)),"令和"&S$36&"年"&1,"令和"&S$36+1&"年"&1))))) -> 令和1年1 | Y90: =IF(OR(Y91="",Y$41=2),"",1) -> 1 | Z90: =IF(OR(Z91="",AB$41=4),"",IF(AND(AA$36>=1,AA$36<=4,Y$36=31),"平成"&31&"年"&1,IF(AND(AA$36=5,Y$36="元"),"平成"&31&"年"&1,IF(AND(AA$36>=6,Y$36="元"),"令和"&2&"年"&1,IF((AND(AA$36>=1,AA$36<=5)),"令和"&Y$36&"年"&1,"令和"&Y$36+1&"年"&1))))) -> 令和1年1 | AA90: =IF(OR(Z91="",AB$41=4),"",IF(AND(AA$36>=1,AA$36<=4,Y$36=31),"平成"&31&"年"&1,IF(AND(AA$36=5,Y$36="元"),"平成"&31&"年"&1,IF(AND(AA$36>=6,Y$36="元"),"令和"&2&"年"&1,IF((AND(AA$36>=1,AA$36<=5)),"令和"&Y$36&"年"&1,"令和"&Y$36+1&"年"&1))))) -> 令和1年1 | AE90: =IF(OR(AE91="",AE$41=2),"",1) -> 1 | AF90: =IF(OR(AF91="",AH$41=4),"",IF(AND(AG$36>=1,AG$36<=4,AE$36=31),"平成"&31&"年"&1,IF(AND(AG$36=5,AE$36="元"),"平成"&31&"年"&1,IF(AND(AG$36>=6,AE$36="元"),"令和"&2&"年"&1,IF((AND(AG$36>=1,AG$36<=5)),"令和"&AE$36&"年"&1,"令和"&AE$36+1&"年"&1))))) -> 令和1年1 | AG90: =IF(OR(AF91="",AH$41=4),"",IF(AND(AG$36>=1,AG$36<=4,AE$36=31),"平成"&31&"年"&1,IF(AND(AG$36=5,AE$36="元"),"平成"&31&"年"&1,IF(AND(AG$36>=6,AE$36="元"),"令和"&2&"年"&1,IF((AND(AG$36>=1,AG$36<=5)),"令和"&AE$36&"年"&1,"令和"&AE$36+1&"年"&1))))) -> 令和1年1 | AK90: =IF(OR(AK91="",AK$41=2),"",1) -> 1 | AL90: =IF(OR(AL91="",AN$41=4),"",IF(AND(AM$36>=1,AM$36<=4,AK$36=31),"平成"&31&"年"&1,IF(AND(AM$36=5,AK$36="元"),"平成"&31&"年"&1,IF(AND(AM$36>=6,AK$36="元"),"令和"&2&"年"&1,IF((AND(AM$36>=1,AM$36<=5)),"令和"&AK$36&"年"&1,"令和"&AK$36+1&"年"&1))))) -> 令和1年1 | AM90: =IF(OR(AL91="",AN$41=4),"",IF(AND(AM$36>=1,AM$36<=4,AK$36=31),"平成"&31&"年"&1,IF(AND(AM$36=5,AK$36="元"),"平成"&31&"年"&1,IF(AND(AM$36>=6,AK$36="元"),"令和"&2&"年"&1,IF((AND(AM$36>=1,AM$36<=5)),"令和"&AK$36&"年"&1,"令和"&AK$36+1&"年"&1))))) -> 令和1年1 | AQ90: =IF(OR(AQ91="",AQ$41=2),"",1) -> 1 | AR90: =IF(OR(AR91="",AT$41=4),"",IF(AND(AS$36>=1,AS$36<=4,AQ$36=31),"平成"&31&"年"&1,IF(AND(AS$36=5,AQ$36="元"),"平成"&31&"年"&1,IF(AND(AS$36>=6,AQ$36="元"),"令和"&2&"年"&1,IF((AND(AS$36>=1,AS$36<=5)),"令和"&AQ$36&"年"&1,"令和"&AQ$36+1&"年"&1))))) -> 令和1年1 | AS90: =IF(OR(AR91="",AT$41=4),"",IF(AND(AS$36>=1,AS$36<=4,AQ$36=31),"平成"&31&"年"&1,IF(AND(AS$36=5,AQ$36="元"),"平成"&31&"年"&1,IF(AND(AS$36>=6,AQ$36="元"),"令和"&2&"年"&1,IF((AND(AS$36>=1,AS$36<=5)),"令和"&AQ$36&"年"&1,"令和"&AQ$36+1&"年"&1))))) -> 令和1年1 | AW90: =IF(OR(AW91="",AW$41=2),"",1) -> 1 | AX90: =IF(OR(AX91="",AZ$41=4),"",IF(AND(AY$36>=1,AY$36<=4,AW$36=31),"平成"&31&"年"&1,IF(AND(AY$36=5,AW$36="元"),"平成"&31&"年"&1,IF(AND(AY$36>=6,AW$36="元"),"令和"&2&"年"&1,IF((AND(AY$36>=1,AY$36<=5)),"令和"&AW$36&"年"&1,"令和"&AW$36+1&"年"&1))))) -> 令和1年1 | AY90: =IF(OR(AX91="",AZ$41=4),"",IF(AND(AY$36>=1,AY$36<=4,AW$36=31),"平成"&31&"年"&1,IF(AND(AY$36=5,AW$36="元"),"平成"&31&"年"&1,IF(AND(AY$36>=6,AW$36="元"),"令和"&2&"年"&1,IF((AND(AY$36>=1,AY$36<=5)),"令和"&AW$36&"年"&1,"令和"&AW$36+1&"年"&1))))) -> 令和1年1 | BC90: =IF(OR(BC91="",BC$41=2),"",1) -> 1 | BD90: =IF(OR(BD91="",BF$41=4),"",IF(AND(BE$36>=1,BE$36<=4,BC$36=31),"平成"&31&"年"&1,IF(AND(BE$36=5,BC$36="元"),"平成"&31&"年"&1,IF(AND(BE$36>=6,BC$36="元"),"令和"&2&"年"&1,IF((AND(BE$36>=1,BE$36<=5)),"令和"&BC$36&"年"&1,"令和"&BC$36+1&"年"&1))))) -> 令和1年1 | BE90: =IF(OR(BD91="",BF$41=4),"",IF(AND(BE$36>=1,BE$36<=4,BC$36=31),"平成"&31&"年"&1,IF(AND(BE$36=5,BC$36="元"),"平成"&31&"年"&1,IF(AND(BE$36>=6,BC$36="元"),"令和"&2&"年"&1,IF((AND(BE$36>=1,BE$36<=5)),"令和"&BC$36&"年"&1,"令和"&BC$36+1&"年"&1))))) -> 令和1年1 | BI90: =IF(OR(BI91="",BI$41=2),"",1) -> 1 | BJ90: =IF(OR(BJ91="",BL$41=4),"",IF(AND(BK$36>=1,BK$36<=4,BI$36=31),"平成"&31&"年"&1,IF(AND(BK$36=5,BI$36="元"),"平成"&31&"年"&1,IF(AND(BK$36>=6,BI$36="元"),"令和"&2&"年"&1,IF((AND(BK$36>=1,BK$36<=5)),"令和"&BI$36&"年"&1,"令和"&BI$36+1&"年"&1))))) -> 令和1年1 | BK90: =IF(OR(BJ91="",BL$41=4),"",IF(AND(BK$36>=1,BK$36<=4,BI$36=31),"平成"&31&"年"&1,IF(AND(BK$36=5,BI$36="元"),"平成"&31&"年"&1,IF(AND(BK$36>=6,BI$36="元"),"令和"&2&"年"&1,IF((AND(BK$36>=1,BK$36<=5)),"令和"&BI$36&"年"&1,"令和"&BI$36+1&"年"&1))))) -> 令和1年1 | BO90: =IF(OR(BO91="",BO$41=2),"",1) -> 1 | BP90: =IF(OR(BP91="",BR$41=4),"",IF(AND(BQ$36>=1,BQ$36<=4,BO$36=31),"平成"&31&"年"&1,IF(AND(BQ$36=5,BO$36="元"),"平成"&31&"年"&1,IF(AND(BQ$36>=6,BO$36="元"),"令和"&2&"年"&1,IF((AND(BQ$36>=1,BQ$36<=5)),"令和"&BO$36&"年"&1,"令和"&BO$36+1&"年"&1))))) -> 令和1年1 | BQ90: =IF(OR(BP91="",BR$41=4),"",IF(AND(BQ$36>=1,BQ$36<=4,BO$36=31),"平成"&31&"年"&1,IF(AND(BQ$36=5,BO$36="元"),"平成"&31&"年"&1,IF(AND(BQ$36>=6,BO$36="元"),"令和"&2&"年"&1,IF((AND(BQ$36>=1,BQ$36<=5)),"令和"&BO$36&"年"&1,"令和"&BO$36+1&"年"&1))))) -> 令和1年1 | BU90: =IF(OR(BU91="",BU$41=2),"",1) -> 1 | BV90: =IF(OR(BV91="",BX$41=4),"",IF(AND(BW$36>=1,BW$36<=4,BU$36=31),"平成"&31&"年"&1,IF(AND(BW$36=5,BU$36="元"),"平成"&31&"年"&1,IF(AND(BW$36>=6,BU$36="元"),"令和"&2&"年"&1,IF((AND(BW$36>=1,BW$36<=5)),"令和"&BU$36&"年"&1,"令和"&BU$36+1&"年"&1))))) -> 令和1年1 | BW90: =IF(OR(BV91="",BX$41=4),"",IF(AND(BW$36>=1,BW$36<=4,BU$36=31),"平成"&31&"年"&1,IF(AND(BW$36=5,BU$36="元"),"平成"&31&"年"&1,IF(AND(BW$36>=6,BU$36="元"),"令和"&2&"年"&1,IF((AND(BW$36>=1,BW$36<=5)),"令和"&BU$36&"年"&1,"令和"&BU$36+1&"年"&1))))) -> 令和1年1 | CA90: =IF(OR(CA91="",CA$41=2),"",1) -> 1 | CB90: =IF(OR(CB91="",CD$41=4),"",IF(AND(CC$36>=1,CC$36<=4,CA$36=31),"平成"&31&"年"&1,IF(AND(CC$36=5,CA$36="元"),"平成"&31&"年"&1,IF(AND(CC$36>=6,CA$36="元"),"令和"&2&"年"&1,IF((AND(CC$36>=1,CC$36<=5)),"令和"&CA$36&"年"&1,"令和"&CA$36+1&"年"&1))))) -> 令和1年1 | CC90: =IF(OR(CB91="",CD$41=4),"",IF(AND(CC$36>=1,CC$36<=4,CA$36=31),"平成"&31&"年"&1,IF(AND(CC$36=5,CA$36="元"),"平成"&31&"年"&1,IF(AND(CC$36>=6,CA$36="元"),"令和"&2&"年"&1,IF((AND(CC$36>=1,CC$36<=5)),"令和"&CA$36&"年"&1,"令和"&CA$36+1&"年"&1))))) -> 令和1年1 | CG90: =IF(OR(CG91="",CG$41=2),"",1) -> 1 | CH90: =IF(OR(CH91="",CJ$41=4),"",IF(AND(CI$36>=1,CI$36<=4,CG$36=31),"平成"&31&"年"&1,IF(AND(CI$36=5,CG$36="元"),"平成"&31&"年"&1,IF(AND(CI$36>=6,CG$36="元"),"令和"&2&"年"&1,IF((AND(CI$36>=1,CI$36<=5)),"令和"&CG$36&"年"&1,"令和"&CG$36+1&"年"&1))))) -> 令和1年1 | CI90: =IF(OR(CH91="",CJ$41=4),"",IF(AND(CI$36>=1,CI$36<=4,CG$36=31),"平成"&31&"年"&1,IF(AND(CI$36=5,CG$36="元"),"平成"&31&"年"&1,IF(AND(CI$36>=6,CG$36="元"),"令和"&2&"年"&1,IF((AND(CI$36>=1,CI$36<=5)),"令和"&CG$36&"年"&1,"令和"&CG$36+1&"年"&1))))) -> 令和1年1 | CM90: =IF(OR(CM91="",CM$41=2),"",1) -> 1 | CN90: =IF(OR(CN91="",CP$41=4),"",IF(AND(CO$36>=1,CO$36<=4,CM$36=31),"平成"&31&"年"&1,IF(AND(CO$36=5,CM$36="元"),"平成"&31&"年"&1,IF(AND(CO$36>=6,CM$36="元"),"令和"&2&"年"&1,IF((AND(CO$36>=1,CO$36<=5)),"令和"&CM$36&"年"&1,"令和"&CM$36+1&"年"&1))))) -> 令和1年1 | CO90: =IF(OR(CN91="",CP$41=4),"",IF(AND(CO$36>=1,CO$36<=4,CM$36=31),"平成"&31&"年"&1,IF(AND(CO$36=5,CM$36="元"),"平成"&31&"年"&1,IF(AND(CO$36>=6,CM$36="元"),"令和"&2&"年"&1,IF((AND(CO$36>=1,CO$36<=5)),"令和"&CM$36&"年"&1,"令和"&CM$36+1&"年"&1))))) -> 令和1年1 | CS90: =IF(OR(CS91="",CS$41=2),"",1) -> 1 | CT90: =IF(OR(CT91="",CV$41=4),"",IF(AND(CU$36>=1,CU$36<=4,CS$36=31),"平成"&31&"年"&1,IF(AND(CU$36=5,CS$36="元"),"平成"&31&"年"&1,IF(AND(CU$36>=6,CS$36="元"),"令和"&2&"年"&1,IF((AND(CU$36>=1,CU$36<=5)),"令和"&CS$36&"年"&1,"令和"&CS$36+1&"年"&1))))) -> 令和1年1 | CU90: =IF(OR(CT91="",CV$41=4),"",IF(AND(CU$36>=1,CU$36<=4,CS$36=31),"平成"&31&"年"&1,IF(AND(CU$36=5,CS$36="元"),"平成"&31&"年"&1,IF(AND(CU$36>=6,CS$36="元"),"令和"&2&"年"&1,IF((AND(CU$36>=1,CU$36<=5)),"令和"&CS$36&"年"&1,"令和"&CS$36+1&"年"&1))))) -> 令和1年1 | CY90: =IF(OR(CY91="",CY$41=2),"",1) -> 1 | CZ90: =IF(OR(CZ91="",DB$41=4),"",IF(AND(DA$36>=1,DA$36<=4,CY$36=31),"平成"&31&"年"&1,IF(AND(DA$36=5,CY$36="元"),"平成"&31&"年"&1,IF(AND(DA$36>=6,CY$36="元"),"令和"&2&"年"&1,IF((AND(DA$36>=1,DA$36<=5)),"令和"&CY$36&"年"&1,"令和"&CY$36+1&"年"&1))))) -> 令和1年1 | DA90: =IF(OR(CZ91="",DB$41=4),"",IF(AND(DA$36>=1,DA$36<=4,CY$36=31),"平成"&31&"年"&1,IF(AND(DA$36=5,CY$36="元"),"平成"&31&"年"&1,IF(AND(DA$36>=6,CY$36="元"),"令和"&2&"年"&1,IF((AND(DA$36>=1,DA$36<=5)),"令和"&CY$36&"年"&1,"令和"&CY$36+1&"年"&1))))) -> 令和1年1 | DE90: =IF(OR(DE91="",DE$41=2),"",1) -> 1 | DF90: =IF(OR(DF91="",DH$41=4),"",IF(AND(DG$36>=1,DG$36<=4,DE$36=31),"平成"&31&"年"&1,IF(AND(DG$36=5,DE$36="元"),"平成"&31&"年"&1,IF(AND(DG$36>=6,DE$36="元"),"令和"&2&"年"&1,IF((AND(DG$36>=1,DG$36<=5)),"令和"&DE$36&"年"&1,"令和"&DE$36+1&"年"&1))))) -> 令和1年1 | DG90: =IF(OR(DF91="",DH$41=4),"",IF(AND(DG$36>=1,DG$36<=4,DE$36=31),"平成"&31&"年"&1,IF(AND(DG$36=5,DE$36="元"),"平成"&31&"年"&1,IF(AND(DG$36>=6,DE$36="元"),"令和"&2&"年"&1,IF((AND(DG$36>=1,DG$36<=5)),"令和"&DE$36&"年"&1,"令和"&DE$36+1&"年"&1))))) -> 令和1年1 | DK90: =IF(OR(DK91="",DK$41=2),"",1) -> 1 | DL90: =IF(OR(DL91="",DN$41=4),"",IF(AND(DM$36>=1,DM$36<=4,DK$36=31),"平成"&31&"年"&1,IF(AND(DM$36=5,DK$36="元"),"平成"&31&"年"&1,IF(AND(DM$36>=6,DK$36="元"),"令和"&2&"年"&1,IF((AND(DM$36>=1,DM$36<=5)),"令和"&DK$36&"年"&1,"令和"&DK$36+1&"年"&1))))) -> 令和1年1 | DM90: =IF(OR(DL91="",DN$41=4),"",IF(AND(DM$36>=1,DM$36<=4,DK$36=31),"平成"&31&"年"&1,IF(AND(DM$36=5,DK$36="元"),"平成"&31&"年"&1,IF(AND(DM$36>=6,DK$36="元"),"令和"&2&"年"&1,IF((AND(DM$36>=1,DM$36<=5)),"令和"&DK$36&"年"&1,"令和"&DK$36+1&"年"&1))))) -> 令和1年1 | DQ90: =IF(OR(DQ91="",DQ$41=2),"",1) -> 1 | DR90: =IF(OR(DR91="",DT$41=4),"",IF(AND(DS$36>=1,DS$36<=4,DQ$36=31),"平成"&31&"年"&1,IF(AND(DS$36=5,DQ$36="元"),"平成"&31&"年"&1,IF(AND(DS$36>=6,DQ$36="元"),"令和"&2&"年"&1,IF((AND(DS$36>=1,DS$36<=5)),"令和"&DQ$36&"年"&1,"令和"&DQ$36+1&"年"&1))))) -> 令和1年1 | DS90: =IF(OR(DR91="",DT$41=4),"",IF(AND(DS$36>=1,DS$36<=4,DQ$36=31),"平成"&31&"年"&1,IF(AND(DS$36=5,DQ$36="元"),"平成"&31&"年"&1,IF(AND(DS$36>=6,DQ$36="元"),"令和"&2&"年"&1,IF((AND(DS$36>=1,DS$36<=5)),"令和"&DQ$36&"年"&1,"令和"&DQ$36+1&"年"&1))))) -> 令和1年1 | DW90: =IF(OR(DW91="",DW$41=2),"",1) -> 1 | DX90: =IF(OR(DX91="",DZ$41=4),"",IF(AND(DY$36>=1,DY$36<=4,DW$36=31),"平成"&31&"年"&1,IF(AND(DY$36=5,DW$36="元"),"平成"&31&"年"&1,IF(AND(DY$36>=6,DW$36="元"),"令和"&2&"年"&1,IF((AND(DY$36>=1,DY$36<=5)),"令和"&DW$36&"年"&1,"令和"&DW$36+1&"年"&1))))) -> 令和1年1 | DY90: =IF(OR(DX91="",DZ$41=4),"",IF(AND(DY$36>=1,DY$36<=4,DW$36=31),"平成"&31&"年"&1,IF(AND(DY$36=5,DW$36="元"),"平成"&31&"年"&1,IF(AND(DY$36>=6,DW$36="元"),"令和"&2&"年"&1,IF((AND(DY$36>=1,DY$36<=5)),"令和"&DW$36&"年"&1,"令和"&DW$36+1&"年"&1))))) -> 令和1年1 | EC90: =IF(OR(EC91="",EC$41=2),"",1) -> 1 | ED90: =IF(OR(ED91="",EF$41=4),"",IF(AND(EE$36>=1,EE$36<=4,EC$36=31),"平成"&31&"年"&1,IF(AND(EE$36=5,EC$36="元"),"平成"&31&"年"&1,IF(AND(EE$36>=6,EC$36="元"),"令和"&2&"年"&1,IF((AND(EE$36>=1,EE$36<=5)),"令和"&EC$36&"年"&1,"令和"&EC$36+1&"年"&1))))) -> 令和1年1 | EE90: =IF(OR(ED91="",EF$41=4),"",IF(AND(EE$36>=1,EE$36<=4,EC$36=31),"平成"&31&"年"&1,IF(AND(EE$36=5,EC$36="元"),"平成"&31&"年"&1,IF(AND(EE$36>=6,EC$36="元"),"令和"&2&"年"&1,IF((AND(EE$36>=1,EE$36<=5)),"令和"&EC$36&"年"&1,"令和"&EC$36+1&"年"&1))))) -> 令和1年1 | EI90: =IF(OR(EI91="",EI$41=2),"",1) -> 1 | EJ90: =IF(OR(EJ91="",EL$41=4),"",IF(AND(EK$36>=1,EK$36<=4,EI$36=31),"平成"&31&"年"&1,IF(AND(EK$36=5,EI$36="元"),"平成"&31&"年"&1,IF(AND(EK$36>=6,EI$36="元"),"令和"&2&"年"&1,IF((AND(EK$36>=1,EK$36<=5)),"令和"&EI$36&"年"&1,"令和"&EI$36+1&"年"&1))))) -> 令和1年1 | EK90: =IF(OR(EJ91="",EL$41=4),"",IF(AND(EK$36>=1,EK$36<=4,EI$36=31),"平成"&31&"年"&1,IF(AND(EK$36=5,EI$36="元"),"平成"&31&"年"&1,IF(AND(EK$36>=6,EI$36="元"),"令和"&2&"年"&1,IF((AND(EK$36>=1,EK$36<=5)),"令和"&EI$36&"年"&1,"令和"&EI$36+1&"年"&1))))) -> 令和1年1 | EO90: =IF(OR(EO91="",EO$41=2),"",1) -> 1 | EP90: =IF(OR(EP91="",ER$41=4),"",IF(AND(EQ$36>=1,EQ$36<=4,EO$36=31),"平成"&31&"年"&1,IF(AND(EQ$36=5,EO$36="元"),"平成"&31&"年"&1,IF(AND(EQ$36>=6,EO$36="元"),"令和"&2&"年"&1,IF((AND(EQ$36>=1,EQ$36<=5)),"令和"&EO$36&"年"&1,"令和"&EO$36+1&"年"&1))))) -> 令和1年1 | EQ90: =IF(OR(EP91="",ER$41=4),"",IF(AND(EQ$36>=1,EQ$36<=4,EO$36=31),"平成"&31&"年"&1,IF(AND(EQ$36=5,EO$36="元"),"平成"&31&"年"&1,IF(AND(EQ$36>=6,EO$36="元"),"令和"&2&"年"&1,IF((AND(EQ$36>=1,EQ$36<=5)),"令和"&EO$36&"年"&1,"令和"&EO$36+1&"年"&1))))) -> 令和1年1 | EU90: =IF(OR(EU91="",EU$41=2),"",1) -> 1 | EV90: =IF(OR(EV91="",EX$41=4),"",IF(AND(EW$36>=1,EW$36<=4,EU$36=31),"平成"&31&"年"&1,IF(AND(EW$36=5,EU$36="元"),"平成"&31&"年"&1,IF(AND(EW$36>=6,EU$36="元"),"令和"&2&"年"&1,IF((AND(EW$36>=1,EW$36<=5)),"令和"&EU$36&"年"&1,"令和"&EU$36+1&"年"&1))))) -> 令和1年1 | EW90: =IF(OR(EV91="",EX$41=4),"",IF(AND(EW$36>=1,EW$36<=4,EU$36=31),"平成"&31&"年"&1,IF(AND(EW$36=5,EU$36="元"),"平成"&31&"年"&1,IF(AND(EW$36>=6,EU$36="元"),"令和"&2&"年"&1,IF((AND(EW$36>=1,EW$36<=5)),"令和"&EU$36&"年"&1,"令和"&EU$36+1&"年"&1))))) -> 令和1年1 | FA90: =IF(OR(FA91="",FA$41=2),"",1) -> 1 | FB90: =IF(OR(FB91="",FD$41=4),"",IF(AND(FC$36>=1,FC$36<=4,FA$36=31),"平成"&31&"年"&1,IF(AND(FC$36=5,FA$36="元"),"平成"&31&"年"&1,IF(AND(FC$36>=6,FA$36="元"),"令和"&2&"年"&1,IF((AND(FC$36>=1,FC$36<=5)),"令和"&FA$36&"年"&1,"令和"&FA$36+1&"年"&1))))) -> 令和1年1 | FC90: =IF(OR(FB91="",FD$41=4),"",IF(AND(FC$36>=1,FC$36<=4,FA$36=31),"平成"&31&"年"&1,IF(AND(FC$36=5,FA$36="元"),"平成"&31&"年"&1,IF(AND(FC$36>=6,FA$36="元"),"令和"&2&"年"&1,IF((AND(FC$36>=1,FC$36<=5)),"令和"&FA$36&"年"&1,"令和"&FA$36+1&"年"&1))))) -> 令和1年1 | FG90: =IF(OR(FG91="",FG$41=2),"",1) -> 1 | FH90: =IF(OR(FH91="",FJ$41=4),"",IF(AND(FI$36>=1,FI$36<=4,FG$36=31),"平成"&31&"年"&1,IF(AND(FI$36=5,FG$36="元"),"平成"&31&"年"&1,IF(AND(FI$36>=6,FG$36="元"),"令和"&2&"年"&1,IF((AND(FI$36>=1,FI$36<=5)),"令和"&FG$36&"年"&1,"令和"&FG$36+1&"年"&1))))) -> 令和1年1 | FI90: =IF(OR(FH91="",FJ$41=4),"",IF(AND(FI$36>=1,FI$36<=4,FG$36=31),"平成"&31&"年"&1,IF(AND(FI$36=5,FG$36="元"),"平成"&31&"年"&1,IF(AND(FI$36>=6,FG$36="元"),"令和"&2&"年"&1,IF((AND(FI$36>=1,FI$36<=5)),"令和"&FG$36&"年"&1,"令和"&FG$36+1&"年"&1))))) -> 令和1年1 | FM90: =IF(OR(FM91="",FM$41=2),"",1) -> 1 | FN90: =IF(OR(FN91="",FP$41=4),"",IF(AND(FO$36>=1,FO$36<=4,FM$36=31),"平成"&31&"年"&1,IF(AND(FO$36=5,FM$36="元"),"平成"&31&"年"&1,IF(AND(FO$36>=6,FM$36="元"),"令和"&2&"年"&1,IF((AND(FO$36>=1,FO$36<=5)),"令和"&FM$36&"年"&1,"令和"&FM$36+1&"年"&1))))) -> 令和1年1 | FO90: =IF(OR(FN91="",FP$41=4),"",IF(AND(FO$36>=1,FO$36<=4,FM$36=31),"平成"&31&"年"&1,IF(AND(FO$36=5,FM$36="元"),"平成"&31&"年"&1,IF(AND(FO$36>=6,FM$36="元"),"令和"&2&"年"&1,IF((AND(FO$36>=1,FO$36<=5)),"令和"&FM$36&"年"&1,"令和"&FM$36+1&"年"&1))))) -> 令和1年1 | FS90: =IF(OR(FS91="",FS$41=2),"",1) -> 1 | FT90: =IF(OR(FT91="",FV$41=4),"",IF(AND(FU$36>=1,FU$36<=4,FS$36=31),"平成"&31&"年"&1,IF(AND(FU$36=5,FS$36="元"),"平成"&31&"年"&1,IF(AND(FU$36>=6,FS$36="元"),"令和"&2&"年"&1,IF((AND(FU$36>=1,FU$36<=5)),"令和"&FS$36&"年"&1,"令和"&FS$36+1&"年"&1))))) -> 令和1年1 | FU90: =IF(OR(FT91="",FV$41=4),"",IF(AND(FU$36>=1,FU$36<=4,FS$36=31),"平成"&31&"年"&1,IF(AND(FU$36=5,FS$36="元"),"平成"&31&"年"&1,IF(AND(FU$36>=6,FS$36="元"),"令和"&2&"年"&1,IF((AND(FU$36>=1,FU$36<=5)),"令和"&FS$36&"年"&1,"令和"&FS$36+1&"年"&1))))) -> 令和1年1 | FY90: =IF(OR(FY91="",FY$41=2),"",1) -> 1 | FZ90: =IF(OR(FZ91="",GB$41=4),"",IF(AND(GA$36>=1,GA$36<=4,FY$36=31),"平成"&31&"年"&1,IF(AND(GA$36=5,FY$36="元"),"平成"&31&"年"&1,IF(AND(GA$36>=6,FY$36="元"),"令和"&2&"年"&1,IF((AND(GA$36>=1,GA$36<=5)),"令和"&FY$36&"年"&1,"令和"&FY$36+1&"年"&1))))) -> 令和1年1 | GA90: =IF(OR(FZ91="",GB$41=4),"",IF(AND(GA$36>=1,GA$36<=4,FY$36=31),"平成"&31&"年"&1,IF(AND(GA$36=5,FY$36="元"),"平成"&31&"年"&1,IF(AND(GA$36>=6,FY$36="元"),"令和"&2&"年"&1,IF((AND(GA$36>=1,GA$36<=5)),"令和"&FY$36&"年"&1,"令和"&FY$36+1&"年"&1))))) -> 令和1年1 | GE90: =IF(OR(GE91="",GE$41=2),"",1) -> 1 | GF90: =IF(OR(GF91="",GH$41=4),"",IF(AND(GG$36>=1,GG$36<=4,GE$36=31),"平成"&31&"年"&1,IF(AND(GG$36=5,GE$36="元"),"平成"&31&"年"&1,IF(AND(GG$36>=6,GE$36="元"),"令和"&2&"年"&1,IF((AND(GG$36>=1,GG$36<=5)),"令和"&GE$36&"年"&1,"令和"&GE$36+1&"年"&1))))) -> 令和1年1 | GG90: =IF(OR(GF91="",GH$41=4),"",IF(AND(GG$36>=1,GG$36<=4,GE$36=31),"平成"&31&"年"&1,IF(AND(GG$36=5,GE$36="元"),"平成"&31&"年"&1,IF(AND(GG$36>=6,GE$36="元"),"令和"&2&"年"&1,IF((AND(GG$36>=1,GG$36<=5)),"令和"&GE$36&"年"&1,"令和"&GE$36+1&"年"&1))))) -> 令和1年1 | GK90: =IF(OR(GK91="",GK$41=2),"",1) -> 1 | GL90: =IF(OR(GL91="",GN$41=4),"",IF(AND(GM$36>=1,GM$36<=4,GK$36=31),"平成"&31&"年"&1,IF(AND(GM$36=5,GK$36="元"),"平成"&31&"年"&1,IF(AND(GM$36>=6,GK$36="元"),"令和"&2&"年"&1,IF((AND(GM$36>=1,GM$36<=5)),"令和"&GK$36&"年"&1,"令和"&GK$36+1&"年"&1))))) -> 令和1年1 | GM90: =IF(OR(GL91="",GN$41=4),"",IF(AND(GM$36>=1,GM$36<=4,GK$36=31),"平成"&31&"年"&1,IF(AND(GM$36=5,GK$36="元"),"平成"&31&"年"&1,IF(AND(GM$36>=6,GK$36="元"),"令和"&2&"年"&1,IF((AND(GM$36>=1,GM$36<=5)),"令和"&GK$36&"年"&1,"令和"&GK$36+1&"年"&1))))) -> 令和1年1 | GQ90: =IF(OR(GQ91="",GQ$41=2),"",1) -> 1 | GR90: =IF(OR(GR91="",GT$41=4),"",IF(AND(GS$36>=1,GS$36<=4,GQ$36=31),"平成"&31&"年"&1,IF(AND(GS$36=5,GQ$36="元"),"平成"&31&"年"&1,IF(AND(GS$36>=6,GQ$36="元"),"令和"&2&"年"&1,IF((AND(GS$36>=1,GS$36<=5)),"令和"&GQ$36&"年"&1,"令和"&GQ$36+1&"年"&1))))) -> 令和1年1 | GS90: =IF(OR(GR91="",GT$41=4),"",IF(AND(GS$36>=1,GS$36<=4,GQ$36=31),"平成"&31&"年"&1,IF(AND(GS$36=5,GQ$36="元"),"平成"&31&"年"&1,IF(AND(GS$36>=6,GQ$36="元"),"令和"&2&"年"&1,IF((AND(GS$36>=1,GS$36<=5)),"令和"&GQ$36&"年"&1,"令和"&GQ$36+1&"年"&1))))) -> 令和1年1 | GW90: =IF(OR(GW91="",GW$41=2),"",1) -> 1 | GX90: =IF(OR(GX91="",GZ$41=4),"",IF(AND(GY$36>=1,GY$36<=4,GW$36=31),"平成"&31&"年"&1,IF(AND(GY$36=5,GW$36="元"),"平成"&31&"年"&1,IF(AND(GY$36>=6,GW$36="元"),"令和"&2&"年"&1,IF((AND(GY$36>=1,GY$36<=5)),"令和"&GW$36&"年"&1,"令和"&GW$36+1&"年"&1))))) -> 令和1年1 | GY90: =IF(OR(GX91="",GZ$41=4),"",IF(AND(GY$36>=1,GY$36<=4,GW$36=31),"平成"&31&"年"&1,IF(AND(GY$36=5,GW$36="元"),"平成"&31&"年"&1,IF(AND(GY$36>=6,GW$36="元"),"令和"&2&"年"&1,IF((AND(GY$36>=1,GY$36<=5)),"令和"&GW$36&"年"&1,"令和"&GW$36+1&"年"&1))))) -> 令和1年1 | HC90: =IF(OR(HC91="",HC$41=2),"",1) -> 1 | HD90: =IF(OR(HD91="",HF$41=4),"",IF(AND(HE$36>=1,HE$36<=4,HC$36=31),"平成"&31&"年"&1,IF(AND(HE$36=5,HC$36="元"),"平成"&31&"年"&1,IF(AND(HE$36>=6,HC$36="元"),"令和"&2&"年"&1,IF((AND(HE$36>=1,HE$36<=5)),"令和"&HC$36&"年"&1,"令和"&HC$36+1&"年"&1))))) -> 令和1年1 | HE90: =IF(OR(HD91="",HF$41=4),"",IF(AND(HE$36>=1,HE$36<=4,HC$36=31),"平成"&31&"年"&1,IF(AND(HE$36=5,HC$36="元"),"平成"&31&"年"&1,IF(AND(HE$36>=6,HC$36="元"),"令和"&2&"年"&1,IF((AND(HE$36>=1,HE$36<=5)),"令和"&HC$36&"年"&1,"令和"&HC$36+1&"年"&1))))) -> 令和1年1 | HI90: =IF(OR(HI91="",HI$41=2),"",1) -> 1 | HJ90: =IF(OR(HJ91="",HL$41=4),"",IF(AND(HK$36>=1,HK$36<=4,HI$36=31),"平成"&31&"年"&1,IF(AND(HK$36=5,HI$36="元"),"平成"&31&"年"&1,IF(AND(HK$36>=6,HI$36="元"),"令和"&2&"年"&1,IF((AND(HK$36>=1,HK$36<=5)),"令和"&HI$36&"年"&1,"令和"&HI$36+1&"年"&1))))) -> 令和1年1 | HK90: =IF(OR(HJ91="",HL$41=4),"",IF(AND(HK$36>=1,HK$36<=4,HI$36=31),"平成"&31&"年"&1,IF(AND(HK$36=5,HI$36="元"),"平成"&31&"年"&1,IF(AND(HK$36>=6,HI$36="元"),"令和"&2&"年"&1,IF((AND(HK$36>=1,HK$36<=5)),"令和"&HI$36&"年"&1,"令和"&HI$36+1&"年"&1))))) -> 令和1年1 | HO90: =IF(OR(HO91="",HO$41=2),"",1) -> 1 | HP90: =IF(OR(HP91="",HR$41=4),"",IF(AND(HQ$36>=1,HQ$36<=4,HO$36=31),"平成"&31&"年"&1,IF(AND(HQ$36=5,HO$36="元"),"平成"&31&"年"&1,IF(AND(HQ$36>=6,HO$36="元"),"令和"&2&"年"&1,IF((AND(HQ$36>=1,HQ$36<=5)),"令和"&HO$36&"年"&1,"令和"&HO$36+1&"年"&1))))) -> 令和1年1 | HQ90: =IF(OR(HP91="",HR$41=4),"",IF(AND(HQ$36>=1,HQ$36<=4,HO$36=31),"平成"&31&"年"&1,IF(AND(HQ$36=5,HO$36="元"),"平成"&31&"年"&1,IF(AND(HQ$36>=6,HO$36="元"),"令和"&2&"年"&1,IF((AND(HQ$36>=1,HQ$36<=5)),"令和"&HO$36&"年"&1,"令和"&HO$36+1&"年"&1))))) -> 令和1年1 | HU90: =IF(OR(HU91="",HU$41=2),"",1) -> 1 | HV90: =IF(OR(HV91="",HX$41=4),"",IF(AND(HW$36>=1,HW$36<=4,HU$36=31),"平成"&31&"年"&1,IF(AND(HW$36=5,HU$36="元"),"平成"&31&"年"&1,IF(AND(HW$36>=6,HU$36="元"),"令和"&2&"年"&1,IF((AND(HW$36>=1,HW$36<=5)),"令和"&HU$36&"年"&1,"令和"&HU$36+1&"年"&1))))) -> 令和1年1 | HW90: =IF(OR(HV91="",HX$41=4),"",IF(AND(HW$36>=1,HW$36<=4,HU$36=31),"平成"&31&"年"&1,IF(AND(HW$36=5,HU$36="元"),"平成"&31&"年"&1,IF(AND(HW$36>=6,HU$36="元"),"令和"&2&"年"&1,IF((AND(HW$36>=1,HW$36<=5)),"令和"&HU$36&"年"&1,"令和"&HU$36+1&"年"&1))))) -> 令和1年1 | IA90: =IF(OR(IA91="",IA$41=2),"",1) -> 1 | IB90: =IF(OR(IB91="",ID$41=4),"",IF(AND(IC$36>=1,IC$36<=4,IA$36=31),"平成"&31&"年"&1,IF(AND(IC$36=5,IA$36="元"),"平成"&31&"年"&1,IF(AND(IC$36>=6,IA$36="元"),"令和"&2&"年"&1,IF((AND(IC$36>=1,IC$36<=5)),"令和"&IA$36&"年"&1,"令和"&IA$36+1&"年"&1))))) -> 令和1年1 | IC90: =IF(OR(IB91="",ID$41=4),"",IF(AND(IC$36>=1,IC$36<=4,IA$36=31),"平成"&31&"年"&1,IF(AND(IC$36=5,IA$36="元"),"平成"&31&"年"&1,IF(AND(IC$36>=6,IA$36="元"),"令和"&2&"年"&1,IF((AND(IC$36>=1,IC$36<=5)),"令和"&IA$36&"年"&1,"令和"&IA$36+1&"年"&1))))) -> 令和1年1 | IG90: =IF(OR(IG91="",IG$41=2),"",1) -> 1 | IH90: =IF(OR(IH91="",IJ$41=4),"",IF(AND(II$36>=1,II$36<=4,IG$36=31),"平成"&31&"年"&1,IF(AND(II$36=5,IG$36="元"),"平成"&31&"年"&1,IF(AND(II$36>=6,IG$36="元"),"令和"&2&"年"&1,IF((AND(II$36>=1,II$36<=5)),"令和"&IG$36&"年"&1,"令和"&IG$36+1&"年"&1))))) -> 令和1年1 | II90: =IF(OR(IH91="",IJ$41=4),"",IF(AND(II$36>=1,II$36<=4,IG$36=31),"平成"&31&"年"&1,IF(AND(II$36=5,IG$36="元"),"平成"&31&"年"&1,IF(AND(II$36>=6,IG$36="元"),"令和"&2&"年"&1,IF((AND(II$36>=1,II$36<=5)),"令和"&IG$36&"年"&1,"令和"&IG$36+1&"年"&1))))) -> 令和1年1
B91: =IF(AND(DK21<>"",DK25<>"",DM25<>"",DO25<>""),DK17,"") ->  | C91: 平 | D91: 5 | E91: 平5 | G91: =IF(OR(G92="",G$41=3),"",2) -> 2 | H91: =IF(OR(H92="",J$41=4),"",IF(AND(I$36>=1,I$36<=4,G$36=31),"平成"&31&"年"&2,IF(AND(I$36=5,G$36="元"),"平成"&31&"年"&2,IF(AND(I$36>=6,G$36="元"),"令和"&2&"年"&2,IF((AND(I$36>=1,I$36<=5)),"令和"&G$36&"年"&2,"令和"&G$36+1&"年"&2))))) -> 令和1年2 | I91: =IF(OR(H92="",J$41=4),"",IF(AND(I$36>=1,I$36<=4,G$36=31),"平成"&31&"年"&2,IF(AND(I$36=5,G$36="元"),"平成"&31&"年"&2,IF(AND(I$36>=6,G$36="元"),"令和"&2&"年"&2,IF((AND(I$36>=1,I$36<=5)),"令和"&G$36&"年"&2,"令和"&G$36+1&"年"&2))))) -> 令和1年2 | M91: =IF(OR(M92="",M$41=3),"",2) -> 2 | N91: =IF(OR(N92="",P$41=4),"",IF(AND(O$36>=1,O$36<=4,M$36=31),"平成"&31&"年"&2,IF(AND(O$36=5,M$36="元"),"平成"&31&"年"&2,IF(AND(O$36>=6,M$36="元"),"令和"&2&"年"&2,IF((AND(O$36>=1,O$36<=5)),"令和"&M$36&"年"&2,"令和"&M$36+1&"年"&2))))) -> 令和1年2 | O91: =IF(OR(N92="",P$41=4),"",IF(AND(O$36>=1,O$36<=4,M$36=31),"平成"&31&"年"&2,IF(AND(O$36=5,M$36="元"),"平成"&31&"年"&2,IF(AND(O$36>=6,M$36="元"),"令和"&2&"年"&2,IF((AND(O$36>=1,O$36<=5)),"令和"&M$36&"年"&2,"令和"&M$36+1&"年"&2))))) -> 令和1年2 | S91: =IF(OR(S92="",S$41=3),"",2) -> 2 | T91: =IF(OR(T92="",V$41=4),"",IF(AND(U$36>=1,U$36<=4,S$36=31),"平成"&31&"年"&2,IF(AND(U$36=5,S$36="元"),"平成"&31&"年"&2,IF(AND(U$36>=6,S$36="元"),"令和"&2&"年"&2,IF((AND(U$36>=1,U$36<=5)),"令和"&S$36&"年"&2,"令和"&S$36+1&"年"&2))))) -> 令和1年2 | U91: =IF(OR(T92="",V$41=4),"",IF(AND(U$36>=1,U$36<=4,S$36=31),"平成"&31&"年"&2,IF(AND(U$36=5,S$36="元"),"平成"&31&"年"&2,IF(AND(U$36>=6,S$36="元"),"令和"&2&"年"&2,IF((AND(U$36>=1,U$36<=5)),"令和"&S$36&"年"&2,"令和"&S$36+1&"年"&2))))) -> 令和1年2 | Y91: =IF(OR(Y92="",Y$41=3),"",2) -> 2 | Z91: =IF(OR(Z92="",AB$41=4),"",IF(AND(AA$36>=1,AA$36<=4,Y$36=31),"平成"&31&"年"&2,IF(AND(AA$36=5,Y$36="元"),"平成"&31&"年"&2,IF(AND(AA$36>=6,Y$36="元"),"令和"&2&"年"&2,IF((AND(AA$36>=1,AA$36<=5)),"令和"&Y$36&"年"&2,"令和"&Y$36+1&"年"&2))))) -> 令和1年2 | AA91: =IF(OR(Z92="",AB$41=4),"",IF(AND(AA$36>=1,AA$36<=4,Y$36=31),"平成"&31&"年"&2,IF(AND(AA$36=5,Y$36="元"),"平成"&31&"年"&2,IF(AND(AA$36>=6,Y$36="元"),"令和"&2&"年"&2,IF((AND(AA$36>=1,AA$36<=5)),"令和"&Y$36&"年"&2,"令和"&Y$36+1&"年"&2))))) -> 令和1年2 | AE91: =IF(OR(AE92="",AE$41=3),"",2) -> 2 | AF91: =IF(OR(AF92="",AH$41=4),"",IF(AND(AG$36>=1,AG$36<=4,AE$36=31),"平成"&31&"年"&2,IF(AND(AG$36=5,AE$36="元"),"平成"&31&"年"&2,IF(AND(AG$36>=6,AE$36="元"),"令和"&2&"年"&2,IF((AND(AG$36>=1,AG$36<=5)),"令和"&AE$36&"年"&2,"令和"&AE$36+1&"年"&2))))) -> 令和1年2 | AG91: =IF(OR(AF92="",AH$41=4),"",IF(AND(AG$36>=1,AG$36<=4,AE$36=31),"平成"&31&"年"&2,IF(AND(AG$36=5,AE$36="元"),"平成"&31&"年"&2,IF(AND(AG$36>=6,AE$36="元"),"令和"&2&"年"&2,IF((AND(AG$36>=1,AG$36<=5)),"令和"&AE$36&"年"&2,"令和"&AE$36+1&"年"&2))))) -> 令和1年2 | AK91: =IF(OR(AK92="",AK$41=3),"",2) -> 2 | AL91: =IF(OR(AL92="",AN$41=4),"",IF(AND(AM$36>=1,AM$36<=4,AK$36=31),"平成"&31&"年"&2,IF(AND(AM$36=5,AK$36="元"),"平成"&31&"年"&2,IF(AND(AM$36>=6,AK$36="元"),"令和"&2&"年"&2,IF((AND(AM$36>=1,AM$36<=5)),"令和"&AK$36&"年"&2,"令和"&AK$36+1&"年"&2))))) -> 令和1年2 | AM91: =IF(OR(AL92="",AN$41=4),"",IF(AND(AM$36>=1,AM$36<=4,AK$36=31),"平成"&31&"年"&2,IF(AND(AM$36=5,AK$36="元"),"平成"&31&"年"&2,IF(AND(AM$36>=6,AK$36="元"),"令和"&2&"年"&2,IF((AND(AM$36>=1,AM$36<=5)),"令和"&AK$36&"年"&2,"令和"&AK$36+1&"年"&2))))) -> 令和1年2 | AQ91: =IF(OR(AQ92="",AQ$41=3),"",2) -> 2 | AR91: =IF(OR(AR92="",AT$41=4),"",IF(AND(AS$36>=1,AS$36<=4,AQ$36=31),"平成"&31&"年"&2,IF(AND(AS$36=5,AQ$36="元"),"平成"&31&"年"&2,IF(AND(AS$36>=6,AQ$36="元"),"令和"&2&"年"&2,IF((AND(AS$36>=1,AS$36<=5)),"令和"&AQ$36&"年"&2,"令和"&AQ$36+1&"年"&2))))) -> 令和1年2 | AS91: =IF(OR(AR92="",AT$41=4),"",IF(AND(AS$36>=1,AS$36<=4,AQ$36=31),"平成"&31&"年"&2,IF(AND(AS$36=5,AQ$36="元"),"平成"&31&"年"&2,IF(AND(AS$36>=6,AQ$36="元"),"令和"&2&"年"&2,IF((AND(AS$36>=1,AS$36<=5)),"令和"&AQ$36&"年"&2,"令和"&AQ$36+1&"年"&2))))) -> 令和1年2 | AW91: =IF(OR(AW92="",AW$41=3),"",2) -> 2 | AX91: =IF(OR(AX92="",AZ$41=4),"",IF(AND(AY$36>=1,AY$36<=4,AW$36=31),"平成"&31&"年"&2,IF(AND(AY$36=5,AW$36="元"),"平成"&31&"年"&2,IF(AND(AY$36>=6,AW$36="元"),"令和"&2&"年"&2,IF((AND(AY$36>=1,AY$36<=5)),"令和"&AW$36&"年"&2,"令和"&AW$36+1&"年"&2))))) -> 令和1年2 | AY91: =IF(OR(AX92="",AZ$41=4),"",IF(AND(AY$36>=1,AY$36<=4,AW$36=31),"平成"&31&"年"&2,IF(AND(AY$36=5,AW$36="元"),"平成"&31&"年"&2,IF(AND(AY$36>=6,AW$36="元"),"令和"&2&"年"&2,IF((AND(AY$36>=1,AY$36<=5)),"令和"&AW$36&"年"&2,"令和"&AW$36+1&"年"&2))))) -> 令和1年2 | BC91: =IF(OR(BC92="",BC$41=3),"",2) -> 2 | BD91: =IF(OR(BD92="",BF$41=4),"",IF(AND(BE$36>=1,BE$36<=4,BC$36=31),"平成"&31&"年"&2,IF(AND(BE$36=5,BC$36="元"),"平成"&31&"年"&2,IF(AND(BE$36>=6,BC$36="元"),"令和"&2&"年"&2,IF((AND(BE$36>=1,BE$36<=5)),"令和"&BC$36&"年"&2,"令和"&BC$36+1&"年"&2))))) -> 令和1年2 | BE91: =IF(OR(BD92="",BF$41=4),"",IF(AND(BE$36>=1,BE$36<=4,BC$36=31),"平成"&31&"年"&2,IF(AND(BE$36=5,BC$36="元"),"平成"&31&"年"&2,IF(AND(BE$36>=6,BC$36="元"),"令和"&2&"年"&2,IF((AND(BE$36>=1,BE$36<=5)),"令和"&BC$36&"年"&2,"令和"&BC$36+1&"年"&2))))) -> 令和1年2 | BI91: =IF(OR(BI92="",BI$41=3),"",2) -> 2 | BJ91: =IF(OR(BJ92="",BL$41=4),"",IF(AND(BK$36>=1,BK$36<=4,BI$36=31),"平成"&31&"年"&2,IF(AND(BK$36=5,BI$36="元"),"平成"&31&"年"&2,IF(AND(BK$36>=6,BI$36="元"),"令和"&2&"年"&2,IF((AND(BK$36>=1,BK$36<=5)),"令和"&BI$36&"年"&2,"令和"&BI$36+1&"年"&2))))) -> 令和1年2 | BK91: =IF(OR(BJ92="",BL$41=4),"",IF(AND(BK$36>=1,BK$36<=4,BI$36=31),"平成"&31&"年"&2,IF(AND(BK$36=5,BI$36="元"),"平成"&31&"年"&2,IF(AND(BK$36>=6,BI$36="元"),"令和"&2&"年"&2,IF((AND(BK$36>=1,BK$36<=5)),"令和"&BI$36&"年"&2,"令和"&BI$36+1&"年"&2))))) -> 令和1年2 | BO91: =IF(OR(BO92="",BO$41=3),"",2) -> 2 | BP91: =IF(OR(BP92="",BR$41=4),"",IF(AND(BQ$36>=1,BQ$36<=4,BO$36=31),"平成"&31&"年"&2,IF(AND(BQ$36=5,BO$36="元"),"平成"&31&"年"&2,IF(AND(BQ$36>=6,BO$36="元"),"令和"&2&"年"&2,IF((AND(BQ$36>=1,BQ$36<=5)),"令和"&BO$36&"年"&2,"令和"&BO$36+1&"年"&2))))) -> 令和1年2 | BQ91: =IF(OR(BP92="",BR$41=4),"",IF(AND(BQ$36>=1,BQ$36<=4,BO$36=31),"平成"&31&"年"&2,IF(AND(BQ$36=5,BO$36="元"),"平成"&31&"年"&2,IF(AND(BQ$36>=6,BO$36="元"),"令和"&2&"年"&2,IF((AND(BQ$36>=1,BQ$36<=5)),"令和"&BO$36&"年"&2,"令和"&BO$36+1&"年"&2))))) -> 令和1年2 | BU91: =IF(OR(BU92="",BU$41=3),"",2) -> 2 | BV91: =IF(OR(BV92="",BX$41=4),"",IF(AND(BW$36>=1,BW$36<=4,BU$36=31),"平成"&31&"年"&2,IF(AND(BW$36=5,BU$36="元"),"平成"&31&"年"&2,IF(AND(BW$36>=6,BU$36="元"),"令和"&2&"年"&2,IF((AND(BW$36>=1,BW$36<=5)),"令和"&BU$36&"年"&2,"令和"&BU$36+1&"年"&2))))) -> 令和1年2 | BW91: =IF(OR(BV92="",BX$41=4),"",IF(AND(BW$36>=1,BW$36<=4,BU$36=31),"平成"&31&"年"&2,IF(AND(BW$36=5,BU$36="元"),"平成"&31&"年"&2,IF(AND(BW$36>=6,BU$36="元"),"令和"&2&"年"&2,IF((AND(BW$36>=1,BW$36<=5)),"令和"&BU$36&"年"&2,"令和"&BU$36+1&"年"&2))))) -> 令和1年2 | CA91: =IF(OR(CA92="",CA$41=3),"",2) -> 2 | CB91: =IF(OR(CB92="",CD$41=4),"",IF(AND(CC$36>=1,CC$36<=4,CA$36=31),"平成"&31&"年"&2,IF(AND(CC$36=5,CA$36="元"),"平成"&31&"年"&2,IF(AND(CC$36>=6,CA$36="元"),"令和"&2&"年"&2,IF((AND(CC$36>=1,CC$36<=5)),"令和"&CA$36&"年"&2,"令和"&CA$36+1&"年"&2))))) -> 令和1年2 | CC91: =IF(OR(CB92="",CD$41=4),"",IF(AND(CC$36>=1,CC$36<=4,CA$36=31),"平成"&31&"年"&2,IF(AND(CC$36=5,CA$36="元"),"平成"&31&"年"&2,IF(AND(CC$36>=6,CA$36="元"),"令和"&2&"年"&2,IF((AND(CC$36>=1,CC$36<=5)),"令和"&CA$36&"年"&2,"令和"&CA$36+1&"年"&2))))) -> 令和1年2 | CG91: =IF(OR(CG92="",CG$41=3),"",2) -> 2 | CH91: =IF(OR(CH92="",CJ$41=4),"",IF(AND(CI$36>=1,CI$36<=4,CG$36=31),"平成"&31&"年"&2,IF(AND(CI$36=5,CG$36="元"),"平成"&31&"年"&2,IF(AND(CI$36>=6,CG$36="元"),"令和"&2&"年"&2,IF((AND(CI$36>=1,CI$36<=5)),"令和"&CG$36&"年"&2,"令和"&CG$36+1&"年"&2))))) -> 令和1年2 | CI91: =IF(OR(CH92="",CJ$41=4),"",IF(AND(CI$36>=1,CI$36<=4,CG$36=31),"平成"&31&"年"&2,IF(AND(CI$36=5,CG$36="元"),"平成"&31&"年"&2,IF(AND(CI$36>=6,CG$36="元"),"令和"&2&"年"&2,IF((AND(CI$36>=1,CI$36<=5)),"令和"&CG$36&"年"&2,"令和"&CG$36+1&"年"&2))))) -> 令和1年2 | CM91: =IF(OR(CM92="",CM$41=3),"",2) -> 2 | CN91: =IF(OR(CN92="",CP$41=4),"",IF(AND(CO$36>=1,CO$36<=4,CM$36=31),"平成"&31&"年"&2,IF(AND(CO$36=5,CM$36="元"),"平成"&31&"年"&2,IF(AND(CO$36>=6,CM$36="元"),"令和"&2&"年"&2,IF((AND(CO$36>=1,CO$36<=5)),"令和"&CM$36&"年"&2,"令和"&CM$36+1&"年"&2))))) -> 令和1年2 | CO91: =IF(OR(CN92="",CP$41=4),"",IF(AND(CO$36>=1,CO$36<=4,CM$36=31),"平成"&31&"年"&2,IF(AND(CO$36=5,CM$36="元"),"平成"&31&"年"&2,IF(AND(CO$36>=6,CM$36="元"),"令和"&2&"年"&2,IF((AND(CO$36>=1,CO$36<=5)),"令和"&CM$36&"年"&2,"令和"&CM$36+1&"年"&2))))) -> 令和1年2 | CS91: =IF(OR(CS92="",CS$41=3),"",2) -> 2 | CT91: =IF(OR(CT92="",CV$41=4),"",IF(AND(CU$36>=1,CU$36<=4,CS$36=31),"平成"&31&"年"&2,IF(AND(CU$36=5,CS$36="元"),"平成"&31&"年"&2,IF(AND(CU$36>=6,CS$36="元"),"令和"&2&"年"&2,IF((AND(CU$36>=1,CU$36<=5)),"令和"&CS$36&"年"&2,"令和"&CS$36+1&"年"&2))))) -> 令和1年2 | CU91: =IF(OR(CT92="",CV$41=4),"",IF(AND(CU$36>=1,CU$36<=4,CS$36=31),"平成"&31&"年"&2,IF(AND(CU$36=5,CS$36="元"),"平成"&31&"年"&2,IF(AND(CU$36>=6,CS$36="元"),"令和"&2&"年"&2,IF((AND(CU$36>=1,CU$36<=5)),"令和"&CS$36&"年"&2,"令和"&CS$36+1&"年"&2))))) -> 令和1年2 | CY91: =IF(OR(CY92="",CY$41=3),"",2) -> 2 | CZ91: =IF(OR(CZ92="",DB$41=4),"",IF(AND(DA$36>=1,DA$36<=4,CY$36=31),"平成"&31&"年"&2,IF(AND(DA$36=5,CY$36="元"),"平成"&31&"年"&2,IF(AND(DA$36>=6,CY$36="元"),"令和"&2&"年"&2,IF((AND(DA$36>=1,DA$36<=5)),"令和"&CY$36&"年"&2,"令和"&CY$36+1&"年"&2))))) -> 令和1年2 | DA91: =IF(OR(CZ92="",DB$41=4),"",IF(AND(DA$36>=1,DA$36<=4,CY$36=31),"平成"&31&"年"&2,IF(AND(DA$36=5,CY$36="元"),"平成"&31&"年"&2,IF(AND(DA$36>=6,CY$36="元"),"令和"&2&"年"&2,IF((AND(DA$36>=1,DA$36<=5)),"令和"&CY$36&"年"&2,"令和"&CY$36+1&"年"&2))))) -> 令和1年2 | DE91: =IF(OR(DE92="",DE$41=3),"",2) -> 2 | DF91: =IF(OR(DF92="",DH$41=4),"",IF(AND(DG$36>=1,DG$36<=4,DE$36=31),"平成"&31&"年"&2,IF(AND(DG$36=5,DE$36="元"),"平成"&31&"年"&2,IF(AND(DG$36>=6,DE$36="元"),"令和"&2&"年"&2,IF((AND(DG$36>=1,DG$36<=5)),"令和"&DE$36&"年"&2,"令和"&DE$36+1&"年"&2))))) -> 令和1年2 | DG91: =IF(OR(DF92="",DH$41=4),"",IF(AND(DG$36>=1,DG$36<=4,DE$36=31),"平成"&31&"年"&2,IF(AND(DG$36=5,DE$36="元"),"平成"&31&"年"&2,IF(AND(DG$36>=6,DE$36="元"),"令和"&2&"年"&2,IF((AND(DG$36>=1,DG$36<=5)),"令和"&DE$36&"年"&2,"令和"&DE$36+1&"年"&2))))) -> 令和1年2 | DK91: =IF(OR(DK92="",DK$41=3),"",2) -> 2 | DL91: =IF(OR(DL92="",DN$41=4),"",IF(AND(DM$36>=1,DM$36<=4,DK$36=31),"平成"&31&"年"&2,IF(AND(DM$36=5,DK$36="元"),"平成"&31&"年"&2,IF(AND(DM$36>=6,DK$36="元"),"令和"&2&"年"&2,IF((AND(DM$36>=1,DM$36<=5)),"令和"&DK$36&"年"&2,"令和"&DK$36+1&"年"&2))))) -> 令和1年2 | DM91: =IF(OR(DL92="",DN$41=4),"",IF(AND(DM$36>=1,DM$36<=4,DK$36=31),"平成"&31&"年"&2,IF(AND(DM$36=5,DK$36="元"),"平成"&31&"年"&2,IF(AND(DM$36>=6,DK$36="元"),"令和"&2&"年"&2,IF((AND(DM$36>=1,DM$36<=5)),"令和"&DK$36&"年"&2,"令和"&DK$36+1&"年"&2))))) -> 令和1年2 | DQ91: =IF(OR(DQ92="",DQ$41=3),"",2) -> 2 | DR91: =IF(OR(DR92="",DT$41=4),"",IF(AND(DS$36>=1,DS$36<=4,DQ$36=31),"平成"&31&"年"&2,IF(AND(DS$36=5,DQ$36="元"),"平成"&31&"年"&2,IF(AND(DS$36>=6,DQ$36="元"),"令和"&2&"年"&2,IF((AND(DS$36>=1,DS$36<=5)),"令和"&DQ$36&"年"&2,"令和"&DQ$36+1&"年"&2))))) -> 令和1年2 | DS91: =IF(OR(DR92="",DT$41=4),"",IF(AND(DS$36>=1,DS$36<=4,DQ$36=31),"平成"&31&"年"&2,IF(AND(DS$36=5,DQ$36="元"),"平成"&31&"年"&2,IF(AND(DS$36>=6,DQ$36="元"),"令和"&2&"年"&2,IF((AND(DS$36>=1,DS$36<=5)),"令和"&DQ$36&"年"&2,"令和"&DQ$36+1&"年"&2))))) -> 令和1年2 | DW91: =IF(OR(DW92="",DW$41=3),"",2) -> 2 | DX91: =IF(OR(DX92="",DZ$41=4),"",IF(AND(DY$36>=1,DY$36<=4,DW$36=31),"平成"&31&"年"&2,IF(AND(DY$36=5,DW$36="元"),"平成"&31&"年"&2,IF(AND(DY$36>=6,DW$36="元"),"令和"&2&"年"&2,IF((AND(DY$36>=1,DY$36<=5)),"令和"&DW$36&"年"&2,"令和"&DW$36+1&"年"&2))))) -> 令和1年2 | DY91: =IF(OR(DX92="",DZ$41=4),"",IF(AND(DY$36>=1,DY$36<=4,DW$36=31),"平成"&31&"年"&2,IF(AND(DY$36=5,DW$36="元"),"平成"&31&"年"&2,IF(AND(DY$36>=6,DW$36="元"),"令和"&2&"年"&2,IF((AND(DY$36>=1,DY$36<=5)),"令和"&DW$36&"年"&2,"令和"&DW$36+1&"年"&2))))) -> 令和1年2 | EC91: =IF(OR(EC92="",EC$41=3),"",2) -> 2 | ED91: =IF(OR(ED92="",EF$41=4),"",IF(AND(EE$36>=1,EE$36<=4,EC$36=31),"平成"&31&"年"&2,IF(AND(EE$36=5,EC$36="元"),"平成"&31&"年"&2,IF(AND(EE$36>=6,EC$36="元"),"令和"&2&"年"&2,IF((AND(EE$36>=1,EE$36<=5)),"令和"&EC$36&"年"&2,"令和"&EC$36+1&"年"&2))))) -> 令和1年2 | EE91: =IF(OR(ED92="",EF$41=4),"",IF(AND(EE$36>=1,EE$36<=4,EC$36=31),"平成"&31&"年"&2,IF(AND(EE$36=5,EC$36="元"),"平成"&31&"年"&2,IF(AND(EE$36>=6,EC$36="元"),"令和"&2&"年"&2,IF((AND(EE$36>=1,EE$36<=5)),"令和"&EC$36&"年"&2,"令和"&EC$36+1&"年"&2))))) -> 令和1年2 | EI91: =IF(OR(EI92="",EI$41=3),"",2) -> 2 | EJ91: =IF(OR(EJ92="",EL$41=4),"",IF(AND(EK$36>=1,EK$36<=4,EI$36=31),"平成"&31&"年"&2,IF(AND(EK$36=5,EI$36="元"),"平成"&31&"年"&2,IF(AND(EK$36>=6,EI$36="元"),"令和"&2&"年"&2,IF((AND(EK$36>=1,EK$36<=5)),"令和"&EI$36&"年"&2,"令和"&EI$36+1&"年"&2))))) -> 令和1年2 | EK91: =IF(OR(EJ92="",EL$41=4),"",IF(AND(EK$36>=1,EK$36<=4,EI$36=31),"平成"&31&"年"&2,IF(AND(EK$36=5,EI$36="元"),"平成"&31&"年"&2,IF(AND(EK$36>=6,EI$36="元"),"令和"&2&"年"&2,IF((AND(EK$36>=1,EK$36<=5)),"令和"&EI$36&"年"&2,"令和"&EI$36+1&"年"&2))))) -> 令和1年2 | EO91: =IF(OR(EO92="",EO$41=3),"",2) -> 2 | EP91: =IF(OR(EP92="",ER$41=4),"",IF(AND(EQ$36>=1,EQ$36<=4,EO$36=31),"平成"&31&"年"&2,IF(AND(EQ$36=5,EO$36="元"),"平成"&31&"年"&2,IF(AND(EQ$36>=6,EO$36="元"),"令和"&2&"年"&2,IF((AND(EQ$36>=1,EQ$36<=5)),"令和"&EO$36&"年"&2,"令和"&EO$36+1&"年"&2))))) -> 令和1年2 | EQ91: =IF(OR(EP92="",ER$41=4),"",IF(AND(EQ$36>=1,EQ$36<=4,EO$36=31),"平成"&31&"年"&2,IF(AND(EQ$36=5,EO$36="元"),"平成"&31&"年"&2,IF(AND(EQ$36>=6,EO$36="元"),"令和"&2&"年"&2,IF((AND(EQ$36>=1,EQ$36<=5)),"令和"&EO$36&"年"&2,"令和"&EO$36+1&"年"&2))))) -> 令和1年2 | EU91: =IF(OR(EU92="",EU$41=3),"",2) -> 2 | EV91: =IF(OR(EV92="",EX$41=4),"",IF(AND(EW$36>=1,EW$36<=4,EU$36=31),"平成"&31&"年"&2,IF(AND(EW$36=5,EU$36="元"),"平成"&31&"年"&2,IF(AND(EW$36>=6,EU$36="元"),"令和"&2&"年"&2,IF((AND(EW$36>=1,EW$36<=5)),"令和"&EU$36&"年"&2,"令和"&EU$36+1&"年"&2))))) -> 令和1年2 | EW91: =IF(OR(EV92="",EX$41=4),"",IF(AND(EW$36>=1,EW$36<=4,EU$36=31),"平成"&31&"年"&2,IF(AND(EW$36=5,EU$36="元"),"平成"&31&"年"&2,IF(AND(EW$36>=6,EU$36="元"),"令和"&2&"年"&2,IF((AND(EW$36>=1,EW$36<=5)),"令和"&EU$36&"年"&2,"令和"&EU$36+1&"年"&2))))) -> 令和1年2 | FA91: =IF(OR(FA92="",FA$41=3),"",2) -> 2 | FB91: =IF(OR(FB92="",FD$41=4),"",IF(AND(FC$36>=1,FC$36<=4,FA$36=31),"平成"&31&"年"&2,IF(AND(FC$36=5,FA$36="元"),"平成"&31&"年"&2,IF(AND(FC$36>=6,FA$36="元"),"令和"&2&"年"&2,IF((AND(FC$36>=1,FC$36<=5)),"令和"&FA$36&"年"&2,"令和"&FA$36+1&"年"&2))))) -> 令和1年2 | FC91: =IF(OR(FB92="",FD$41=4),"",IF(AND(FC$36>=1,FC$36<=4,FA$36=31),"平成"&31&"年"&2,IF(AND(FC$36=5,FA$36="元"),"平成"&31&"年"&2,IF(AND(FC$36>=6,FA$36="元"),"令和"&2&"年"&2,IF((AND(FC$36>=1,FC$36<=5)),"令和"&FA$36&"年"&2,"令和"&FA$36+1&"年"&2))))) -> 令和1年2 | FG91: =IF(OR(FG92="",FG$41=3),"",2) -> 2 | FH91: =IF(OR(FH92="",FJ$41=4),"",IF(AND(FI$36>=1,FI$36<=4,FG$36=31),"平成"&31&"年"&2,IF(AND(FI$36=5,FG$36="元"),"平成"&31&"年"&2,IF(AND(FI$36>=6,FG$36="元"),"令和"&2&"年"&2,IF((AND(FI$36>=1,FI$36<=5)),"令和"&FG$36&"年"&2,"令和"&FG$36+1&"年"&2))))) -> 令和1年2 | FI91: =IF(OR(FH92="",FJ$41=4),"",IF(AND(FI$36>=1,FI$36<=4,FG$36=31),"平成"&31&"年"&2,IF(AND(FI$36=5,FG$36="元"),"平成"&31&"年"&2,IF(AND(FI$36>=6,FG$36="元"),"令和"&2&"年"&2,IF((AND(FI$36>=1,FI$36<=5)),"令和"&FG$36&"年"&2,"令和"&FG$36+1&"年"&2))))) -> 令和1年2 | FM91: =IF(OR(FM92="",FM$41=3),"",2) -> 2 | FN91: =IF(OR(FN92="",FP$41=4),"",IF(AND(FO$36>=1,FO$36<=4,FM$36=31),"平成"&31&"年"&2,IF(AND(FO$36=5,FM$36="元"),"平成"&31&"年"&2,IF(AND(FO$36>=6,FM$36="元"),"令和"&2&"年"&2,IF((AND(FO$36>=1,FO$36<=5)),"令和"&FM$36&"年"&2,"令和"&FM$36+1&"年"&2))))) -> 令和1年2 | FO91: =IF(OR(FN92="",FP$41=4),"",IF(AND(FO$36>=1,FO$36<=4,FM$36=31),"平成"&31&"年"&2,IF(AND(FO$36=5,FM$36="元"),"平成"&31&"年"&2,IF(AND(FO$36>=6,FM$36="元"),"令和"&2&"年"&2,IF((AND(FO$36>=1,FO$36<=5)),"令和"&FM$36&"年"&2,"令和"&FM$36+1&"年"&2))))) -> 令和1年2 | FS91: =IF(OR(FS92="",FS$41=3),"",2) -> 2 | FT91: =IF(OR(FT92="",FV$41=4),"",IF(AND(FU$36>=1,FU$36<=4,FS$36=31),"平成"&31&"年"&2,IF(AND(FU$36=5,FS$36="元"),"平成"&31&"年"&2,IF(AND(FU$36>=6,FS$36="元"),"令和"&2&"年"&2,IF((AND(FU$36>=1,FU$36<=5)),"令和"&FS$36&"年"&2,"令和"&FS$36+1&"年"&2))))) -> 令和1年2 | FU91: =IF(OR(FT92="",FV$41=4),"",IF(AND(FU$36>=1,FU$36<=4,FS$36=31),"平成"&31&"年"&2,IF(AND(FU$36=5,FS$36="元"),"平成"&31&"年"&2,IF(AND(FU$36>=6,FS$36="元"),"令和"&2&"年"&2,IF((AND(FU$36>=1,FU$36<=5)),"令和"&FS$36&"年"&2,"令和"&FS$36+1&"年"&2))))) -> 令和1年2 | FY91: =IF(OR(FY92="",FY$41=3),"",2) -> 2 | FZ91: =IF(OR(FZ92="",GB$41=4),"",IF(AND(GA$36>=1,GA$36<=4,FY$36=31),"平成"&31&"年"&2,IF(AND(GA$36=5,FY$36="元"),"平成"&31&"年"&2,IF(AND(GA$36>=6,FY$36="元"),"令和"&2&"年"&2,IF((AND(GA$36>=1,GA$36<=5)),"令和"&FY$36&"年"&2,"令和"&FY$36+1&"年"&2))))) -> 令和1年2 | GA91: =IF(OR(FZ92="",GB$41=4),"",IF(AND(GA$36>=1,GA$36<=4,FY$36=31),"平成"&31&"年"&2,IF(AND(GA$36=5,FY$36="元"),"平成"&31&"年"&2,IF(AND(GA$36>=6,FY$36="元"),"令和"&2&"年"&2,IF((AND(GA$36>=1,GA$36<=5)),"令和"&FY$36&"年"&2,"令和"&FY$36+1&"年"&2))))) -> 令和1年2 | GE91: =IF(OR(GE92="",GE$41=3),"",2) -> 2 | GF91: =IF(OR(GF92="",GH$41=4),"",IF(AND(GG$36>=1,GG$36<=4,GE$36=31),"平成"&31&"年"&2,IF(AND(GG$36=5,GE$36="元"),"平成"&31&"年"&2,IF(AND(GG$36>=6,GE$36="元"),"令和"&2&"年"&2,IF((AND(GG$36>=1,GG$36<=5)),"令和"&GE$36&"年"&2,"令和"&GE$36+1&"年"&2))))) -> 令和1年2 | GG91: =IF(OR(GF92="",GH$41=4),"",IF(AND(GG$36>=1,GG$36<=4,GE$36=31),"平成"&31&"年"&2,IF(AND(GG$36=5,GE$36="元"),"平成"&31&"年"&2,IF(AND(GG$36>=6,GE$36="元"),"令和"&2&"年"&2,IF((AND(GG$36>=1,GG$36<=5)),"令和"&GE$36&"年"&2,"令和"&GE$36+1&"年"&2))))) -> 令和1年2 | GK91: =IF(OR(GK92="",GK$41=3),"",2) -> 2 | GL91: =IF(OR(GL92="",GN$41=4),"",IF(AND(GM$36>=1,GM$36<=4,GK$36=31),"平成"&31&"年"&2,IF(AND(GM$36=5,GK$36="元"),"平成"&31&"年"&2,IF(AND(GM$36>=6,GK$36="元"),"令和"&2&"年"&2,IF((AND(GM$36>=1,GM$36<=5)),"令和"&GK$36&"年"&2,"令和"&GK$36+1&"年"&2))))) -> 令和1年2 | GM91: =IF(OR(GL92="",GN$41=4),"",IF(AND(GM$36>=1,GM$36<=4,GK$36=31),"平成"&31&"年"&2,IF(AND(GM$36=5,GK$36="元"),"平成"&31&"年"&2,IF(AND(GM$36>=6,GK$36="元"),"令和"&2&"年"&2,IF((AND(GM$36>=1,GM$36<=5)),"令和"&GK$36&"年"&2,"令和"&GK$36+1&"年"&2))))) -> 令和1年2 | GQ91: =IF(OR(GQ92="",GQ$41=3),"",2) -> 2 | GR91: =IF(OR(GR92="",GT$41=4),"",IF(AND(GS$36>=1,GS$36<=4,GQ$36=31),"平成"&31&"年"&2,IF(AND(GS$36=5,GQ$36="元"),"平成"&31&"年"&2,IF(AND(GS$36>=6,GQ$36="元"),"令和"&2&"年"&2,IF((AND(GS$36>=1,GS$36<=5)),"令和"&GQ$36&"年"&2,"令和"&GQ$36+1&"年"&2))))) -> 令和1年2 | GS91: =IF(OR(GR92="",GT$41=4),"",IF(AND(GS$36>=1,GS$36<=4,GQ$36=31),"平成"&31&"年"&2,IF(AND(GS$36=5,GQ$36="元"),"平成"&31&"年"&2,IF(AND(GS$36>=6,GQ$36="元"),"令和"&2&"年"&2,IF((AND(GS$36>=1,GS$36<=5)),"令和"&GQ$36&"年"&2,"令和"&GQ$36+1&"年"&2))))) -> 令和1年2 | GW91: =IF(OR(GW92="",GW$41=3),"",2) -> 2 | GX91: =IF(OR(GX92="",GZ$41=4),"",IF(AND(GY$36>=1,GY$36<=4,GW$36=31),"平成"&31&"年"&2,IF(AND(GY$36=5,GW$36="元"),"平成"&31&"年"&2,IF(AND(GY$36>=6,GW$36="元"),"令和"&2&"年"&2,IF((AND(GY$36>=1,GY$36<=5)),"令和"&GW$36&"年"&2,"令和"&GW$36+1&"年"&2))))) -> 令和1年2 | GY91: =IF(OR(GX92="",GZ$41=4),"",IF(AND(GY$36>=1,GY$36<=4,GW$36=31),"平成"&31&"年"&2,IF(AND(GY$36=5,GW$36="元"),"平成"&31&"年"&2,IF(AND(GY$36>=6,GW$36="元"),"令和"&2&"年"&2,IF((AND(GY$36>=1,GY$36<=5)),"令和"&GW$36&"年"&2,"令和"&GW$36+1&"年"&2))))) -> 令和1年2 | HC91: =IF(OR(HC92="",HC$41=3),"",2) -> 2 | HD91: =IF(OR(HD92="",HF$41=4),"",IF(AND(HE$36>=1,HE$36<=4,HC$36=31),"平成"&31&"年"&2,IF(AND(HE$36=5,HC$36="元"),"平成"&31&"年"&2,IF(AND(HE$36>=6,HC$36="元"),"令和"&2&"年"&2,IF((AND(HE$36>=1,HE$36<=5)),"令和"&HC$36&"年"&2,"令和"&HC$36+1&"年"&2))))) -> 令和1年2 | HE91: =IF(OR(HD92="",HF$41=4),"",IF(AND(HE$36>=1,HE$36<=4,HC$36=31),"平成"&31&"年"&2,IF(AND(HE$36=5,HC$36="元"),"平成"&31&"年"&2,IF(AND(HE$36>=6,HC$36="元"),"令和"&2&"年"&2,IF((AND(HE$36>=1,HE$36<=5)),"令和"&HC$36&"年"&2,"令和"&HC$36+1&"年"&2))))) -> 令和1年2 | HI91: =IF(OR(HI92="",HI$41=3),"",2) -> 2 | HJ91: =IF(OR(HJ92="",HL$41=4),"",IF(AND(HK$36>=1,HK$36<=4,HI$36=31),"平成"&31&"年"&2,IF(AND(HK$36=5,HI$36="元"),"平成"&31&"年"&2,IF(AND(HK$36>=6,HI$36="元"),"令和"&2&"年"&2,IF((AND(HK$36>=1,HK$36<=5)),"令和"&HI$36&"年"&2,"令和"&HI$36+1&"年"&2))))) -> 令和1年2 | HK91: =IF(OR(HJ92="",HL$41=4),"",IF(AND(HK$36>=1,HK$36<=4,HI$36=31),"平成"&31&"年"&2,IF(AND(HK$36=5,HI$36="元"),"平成"&31&"年"&2,IF(AND(HK$36>=6,HI$36="元"),"令和"&2&"年"&2,IF((AND(HK$36>=1,HK$36<=5)),"令和"&HI$36&"年"&2,"令和"&HI$36+1&"年"&2))))) -> 令和1年2 | HO91: =IF(OR(HO92="",HO$41=3),"",2) -> 2 | HP91: =IF(OR(HP92="",HR$41=4),"",IF(AND(HQ$36>=1,HQ$36<=4,HO$36=31),"平成"&31&"年"&2,IF(AND(HQ$36=5,HO$36="元"),"平成"&31&"年"&2,IF(AND(HQ$36>=6,HO$36="元"),"令和"&2&"年"&2,IF((AND(HQ$36>=1,HQ$36<=5)),"令和"&HO$36&"年"&2,"令和"&HO$36+1&"年"&2))))) -> 令和1年2 | HQ91: =IF(OR(HP92="",HR$41=4),"",IF(AND(HQ$36>=1,HQ$36<=4,HO$36=31),"平成"&31&"年"&2,IF(AND(HQ$36=5,HO$36="元"),"平成"&31&"年"&2,IF(AND(HQ$36>=6,HO$36="元"),"令和"&2&"年"&2,IF((AND(HQ$36>=1,HQ$36<=5)),"令和"&HO$36&"年"&2,"令和"&HO$36+1&"年"&2))))) -> 令和1年2 | HU91: =IF(OR(HU92="",HU$41=3),"",2) -> 2 | HV91: =IF(OR(HV92="",HX$41=4),"",IF(AND(HW$36>=1,HW$36<=4,HU$36=31),"平成"&31&"年"&2,IF(AND(HW$36=5,HU$36="元"),"平成"&31&"年"&2,IF(AND(HW$36>=6,HU$36="元"),"令和"&2&"年"&2,IF((AND(HW$36>=1,HW$36<=5)),"令和"&HU$36&"年"&2,"令和"&HU$36+1&"年"&2))))) -> 令和1年2 | HW91: =IF(OR(HV92="",HX$41=4),"",IF(AND(HW$36>=1,HW$36<=4,HU$36=31),"平成"&31&"年"&2,IF(AND(HW$36=5,HU$36="元"),"平成"&31&"年"&2,IF(AND(HW$36>=6,HU$36="元"),"令和"&2&"年"&2,IF((AND(HW$36>=1,HW$36<=5)),"令和"&HU$36&"年"&2,"令和"&HU$36+1&"年"&2))))) -> 令和1年2 | IA91: =IF(OR(IA92="",IA$41=3),"",2) -> 2 | IB91: =IF(OR(IB92="",ID$41=4),"",IF(AND(IC$36>=1,IC$36<=4,IA$36=31),"平成"&31&"年"&2,IF(AND(IC$36=5,IA$36="元"),"平成"&31&"年"&2,IF(AND(IC$36>=6,IA$36="元"),"令和"&2&"年"&2,IF((AND(IC$36>=1,IC$36<=5)),"令和"&IA$36&"年"&2,"令和"&IA$36+1&"年"&2))))) -> 令和1年2 | IC91: =IF(OR(IB92="",ID$41=4),"",IF(AND(IC$36>=1,IC$36<=4,IA$36=31),"平成"&31&"年"&2,IF(AND(IC$36=5,IA$36="元"),"平成"&31&"年"&2,IF(AND(IC$36>=6,IA$36="元"),"令和"&2&"年"&2,IF((AND(IC$36>=1,IC$36<=5)),"令和"&IA$36&"年"&2,"令和"&IA$36+1&"年"&2))))) -> 令和1年2 | IG91: =IF(OR(IG92="",IG$41=3),"",2) -> 2 | IH91: =IF(OR(IH92="",IJ$41=4),"",IF(AND(II$36>=1,II$36<=4,IG$36=31),"平成"&31&"年"&2,IF(AND(II$36=5,IG$36="元"),"平成"&31&"年"&2,IF(AND(II$36>=6,IG$36="元"),"令和"&2&"年"&2,IF((AND(II$36>=1,II$36<=5)),"令和"&IG$36&"年"&2,"令和"&IG$36+1&"年"&2))))) -> 令和1年2 | II91: =IF(OR(IH92="",IJ$41=4),"",IF(AND(II$36>=1,II$36<=4,IG$36=31),"平成"&31&"年"&2,IF(AND(II$36=5,IG$36="元"),"平成"&31&"年"&2,IF(AND(II$36>=6,IG$36="元"),"令和"&2&"年"&2,IF((AND(II$36>=1,II$36<=5)),"令和"&IG$36&"年"&2,"令和"&IG$36+1&"年"&2))))) -> 令和1年2
B92: =IF(AND(DQ21<>"",DQ25<>"",DS25<>"",DU25<>""),DQ17,"") ->  | C92: 平 | D92: 4 | E92: 平4 | G92: =IF(OR(G93="",G$41=4),"",3) -> 3 | H92: =IF(OR(H93="",J$41=4),"",IF(AND(I$36>=1,I$36<=4,G$36=31),"平成"&31&"年"&3,IF(AND(I$36=5,G$36="元"),"平成"&31&"年"&3,IF(AND(I$36>=6,G$36="元"),"令和"&2&"年"&3,IF((AND(I$36>=1,I$36<=5)),"令和"&G$36&"年"&3,"令和"&G$36+1&"年"&3))))) -> 令和1年3 | I92: =IF(OR(H93="",J$41=4),"",IF(AND(I$36>=1,I$36<=4,G$36=31),"平成"&31&"年"&3,IF(AND(I$36=5,G$36="元"),"平成"&31&"年"&3,IF(AND(I$36>=6,G$36="元"),"令和"&2&"年"&3,IF((AND(I$36>=1,I$36<=5)),"令和"&G$36&"年"&3,"令和"&G$36+1&"年"&3))))) -> 令和1年3 | M92: =IF(OR(M93="",M$41=4),"",3) -> 3 | N92: =IF(OR(N93="",P$41=4),"",IF(AND(O$36>=1,O$36<=4,M$36=31),"平成"&31&"年"&3,IF(AND(O$36=5,M$36="元"),"平成"&31&"年"&3,IF(AND(O$36>=6,M$36="元"),"令和"&2&"年"&3,IF((AND(O$36>=1,O$36<=5)),"令和"&M$36&"年"&3,"令和"&M$36+1&"年"&3))))) -> 令和1年3 | O92: =IF(OR(N93="",P$41=4),"",IF(AND(O$36>=1,O$36<=4,M$36=31),"平成"&31&"年"&3,IF(AND(O$36=5,M$36="元"),"平成"&31&"年"&3,IF(AND(O$36>=6,M$36="元"),"令和"&2&"年"&3,IF((AND(O$36>=1,O$36<=5)),"令和"&M$36&"年"&3,"令和"&M$36+1&"年"&3))))) -> 令和1年3 | S92: =IF(OR(S93="",S$41=4),"",3) -> 3 | T92: =IF(OR(T93="",V$41=4),"",IF(AND(U$36>=1,U$36<=4,S$36=31),"平成"&31&"年"&3,IF(AND(U$36=5,S$36="元"),"平成"&31&"年"&3,IF(AND(U$36>=6,S$36="元"),"令和"&2&"年"&3,IF((AND(U$36>=1,U$36<=5)),"令和"&S$36&"年"&3,"令和"&S$36+1&"年"&3))))) -> 令和1年3 | U92: =IF(OR(T93="",V$41=4),"",IF(AND(U$36>=1,U$36<=4,S$36=31),"平成"&31&"年"&3,IF(AND(U$36=5,S$36="元"),"平成"&31&"年"&3,IF(AND(U$36>=6,S$36="元"),"令和"&2&"年"&3,IF((AND(U$36>=1,U$36<=5)),"令和"&S$36&"年"&3,"令和"&S$36+1&"年"&3))))) -> 令和1年3 | Y92: =IF(OR(Y93="",Y$41=4),"",3) -> 3 | Z92: =IF(OR(Z93="",AB$41=4),"",IF(AND(AA$36>=1,AA$36<=4,Y$36=31),"平成"&31&"年"&3,IF(AND(AA$36=5,Y$36="元"),"平成"&31&"年"&3,IF(AND(AA$36>=6,Y$36="元"),"令和"&2&"年"&3,IF((AND(AA$36>=1,AA$36<=5)),"令和"&Y$36&"年"&3,"令和"&Y$36+1&"年"&3))))) -> 令和1年3 | AA92: =IF(OR(Z93="",AB$41=4),"",IF(AND(AA$36>=1,AA$36<=4,Y$36=31),"平成"&31&"年"&3,IF(AND(AA$36=5,Y$36="元"),"平成"&31&"年"&3,IF(AND(AA$36>=6,Y$36="元"),"令和"&2&"年"&3,IF((AND(AA$36>=1,AA$36<=5)),"令和"&Y$36&"年"&3,"令和"&Y$36+1&"年"&3))))) -> 令和1年3 | AE92: =IF(OR(AE93="",AE$41=4),"",3) -> 3 | AF92: =IF(OR(AF93="",AH$41=4),"",IF(AND(AG$36>=1,AG$36<=4,AE$36=31),"平成"&31&"年"&3,IF(AND(AG$36=5,AE$36="元"),"平成"&31&"年"&3,IF(AND(AG$36>=6,AE$36="元"),"令和"&2&"年"&3,IF((AND(AG$36>=1,AG$36<=5)),"令和"&AE$36&"年"&3,"令和"&AE$36+1&"年"&3))))) -> 令和1年3 | AG92: =IF(OR(AF93="",AH$41=4),"",IF(AND(AG$36>=1,AG$36<=4,AE$36=31),"平成"&31&"年"&3,IF(AND(AG$36=5,AE$36="元"),"平成"&31&"年"&3,IF(AND(AG$36>=6,AE$36="元"),"令和"&2&"年"&3,IF((AND(AG$36>=1,AG$36<=5)),"令和"&AE$36&"年"&3,"令和"&AE$36+1&"年"&3))))) -> 令和1年3 | AK92: =IF(OR(AK93="",AK$41=4),"",3) -> 3 | AL92: =IF(OR(AL93="",AN$41=4),"",IF(AND(AM$36>=1,AM$36<=4,AK$36=31),"平成"&31&"年"&3,IF(AND(AM$36=5,AK$36="元"),"平成"&31&"年"&3,IF(AND(AM$36>=6,AK$36="元"),"令和"&2&"年"&3,IF((AND(AM$36>=1,AM$36<=5)),"令和"&AK$36&"年"&3,"令和"&AK$36+1&"年"&3))))) -> 令和1年3 | AM92: =IF(OR(AL93="",AN$41=4),"",IF(AND(AM$36>=1,AM$36<=4,AK$36=31),"平成"&31&"年"&3,IF(AND(AM$36=5,AK$36="元"),"平成"&31&"年"&3,IF(AND(AM$36>=6,AK$36="元"),"令和"&2&"年"&3,IF((AND(AM$36>=1,AM$36<=5)),"令和"&AK$36&"年"&3,"令和"&AK$36+1&"年"&3))))) -> 令和1年3 | AQ92: =IF(OR(AQ93="",AQ$41=4),"",3) -> 3 | AR92: =IF(OR(AR93="",AT$41=4),"",IF(AND(AS$36>=1,AS$36<=4,AQ$36=31),"平成"&31&"年"&3,IF(AND(AS$36=5,AQ$36="元"),"平成"&31&"年"&3,IF(AND(AS$36>=6,AQ$36="元"),"令和"&2&"年"&3,IF((AND(AS$36>=1,AS$36<=5)),"令和"&AQ$36&"年"&3,"令和"&AQ$36+1&"年"&3))))) -> 令和1年3 | AS92: =IF(OR(AR93="",AT$41=4),"",IF(AND(AS$36>=1,AS$36<=4,AQ$36=31),"平成"&31&"年"&3,IF(AND(AS$36=5,AQ$36="元"),"平成"&31&"年"&3,IF(AND(AS$36>=6,AQ$36="元"),"令和"&2&"年"&3,IF((AND(AS$36>=1,AS$36<=5)),"令和"&AQ$36&"年"&3,"令和"&AQ$36+1&"年"&3))))) -> 令和1年3 | AW92: =IF(OR(AW93="",AW$41=4),"",3) -> 3 | AX92: =IF(OR(AX93="",AZ$41=4),"",IF(AND(AY$36>=1,AY$36<=4,AW$36=31),"平成"&31&"年"&3,IF(AND(AY$36=5,AW$36="元"),"平成"&31&"年"&3,IF(AND(AY$36>=6,AW$36="元"),"令和"&2&"年"&3,IF((AND(AY$36>=1,AY$36<=5)),"令和"&AW$36&"年"&3,"令和"&AW$36+1&"年"&3))))) -> 令和1年3 | AY92: =IF(OR(AX93="",AZ$41=4),"",IF(AND(AY$36>=1,AY$36<=4,AW$36=31),"平成"&31&"年"&3,IF(AND(AY$36=5,AW$36="元"),"平成"&31&"年"&3,IF(AND(AY$36>=6,AW$36="元"),"令和"&2&"年"&3,IF((AND(AY$36>=1,AY$36<=5)),"令和"&AW$36&"年"&3,"令和"&AW$36+1&"年"&3))))) -> 令和1年3 | BC92: =IF(OR(BC93="",BC$41=4),"",3) -> 3 | BD92: =IF(OR(BD93="",BF$41=4),"",IF(AND(BE$36>=1,BE$36<=4,BC$36=31),"平成"&31&"年"&3,IF(AND(BE$36=5,BC$36="元"),"平成"&31&"年"&3,IF(AND(BE$36>=6,BC$36="元"),"令和"&2&"年"&3,IF((AND(BE$36>=1,BE$36<=5)),"令和"&BC$36&"年"&3,"令和"&BC$36+1&"年"&3))))) -> 令和1年3 | BE92: =IF(OR(BD93="",BF$41=4),"",IF(AND(BE$36>=1,BE$36<=4,BC$36=31),"平成"&31&"年"&3,IF(AND(BE$36=5,BC$36="元"),"平成"&31&"年"&3,IF(AND(BE$36>=6,BC$36="元"),"令和"&2&"年"&3,IF((AND(BE$36>=1,BE$36<=5)),"令和"&BC$36&"年"&3,"令和"&BC$36+1&"年"&3))))) -> 令和1年3 | BI92: =IF(OR(BI93="",BI$41=4),"",3) -> 3 | BJ92: =IF(OR(BJ93="",BL$41=4),"",IF(AND(BK$36>=1,BK$36<=4,BI$36=31),"平成"&31&"年"&3,IF(AND(BK$36=5,BI$36="元"),"平成"&31&"年"&3,IF(AND(BK$36>=6,BI$36="元"),"令和"&2&"年"&3,IF((AND(BK$36>=1,BK$36<=5)),"令和"&BI$36&"年"&3,"令和"&BI$36+1&"年"&3))))) -> 令和1年3 | BK92: =IF(OR(BJ93="",BL$41=4),"",IF(AND(BK$36>=1,BK$36<=4,BI$36=31),"平成"&31&"年"&3,IF(AND(BK$36=5,BI$36="元"),"平成"&31&"年"&3,IF(AND(BK$36>=6,BI$36="元"),"令和"&2&"年"&3,IF((AND(BK$36>=1,BK$36<=5)),"令和"&BI$36&"年"&3,"令和"&BI$36+1&"年"&3))))) -> 令和1年3 | BO92: =IF(OR(BO93="",BO$41=4),"",3) -> 3 | BP92: =IF(OR(BP93="",BR$41=4),"",IF(AND(BQ$36>=1,BQ$36<=4,BO$36=31),"平成"&31&"年"&3,IF(AND(BQ$36=5,BO$36="元"),"平成"&31&"年"&3,IF(AND(BQ$36>=6,BO$36="元"),"令和"&2&"年"&3,IF((AND(BQ$36>=1,BQ$36<=5)),"令和"&BO$36&"年"&3,"令和"&BO$36+1&"年"&3))))) -> 令和1年3 | BQ92: =IF(OR(BP93="",BR$41=4),"",IF(AND(BQ$36>=1,BQ$36<=4,BO$36=31),"平成"&31&"年"&3,IF(AND(BQ$36=5,BO$36="元"),"平成"&31&"年"&3,IF(AND(BQ$36>=6,BO$36="元"),"令和"&2&"年"&3,IF((AND(BQ$36>=1,BQ$36<=5)),"令和"&BO$36&"年"&3,"令和"&BO$36+1&"年"&3))))) -> 令和1年3 | BU92: =IF(OR(BU93="",BU$41=4),"",3) -> 3 | BV92: =IF(OR(BV93="",BX$41=4),"",IF(AND(BW$36>=1,BW$36<=4,BU$36=31),"平成"&31&"年"&3,IF(AND(BW$36=5,BU$36="元"),"平成"&31&"年"&3,IF(AND(BW$36>=6,BU$36="元"),"令和"&2&"年"&3,IF((AND(BW$36>=1,BW$36<=5)),"令和"&BU$36&"年"&3,"令和"&BU$36+1&"年"&3))))) -> 令和1年3 | BW92: =IF(OR(BV93="",BX$41=4),"",IF(AND(BW$36>=1,BW$36<=4,BU$36=31),"平成"&31&"年"&3,IF(AND(BW$36=5,BU$36="元"),"平成"&31&"年"&3,IF(AND(BW$36>=6,BU$36="元"),"令和"&2&"年"&3,IF((AND(BW$36>=1,BW$36<=5)),"令和"&BU$36&"年"&3,"令和"&BU$36+1&"年"&3))))) -> 令和1年3 | CA92: =IF(OR(CA93="",CA$41=4),"",3) -> 3 | CB92: =IF(OR(CB93="",CD$41=4),"",IF(AND(CC$36>=1,CC$36<=4,CA$36=31),"平成"&31&"年"&3,IF(AND(CC$36=5,CA$36="元"),"平成"&31&"年"&3,IF(AND(CC$36>=6,CA$36="元"),"令和"&2&"年"&3,IF((AND(CC$36>=1,CC$36<=5)),"令和"&CA$36&"年"&3,"令和"&CA$36+1&"年"&3))))) -> 令和1年3 | CC92: =IF(OR(CB93="",CD$41=4),"",IF(AND(CC$36>=1,CC$36<=4,CA$36=31),"平成"&31&"年"&3,IF(AND(CC$36=5,CA$36="元"),"平成"&31&"年"&3,IF(AND(CC$36>=6,CA$36="元"),"令和"&2&"年"&3,IF((AND(CC$36>=1,CC$36<=5)),"令和"&CA$36&"年"&3,"令和"&CA$36+1&"年"&3))))) -> 令和1年3 | CG92: =IF(OR(CG93="",CG$41=4),"",3) -> 3 | CH92: =IF(OR(CH93="",CJ$41=4),"",IF(AND(CI$36>=1,CI$36<=4,CG$36=31),"平成"&31&"年"&3,IF(AND(CI$36=5,CG$36="元"),"平成"&31&"年"&3,IF(AND(CI$36>=6,CG$36="元"),"令和"&2&"年"&3,IF((AND(CI$36>=1,CI$36<=5)),"令和"&CG$36&"年"&3,"令和"&CG$36+1&"年"&3))))) -> 令和1年3 | CI92: =IF(OR(CH93="",CJ$41=4),"",IF(AND(CI$36>=1,CI$36<=4,CG$36=31),"平成"&31&"年"&3,IF(AND(CI$36=5,CG$36="元"),"平成"&31&"年"&3,IF(AND(CI$36>=6,CG$36="元"),"令和"&2&"年"&3,IF((AND(CI$36>=1,CI$36<=5)),"令和"&CG$36&"年"&3,"令和"&CG$36+1&"年"&3))))) -> 令和1年3 | CM92: =IF(OR(CM93="",CM$41=4),"",3) -> 3 | CN92: =IF(OR(CN93="",CP$41=4),"",IF(AND(CO$36>=1,CO$36<=4,CM$36=31),"平成"&31&"年"&3,IF(AND(CO$36=5,CM$36="元"),"平成"&31&"年"&3,IF(AND(CO$36>=6,CM$36="元"),"令和"&2&"年"&3,IF((AND(CO$36>=1,CO$36<=5)),"令和"&CM$36&"年"&3,"令和"&CM$36+1&"年"&3))))) -> 令和1年3 | CO92: =IF(OR(CN93="",CP$41=4),"",IF(AND(CO$36>=1,CO$36<=4,CM$36=31),"平成"&31&"年"&3,IF(AND(CO$36=5,CM$36="元"),"平成"&31&"年"&3,IF(AND(CO$36>=6,CM$36="元"),"令和"&2&"年"&3,IF((AND(CO$36>=1,CO$36<=5)),"令和"&CM$36&"年"&3,"令和"&CM$36+1&"年"&3))))) -> 令和1年3 | CS92: =IF(OR(CS93="",CS$41=4),"",3) -> 3 | CT92: =IF(OR(CT93="",CV$41=4),"",IF(AND(CU$36>=1,CU$36<=4,CS$36=31),"平成"&31&"年"&3,IF(AND(CU$36=5,CS$36="元"),"平成"&31&"年"&3,IF(AND(CU$36>=6,CS$36="元"),"令和"&2&"年"&3,IF((AND(CU$36>=1,CU$36<=5)),"令和"&CS$36&"年"&3,"令和"&CS$36+1&"年"&3))))) -> 令和1年3 | CU92: =IF(OR(CT93="",CV$41=4),"",IF(AND(CU$36>=1,CU$36<=4,CS$36=31),"平成"&31&"年"&3,IF(AND(CU$36=5,CS$36="元"),"平成"&31&"年"&3,IF(AND(CU$36>=6,CS$36="元"),"令和"&2&"年"&3,IF((AND(CU$36>=1,CU$36<=5)),"令和"&CS$36&"年"&3,"令和"&CS$36+1&"年"&3))))) -> 令和1年3 | CY92: =IF(OR(CY93="",CY$41=4),"",3) -> 3 | CZ92: =IF(OR(CZ93="",DB$41=4),"",IF(AND(DA$36>=1,DA$36<=4,CY$36=31),"平成"&31&"年"&3,IF(AND(DA$36=5,CY$36="元"),"平成"&31&"年"&3,IF(AND(DA$36>=6,CY$36="元"),"令和"&2&"年"&3,IF((AND(DA$36>=1,DA$36<=5)),"令和"&CY$36&"年"&3,"令和"&CY$36+1&"年"&3))))) -> 令和1年3 | DA92: =IF(OR(CZ93="",DB$41=4),"",IF(AND(DA$36>=1,DA$36<=4,CY$36=31),"平成"&31&"年"&3,IF(AND(DA$36=5,CY$36="元"),"平成"&31&"年"&3,IF(AND(DA$36>=6,CY$36="元"),"令和"&2&"年"&3,IF((AND(DA$36>=1,DA$36<=5)),"令和"&CY$36&"年"&3,"令和"&CY$36+1&"年"&3))))) -> 令和1年3 | DE92: =IF(OR(DE93="",DE$41=4),"",3) -> 3 | DF92: =IF(OR(DF93="",DH$41=4),"",IF(AND(DG$36>=1,DG$36<=4,DE$36=31),"平成"&31&"年"&3,IF(AND(DG$36=5,DE$36="元"),"平成"&31&"年"&3,IF(AND(DG$36>=6,DE$36="元"),"令和"&2&"年"&3,IF((AND(DG$36>=1,DG$36<=5)),"令和"&DE$36&"年"&3,"令和"&DE$36+1&"年"&3))))) -> 令和1年3 | DG92: =IF(OR(DF93="",DH$41=4),"",IF(AND(DG$36>=1,DG$36<=4,DE$36=31),"平成"&31&"年"&3,IF(AND(DG$36=5,DE$36="元"),"平成"&31&"年"&3,IF(AND(DG$36>=6,DE$36="元"),"令和"&2&"年"&3,IF((AND(DG$36>=1,DG$36<=5)),"令和"&DE$36&"年"&3,"令和"&DE$36+1&"年"&3))))) -> 令和1年3 | DK92: =IF(OR(DK93="",DK$41=4),"",3) -> 3 | DL92: =IF(OR(DL93="",DN$41=4),"",IF(AND(DM$36>=1,DM$36<=4,DK$36=31),"平成"&31&"年"&3,IF(AND(DM$36=5,DK$36="元"),"平成"&31&"年"&3,IF(AND(DM$36>=6,DK$36="元"),"令和"&2&"年"&3,IF((AND(DM$36>=1,DM$36<=5)),"令和"&DK$36&"年"&3,"令和"&DK$36+1&"年"&3))))) -> 令和1年3 | DM92: =IF(OR(DL93="",DN$41=4),"",IF(AND(DM$36>=1,DM$36<=4,DK$36=31),"平成"&31&"年"&3,IF(AND(DM$36=5,DK$36="元"),"平成"&31&"年"&3,IF(AND(DM$36>=6,DK$36="元"),"令和"&2&"年"&3,IF((AND(DM$36>=1,DM$36<=5)),"令和"&DK$36&"年"&3,"令和"&DK$36+1&"年"&3))))) -> 令和1年3 | DQ92: =IF(OR(DQ93="",DQ$41=4),"",3) -> 3 | DR92: =IF(OR(DR93="",DT$41=4),"",IF(AND(DS$36>=1,DS$36<=4,DQ$36=31),"平成"&31&"年"&3,IF(AND(DS$36=5,DQ$36="元"),"平成"&31&"年"&3,IF(AND(DS$36>=6,DQ$36="元"),"令和"&2&"年"&3,IF((AND(DS$36>=1,DS$36<=5)),"令和"&DQ$36&"年"&3,"令和"&DQ$36+1&"年"&3))))) -> 令和1年3 | DS92: =IF(OR(DR93="",DT$41=4),"",IF(AND(DS$36>=1,DS$36<=4,DQ$36=31),"平成"&31&"年"&3,IF(AND(DS$36=5,DQ$36="元"),"平成"&31&"年"&3,IF(AND(DS$36>=6,DQ$36="元"),"令和"&2&"年"&3,IF((AND(DS$36>=1,DS$36<=5)),"令和"&DQ$36&"年"&3,"令和"&DQ$36+1&"年"&3))))) -> 令和1年3 | DW92: =IF(OR(DW93="",DW$41=4),"",3) -> 3 | DX92: =IF(OR(DX93="",DZ$41=4),"",IF(AND(DY$36>=1,DY$36<=4,DW$36=31),"平成"&31&"年"&3,IF(AND(DY$36=5,DW$36="元"),"平成"&31&"年"&3,IF(AND(DY$36>=6,DW$36="元"),"令和"&2&"年"&3,IF((AND(DY$36>=1,DY$36<=5)),"令和"&DW$36&"年"&3,"令和"&DW$36+1&"年"&3))))) -> 令和1年3 | DY92: =IF(OR(DX93="",DZ$41=4),"",IF(AND(DY$36>=1,DY$36<=4,DW$36=31),"平成"&31&"年"&3,IF(AND(DY$36=5,DW$36="元"),"平成"&31&"年"&3,IF(AND(DY$36>=6,DW$36="元"),"令和"&2&"年"&3,IF((AND(DY$36>=1,DY$36<=5)),"令和"&DW$36&"年"&3,"令和"&DW$36+1&"年"&3))))) -> 令和1年3 | EC92: =IF(OR(EC93="",EC$41=4),"",3) -> 3 | ED92: =IF(OR(ED93="",EF$41=4),"",IF(AND(EE$36>=1,EE$36<=4,EC$36=31),"平成"&31&"年"&3,IF(AND(EE$36=5,EC$36="元"),"平成"&31&"年"&3,IF(AND(EE$36>=6,EC$36="元"),"令和"&2&"年"&3,IF((AND(EE$36>=1,EE$36<=5)),"令和"&EC$36&"年"&3,"令和"&EC$36+1&"年"&3))))) -> 令和1年3 | EE92: =IF(OR(ED93="",EF$41=4),"",IF(AND(EE$36>=1,EE$36<=4,EC$36=31),"平成"&31&"年"&3,IF(AND(EE$36=5,EC$36="元"),"平成"&31&"年"&3,IF(AND(EE$36>=6,EC$36="元"),"令和"&2&"年"&3,IF((AND(EE$36>=1,EE$36<=5)),"令和"&EC$36&"年"&3,"令和"&EC$36+1&"年"&3))))) -> 令和1年3 | EI92: =IF(OR(EI93="",EI$41=4),"",3) -> 3 | EJ92: =IF(OR(EJ93="",EL$41=4),"",IF(AND(EK$36>=1,EK$36<=4,EI$36=31),"平成"&31&"年"&3,IF(AND(EK$36=5,EI$36="元"),"平成"&31&"年"&3,IF(AND(EK$36>=6,EI$36="元"),"令和"&2&"年"&3,IF((AND(EK$36>=1,EK$36<=5)),"令和"&EI$36&"年"&3,"令和"&EI$36+1&"年"&3))))) -> 令和1年3 | EK92: =IF(OR(EJ93="",EL$41=4),"",IF(AND(EK$36>=1,EK$36<=4,EI$36=31),"平成"&31&"年"&3,IF(AND(EK$36=5,EI$36="元"),"平成"&31&"年"&3,IF(AND(EK$36>=6,EI$36="元"),"令和"&2&"年"&3,IF((AND(EK$36>=1,EK$36<=5)),"令和"&EI$36&"年"&3,"令和"&EI$36+1&"年"&3))))) -> 令和1年3 | EO92: =IF(OR(EO93="",EO$41=4),"",3) -> 3 | EP92: =IF(OR(EP93="",ER$41=4),"",IF(AND(EQ$36>=1,EQ$36<=4,EO$36=31),"平成"&31&"年"&3,IF(AND(EQ$36=5,EO$36="元"),"平成"&31&"年"&3,IF(AND(EQ$36>=6,EO$36="元"),"令和"&2&"年"&3,IF((AND(EQ$36>=1,EQ$36<=5)),"令和"&EO$36&"年"&3,"令和"&EO$36+1&"年"&3))))) -> 令和1年3 | EQ92: =IF(OR(EP93="",ER$41=4),"",IF(AND(EQ$36>=1,EQ$36<=4,EO$36=31),"平成"&31&"年"&3,IF(AND(EQ$36=5,EO$36="元"),"平成"&31&"年"&3,IF(AND(EQ$36>=6,EO$36="元"),"令和"&2&"年"&3,IF((AND(EQ$36>=1,EQ$36<=5)),"令和"&EO$36&"年"&3,"令和"&EO$36+1&"年"&3))))) -> 令和1年3 | EU92: =IF(OR(EU93="",EU$41=4),"",3) -> 3 | EV92: =IF(OR(EV93="",EX$41=4),"",IF(AND(EW$36>=1,EW$36<=4,EU$36=31),"平成"&31&"年"&3,IF(AND(EW$36=5,EU$36="元"),"平成"&31&"年"&3,IF(AND(EW$36>=6,EU$36="元"),"令和"&2&"年"&3,IF((AND(EW$36>=1,EW$36<=5)),"令和"&EU$36&"年"&3,"令和"&EU$36+1&"年"&3))))) -> 令和1年3 | EW92: =IF(OR(EV93="",EX$41=4),"",IF(AND(EW$36>=1,EW$36<=4,EU$36=31),"平成"&31&"年"&3,IF(AND(EW$36=5,EU$36="元"),"平成"&31&"年"&3,IF(AND(EW$36>=6,EU$36="元"),"令和"&2&"年"&3,IF((AND(EW$36>=1,EW$36<=5)),"令和"&EU$36&"年"&3,"令和"&EU$36+1&"年"&3))))) -> 令和1年3 | FA92: =IF(OR(FA93="",FA$41=4),"",3) -> 3 | FB92: =IF(OR(FB93="",FD$41=4),"",IF(AND(FC$36>=1,FC$36<=4,FA$36=31),"平成"&31&"年"&3,IF(AND(FC$36=5,FA$36="元"),"平成"&31&"年"&3,IF(AND(FC$36>=6,FA$36="元"),"令和"&2&"年"&3,IF((AND(FC$36>=1,FC$36<=5)),"令和"&FA$36&"年"&3,"令和"&FA$36+1&"年"&3))))) -> 令和1年3 | FC92: =IF(OR(FB93="",FD$41=4),"",IF(AND(FC$36>=1,FC$36<=4,FA$36=31),"平成"&31&"年"&3,IF(AND(FC$36=5,FA$36="元"),"平成"&31&"年"&3,IF(AND(FC$36>=6,FA$36="元"),"令和"&2&"年"&3,IF((AND(FC$36>=1,FC$36<=5)),"令和"&FA$36&"年"&3,"令和"&FA$36+1&"年"&3))))) -> 令和1年3 | FG92: =IF(OR(FG93="",FG$41=4),"",3) -> 3 | FH92: =IF(OR(FH93="",FJ$41=4),"",IF(AND(FI$36>=1,FI$36<=4,FG$36=31),"平成"&31&"年"&3,IF(AND(FI$36=5,FG$36="元"),"平成"&31&"年"&3,IF(AND(FI$36>=6,FG$36="元"),"令和"&2&"年"&3,IF((AND(FI$36>=1,FI$36<=5)),"令和"&FG$36&"年"&3,"令和"&FG$36+1&"年"&3))))) -> 令和1年3 | FI92: =IF(OR(FH93="",FJ$41=4),"",IF(AND(FI$36>=1,FI$36<=4,FG$36=31),"平成"&31&"年"&3,IF(AND(FI$36=5,FG$36="元"),"平成"&31&"年"&3,IF(AND(FI$36>=6,FG$36="元"),"令和"&2&"年"&3,IF((AND(FI$36>=1,FI$36<=5)),"令和"&FG$36&"年"&3,"令和"&FG$36+1&"年"&3))))) -> 令和1年3 | FM92: =IF(OR(FM93="",FM$41=4),"",3) -> 3 | FN92: =IF(OR(FN93="",FP$41=4),"",IF(AND(FO$36>=1,FO$36<=4,FM$36=31),"平成"&31&"年"&3,IF(AND(FO$36=5,FM$36="元"),"平成"&31&"年"&3,IF(AND(FO$36>=6,FM$36="元"),"令和"&2&"年"&3,IF((AND(FO$36>=1,FO$36<=5)),"令和"&FM$36&"年"&3,"令和"&FM$36+1&"年"&3))))) -> 令和1年3 | FO92: =IF(OR(FN93="",FP$41=4),"",IF(AND(FO$36>=1,FO$36<=4,FM$36=31),"平成"&31&"年"&3,IF(AND(FO$36=5,FM$36="元"),"平成"&31&"年"&3,IF(AND(FO$36>=6,FM$36="元"),"令和"&2&"年"&3,IF((AND(FO$36>=1,FO$36<=5)),"令和"&FM$36&"年"&3,"令和"&FM$36+1&"年"&3))))) -> 令和1年3 | FS92: =IF(OR(FS93="",FS$41=4),"",3) -> 3 | FT92: =IF(OR(FT93="",FV$41=4),"",IF(AND(FU$36>=1,FU$36<=4,FS$36=31),"平成"&31&"年"&3,IF(AND(FU$36=5,FS$36="元"),"平成"&31&"年"&3,IF(AND(FU$36>=6,FS$36="元"),"令和"&2&"年"&3,IF((AND(FU$36>=1,FU$36<=5)),"令和"&FS$36&"年"&3,"令和"&FS$36+1&"年"&3))))) -> 令和1年3 | FU92: =IF(OR(FT93="",FV$41=4),"",IF(AND(FU$36>=1,FU$36<=4,FS$36=31),"平成"&31&"年"&3,IF(AND(FU$36=5,FS$36="元"),"平成"&31&"年"&3,IF(AND(FU$36>=6,FS$36="元"),"令和"&2&"年"&3,IF((AND(FU$36>=1,FU$36<=5)),"令和"&FS$36&"年"&3,"令和"&FS$36+1&"年"&3))))) -> 令和1年3 | FY92: =IF(OR(FY93="",FY$41=4),"",3) -> 3 | FZ92: =IF(OR(FZ93="",GB$41=4),"",IF(AND(GA$36>=1,GA$36<=4,FY$36=31),"平成"&31&"年"&3,IF(AND(GA$36=5,FY$36="元"),"平成"&31&"年"&3,IF(AND(GA$36>=6,FY$36="元"),"令和"&2&"年"&3,IF((AND(GA$36>=1,GA$36<=5)),"令和"&FY$36&"年"&3,"令和"&FY$36+1&"年"&3))))) -> 令和1年3 | GA92: =IF(OR(FZ93="",GB$41=4),"",IF(AND(GA$36>=1,GA$36<=4,FY$36=31),"平成"&31&"年"&3,IF(AND(GA$36=5,FY$36="元"),"平成"&31&"年"&3,IF(AND(GA$36>=6,FY$36="元"),"令和"&2&"年"&3,IF((AND(GA$36>=1,GA$36<=5)),"令和"&FY$36&"年"&3,"令和"&FY$36+1&"年"&3))))) -> 令和1年3 | GE92: =IF(OR(GE93="",GE$41=4),"",3) -> 3 | GF92: =IF(OR(GF93="",GH$41=4),"",IF(AND(GG$36>=1,GG$36<=4,GE$36=31),"平成"&31&"年"&3,IF(AND(GG$36=5,GE$36="元"),"平成"&31&"年"&3,IF(AND(GG$36>=6,GE$36="元"),"令和"&2&"年"&3,IF((AND(GG$36>=1,GG$36<=5)),"令和"&GE$36&"年"&3,"令和"&GE$36+1&"年"&3))))) -> 令和1年3 | GG92: =IF(OR(GF93="",GH$41=4),"",IF(AND(GG$36>=1,GG$36<=4,GE$36=31),"平成"&31&"年"&3,IF(AND(GG$36=5,GE$36="元"),"平成"&31&"年"&3,IF(AND(GG$36>=6,GE$36="元"),"令和"&2&"年"&3,IF((AND(GG$36>=1,GG$36<=5)),"令和"&GE$36&"年"&3,"令和"&GE$36+1&"年"&3))))) -> 令和1年3 | GK92: =IF(OR(GK93="",GK$41=4),"",3) -> 3 | GL92: =IF(OR(GL93="",GN$41=4),"",IF(AND(GM$36>=1,GM$36<=4,GK$36=31),"平成"&31&"年"&3,IF(AND(GM$36=5,GK$36="元"),"平成"&31&"年"&3,IF(AND(GM$36>=6,GK$36="元"),"令和"&2&"年"&3,IF((AND(GM$36>=1,GM$36<=5)),"令和"&GK$36&"年"&3,"令和"&GK$36+1&"年"&3))))) -> 令和1年3 | GM92: =IF(OR(GL93="",GN$41=4),"",IF(AND(GM$36>=1,GM$36<=4,GK$36=31),"平成"&31&"年"&3,IF(AND(GM$36=5,GK$36="元"),"平成"&31&"年"&3,IF(AND(GM$36>=6,GK$36="元"),"令和"&2&"年"&3,IF((AND(GM$36>=1,GM$36<=5)),"令和"&GK$36&"年"&3,"令和"&GK$36+1&"年"&3))))) -> 令和1年3 | GQ92: =IF(OR(GQ93="",GQ$41=4),"",3) -> 3 | GR92: =IF(OR(GR93="",GT$41=4),"",IF(AND(GS$36>=1,GS$36<=4,GQ$36=31),"平成"&31&"年"&3,IF(AND(GS$36=5,GQ$36="元"),"平成"&31&"年"&3,IF(AND(GS$36>=6,GQ$36="元"),"令和"&2&"年"&3,IF((AND(GS$36>=1,GS$36<=5)),"令和"&GQ$36&"年"&3,"令和"&GQ$36+1&"年"&3))))) -> 令和1年3 | GS92: =IF(OR(GR93="",GT$41=4),"",IF(AND(GS$36>=1,GS$36<=4,GQ$36=31),"平成"&31&"年"&3,IF(AND(GS$36=5,GQ$36="元"),"平成"&31&"年"&3,IF(AND(GS$36>=6,GQ$36="元"),"令和"&2&"年"&3,IF((AND(GS$36>=1,GS$36<=5)),"令和"&GQ$36&"年"&3,"令和"&GQ$36+1&"年"&3))))) -> 令和1年3 | GW92: =IF(OR(GW93="",GW$41=4),"",3) -> 3 | GX92: =IF(OR(GX93="",GZ$41=4),"",IF(AND(GY$36>=1,GY$36<=4,GW$36=31),"平成"&31&"年"&3,IF(AND(GY$36=5,GW$36="元"),"平成"&31&"年"&3,IF(AND(GY$36>=6,GW$36="元"),"令和"&2&"年"&3,IF((AND(GY$36>=1,GY$36<=5)),"令和"&GW$36&"年"&3,"令和"&GW$36+1&"年"&3))))) -> 令和1年3 | GY92: =IF(OR(GX93="",GZ$41=4),"",IF(AND(GY$36>=1,GY$36<=4,GW$36=31),"平成"&31&"年"&3,IF(AND(GY$36=5,GW$36="元"),"平成"&31&"年"&3,IF(AND(GY$36>=6,GW$36="元"),"令和"&2&"年"&3,IF((AND(GY$36>=1,GY$36<=5)),"令和"&GW$36&"年"&3,"令和"&GW$36+1&"年"&3))))) -> 令和1年3 | HC92: =IF(OR(HC93="",HC$41=4),"",3) -> 3 | HD92: =IF(OR(HD93="",HF$41=4),"",IF(AND(HE$36>=1,HE$36<=4,HC$36=31),"平成"&31&"年"&3,IF(AND(HE$36=5,HC$36="元"),"平成"&31&"年"&3,IF(AND(HE$36>=6,HC$36="元"),"令和"&2&"年"&3,IF((AND(HE$36>=1,HE$36<=5)),"令和"&HC$36&"年"&3,"令和"&HC$36+1&"年"&3))))) -> 令和1年3 | HE92: =IF(OR(HD93="",HF$41=4),"",IF(AND(HE$36>=1,HE$36<=4,HC$36=31),"平成"&31&"年"&3,IF(AND(HE$36=5,HC$36="元"),"平成"&31&"年"&3,IF(AND(HE$36>=6,HC$36="元"),"令和"&2&"年"&3,IF((AND(HE$36>=1,HE$36<=5)),"令和"&HC$36&"年"&3,"令和"&HC$36+1&"年"&3))))) -> 令和1年3 | HI92: =IF(OR(HI93="",HI$41=4),"",3) -> 3 | HJ92: =IF(OR(HJ93="",HL$41=4),"",IF(AND(HK$36>=1,HK$36<=4,HI$36=31),"平成"&31&"年"&3,IF(AND(HK$36=5,HI$36="元"),"平成"&31&"年"&3,IF(AND(HK$36>=6,HI$36="元"),"令和"&2&"年"&3,IF((AND(HK$36>=1,HK$36<=5)),"令和"&HI$36&"年"&3,"令和"&HI$36+1&"年"&3))))) -> 令和1年3 | HK92: =IF(OR(HJ93="",HL$41=4),"",IF(AND(HK$36>=1,HK$36<=4,HI$36=31),"平成"&31&"年"&3,IF(AND(HK$36=5,HI$36="元"),"平成"&31&"年"&3,IF(AND(HK$36>=6,HI$36="元"),"令和"&2&"年"&3,IF((AND(HK$36>=1,HK$36<=5)),"令和"&HI$36&"年"&3,"令和"&HI$36+1&"年"&3))))) -> 令和1年3 | HO92: =IF(OR(HO93="",HO$41=4),"",3) -> 3 | HP92: =IF(OR(HP93="",HR$41=4),"",IF(AND(HQ$36>=1,HQ$36<=4,HO$36=31),"平成"&31&"年"&3,IF(AND(HQ$36=5,HO$36="元"),"平成"&31&"年"&3,IF(AND(HQ$36>=6,HO$36="元"),"令和"&2&"年"&3,IF((AND(HQ$36>=1,HQ$36<=5)),"令和"&HO$36&"年"&3,"令和"&HO$36+1&"年"&3))))) -> 令和1年3 | HQ92: =IF(OR(HP93="",HR$41=4),"",IF(AND(HQ$36>=1,HQ$36<=4,HO$36=31),"平成"&31&"年"&3,IF(AND(HQ$36=5,HO$36="元"),"平成"&31&"年"&3,IF(AND(HQ$36>=6,HO$36="元"),"令和"&2&"年"&3,IF((AND(HQ$36>=1,HQ$36<=5)),"令和"&HO$36&"年"&3,"令和"&HO$36+1&"年"&3))))) -> 令和1年3 | HU92: =IF(OR(HU93="",HU$41=4),"",3) -> 3 | HV92: =IF(OR(HV93="",HX$41=4),"",IF(AND(HW$36>=1,HW$36<=4,HU$36=31),"平成"&31&"年"&3,IF(AND(HW$36=5,HU$36="元"),"平成"&31&"年"&3,IF(AND(HW$36>=6,HU$36="元"),"令和"&2&"年"&3,IF((AND(HW$36>=1,HW$36<=5)),"令和"&HU$36&"年"&3,"令和"&HU$36+1&"年"&3))))) -> 令和1年3 | HW92: =IF(OR(HV93="",HX$41=4),"",IF(AND(HW$36>=1,HW$36<=4,HU$36=31),"平成"&31&"年"&3,IF(AND(HW$36=5,HU$36="元"),"平成"&31&"年"&3,IF(AND(HW$36>=6,HU$36="元"),"令和"&2&"年"&3,IF((AND(HW$36>=1,HW$36<=5)),"令和"&HU$36&"年"&3,"令和"&HU$36+1&"年"&3))))) -> 令和1年3 | IA92: =IF(OR(IA93="",IA$41=4),"",3) -> 3 | IB92: =IF(OR(IB93="",ID$41=4),"",IF(AND(IC$36>=1,IC$36<=4,IA$36=31),"平成"&31&"年"&3,IF(AND(IC$36=5,IA$36="元"),"平成"&31&"年"&3,IF(AND(IC$36>=6,IA$36="元"),"令和"&2&"年"&3,IF((AND(IC$36>=1,IC$36<=5)),"令和"&IA$36&"年"&3,"令和"&IA$36+1&"年"&3))))) -> 令和1年3 | IC92: =IF(OR(IB93="",ID$41=4),"",IF(AND(IC$36>=1,IC$36<=4,IA$36=31),"平成"&31&"年"&3,IF(AND(IC$36=5,IA$36="元"),"平成"&31&"年"&3,IF(AND(IC$36>=6,IA$36="元"),"令和"&2&"年"&3,IF((AND(IC$36>=1,IC$36<=5)),"令和"&IA$36&"年"&3,"令和"&IA$36+1&"年"&3))))) -> 令和1年3 | IG92: =IF(OR(IG93="",IG$41=4),"",3) -> 3 | IH92: =IF(OR(IH93="",IJ$41=4),"",IF(AND(II$36>=1,II$36<=4,IG$36=31),"平成"&31&"年"&3,IF(AND(II$36=5,IG$36="元"),"平成"&31&"年"&3,IF(AND(II$36>=6,IG$36="元"),"令和"&2&"年"&3,IF((AND(II$36>=1,II$36<=5)),"令和"&IG$36&"年"&3,"令和"&IG$36+1&"年"&3))))) -> 令和1年3 | II92: =IF(OR(IH93="",IJ$41=4),"",IF(AND(II$36>=1,II$36<=4,IG$36=31),"平成"&31&"年"&3,IF(AND(II$36=5,IG$36="元"),"平成"&31&"年"&3,IF(AND(II$36>=6,IG$36="元"),"令和"&2&"年"&3,IF((AND(II$36>=1,II$36<=5)),"令和"&IG$36&"年"&3,"令和"&IG$36+1&"年"&3))))) -> 令和1年3
B93: =IF(AND(DW21<>"",DW25<>"",DY25<>"",EA25<>""),DW17,"") ->  | C93: 平 | D93: 3 | E93: 平3 | G93: =IF(OR(G94="",G$41=5),"",4) -> 4 | H93: =IF(OR(H94="",J$41=4),"",IF(AND(I$36>=1,I$36<=4,G$36=31),"平成"&31&"年"&4,IF(AND(I$36=5,G$36="元"),"平成"&31&"年"&4,IF(AND(I$36>=6,G$36="元"),"令和"&2&"年"&4,IF((AND(I$36>=1,I$36<=5)),"令和"&G$36&"年"&4,"令和"&G$36+1&"年"&4))))) -> 令和1年4 | I93: =IF(OR(H94="",J$41=4),"",IF(AND(I$36>=1,I$36<=4,G$36=31),"平成"&31&"年"&4,IF(AND(I$36=5,G$36="元"),"平成"&31&"年"&4,IF(AND(I$36>=6,G$36="元"),"令和"&2&"年"&4,IF((AND(I$36>=1,I$36<=5)),"令和"&G$36&"年"&4,"令和"&G$36+1&"年"&4))))) -> 令和1年4 | M93: =IF(OR(M94="",M$41=5),"",4) -> 4 | N93: =IF(OR(N94="",P$41=4),"",IF(AND(O$36>=1,O$36<=4,M$36=31),"平成"&31&"年"&4,IF(AND(O$36=5,M$36="元"),"平成"&31&"年"&4,IF(AND(O$36>=6,M$36="元"),"令和"&2&"年"&4,IF((AND(O$36>=1,O$36<=5)),"令和"&M$36&"年"&4,"令和"&M$36+1&"年"&4))))) -> 令和1年4 | O93: =IF(OR(N94="",P$41=4),"",IF(AND(O$36>=1,O$36<=4,M$36=31),"平成"&31&"年"&4,IF(AND(O$36=5,M$36="元"),"平成"&31&"年"&4,IF(AND(O$36>=6,M$36="元"),"令和"&2&"年"&4,IF((AND(O$36>=1,O$36<=5)),"令和"&M$36&"年"&4,"令和"&M$36+1&"年"&4))))) -> 令和1年4 | S93: =IF(OR(S94="",S$41=5),"",4) -> 4 | T93: =IF(OR(T94="",V$41=4),"",IF(AND(U$36>=1,U$36<=4,S$36=31),"平成"&31&"年"&4,IF(AND(U$36=5,S$36="元"),"平成"&31&"年"&4,IF(AND(U$36>=6,S$36="元"),"令和"&2&"年"&4,IF((AND(U$36>=1,U$36<=5)),"令和"&S$36&"年"&4,"令和"&S$36+1&"年"&4))))) -> 令和1年4 | U93: =IF(OR(T94="",V$41=4),"",IF(AND(U$36>=1,U$36<=4,S$36=31),"平成"&31&"年"&4,IF(AND(U$36=5,S$36="元"),"平成"&31&"年"&4,IF(AND(U$36>=6,S$36="元"),"令和"&2&"年"&4,IF((AND(U$36>=1,U$36<=5)),"令和"&S$36&"年"&4,"令和"&S$36+1&"年"&4))))) -> 令和1年4 | Y93: =IF(OR(Y94="",Y$41=5),"",4) -> 4 | Z93: =IF(OR(Z94="",AB$41=4),"",IF(AND(AA$36>=1,AA$36<=4,Y$36=31),"平成"&31&"年"&4,IF(AND(AA$36=5,Y$36="元"),"平成"&31&"年"&4,IF(AND(AA$36>=6,Y$36="元"),"令和"&2&"年"&4,IF((AND(AA$36>=1,AA$36<=5)),"令和"&Y$36&"年"&4,"令和"&Y$36+1&"年"&4))))) -> 令和1年4 | AA93: =IF(OR(Z94="",AB$41=4),"",IF(AND(AA$36>=1,AA$36<=4,Y$36=31),"平成"&31&"年"&4,IF(AND(AA$36=5,Y$36="元"),"平成"&31&"年"&4,IF(AND(AA$36>=6,Y$36="元"),"令和"&2&"年"&4,IF((AND(AA$36>=1,AA$36<=5)),"令和"&Y$36&"年"&4,"令和"&Y$36+1&"年"&4))))) -> 令和1年4 | AE93: =IF(OR(AE94="",AE$41=5),"",4) -> 4 | AF93: =IF(OR(AF94="",AH$41=4),"",IF(AND(AG$36>=1,AG$36<=4,AE$36=31),"平成"&31&"年"&4,IF(AND(AG$36=5,AE$36="元"),"平成"&31&"年"&4,IF(AND(AG$36>=6,AE$36="元"),"令和"&2&"年"&4,IF((AND(AG$36>=1,AG$36<=5)),"令和"&AE$36&"年"&4,"令和"&AE$36+1&"年"&4))))) -> 令和1年4 | AG93: =IF(OR(AF94="",AH$41=4),"",IF(AND(AG$36>=1,AG$36<=4,AE$36=31),"平成"&31&"年"&4,IF(AND(AG$36=5,AE$36="元"),"平成"&31&"年"&4,IF(AND(AG$36>=6,AE$36="元"),"令和"&2&"年"&4,IF((AND(AG$36>=1,AG$36<=5)),"令和"&AE$36&"年"&4,"令和"&AE$36+1&"年"&4))))) -> 令和1年4 | AK93: =IF(OR(AK94="",AK$41=5),"",4) -> 4 | AL93: =IF(OR(AL94="",AN$41=4),"",IF(AND(AM$36>=1,AM$36<=4,AK$36=31),"平成"&31&"年"&4,IF(AND(AM$36=5,AK$36="元"),"平成"&31&"年"&4,IF(AND(AM$36>=6,AK$36="元"),"令和"&2&"年"&4,IF((AND(AM$36>=1,AM$36<=5)),"令和"&AK$36&"年"&4,"令和"&AK$36+1&"年"&4))))) -> 令和1年4 | AM93: =IF(OR(AL94="",AN$41=4),"",IF(AND(AM$36>=1,AM$36<=4,AK$36=31),"平成"&31&"年"&4,IF(AND(AM$36=5,AK$36="元"),"平成"&31&"年"&4,IF(AND(AM$36>=6,AK$36="元"),"令和"&2&"年"&4,IF((AND(AM$36>=1,AM$36<=5)),"令和"&AK$36&"年"&4,"令和"&AK$36+1&"年"&4))))) -> 令和1年4 | AQ93: =IF(OR(AQ94="",AQ$41=5),"",4) -> 4 | AR93: =IF(OR(AR94="",AT$41=4),"",IF(AND(AS$36>=1,AS$36<=4,AQ$36=31),"平成"&31&"年"&4,IF(AND(AS$36=5,AQ$36="元"),"平成"&31&"年"&4,IF(AND(AS$36>=6,AQ$36="元"),"令和"&2&"年"&4,IF((AND(AS$36>=1,AS$36<=5)),"令和"&AQ$36&"年"&4,"令和"&AQ$36+1&"年"&4))))) -> 令和1年4 | AS93: =IF(OR(AR94="",AT$41=4),"",IF(AND(AS$36>=1,AS$36<=4,AQ$36=31),"平成"&31&"年"&4,IF(AND(AS$36=5,AQ$36="元"),"平成"&31&"年"&4,IF(AND(AS$36>=6,AQ$36="元"),"令和"&2&"年"&4,IF((AND(AS$36>=1,AS$36<=5)),"令和"&AQ$36&"年"&4,"令和"&AQ$36+1&"年"&4))))) -> 令和1年4 | AW93: =IF(OR(AW94="",AW$41=5),"",4) -> 4 | AX93: =IF(OR(AX94="",AZ$41=4),"",IF(AND(AY$36>=1,AY$36<=4,AW$36=31),"平成"&31&"年"&4,IF(AND(AY$36=5,AW$36="元"),"平成"&31&"年"&4,IF(AND(AY$36>=6,AW$36="元"),"令和"&2&"年"&4,IF((AND(AY$36>=1,AY$36<=5)),"令和"&AW$36&"年"&4,"令和"&AW$36+1&"年"&4))))) -> 令和1年4 | AY93: =IF(OR(AX94="",AZ$41=4),"",IF(AND(AY$36>=1,AY$36<=4,AW$36=31),"平成"&31&"年"&4,IF(AND(AY$36=5,AW$36="元"),"平成"&31&"年"&4,IF(AND(AY$36>=6,AW$36="元"),"令和"&2&"年"&4,IF((AND(AY$36>=1,AY$36<=5)),"令和"&AW$36&"年"&4,"令和"&AW$36+1&"年"&4))))) -> 令和1年4 | BC93: =IF(OR(BC94="",BC$41=5),"",4) -> 4 | BD93: =IF(OR(BD94="",BF$41=4),"",IF(AND(BE$36>=1,BE$36<=4,BC$36=31),"平成"&31&"年"&4,IF(AND(BE$36=5,BC$36="元"),"平成"&31&"年"&4,IF(AND(BE$36>=6,BC$36="元"),"令和"&2&"年"&4,IF((AND(BE$36>=1,BE$36<=5)),"令和"&BC$36&"年"&4,"令和"&BC$36+1&"年"&4))))) -> 令和1年4 | BE93: =IF(OR(BD94="",BF$41=4),"",IF(AND(BE$36>=1,BE$36<=4,BC$36=31),"平成"&31&"年"&4,IF(AND(BE$36=5,BC$36="元"),"平成"&31&"年"&4,IF(AND(BE$36>=6,BC$36="元"),"令和"&2&"年"&4,IF((AND(BE$36>=1,BE$36<=5)),"令和"&BC$36&"年"&4,"令和"&BC$36+1&"年"&4))))) -> 令和1年4 | BI93: =IF(OR(BI94="",BI$41=5),"",4) -> 4 | BJ93: =IF(OR(BJ94="",BL$41=4),"",IF(AND(BK$36>=1,BK$36<=4,BI$36=31),"平成"&31&"年"&4,IF(AND(BK$36=5,BI$36="元"),"平成"&31&"年"&4,IF(AND(BK$36>=6,BI$36="元"),"令和"&2&"年"&4,IF((AND(BK$36>=1,BK$36<=5)),"令和"&BI$36&"年"&4,"令和"&BI$36+1&"年"&4))))) -> 令和1年4 | BK93: =IF(OR(BJ94="",BL$41=4),"",IF(AND(BK$36>=1,BK$36<=4,BI$36=31),"平成"&31&"年"&4,IF(AND(BK$36=5,BI$36="元"),"平成"&31&"年"&4,IF(AND(BK$36>=6,BI$36="元"),"令和"&2&"年"&4,IF((AND(BK$36>=1,BK$36<=5)),"令和"&BI$36&"年"&4,"令和"&BI$36+1&"年"&4))))) -> 令和1年4 | BO93: =IF(OR(BO94="",BO$41=5),"",4) -> 4 | BP93: =IF(OR(BP94="",BR$41=4),"",IF(AND(BQ$36>=1,BQ$36<=4,BO$36=31),"平成"&31&"年"&4,IF(AND(BQ$36=5,BO$36="元"),"平成"&31&"年"&4,IF(AND(BQ$36>=6,BO$36="元"),"令和"&2&"年"&4,IF((AND(BQ$36>=1,BQ$36<=5)),"令和"&BO$36&"年"&4,"令和"&BO$36+1&"年"&4))))) -> 令和1年4 | BQ93: =IF(OR(BP94="",BR$41=4),"",IF(AND(BQ$36>=1,BQ$36<=4,BO$36=31),"平成"&31&"年"&4,IF(AND(BQ$36=5,BO$36="元"),"平成"&31&"年"&4,IF(AND(BQ$36>=6,BO$36="元"),"令和"&2&"年"&4,IF((AND(BQ$36>=1,BQ$36<=5)),"令和"&BO$36&"年"&4,"令和"&BO$36+1&"年"&4))))) -> 令和1年4 | BU93: =IF(OR(BU94="",BU$41=5),"",4) -> 4 | BV93: =IF(OR(BV94="",BX$41=4),"",IF(AND(BW$36>=1,BW$36<=4,BU$36=31),"平成"&31&"年"&4,IF(AND(BW$36=5,BU$36="元"),"平成"&31&"年"&4,IF(AND(BW$36>=6,BU$36="元"),"令和"&2&"年"&4,IF((AND(BW$36>=1,BW$36<=5)),"令和"&BU$36&"年"&4,"令和"&BU$36+1&"年"&4))))) -> 令和1年4 | BW93: =IF(OR(BV94="",BX$41=4),"",IF(AND(BW$36>=1,BW$36<=4,BU$36=31),"平成"&31&"年"&4,IF(AND(BW$36=5,BU$36="元"),"平成"&31&"年"&4,IF(AND(BW$36>=6,BU$36="元"),"令和"&2&"年"&4,IF((AND(BW$36>=1,BW$36<=5)),"令和"&BU$36&"年"&4,"令和"&BU$36+1&"年"&4))))) -> 令和1年4 | CA93: =IF(OR(CA94="",CA$41=5),"",4) -> 4 | CB93: =IF(OR(CB94="",CD$41=4),"",IF(AND(CC$36>=1,CC$36<=4,CA$36=31),"平成"&31&"年"&4,IF(AND(CC$36=5,CA$36="元"),"平成"&31&"年"&4,IF(AND(CC$36>=6,CA$36="元"),"令和"&2&"年"&4,IF((AND(CC$36>=1,CC$36<=5)),"令和"&CA$36&"年"&4,"令和"&CA$36+1&"年"&4))))) -> 令和1年4 | CC93: =IF(OR(CB94="",CD$41=4),"",IF(AND(CC$36>=1,CC$36<=4,CA$36=31),"平成"&31&"年"&4,IF(AND(CC$36=5,CA$36="元"),"平成"&31&"年"&4,IF(AND(CC$36>=6,CA$36="元"),"令和"&2&"年"&4,IF((AND(CC$36>=1,CC$36<=5)),"令和"&CA$36&"年"&4,"令和"&CA$36+1&"年"&4))))) -> 令和1年4 | CG93: =IF(OR(CG94="",CG$41=5),"",4) -> 4 | CH93: =IF(OR(CH94="",CJ$41=4),"",IF(AND(CI$36>=1,CI$36<=4,CG$36=31),"平成"&31&"年"&4,IF(AND(CI$36=5,CG$36="元"),"平成"&31&"年"&4,IF(AND(CI$36>=6,CG$36="元"),"令和"&2&"年"&4,IF((AND(CI$36>=1,CI$36<=5)),"令和"&CG$36&"年"&4,"令和"&CG$36+1&"年"&4))))) -> 令和1年4 | CI93: =IF(OR(CH94="",CJ$41=4),"",IF(AND(CI$36>=1,CI$36<=4,CG$36=31),"平成"&31&"年"&4,IF(AND(CI$36=5,CG$36="元"),"平成"&31&"年"&4,IF(AND(CI$36>=6,CG$36="元"),"令和"&2&"年"&4,IF((AND(CI$36>=1,CI$36<=5)),"令和"&CG$36&"年"&4,"令和"&CG$36+1&"年"&4))))) -> 令和1年4 | CM93: =IF(OR(CM94="",CM$41=5),"",4) -> 4 | CN93: =IF(OR(CN94="",CP$41=4),"",IF(AND(CO$36>=1,CO$36<=4,CM$36=31),"平成"&31&"年"&4,IF(AND(CO$36=5,CM$36="元"),"平成"&31&"年"&4,IF(AND(CO$36>=6,CM$36="元"),"令和"&2&"年"&4,IF((AND(CO$36>=1,CO$36<=5)),"令和"&CM$36&"年"&4,"令和"&CM$36+1&"年"&4))))) -> 令和1年4 | CO93: =IF(OR(CN94="",CP$41=4),"",IF(AND(CO$36>=1,CO$36<=4,CM$36=31),"平成"&31&"年"&4,IF(AND(CO$36=5,CM$36="元"),"平成"&31&"年"&4,IF(AND(CO$36>=6,CM$36="元"),"令和"&2&"年"&4,IF((AND(CO$36>=1,CO$36<=5)),"令和"&CM$36&"年"&4,"令和"&CM$36+1&"年"&4))))) -> 令和1年4 | CS93: =IF(OR(CS94="",CS$41=5),"",4) -> 4 | CT93: =IF(OR(CT94="",CV$41=4),"",IF(AND(CU$36>=1,CU$36<=4,CS$36=31),"平成"&31&"年"&4,IF(AND(CU$36=5,CS$36="元"),"平成"&31&"年"&4,IF(AND(CU$36>=6,CS$36="元"),"令和"&2&"年"&4,IF((AND(CU$36>=1,CU$36<=5)),"令和"&CS$36&"年"&4,"令和"&CS$36+1&"年"&4))))) -> 令和1年4 | CU93: =IF(OR(CT94="",CV$41=4),"",IF(AND(CU$36>=1,CU$36<=4,CS$36=31),"平成"&31&"年"&4,IF(AND(CU$36=5,CS$36="元"),"平成"&31&"年"&4,IF(AND(CU$36>=6,CS$36="元"),"令和"&2&"年"&4,IF((AND(CU$36>=1,CU$36<=5)),"令和"&CS$36&"年"&4,"令和"&CS$36+1&"年"&4))))) -> 令和1年4 | CY93: =IF(OR(CY94="",CY$41=5),"",4) -> 4 | CZ93: =IF(OR(CZ94="",DB$41=4),"",IF(AND(DA$36>=1,DA$36<=4,CY$36=31),"平成"&31&"年"&4,IF(AND(DA$36=5,CY$36="元"),"平成"&31&"年"&4,IF(AND(DA$36>=6,CY$36="元"),"令和"&2&"年"&4,IF((AND(DA$36>=1,DA$36<=5)),"令和"&CY$36&"年"&4,"令和"&CY$36+1&"年"&4))))) -> 令和1年4 | DA93: =IF(OR(CZ94="",DB$41=4),"",IF(AND(DA$36>=1,DA$36<=4,CY$36=31),"平成"&31&"年"&4,IF(AND(DA$36=5,CY$36="元"),"平成"&31&"年"&4,IF(AND(DA$36>=6,CY$36="元"),"令和"&2&"年"&4,IF((AND(DA$36>=1,DA$36<=5)),"令和"&CY$36&"年"&4,"令和"&CY$36+1&"年"&4))))) -> 令和1年4 | DE93: =IF(OR(DE94="",DE$41=5),"",4) -> 4 | DF93: =IF(OR(DF94="",DH$41=4),"",IF(AND(DG$36>=1,DG$36<=4,DE$36=31),"平成"&31&"年"&4,IF(AND(DG$36=5,DE$36="元"),"平成"&31&"年"&4,IF(AND(DG$36>=6,DE$36="元"),"令和"&2&"年"&4,IF((AND(DG$36>=1,DG$36<=5)),"令和"&DE$36&"年"&4,"令和"&DE$36+1&"年"&4))))) -> 令和1年4 | DG93: =IF(OR(DF94="",DH$41=4),"",IF(AND(DG$36>=1,DG$36<=4,DE$36=31),"平成"&31&"年"&4,IF(AND(DG$36=5,DE$36="元"),"平成"&31&"年"&4,IF(AND(DG$36>=6,DE$36="元"),"令和"&2&"年"&4,IF((AND(DG$36>=1,DG$36<=5)),"令和"&DE$36&"年"&4,"令和"&DE$36+1&"年"&4))))) -> 令和1年4 | DK93: =IF(OR(DK94="",DK$41=5),"",4) -> 4 | DL93: =IF(OR(DL94="",DN$41=4),"",IF(AND(DM$36>=1,DM$36<=4,DK$36=31),"平成"&31&"年"&4,IF(AND(DM$36=5,DK$36="元"),"平成"&31&"年"&4,IF(AND(DM$36>=6,DK$36="元"),"令和"&2&"年"&4,IF((AND(DM$36>=1,DM$36<=5)),"令和"&DK$36&"年"&4,"令和"&DK$36+1&"年"&4))))) -> 令和1年4 | DM93: =IF(OR(DL94="",DN$41=4),"",IF(AND(DM$36>=1,DM$36<=4,DK$36=31),"平成"&31&"年"&4,IF(AND(DM$36=5,DK$36="元"),"平成"&31&"年"&4,IF(AND(DM$36>=6,DK$36="元"),"令和"&2&"年"&4,IF((AND(DM$36>=1,DM$36<=5)),"令和"&DK$36&"年"&4,"令和"&DK$36+1&"年"&4))))) -> 令和1年4 | DQ93: =IF(OR(DQ94="",DQ$41=5),"",4) -> 4 | DR93: =IF(OR(DR94="",DT$41=4),"",IF(AND(DS$36>=1,DS$36<=4,DQ$36=31),"平成"&31&"年"&4,IF(AND(DS$36=5,DQ$36="元"),"平成"&31&"年"&4,IF(AND(DS$36>=6,DQ$36="元"),"令和"&2&"年"&4,IF((AND(DS$36>=1,DS$36<=5)),"令和"&DQ$36&"年"&4,"令和"&DQ$36+1&"年"&4))))) -> 令和1年4 | DS93: =IF(OR(DR94="",DT$41=4),"",IF(AND(DS$36>=1,DS$36<=4,DQ$36=31),"平成"&31&"年"&4,IF(AND(DS$36=5,DQ$36="元"),"平成"&31&"年"&4,IF(AND(DS$36>=6,DQ$36="元"),"令和"&2&"年"&4,IF((AND(DS$36>=1,DS$36<=5)),"令和"&DQ$36&"年"&4,"令和"&DQ$36+1&"年"&4))))) -> 令和1年4 | DW93: =IF(OR(DW94="",DW$41=5),"",4) -> 4 | DX93: =IF(OR(DX94="",DZ$41=4),"",IF(AND(DY$36>=1,DY$36<=4,DW$36=31),"平成"&31&"年"&4,IF(AND(DY$36=5,DW$36="元"),"平成"&31&"年"&4,IF(AND(DY$36>=6,DW$36="元"),"令和"&2&"年"&4,IF((AND(DY$36>=1,DY$36<=5)),"令和"&DW$36&"年"&4,"令和"&DW$36+1&"年"&4))))) -> 令和1年4 | DY93: =IF(OR(DX94="",DZ$41=4),"",IF(AND(DY$36>=1,DY$36<=4,DW$36=31),"平成"&31&"年"&4,IF(AND(DY$36=5,DW$36="元"),"平成"&31&"年"&4,IF(AND(DY$36>=6,DW$36="元"),"令和"&2&"年"&4,IF((AND(DY$36>=1,DY$36<=5)),"令和"&DW$36&"年"&4,"令和"&DW$36+1&"年"&4))))) -> 令和1年4 | EC93: =IF(OR(EC94="",EC$41=5),"",4) -> 4 | ED93: =IF(OR(ED94="",EF$41=4),"",IF(AND(EE$36>=1,EE$36<=4,EC$36=31),"平成"&31&"年"&4,IF(AND(EE$36=5,EC$36="元"),"平成"&31&"年"&4,IF(AND(EE$36>=6,EC$36="元"),"令和"&2&"年"&4,IF((AND(EE$36>=1,EE$36<=5)),"令和"&EC$36&"年"&4,"令和"&EC$36+1&"年"&4))))) -> 令和1年4 | EE93: =IF(OR(ED94="",EF$41=4),"",IF(AND(EE$36>=1,EE$36<=4,EC$36=31),"平成"&31&"年"&4,IF(AND(EE$36=5,EC$36="元"),"平成"&31&"年"&4,IF(AND(EE$36>=6,EC$36="元"),"令和"&2&"年"&4,IF((AND(EE$36>=1,EE$36<=5)),"令和"&EC$36&"年"&4,"令和"&EC$36+1&"年"&4))))) -> 令和1年4 | EI93: =IF(OR(EI94="",EI$41=5),"",4) -> 4 | EJ93: =IF(OR(EJ94="",EL$41=4),"",IF(AND(EK$36>=1,EK$36<=4,EI$36=31),"平成"&31&"年"&4,IF(AND(EK$36=5,EI$36="元"),"平成"&31&"年"&4,IF(AND(EK$36>=6,EI$36="元"),"令和"&2&"年"&4,IF((AND(EK$36>=1,EK$36<=5)),"令和"&EI$36&"年"&4,"令和"&EI$36+1&"年"&4))))) -> 令和1年4 | EK93: =IF(OR(EJ94="",EL$41=4),"",IF(AND(EK$36>=1,EK$36<=4,EI$36=31),"平成"&31&"年"&4,IF(AND(EK$36=5,EI$36="元"),"平成"&31&"年"&4,IF(AND(EK$36>=6,EI$36="元"),"令和"&2&"年"&4,IF((AND(EK$36>=1,EK$36<=5)),"令和"&EI$36&"年"&4,"令和"&EI$36+1&"年"&4))))) -> 令和1年4 | EO93: =IF(OR(EO94="",EO$41=5),"",4) -> 4 | EP93: =IF(OR(EP94="",ER$41=4),"",IF(AND(EQ$36>=1,EQ$36<=4,EO$36=31),"平成"&31&"年"&4,IF(AND(EQ$36=5,EO$36="元"),"平成"&31&"年"&4,IF(AND(EQ$36>=6,EO$36="元"),"令和"&2&"年"&4,IF((AND(EQ$36>=1,EQ$36<=5)),"令和"&EO$36&"年"&4,"令和"&EO$36+1&"年"&4))))) -> 令和1年4 | EQ93: =IF(OR(EP94="",ER$41=4),"",IF(AND(EQ$36>=1,EQ$36<=4,EO$36=31),"平成"&31&"年"&4,IF(AND(EQ$36=5,EO$36="元"),"平成"&31&"年"&4,IF(AND(EQ$36>=6,EO$36="元"),"令和"&2&"年"&4,IF((AND(EQ$36>=1,EQ$36<=5)),"令和"&EO$36&"年"&4,"令和"&EO$36+1&"年"&4))))) -> 令和1年4 | EU93: =IF(OR(EU94="",EU$41=5),"",4) -> 4 | EV93: =IF(OR(EV94="",EX$41=4),"",IF(AND(EW$36>=1,EW$36<=4,EU$36=31),"平成"&31&"年"&4,IF(AND(EW$36=5,EU$36="元"),"平成"&31&"年"&4,IF(AND(EW$36>=6,EU$36="元"),"令和"&2&"年"&4,IF((AND(EW$36>=1,EW$36<=5)),"令和"&EU$36&"年"&4,"令和"&EU$36+1&"年"&4))))) -> 令和1年4 | EW93: =IF(OR(EV94="",EX$41=4),"",IF(AND(EW$36>=1,EW$36<=4,EU$36=31),"平成"&31&"年"&4,IF(AND(EW$36=5,EU$36="元"),"平成"&31&"年"&4,IF(AND(EW$36>=6,EU$36="元"),"令和"&2&"年"&4,IF((AND(EW$36>=1,EW$36<=5)),"令和"&EU$36&"年"&4,"令和"&EU$36+1&"年"&4))))) -> 令和1年4 | FA93: =IF(OR(FA94="",FA$41=5),"",4) -> 4 | FB93: =IF(OR(FB94="",FD$41=4),"",IF(AND(FC$36>=1,FC$36<=4,FA$36=31),"平成"&31&"年"&4,IF(AND(FC$36=5,FA$36="元"),"平成"&31&"年"&4,IF(AND(FC$36>=6,FA$36="元"),"令和"&2&"年"&4,IF((AND(FC$36>=1,FC$36<=5)),"令和"&FA$36&"年"&4,"令和"&FA$36+1&"年"&4))))) -> 令和1年4 | FC93: =IF(OR(FB94="",FD$41=4),"",IF(AND(FC$36>=1,FC$36<=4,FA$36=31),"平成"&31&"年"&4,IF(AND(FC$36=5,FA$36="元"),"平成"&31&"年"&4,IF(AND(FC$36>=6,FA$36="元"),"令和"&2&"年"&4,IF((AND(FC$36>=1,FC$36<=5)),"令和"&FA$36&"年"&4,"令和"&FA$36+1&"年"&4))))) -> 令和1年4 | FG93: =IF(OR(FG94="",FG$41=5),"",4) -> 4 | FH93: =IF(OR(FH94="",FJ$41=4),"",IF(AND(FI$36>=1,FI$36<=4,FG$36=31),"平成"&31&"年"&4,IF(AND(FI$36=5,FG$36="元"),"平成"&31&"年"&4,IF(AND(FI$36>=6,FG$36="元"),"令和"&2&"年"&4,IF((AND(FI$36>=1,FI$36<=5)),"令和"&FG$36&"年"&4,"令和"&FG$36+1&"年"&4))))) -> 令和1年4 | FI93: =IF(OR(FH94="",FJ$41=4),"",IF(AND(FI$36>=1,FI$36<=4,FG$36=31),"平成"&31&"年"&4,IF(AND(FI$36=5,FG$36="元"),"平成"&31&"年"&4,IF(AND(FI$36>=6,FG$36="元"),"令和"&2&"年"&4,IF((AND(FI$36>=1,FI$36<=5)),"令和"&FG$36&"年"&4,"令和"&FG$36+1&"年"&4))))) -> 令和1年4 | FM93: =IF(OR(FM94="",FM$41=5),"",4) -> 4 | FN93: =IF(OR(FN94="",FP$41=4),"",IF(AND(FO$36>=1,FO$36<=4,FM$36=31),"平成"&31&"年"&4,IF(AND(FO$36=5,FM$36="元"),"平成"&31&"年"&4,IF(AND(FO$36>=6,FM$36="元"),"令和"&2&"年"&4,IF((AND(FO$36>=1,FO$36<=5)),"令和"&FM$36&"年"&4,"令和"&FM$36+1&"年"&4))))) -> 令和1年4 | FO93: =IF(OR(FN94="",FP$41=4),"",IF(AND(FO$36>=1,FO$36<=4,FM$36=31),"平成"&31&"年"&4,IF(AND(FO$36=5,FM$36="元"),"平成"&31&"年"&4,IF(AND(FO$36>=6,FM$36="元"),"令和"&2&"年"&4,IF((AND(FO$36>=1,FO$36<=5)),"令和"&FM$36&"年"&4,"令和"&FM$36+1&"年"&4))))) -> 令和1年4 | FS93: =IF(OR(FS94="",FS$41=5),"",4) -> 4 | FT93: =IF(OR(FT94="",FV$41=4),"",IF(AND(FU$36>=1,FU$36<=4,FS$36=31),"平成"&31&"年"&4,IF(AND(FU$36=5,FS$36="元"),"平成"&31&"年"&4,IF(AND(FU$36>=6,FS$36="元"),"令和"&2&"年"&4,IF((AND(FU$36>=1,FU$36<=5)),"令和"&FS$36&"年"&4,"令和"&FS$36+1&"年"&4))))) -> 令和1年4 | FU93: =IF(OR(FT94="",FV$41=4),"",IF(AND(FU$36>=1,FU$36<=4,FS$36=31),"平成"&31&"年"&4,IF(AND(FU$36=5,FS$36="元"),"平成"&31&"年"&4,IF(AND(FU$36>=6,FS$36="元"),"令和"&2&"年"&4,IF((AND(FU$36>=1,FU$36<=5)),"令和"&FS$36&"年"&4,"令和"&FS$36+1&"年"&4))))) -> 令和1年4 | FY93: =IF(OR(FY94="",FY$41=5),"",4) -> 4 | FZ93: =IF(OR(FZ94="",GB$41=4),"",IF(AND(GA$36>=1,GA$36<=4,FY$36=31),"平成"&31&"年"&4,IF(AND(GA$36=5,FY$36="元"),"平成"&31&"年"&4,IF(AND(GA$36>=6,FY$36="元"),"令和"&2&"年"&4,IF((AND(GA$36>=1,GA$36<=5)),"令和"&FY$36&"年"&4,"令和"&FY$36+1&"年"&4))))) -> 令和1年4 | GA93: =IF(OR(FZ94="",GB$41=4),"",IF(AND(GA$36>=1,GA$36<=4,FY$36=31),"平成"&31&"年"&4,IF(AND(GA$36=5,FY$36="元"),"平成"&31&"年"&4,IF(AND(GA$36>=6,FY$36="元"),"令和"&2&"年"&4,IF((AND(GA$36>=1,GA$36<=5)),"令和"&FY$36&"年"&4,"令和"&FY$36+1&"年"&4))))) -> 令和1年4 | GE93: =IF(OR(GE94="",GE$41=5),"",4) -> 4 | GF93: =IF(OR(GF94="",GH$41=4),"",IF(AND(GG$36>=1,GG$36<=4,GE$36=31),"平成"&31&"年"&4,IF(AND(GG$36=5,GE$36="元"),"平成"&31&"年"&4,IF(AND(GG$36>=6,GE$36="元"),"令和"&2&"年"&4,IF((AND(GG$36>=1,GG$36<=5)),"令和"&GE$36&"年"&4,"令和"&GE$36+1&"年"&4))))) -> 令和1年4 | GG93: =IF(OR(GF94="",GH$41=4),"",IF(AND(GG$36>=1,GG$36<=4,GE$36=31),"平成"&31&"年"&4,IF(AND(GG$36=5,GE$36="元"),"平成"&31&"年"&4,IF(AND(GG$36>=6,GE$36="元"),"令和"&2&"年"&4,IF((AND(GG$36>=1,GG$36<=5)),"令和"&GE$36&"年"&4,"令和"&GE$36+1&"年"&4))))) -> 令和1年4 | GK93: =IF(OR(GK94="",GK$41=5),"",4) -> 4 | GL93: =IF(OR(GL94="",GN$41=4),"",IF(AND(GM$36>=1,GM$36<=4,GK$36=31),"平成"&31&"年"&4,IF(AND(GM$36=5,GK$36="元"),"平成"&31&"年"&4,IF(AND(GM$36>=6,GK$36="元"),"令和"&2&"年"&4,IF((AND(GM$36>=1,GM$36<=5)),"令和"&GK$36&"年"&4,"令和"&GK$36+1&"年"&4))))) -> 令和1年4 | GM93: =IF(OR(GL94="",GN$41=4),"",IF(AND(GM$36>=1,GM$36<=4,GK$36=31),"平成"&31&"年"&4,IF(AND(GM$36=5,GK$36="元"),"平成"&31&"年"&4,IF(AND(GM$36>=6,GK$36="元"),"令和"&2&"年"&4,IF((AND(GM$36>=1,GM$36<=5)),"令和"&GK$36&"年"&4,"令和"&GK$36+1&"年"&4))))) -> 令和1年4 | GQ93: =IF(OR(GQ94="",GQ$41=5),"",4) -> 4 | GR93: =IF(OR(GR94="",GT$41=4),"",IF(AND(GS$36>=1,GS$36<=4,GQ$36=31),"平成"&31&"年"&4,IF(AND(GS$36=5,GQ$36="元"),"平成"&31&"年"&4,IF(AND(GS$36>=6,GQ$36="元"),"令和"&2&"年"&4,IF((AND(GS$36>=1,GS$36<=5)),"令和"&GQ$36&"年"&4,"令和"&GQ$36+1&"年"&4))))) -> 令和1年4 | GS93: =IF(OR(GR94="",GT$41=4),"",IF(AND(GS$36>=1,GS$36<=4,GQ$36=31),"平成"&31&"年"&4,IF(AND(GS$36=5,GQ$36="元"),"平成"&31&"年"&4,IF(AND(GS$36>=6,GQ$36="元"),"令和"&2&"年"&4,IF((AND(GS$36>=1,GS$36<=5)),"令和"&GQ$36&"年"&4,"令和"&GQ$36+1&"年"&4))))) -> 令和1年4 | GW93: =IF(OR(GW94="",GW$41=5),"",4) -> 4 | GX93: =IF(OR(GX94="",GZ$41=4),"",IF(AND(GY$36>=1,GY$36<=4,GW$36=31),"平成"&31&"年"&4,IF(AND(GY$36=5,GW$36="元"),"平成"&31&"年"&4,IF(AND(GY$36>=6,GW$36="元"),"令和"&2&"年"&4,IF((AND(GY$36>=1,GY$36<=5)),"令和"&GW$36&"年"&4,"令和"&GW$36+1&"年"&4))))) -> 令和1年4 | GY93: =IF(OR(GX94="",GZ$41=4),"",IF(AND(GY$36>=1,GY$36<=4,GW$36=31),"平成"&31&"年"&4,IF(AND(GY$36=5,GW$36="元"),"平成"&31&"年"&4,IF(AND(GY$36>=6,GW$36="元"),"令和"&2&"年"&4,IF((AND(GY$36>=1,GY$36<=5)),"令和"&GW$36&"年"&4,"令和"&GW$36+1&"年"&4))))) -> 令和1年4 | HC93: =IF(OR(HC94="",HC$41=5),"",4) -> 4 | HD93: =IF(OR(HD94="",HF$41=4),"",IF(AND(HE$36>=1,HE$36<=4,HC$36=31),"平成"&31&"年"&4,IF(AND(HE$36=5,HC$36="元"),"平成"&31&"年"&4,IF(AND(HE$36>=6,HC$36="元"),"令和"&2&"年"&4,IF((AND(HE$36>=1,HE$36<=5)),"令和"&HC$36&"年"&4,"令和"&HC$36+1&"年"&4))))) -> 令和1年4 | HE93: =IF(OR(HD94="",HF$41=4),"",IF(AND(HE$36>=1,HE$36<=4,HC$36=31),"平成"&31&"年"&4,IF(AND(HE$36=5,HC$36="元"),"平成"&31&"年"&4,IF(AND(HE$36>=6,HC$36="元"),"令和"&2&"年"&4,IF((AND(HE$36>=1,HE$36<=5)),"令和"&HC$36&"年"&4,"令和"&HC$36+1&"年"&4))))) -> 令和1年4 | HI93: =IF(OR(HI94="",HI$41=5),"",4) -> 4 | HJ93: =IF(OR(HJ94="",HL$41=4),"",IF(AND(HK$36>=1,HK$36<=4,HI$36=31),"平成"&31&"年"&4,IF(AND(HK$36=5,HI$36="元"),"平成"&31&"年"&4,IF(AND(HK$36>=6,HI$36="元"),"令和"&2&"年"&4,IF((AND(HK$36>=1,HK$36<=5)),"令和"&HI$36&"年"&4,"令和"&HI$36+1&"年"&4))))) -> 令和1年4 | HK93: =IF(OR(HJ94="",HL$41=4),"",IF(AND(HK$36>=1,HK$36<=4,HI$36=31),"平成"&31&"年"&4,IF(AND(HK$36=5,HI$36="元"),"平成"&31&"年"&4,IF(AND(HK$36>=6,HI$36="元"),"令和"&2&"年"&4,IF((AND(HK$36>=1,HK$36<=5)),"令和"&HI$36&"年"&4,"令和"&HI$36+1&"年"&4))))) -> 令和1年4 | HO93: =IF(OR(HO94="",HO$41=5),"",4) -> 4 | HP93: =IF(OR(HP94="",HR$41=4),"",IF(AND(HQ$36>=1,HQ$36<=4,HO$36=31),"平成"&31&"年"&4,IF(AND(HQ$36=5,HO$36="元"),"平成"&31&"年"&4,IF(AND(HQ$36>=6,HO$36="元"),"令和"&2&"年"&4,IF((AND(HQ$36>=1,HQ$36<=5)),"令和"&HO$36&"年"&4,"令和"&HO$36+1&"年"&4))))) -> 令和1年4 | HQ93: =IF(OR(HP94="",HR$41=4),"",IF(AND(HQ$36>=1,HQ$36<=4,HO$36=31),"平成"&31&"年"&4,IF(AND(HQ$36=5,HO$36="元"),"平成"&31&"年"&4,IF(AND(HQ$36>=6,HO$36="元"),"令和"&2&"年"&4,IF((AND(HQ$36>=1,HQ$36<=5)),"令和"&HO$36&"年"&4,"令和"&HO$36+1&"年"&4))))) -> 令和1年4 | HU93: =IF(OR(HU94="",HU$41=5),"",4) -> 4 | HV93: =IF(OR(HV94="",HX$41=4),"",IF(AND(HW$36>=1,HW$36<=4,HU$36=31),"平成"&31&"年"&4,IF(AND(HW$36=5,HU$36="元"),"平成"&31&"年"&4,IF(AND(HW$36>=6,HU$36="元"),"令和"&2&"年"&4,IF((AND(HW$36>=1,HW$36<=5)),"令和"&HU$36&"年"&4,"令和"&HU$36+1&"年"&4))))) -> 令和1年4 | HW93: =IF(OR(HV94="",HX$41=4),"",IF(AND(HW$36>=1,HW$36<=4,HU$36=31),"平成"&31&"年"&4,IF(AND(HW$36=5,HU$36="元"),"平成"&31&"年"&4,IF(AND(HW$36>=6,HU$36="元"),"令和"&2&"年"&4,IF((AND(HW$36>=1,HW$36<=5)),"令和"&HU$36&"年"&4,"令和"&HU$36+1&"年"&4))))) -> 令和1年4 | IA93: =IF(OR(IA94="",IA$41=5),"",4) -> 4 | IB93: =IF(OR(IB94="",ID$41=4),"",IF(AND(IC$36>=1,IC$36<=4,IA$36=31),"平成"&31&"年"&4,IF(AND(IC$36=5,IA$36="元"),"平成"&31&"年"&4,IF(AND(IC$36>=6,IA$36="元"),"令和"&2&"年"&4,IF((AND(IC$36>=1,IC$36<=5)),"令和"&IA$36&"年"&4,"令和"&IA$36+1&"年"&4))))) -> 令和1年4 | IC93: =IF(OR(IB94="",ID$41=4),"",IF(AND(IC$36>=1,IC$36<=4,IA$36=31),"平成"&31&"年"&4,IF(AND(IC$36=5,IA$36="元"),"平成"&31&"年"&4,IF(AND(IC$36>=6,IA$36="元"),"令和"&2&"年"&4,IF((AND(IC$36>=1,IC$36<=5)),"令和"&IA$36&"年"&4,"令和"&IA$36+1&"年"&4))))) -> 令和1年4 | IG93: =IF(OR(IG94="",IG$41=5),"",4) -> 4 | IH93: =IF(OR(IH94="",IJ$41=4),"",IF(AND(II$36>=1,II$36<=4,IG$36=31),"平成"&31&"年"&4,IF(AND(II$36=5,IG$36="元"),"平成"&31&"年"&4,IF(AND(II$36>=6,IG$36="元"),"令和"&2&"年"&4,IF((AND(II$36>=1,II$36<=5)),"令和"&IG$36&"年"&4,"令和"&IG$36+1&"年"&4))))) -> 令和1年4 | II93: =IF(OR(IH94="",IJ$41=4),"",IF(AND(II$36>=1,II$36<=4,IG$36=31),"平成"&31&"年"&4,IF(AND(II$36=5,IG$36="元"),"平成"&31&"年"&4,IF(AND(II$36>=6,IG$36="元"),"令和"&2&"年"&4,IF((AND(II$36>=1,II$36<=5)),"令和"&IG$36&"年"&4,"令和"&IG$36+1&"年"&4))))) -> 令和1年4
